Workbook

Sheet Renseignements

Sheet Identifications
A1: Nom du fichier | B1: =LEFT(RIGHT(CELL("nomfichier",$A$1),LEN(CELL("nomfichier",$A$1))-SEARCH("[",CELL("nomfichier",$A$1))),SEARCH("]",RIGHT(CELL("nomfichier",$A$1),LEN(CELL("nomfichier",$A$1))-SEARCH("[",CELL("nomfichier",$A$1))))-1) -> OutilCalculSuivi_VAN -2025Novembre20_VERROUILLÉ.xlsm
A2: Version du chiffrier | B2: 1.1 (20 novembre 2025)
A4: Titre du projet
A5: No d'appel d'offres de l'organisme
A6: Nom de l'organisme
A7: Adresse
A8: Ville
A9: Code postal
A10: Personne responsable de la réception des soumissions
A11: No de téléphone
A12: Courriel
A14: Entreprise de services écoénergétiques
A15: Adresse
A16: Ville
A17: Province
A18: Code postal
A19: No de téléphone
A21: Nom du signataire autorisé
A22: Courriel
A23: No de téléphone
A25: Nom du chargé de projet
A26: Courriel
A27: No de téléphone
A30: À l'usage du soumissionnaire
A31: ↓ CLIQUEZ SUR LES ENVELOPPES CI-DESSOUS POUR AFFICHER L'APERÇU AVANT IMPRESSION ↓

Sheet Paramètres
A1: Taux d'actualisation | B1: 0.06
A2: Nombre d'années après la date de commencement et qui entrent dans le calcul de la VAN | B2: 20
A4: Contribution financière de l'organisme (travaux obligatoires ou autres)
A6: Valeur contractuelle de la provision de performance (PdP) | B6: 0.15
A7: Valeur de la 1re tranche, utiliser le montant B7 jusqu’à concurrence d’une valeur maximale C7 de la valeur du contrat | B7: 250000 | C7: 0.05
A9: Provision globale pour la maintenance des équipements | B9: 0.01
A11: Date de signature de contrat estimée | B11: 2020-04-01 | D11: À l'usage exclusif de l'organisme
A12: Durée de la période d'implantation. Nombre de mois avant la date de commencement et qui entrent dans le calcul de la VAN | B12: 24 | D12: 4 boutons à utiliser par l'organisme en vue de l'appel d'offres public | G12: 2 boutons à utiliser par l'organisme après la signature du contrat
A14: Date de commencement | B14: =EDATE(Date_signature_contrat,EcheancierMois) -> 2022-04-01 | G14: 0 | H14: mois
A15: Durée de la période de suivi de la performance | B15: 84
A17: PRI simple maximale allouée, y compris les aides financières (année) | C17: =IF(PRI_simple_AVEC_AF="","",IF(PRI_simple_max=0,"",IFERROR(IF(PRI_simple_max>=PRI_simple_AVEC_AF,"Respecté par le Soumissionnaire","Non respecté par le Soumissionnaire"),""))) -> 

Sheet Données de base
A1: Données de base
A3: Frais de gestion interne | B3: 0 | C3: 12 | D3: 24 | E3: 36 | F3: 48 | G3: 60 | H3: 72 | I3: 84
A6: Pourcentage de libération de la provision de performance en fonction du nombre d'années de la période de suivi de la performance
B7: Année de conciliation
A8: Nombre d'années de suivi | B8: 12 | C8: 24 | D8: 36 | E8: 48 | F8: 60 | G8: 72 | H8: 84
A9: 3 | B9: 0.5 | C9: 0.75 | D9: 1 | E9: n/a | F9: n/a | G9: n/a | H9: n/a
A10: 4 | B10: 0.5 | C10: 0.75 | D10: 0.8 | E10: 1 | F10: n/a | G10: n/a | H10: n/a
A11: 5 | B11: 0.5 | C11: 0.75 | D11: 0.8 | E11: 0.9 | F11: 1 | G11: n/a | H11: n/a
A12: 6 | B12: 0.5 | C12: 0.75 | D12: 0.8 | E12: 0.8 | F12: 0.9 | G12: 1 | H12: n/a
A13: 7 | B13: 0.5 | C13: 0.75 | D13: 0.8 | E13: 0.8 | F13: 0.8 | G13: 0.9 | H13: 1
A16: Numéro général de l'organisme : | E16: Valeurs globales | F16: Superficie | G16: Consommation de référence | J16: Ratios de référence
A17: Nom immeuble | B17: Numéro administratif immeuble | D17: Immeuble | F17: Surface_m2 | G17: Conso_dollars | H17: Conso_GJ | I17: Émissions_GES | J17: $/m2 | K17: GJ/m2 | L17: GES/m2
D18: nom 1 | E18: nom 2 | F18: =SUM(F19:F70) -> 0 | G18: =SUM(G19:G70) -> 0 | H18: 0 | I18: 0 | J18: =IFERROR(G18/$F18,"") ->  | K18: =IFERROR(H18/$F18,"") ->  | L18: =IFERROR(I18/$F18,"") -> 
A19: =CONCATENATE(D19," ",E19) ->  | C19: =A19 ->  | J19: =IFERROR(G19/$F19,"") ->  | K19: =IFERROR(H19/$F19,"") -> 
A20: =CONCATENATE(D20," ",E20) ->  | C20: =A20 ->  | J20: =IFERROR(G20/$F20,"") ->  | K20: =IFERROR(H20/$F20,"") ->  | L20: =IFERROR(I20/$F20,"") -> 
A23: =CONCATENATE(D23," ",E23) ->  | C23: =A23 ->  | J23: =IFERROR(G23/$F23,"") ->  | K23: =IFERROR(H23/$F23,"") ->  | L23: =IFERROR(I23/$F23,"") -> 
A24: =CONCATENATE(D24," ",E24) ->  | C24: =A24 ->  | J24: =IFERROR(G24/$F24,"") ->  | K24: =IFERROR(H24/$F24,"") ->  | L24: =IFERROR(I24/$F24,"") -> 
A72: Traitement des taxes
B73: TPS | C73: TVQ
A74: Valeur nominale | B74: 0.05 | C74: 0.09975
A75: Taux de récupération | B75: 0.67 | C75: 0.47
A76: Valeur de la taxe non récupérée | B76: =1-B75 -> 0.33 | C76: =1-C75 -> 0.53
A77: Pour un montant de 100 $, la taxe payée est de : | B77: =100*B74*B76 -> 1.65 | C77: =100*C74*C76 -> 5.28675
A78: Taux de taxation effectif après récupération : | B78: =(B77+C77)/100 -> 0.0693675
A79: Crédit net de taxes | B79: =((1+B74+C74)-B78)-1 -> 0.0803825
A82: Energie_SEQ | B82: Energie_Forme | C82: Energie_Unite | D82: Energie_MJU | E82: CO2equivNeutralite | F82: Energie_kWhU | G82: Energie_BtuU | H82: Energie_Commentaire | I82: Code_Etape | J82: ABR | K82: CO2 | L82: CH4 | M82: N2O | N82: CO2equiv | O82: Type_NRJ | P82: CodeCompileMaz | Q82: PCGIECdef | R82: PCGIECmin | S82: PCGIECmax | T82: FEGIECdef | U82: FEGIECmin | V82: FEGIECmax | W82: %CO2Prod | X82: CO2prod | Z82: PRP_SEQ | AA82: PRP_GAZ | AC82: PRP_FORMULE | AD82: PRP_PRP | AE82: Source donnees
B83: 1 | C83: 2 | D83: 3 | E83: 4 | F83: 5 | G83: 6 | H83: 7 | I83: 8 | J83: 9 | K83: 10 | L83: 11 | M83: 12 | N83: 13 | O83: 14 | P83: 15 | Q83: 16 | R83: 17 | S83: 18 | T83: 19 | U83: 20 | V83: 21 | W83: 22 | X83: 23 | Y83: 24 | Z83: 25 | AA83: 26 | AB83: 27 | AC83: 28 | AD83: 29 | AE83: 30
A84: 1 | B84: Électricité | C84: kWh | D84: 3.6 | E84: =2.04*0+1.9 -> 1.9 | F84: 1 | G84: =3413*0+D84/1.055056*1000 -> 3412.141156 | H84: Annexe 13 du Rapport d'inventaire national du Canada 1990-2010 partie 3 | I84: 02 | K84: =2*0+1.52649572649573 -> 1.526495726 | L84: =0.0002*0+0 -> 0 | M84: 0.0001 | N84: =2.04*0+E84 -> 1.9 | O84: E | P84: 0 | W84: 0 | X84: 0 | Z84: 1 | AA84: Dioxyde de carbone (R-744) | AB84: kg | AC84: CO2 | AD84: 1 | AE84: Règlement sur la déclaration obligatoire de certaines émission de contaminants dans l'atmosphère, Loi sur la qualité de l'environnement, Q-2, a.2.2, 109.1 et 124.1
A85: 2 | B85: Gaz naturel | C85: m³ | D85: 37.89 | E85: =1889.32*0+1937.355 -> 1937.355 | F85: =D85/$D$84 -> 10.525 | G85: =35921.944*0+D85/1.055056*1000 -> 35912.78567 | H85: Règlement sur la déclaration obligatoire de certaines émission de contaminants dans l'atmosphère, Loi sur la qualité de l'environnement, Q-2, a.2.2, 109.1 et 124.1 Utilisation des données pour usages industriels, ciment, secteur manufacturier et secteurs | I85: 03 | K85: =1878*0+1926 -> 1926 | L85: 0.037 | M85: 0.034 | N85: =1889.32*0+E85 -> 1937.355 | O85: G | P85: 0 | Q85: 33,6 | R85: 32,55 | S85: 35,28 | T85: 56,1 | U85: 54,3 | V85: 58,3 | W85: 0.1285 | X85: 244.4078995 | Z85: 10 | AA85: HFC-134a | AB85: kg | AC85: CH2FCF3 | AD85: 1300 | AE85: Règlement sur la déclaration obligatoire de certaines émission de contaminants dans l'atmosphère, Loi sur la qualité de l'environnement, Q-2, a.2.2, 109.1 et 124.1
B86: Gaz naturel renouvelable | C86: m³ | D86: 37.89 | E86: 11.355 | F86: =D86/$D$84 -> 10.525 | G86: =D86/1.055056*1000 -> 35912.78567 | K86: 1926 | L86: 0.037 | N86: =E86 -> 11.355
A87: 3 | B87: Mazout #2 | C87: L | D87: =38.5*0+38.8 -> 38.8 | E87: =2734.736*0+2762.888 -> 2762.888 | F87: =10.69*0+D87/$D$84 -> 10.77777778 | G87: =36500.14*0+D87/1.055056*1000 -> 36775.29913 | H87: Règlement sur la déclaration obligatoire de certaines émission de contaminants dans l'atmosphère, Loi sur la qualité de l'environnement, Q-2, a.2.2, 109.1 et 124.1 Utilisation des données pour usages industriels. | I87: 04 | K87: =2725*0+2753 -> 2753 | L87: =0.006*0+0.026 -> 0.026 | M87: 0.031 | N87: =2734.736*0+E87 -> 2762.888 | O87: MA2 | P87: 1 | W87: 0.107 | X87: 292.616752 | Z87: 31 | AA87: HCFC-22 (R-22) | AB87: kg | AC87: CHClF2 | AD87: 1810 | AE87: Changes in atmospheric constituents and in radiative forcing (table 2.14 100-yr TAR)
A88: 4 | B88: Mazout lourd | C88: L | D88: 42.5 | E88: =3146.36*0+3176.497 -> 3176.497 | F88: 11.80555555 | G88: =40292.36111*0+D88/1.055056*1000 -> 40282.22199 | H88: Règlement sur la déclaration obligatoire de certaines émission de contaminants dans l'atmosphère, Loi sur la qualité de l'environnement, Q-2, a.2.2, 109.1 et 124.1 Utilisation des données pour usages industriels. | I88: 04 | K88: =3124*0+3156 -> 3156 | L88: =0.12*0+0.057 -> 0.057 | M88: 0.064 | N88: =3146.36*0+E88 -> 3176.497 | O88: MA6 | P88: 1 | W88: 0.137 | X88: 431.05132 | Z88: 47 | AA88: R-404A | AB88: kg | AC88: 0,04(HFC-134a)+0,44(HFC-125)+0,52(HFC-143a) | AD88: 3260 | AE88: Règlement sur la déclaration obligatoire de certaines émission de contaminants dans l'atmosphère, Loi sur la qualité de l'environnement, Q-2, a.2.2, 109.1 et 124.1
A89: 5 | B89: Propane | C89: L | D89: =25.31*0+25.34 -> 25.34 | E89: =1543.984*0+1547.859 -> 1547.859 | F89: =7.03*0+D89/$D$84 -> 7.038888889 | G89: =23995.29*0+D89/1.055056*1000 -> 24017.68247 | H89: Règlement sur la déclaration obligatoire de certaines émission de contaminants dans l'atmosphère, Loi sur la qualité de l'environnement, Q-2, a.2.2, 109.1 et 124.1 | I89: 07 | K89: =1510*0+1515 -> 1515 | L89: =0.024*0+0.027 -> 0.027 | M89: 0.108 | N89: =1543.984*0+E89 -> 1547.859 | O89: P | P89: 1 | Q89: 25,542 | R89: 24,192 | S89: 28,188 | T89: 63,1 | U89: 61,6 | V89: 65,6 | W89: 0.188 | X89: 290.268992 | Z89: 50 | AA89: R-407A | AB89: kg | AC89: 0,4(HFC-134a)+0,4(HFC-125)+0,2(HFC-32) | AD89: 1770 | AE89: Règlement sur la déclaration obligatoire de certaines émission de contaminants dans l'atmosphère, Loi sur la qualité de l'environnement, Q-2, a.2.2, 109.1 et 124.1
A90: 6 | B90: Diesel | C90: L | D90: =38.3*0+38.35 -> 38.35 | E90: =2789.793*0+2747.335 -> 2747.335 | F90: =10.64*0+D90/$D$84 -> 10.65277778 | G90: =36310.53*0+D90/1.055056*1000 -> 36348.78149 | H90: Règlement sur la déclaration obligatoire de certaines émission de contaminants dans l'atmosphère, Loi sur la qualité de l'environnement, Q-2, a.2.2, 109.1 et 124.1 | I90: 06 | K90: =2663*0+2680.5 -> 2680.5 | L90: =0.133*0+0.068 -> 0.068 | M90: =0.4*0+0.21 -> 0.21 | N90: =2789.793*0+E90 -> 2747.335 | P90: 1 | Q90: 36,55 | R90: 35,19 | S90: 36,805 | T90: 74,1 | U90: 72,6 | V90: 74,8 | W90: 0.107 | X90: 298.507851 | Z90: 85 | AA90: R-507a | AB90: kg | AC90: 0,5(HFC-125)+0,5(HFC-143a) | AD90: 3300 | AE90: Règlement sur la déclaration obligatoire de certaines émission de contaminants dans l'atmosphère, Loi sur la qualité de l'environnement, Q-2, a.2.2, 109.1 et 124.1
A91: 7 | B91: Essence (automobile) | C91: L | D91: =34.87*0+33.45 -> 33.45 | E91: =2361.92*0+2317.356 -> 2317.356 | F91: =9.69*0+D91/$D$84 -> 9.291666667 | G91: =33058.7*0+D91/1.055056*1000 -> 31704.47825 | H91: Règlement sur la déclaration obligatoire de certaines émission de contaminants dans l'atmosphère, Loi sur la qualité de l'environnement, Q-2, a.2.2, 109.1 et 124.1 | I91: 05 | K91: =2289*0+2307.3 -> 2307.3 | L91: =2.7*0+0.14 -> 0.14 | M91: =0.05*0+0.022 -> 0.022 | N91: =2361.2*0+E91 -> 2317.356 | P91: 1 | Q91: 36,55 | R91: 35,19 | S91: 36,805 | T91: 74,1 | U91: 72,6 | V91: 74,8 | W91: 0.17 | X91: 401.5264 | Z91: 86 | AA91: Ammoniac (R-717) | AB91: kg | AC91: NH3 | AD91: 0 | AE91: Internation Institute of Ammonia Refrigeration (IIAR) www.iiar.org
A92: 8 | B92: Essence (aviation) | C92: L | D92: 33.52 | E92: =2459.5*0+2448.69 -> 2448.69 | F92: 9.31 | G92: =31778.82*0+D92/1.055056*1000 -> 31770.82543 | H92: Règlement sur la déclaration obligatoire de certaines émission de contaminants dans l'atmosphère, Loi sur la qualité de l'environnement, Q-2, a.2.2, 109.1 et 124.1 | I92: 05 | K92: =2342*0+2325.4 -> 2325.4 | L92: =2.2*0+2.19 -> 2.19 | M92: 0.23 | N92: =2459.5*0+E92 -> 2448.69 | P92: 1 | W92: 0.17 | X92: 418.115 | Z92: 92 | AA92: R-422D | AB92: kg | AC92: 0,651(HFC-125)+0,315(HFC-134a)+0,034*(600a) | AD92: 2292.28 | AE92: Règlement sur la déclaration obligatoire de certaines émission de contaminants dans l'atmosphère, Loi sur la qualité de l'environnement, Q-2, a.2.2, 109.1 et 124.1
A93: 9 | B93: Carburéacteur | C93: L | D93: 37.4 | E93: =2606.98*0+2581.6128 -> 2581.6128 | F93: 10.39 | G93: =35457.28*0+D93/1.055056*1000 -> 35448.35535 | H93: Règlement sur la déclaration obligatoire de certaines émission de contaminants dans l'atmosphère, Loi sur la qualité de l'environnement, Q-2, a.2.2, 109.1 et 124.1 | K93: =2534*0+2559.7 -> 2559.7 | L93: =0.08*0+0.029 -> 0.029 | M93: =0.23*0+0.0711 -> 0.0711 | N93: =2606.98*0+E93 -> 2581.6128 | P93: 1 | Q93: 31,453 | R93: 30,175 | S93: 31,808 | T93: 70 | U93: 67,5 | V93: 73 | W93: 0.093 | X93: 242.44914 | Z93: 74 | AA93: Bromure de méthyle | AB93: kg | AC93: CH3Br | AD93: 5 | AE93: Changes in atmospheric constituents and in radiative forcing (table 2.14 100-yr TAR)
A94: 10 | B94: Kérosène | C94: L | D94: 37.68 | E94: =2543.736*0+2562.438 -> 2562.438 | F94: 10.469444 | G94: =35722.73*0+D94/1.055056*1000 -> 35713.7441 | H94: Règlement sur la déclaration obligatoire de certaines émission de contaminants dans l'atmosphère, Loi sur la qualité de l'environnement, Q-2, a.2.2, 109.1 et 124.1 | K94: =2534*0+2560 -> 2560 | L94: =0.006*0+0.2471 -> 0.2471 | M94: =0.031*0+0.0706 -> 0.0706 | N94: =2543.736*0+E94 -> 2562.438 | P94: 1 | W94: 0.093 | X94: 236.567448 | Z94: 25 | AA94: CFC-11 | AB94: kg | AC94: CCl3F | AD94: 4750 | AE94: Changes in atmospheric constituents and in radiative forcing (table 2.14 100-yr TAR)
A95: 11 | B95: Bitume | C95: L | D95: 44.46 | E95: 1778.4 | F95: 12.35 | G95: =42150.55*0+D95/1.055056*1000 -> 42139.94328 | H95: Règlement sur la déclaration obligatoire de certaines émission de contaminants dans l'atmosphère, Loi sur la qualité de l'environnement, Q-2, a.2.2, 109.1 et 124.1. Facteur d’émission du guid des facteurs d’émissions de l’ADEME version 5.0. | K95: 1778.4 | N95: =1778.4 -> 1778.4 | P95: 1 | Q95: 40,2 | R95: 33,5 | S95: 41,2 | T95: 80,7 | U95: 73 | V95: 89,9 | W95: 0.137 | X95: 243.6408 | Z95: 28 | AA95: CFC-113 | AB95: kg | AC95: CCl2FCClF2 | AD95: 6130 | AE95: Changes in atmospheric constituents and in radiative forcing (table 2.14 100-yr TAR)
A96: 12 | B96: Gaz de distillation (du raffinage) | C96: L | D96: =36.08*0+41.18 -> 41.18 | E96: =1756.88 -> 1756.88 | F96: =10.02*0+D96/$D$84 -> 11.43888889 | G96: =34205.84*0+D96/1.055056*1000 -> 39031.10356 | H96: Règlement sur la déclaration obligatoire de certaines émission de contaminants dans l'atmosphère, Loi sur la qualité de l'environnement, Q-2, a.2.2, 109.1 et 124.1 | K96: =1750 -> 1750 | L96: 0.039 | M96: 0.0222 | N96: =1756.88 -> 1756.88 | P96: 1 | Q96: 49,9 | R96: 47,5 | S96: 50,6 | T96: 57,6 | U96: 48,2 | V96: 69 | W96: 0.188 | X96: 329.001128 | Z96: 29 | AA96: CFC-114 | AB96: kg | AC96: CClF2CClF2 | AD96: 10000 | AE96: Changes in atmospheric constituents and in radiative forcing (table 2.14 100-yr TAR)
A97: 16 | B97: Lignite | C97: kg | D97: =15*0+17 -> 17 | E97: 1567.96 | F97: =4.17*0+D97/$D$84 -> 4.722222222 | G97: =14220.83*0+D97/1.055056*1000 -> 16112.88879 | H97: Règlement sur la déclaration obligatoire de certaines émission de contaminants dans l'atmosphère, Loi sur la qualité de l'environnement, Q-2, a.2.2, 109.1 et 124.1 | K97: =1480*0+1462 -> 1462 | L97: =0.03*0+4 -> 4 | M97: 0.02 | N97: =1486.83*0 -> 0 | P97: 1 | Q97: 11,9 | R97: 5,5 | S97: 21,6 | T97: 101 | U97: 90,9 | V97: 115 | W97: 0.08 | X97: 118.9464 | Z97: 30 | AA97: CFC-115 | AB97: kg | AC97: CClF2CF3 | AD97: 7370 | AE97: Changes in atmospheric constituents and in radiative forcing (table 2.14 100-yr TAR)
A98: 19 | B98: Butane | C98: L | D98: 28.44 | E98: =1763.984*0+1779.784 -> 1779.784 | F98: 7.9 | G98: =26962.7*0+D98/1.055056*1000 -> 26955.91514 | H98: Règlement sur la déclaration obligatoire de certaines émission de contaminants dans l'atmosphère, Loi sur la qualité de l'environnement, Q-2, a.2.2, 109.1 et 124.1 | K98: =1730*0+1747 -> 1747 | L98: 0.024 | M98: 0.108 | N98: =1763.984*0+E98 -> 1779.784 | P98: 1 | W98: 0.188 | X98: 331.628992 | Z98: 26 | AA98: CFC-12 | AB98: kg | AC98: CCl2F2 | AD98: 10900 | AE98: Changes in atmospheric constituents and in radiative forcing (table 2.14 100-yr TAR)
A99: 20 | B99: Éthane | C99: L | D99: 17.22 | E99: =976*0+1018.784 -> 1018.784 | F99: 4.78 | G99: =16325.52*0+D99/1.055056*1000 -> 16321.40853 | H99: Règlement sur la déclaration obligatoire de certaines émission de contaminants dans l'atmosphère, Loi sur la qualité de l'environnement, Q-2, a.2.2, 109.1 et 124.1 | K99: =976*0+986 -> 986 | L99: 0.024 | M99: 0.108 | N99: =976*0+E99 -> 1018.784 | P99: 1 | W99: 0.093 | X99: 90.768 | Z99: 27 | AA99: CFC-13 | AB99: kg | AC99: CClF3 | AD99: 14400 | AE99: Changes in atmospheric constituents and in radiative forcing (table 2.14 100-yr TAR)
A100: 21 | B100: Coke de charbon | C100: kg | D100: =28.83*0+26 -> 26 | E100: =2486.83*0+3179.71 -> 3179.71 | F100: =8.008333333*0+D100/$D$84 -> 7.222222222 | G100: =27332.44167*0+D100/1.055056*1000 -> 24643.24169 | H100: Règlement sur la déclaration obligatoire de certaines émission de contaminants dans l'atmosphère, Loi sur la qualité de l'environnement, Q-2, a.2.2, 109.1 et 124.1. Utilisation des données CH4 et N2O pour le secteur industriel, centrales thermiques à vape | K100: =2480*0+3173 -> 3173 | L100: 0.03 | M100: 0.02 | N100: =2486.83*0+E100 -> 3179.71 | P100: 1 | Q100: 28,2 | R100: 25,1 | S100: 30,2 | T100: 107 | U100: 95,7 | V100: 119 | W100: 0.08 | X100: 198.9464 | Z100: 38 | AA100: Halon 1301 | AB100: kg | AC100: CBrF3 | AD100: 7140 | AE100: Changes in atmospheric constituents and in radiative forcing (table 2.14 100-yr TAR)
A101: 22 | B101: Coke de pétrole (raffinage) | C101: kg | D101: =46.35*0+34.82 -> 34.82 | E101: =3836.735*0+3227.85237698082 -> 3227.852377 | F101: =12.88*0+D101/$D$84 -> 9.672222222 | G101: =43942.38*0+D101/1.055056*1000 -> 33002.98752 | H101: Règlement sur la déclaration obligatoire de certaines émission de contaminants dans l'atmosphère, Loi sur la qualité de l'environnement, Q-2, a.2.2, 109.1 et 124.1 | K101: =3826*0+3218.5154295246 -> 3218.51543 | L101: =0.12*0+0.100083402835696 -> 0.1000834028 | M101: =0.0265*0+0.0229357798165138 -> 0.02293577982 | N101: =3836.735*0+E101 -> 3227.852377 | P101: 1 | Q101: 32,5 | R101: 29,7 | S101: 41,9 | T101: 97,5 | U101: 82,9 | V101: 115 | W101: 0.08 | X101: 306.9388 | Z101: 83 | AA101: Halon-1211 | AB101: kg | AC101: CBrClF2 | AD101: 1890 | AE101: Changes in atmospheric constituents and in radiative forcing (table 2.14 100-yr TAR)
A102: 23 | B102: Charbon de bois | C102: kg | D102: 27.599911 | E102: 35.966 | F102: 7.6666419 | G102: =26166.248*0+D102/1.055056*1000 -> 26159.66451 | H102: Enlever | K102: 3190 | L102: 0.576 | M102: 0.077 | N102: 3231.966 | P102: 1 | Q102: 29,5 | R102: 14,9 | S102: 58 | T102: 112 | U102: 95 | V102: 132 | W102: 0 | X102: 0 | Z102: 84 | AA102: Halon-2402 | AB102: kg | AC102: CBrF2CBrF2 | AD102: 1640 | AE102: Changes in atmospheric constituents and in radiative forcing (table 2.14 100-yr TAR)
A103: 26 | B103: Liqueur usée de cuisson base sèche | C103: kg | D103: 14.2 | E103: 9.231 | F103: 3.94 | G103: =13462.39*0+D103/1.055056*1000 -> 13459.00123 | H103: Règlement sur la déclaration obligatoire de certaines émission de contaminants dans l'atmosphère, Loi sur la qualité de l'environnement, Q-2, a.2.2, 109.1 et 124.1 | K103: 1304 | L103: 0.041 | M103: 0.027 | N103: 1313.23 | P103: 2 | T103: 85,3 | U103: 80,7 | V103: 110 | W103: 0 | X103: 0 | Z103: 32 | AA103: HCFC-123 | AB103: kg | AC103: CHCl2CF3 | AD103: 77 | AE103: Changes in atmospheric constituents and in radiative forcing (table 2.14 100-yr TAR)
A104: 29 | B104: Bi-énergie chauffage électrique | C104: kWh | D104: 3.6 | F104: 1 | G104: =3413*0+D104/1.055056*1000 -> 3412.141156 | P104: 0 | W104: 0 | X104: 0 | Z104: 33 | AA104: HCFC-124 | AB104: kg | AC104: CHClFCF3 | AD104: 609 | AE104: Changes in atmospheric constituents and in radiative forcing (table 2.14 100-yr TAR)
A105: 30 | B105: Autre | C105: GJ | D105: 1000 | E105: 0 | F105: 277.777777 | G105: =948055.52*0+D105/1.055056*1000 -> 947816.9879 | P105: 0 | W105: 0 | X105: 0 | Z105: 34 | AA105: HCFC-141b | AB105: kg | AC105: CH3CCl2F | AD105: 725 | AE105: Changes in atmospheric constituents and in radiative forcing (table 2.14 100-yr TAR)
A106: 31 | B106: Vapeur | C106: Lbs | D106: =1.0547902*0+1.50614285714286 -> 1.506142857 | E106: 0 | F106: 0.2929973 | G106: =1000*0+D106/1.055056*1000 -> 1427.547786 | P106: 0 | W106: 0 | X106: 0 | Z106: 35 | AA106: HCFC-142b | AB106: kg | AC106: CH3CClF2 | AD106: 2310 | AE106: Changes in atmospheric constituents and in radiative forcing (table 2.14 100-yr TAR)
A107: 36 | B107: Biomasse | C107: kg | D107: =14.77*0+17.41 -> 17.41 | E107: =35.966*0+33.857584832 -> 33.85758483 | F107: =4.1*0+D107/$D$84 -> 4.836111111 | G107: =14002.74*0+D107/1.055056*1000 -> 16501.49376 | H107: Règlement sur la déclaration obligatoire de certaines émission de contaminants dans l'atmosphère, Loi sur la qualité de l'environnement, Q-2, a.2.2, 109.1 et 124.1 | J107: 1 | K107: 1799 | L107: =0.576*0+0.574905801446586 -> 0.5749058014 | M107: =0.077*0+0.0768537269294915 -> 0.07685372693 | N107: 1834.97 | P107: 2 | Q107: 15,6 | R107: 7,9 | S107: 31 | T107: 112 | U107: 95 | V107: 132 | W107: 0 | X107: 0 | Z107: 36 | AA107: HCFC-225ca | AB107: kg | AC107: CHCl2CF2CF3 | AD107: 122 | AE107: Changes in atmospheric constituents and in radiative forcing (table 2.14 100-yr TAR)
A108: 59 | B108: Écorces | C108: kg | D108: 20 | E108: 35.966 | F108: 5.5555555 | G108: =18960.9555555*0+D108/1.055056*1000 -> 18956.33976 | H108: Forintek avec valeur de la biomasse pour les émissions | J108: 1 | K108: 1799 | L108: =0.576*0+0.574905801446586 -> 0.5749058014 | M108: =0.077*0+0.0768537269294915 -> 0.07685372693 | N108: 1834.97 | P108: 2 | W108: 0 | X108: 0 | Z108: 37 | AA108: HCFC-225cb | AB108: kg | AC108: CHClFCF2CClF2 | AD108: 595 | AE108: Changes in atmospheric constituents and in radiative forcing (table 2.14 100-yr TAR)
A109: 37 | B109: Gaz de distillation (de valorisation) | C109: m³ | D109: =43.24*0+41.18 -> 41.18 | E109: =2146.88 -> 2146.88 | F109: =12.01*0+D109/$D$84 -> 11.43888889 | G109: =40993.92*0+D109/1.055056*1000 -> 39031.10356 | H109: Règlement sur la déclaration obligatoire de certaines émission de contaminants dans l'atmosphère, Loi sur la qualité de l'environnement, Q-2, a.2.2, 109.1 et 124.1 | K109: =2140 -> 2140 | L109: =0.039 -> 0.039 | M109: 0.0222 | N109: 2146.88 | P109: 1 | T109: 57,6 | U109: 48,2 | V109: 69 | W109: 0.188 | X109: 329.001316 | Z109: 24 | AA109: Hexafluorure de soufre | AB109: kg | AC109: SF6 | AD109: 23900 | AE109: Règlement sur la déclaration obligatoire de certaines émission de contaminants dans l'atmosphère, Loi sur la qualité de l'environnement, Q-2, a.2.2, 109.1 et 124.1
A110: 39 | B110: CRD | C110: kg | D110: 16.72 | E110: 714.9472 | F110: 4.644444 | G110: =15851.48889*0+D110/1.055056*1000 -> 15847.50004 | H110: note: rebus de construction | K110: 715.9472 | L110: 0 | M110: 0 | N110: 714.9472 | P110: 1 | T110: 42,76 | W110: 0 | X110: 0 | Z110: 8 | AA110: HFC-125 | AB110: kg | AC110: C2HF5 | AD110: 2800 | AE110: Règlement sur la déclaration obligatoire de certaines émission de contaminants dans l'atmosphère, Loi sur la qualité de l'environnement, Q-2, a.2.2, 109.1 et 124.1
A111: 40 | B111: Lubrifiants (huiles usées) | C111: L | D111: 39.16 | E111: 2422.36 | F111: 10.87777778 | G111: =37125.8555555555*0+D111/1.055056*1000 -> 37116.51325 | H111: Règlement sur la déclaration obligatoire de certaines émission de contaminants dans l'atmosphère, Loi sur la qualité de l'environnement, Q-2, a.2.2, 109.1 et 124.1 | K111: 2400 | L111: 0.12 | M111: 0.064 | N111: 2422.36 | P111: 1 | W111: 0 | X111: 0 | Z111: 9 | AA111: HFC-134 | AB111: kg | AC111: CHF2CHF2 | AD111: 1000 | AE111: Règlement sur la déclaration obligatoire de certaines émission de contaminants dans l'atmosphère, Loi sur la qualité de l'environnement, Q-2, a.2.2, 109.1 et 124.1
A112: 41 | B112: Mazout léger no 1 | C112: L | D112: 38.78 | E112: 2652.736 | F112: 10.77222222 | G112: =36765.5944444444*0+D112/1.055056*1000 -> 36756.34279 | H112: Règlement sur la déclaration obligatoire de certaines émission de contaminants dans l'atmosphère, Loi sur la qualité de l'environnement, Q-2, a.2.2, 109.1 et 124.1 Utilisation des données pour autoconsommation | K112: 2643 | L112: 0.006 | M112: 0.031 | N112: 2652.736 | P112: 1 | W112: 0.107 | X112: 283.842752 | Z112: 11 | AA112: HFC-143 | AB112: kg | AC112: C2H3F3 | AD112: 300 | AE112: Règlement sur la déclaration obligatoire de certaines émission de contaminants dans l'atmosphère, Loi sur la qualité de l'environnement, Q-2, a.2.2, 109.1 et 124.1
A113: 45 | B113: Coke de pétrole (de valorisation) | C113: L | D113: =40.57*0+34.82 -> 34.82 | E113: =3503.681*0+2922.56213511259 -> 2922.562135 | F113: =11.2694444444444*0+D113/$D$84 -> 9.672222222 | G113: =38462.6138888889*0+D113/1.055056*1000 -> 33002.98752 | H113: Règlement sur la déclaration obligatoire de certaines émission de contaminants dans l'atmosphère, Loi sur la qualité de l'environnement, Q-2, a.2.2, 109.1 et 124.1 | K113: =3494*0+2914.09507923269 -> 2914.095079 | L113: =0.12*0+0.100083402835696 -> 0.1000834028 | M113: =0.0231*0+0.0200166805671393 -> 0.02001668057 | N113: =3503.681*0+E113 -> 2922.562135 | P113: 1 | W113: 0.08 | X113: 280.29448 | Z113: 12 | AA113: HFC-143a | AB113: kg | AC113: C2H3F3 | AD113: 3800 | AE113: Règlement sur la déclaration obligatoire de certaines émission de contaminants dans l'atmosphère, Loi sur la qualité de l'environnement, Q-2, a.2.2, 109.1 et 124.1
A114: 46 | B114: Éthanol (100%) | C114: L | D114: 23.41 | E114: =1519*0+1518.096 -> 1518.096 | F114: 6.502777778 | G114: =22193.9805555556*0+D114/1.055056*1000 -> 22188.39569 | H114: Règlement sur la déclaration obligatoire de certaines émission de contaminants dans l'atmosphère, Loi sur la qualité de l'environnement, Q-2, a.2.2, 109.1 et 124.1 | K114: =1519*0+1508.04 -> 1508.04 | L114: 0.14 | M114: 0.022 | N114: =1519*0+E114 -> 1518.096 | P114: 2 | W114: 0 | X114: 0 | Z114: 13 | AA114: HFC-152a | AB114: kg | AC114: C2H4F2 | AD114: 140 | AE114: Règlement sur la déclaration obligatoire de certaines émission de contaminants dans l'atmosphère, Loi sur la qualité de l'environnement, Q-2, a.2.2, 109.1 et 124.1
A115: 47 | B115: Biodiésel | C115: L | D115: 35.67 | E115: 0 | F115: 9.908333333 | G115: =33817.1416666667*0+D115/1.055056*1000 -> 33808.63196 | H115: Règlement sur la déclaration obligatoire de certaines émission de contaminants dans l'atmosphère, Loi sur la qualité de l'environnement, Q-2, a.2.2, 109.1 et 124.1 | K115: =2497*0+2472.2 -> 2472.2 | L115: 0.051 | M115: 0.22 | N115: 2497 | P115: 2 | W115: 0 | X115: 0 | Z115: 77 | AA115: HFC-161 | AB115: kg | AC115: C2H5F | AD115: 12 | AE115: Règlement sur la déclaration obligatoire de certaines émission de contaminants dans l'atmosphère, Loi sur la qualité de l'environnement, Q-2, a.2.2, 109.1 et 124.1
A116: 48 | B116: Gras animal fondu | C116: L | D116: 34.84 | E116: 0 | F116: 9.677777778 | G116: =33030.2555555556*0+D116/1.055056*1000 -> 33021.94386 | H116: Règlement sur la déclaration obligatoire de certaines émission de contaminants dans l'atmosphère, Loi sur la qualité de l'environnement, Q-2, a.2.2, 109.1 et 124.1 | K116: 2348 | L116: 0 | M116: 0 | N116: 2348 | P116: 2 | W116: 0 | X116: 0 | Z116: 14 | AA116: HFC-227ea | AB116: kg | AC116: C3HF7 | AD116: 2900 | AE116: Règlement sur la déclaration obligatoire de certaines émission de contaminants dans l'atmosphère, Loi sur la qualité de l'environnement, Q-2, a.2.2, 109.1 et 124.1
A117: 49 | B117: Huile végétale | C117: L | D117: 33.44 | E117: 0 | F117: 9.288888889 | G117: =31702.9777777778*0+D117/1.055056*1000 -> 31695.00008 | H117: Règlement sur la déclaration obligatoire de certaines émission de contaminants dans l'atmosphère, Loi sur la qualité de l'environnement, Q-2, a.2.2, 109.1 et 124.1 | K117: 2585 | L117: 0 | M117: 0 | N117: 2585 | P117: 2 | W117: 0 | X117: 0 | Z117: 4 | AA117: HFC-23 | AB117: kg | AC117: CHF3 | AD117: 11700 | AE117: Règlement sur la déclaration obligatoire de certaines émission de contaminants dans l'atmosphère, Loi sur la qualité de l'environnement, Q-2, a.2.2, 109.1 et 124.1
A118: 50 | B118: Charbon bitumineux étranger | C118: kg | D118: =29.82*0+26.33 -> 26.33 | E118: =2346.83*0+2303.96 -> 2303.96 | F118: =8.28333333333333*0+D118/$D$84 -> 7.313888889 | G118: =28271.0166666667*0+D118/1.055056*1000 -> 24956.02129 | H118: Règlement sur la déclaration obligatoire de certaines émission de contaminants dans l'atmosphère, Loi sur la qualité de l'environnement, Q-2, a.2.2, 109.1 et 124.1. Utilisation du charbon américain. Utilisation des données CH4 et N2O pour le secteur indus | K118: =2340*0+2198 -> 2198 | L118: =0.03*0+4 -> 4 | M118: 0.02 | N118: =2346.83*0+E118 -> 2303.96 | P118: 1 | W118: 0.08 | X118: 187.7464 | Z118: 78 | AA118: HFC-236cb | AB118: kg | AC118: C3H2F6 | AD118: 1300 | AE118: Règlement sur la déclaration obligatoire de certaines émission de contaminants dans l'atmosphère, Loi sur la qualité de l'environnement, Q-2, a.2.2, 109.1 et 124.1
A119: 51 | B119: Matières résiduelles collectés par une municipalité | C119: kg | D119: 11.57 | E119: 21.6421 | F119: 3.213888889 | G119: =10969.0027777778*0+D119/1.055056*1000 -> 10966.24255 | H119: Règlement sur la déclaration obligatoire de certaines émission de contaminants dans l'atmosphère, Loi sur la qualité de l'environnement, Q-2, a.2.2, 109.1 et 124.1.z | K119: 990.392 | L119: 0.3471 | M119: 0.04628 | N119: 1012.034 | P119: 2 | W119: 0 | X119: 0 | Z119: 79 | AA119: HFC-236ea | AB119: kg | AC119: C3H2F6 | AD119: 1200 | AE119: Règlement sur la déclaration obligatoire de certaines émission de contaminants dans l'atmosphère, Loi sur la qualité de l'environnement, Q-2, a.2.2, 109.1 et 124.1
A120: 52 | B120: Tourbe | C120: kg | D120: 9.3 | E120: 4.5198 | F120: 2.583333333 | G120: =8816.91666666667*0+D120/1.055056*1000 -> 8814.697988 | H120: Règlement sur la déclaration obligatoire de certaines émission de contaminants dans l'atmosphère, Loi sur la qualité de l'environnement, Q-2, a.2.2, 109.1 et 124.1 1 kg donne 11,57 MJ | J120: 1 | K120: 957.9 | L120: 0.009 | M120: 0.01395 | N120: 962.4198 | P120: 2 | W120: 0 | X120: 0 | Z120: 15 | AA120: HFC-236fa | AB120: kg | AC120: C3H2F6 | AD120: 6300 | AE120: Règlement sur la déclaration obligatoire de certaines émission de contaminants dans l'atmosphère, Loi sur la qualité de l'environnement, Q-2, a.2.2, 109.1 et 124.1
A121: 53 | B121: Pneus | C121: kg | D121: 31.18 | E121: 2650 | F121: 8.661111111 | G121: =29560.3722222222*0+D121/1.055056*1000 -> 29552.93368 | H121: Règlement sur la déclaration obligatoire de certaines émission de contaminants dans l'atmosphère, Loi sur la qualité de l'environnement, Q-2, a.2.2, 109.1 et 124.1 | K121: 2650 | L121: 0 | M121: 0 | N121: 2650 | P121: 1 | W121: 0 | X121: 0 | Z121: 16 | AA121: HFC-245ca | AB121: kg | AC121: C3H3F5 | AD121: 560 | AE121: Règlement sur la déclaration obligatoire de certaines émission de contaminants dans l'atmosphère, Loi sur la qualité de l'environnement, Q-2, a.2.2, 109.1 et 124.1
A122: 54 | B122: Sous-produits agricoles (qui ne sont pas destinés à la consommation) | C122: kg | D122: 9.59 | E122: 0 | F122: 2.663888889 | G122: =9091.85277777778*0+D122/1.055056*1000 -> 9089.564914 | H122: Règlement sur la déclaration obligatoire de certaines émission de contaminants dans l'atmosphère, Loi sur la qualité de l'environnement, Q-2, a.2.2, 109.1 et 124.1 | J122: 1 | K122: 1074 | L122: 0 | M122: 0 | N122: 1074 | P122: 2 | W122: 0 | X122: 0 | Z122: 80 | AA122: HFC-245fa | AB122: kg | AC122: C3H3F5 | AD122: 950 | AE122: Règlement sur la déclaration obligatoire de certaines émission de contaminants dans l'atmosphère, Loi sur la qualité de l'environnement, Q-2, a.2.2, 109.1 et 124.1
A123: 55 | B123: Sous-produits de la biomasse (résidus animaux et végétaux, excluant les résidus de bois et la liqueur de cuisson) | C123: kg | D123: 30.03 | E123: 0 | F123: 8.416666667 | G123: =28726.0833333333*0+D123/1.055056*1000 -> 28462.94415 | H123: Règlement sur la déclaration obligatoire de certaines émission de contaminants dans l'atmosphère, Loi sur la qualité de l'environnement, Q-2, a.2.2, 109.1 et 124.1 | J123: 1 | K123: 3000 | L123: 0 | M123: 0 | N123: 3000 | P123: 2 | W123: 0 | X123: 0 | Z123: 118 | AA123: HFC-245fa | AB123: kg | AC123: CHF 2CH 2CF 3 | AD123: 0
A124: 56 | B124: Gaz de cokerie | C124: m³ | D124: 19.14 | E124: =890.627*0+699.92 -> 699.92 | F124: =5.31666666666667 -> 5.316666667 | G124: =18145.7833333333*0+D124/1.055056*1000 -> 18141.21715 | H124: Règlement sur la déclaration obligatoire de certaines émission de contaminants dans l'atmosphère, Loi sur la qualité de l'environnement, Q-2, a.2.2, 109.1 et 124.1 | K124: =879*0+687 -> 687 | L124: =0.037*0+0.04 -> 0.04 | M124: =0.035*0+0.04 -> 0.04 | N124: =890.627*0+E124 -> 699.92 | P124: 1 | W124: 0.188 | X124: 167.437876 | Z124: 5 | AA124: HFC-32 | AB124: kg | AC124: CH2F2 | AD124: 650 | AE124: Règlement sur la déclaration obligatoire de certaines émission de contaminants dans l'atmosphère, Loi sur la qualité de l'environnement, Q-2, a.2.2, 109.1 et 124.1
A125: 57 | B125: Biogaz (portion méthane) | C125: m³ | D125: 38.32 | E125: 11.317 | F125: 10.64 | G125: =36361.42*0+D125/1.055056*1000 -> 36320.34698 | H125: Règlement sur la déclaration obligatoire de certaines émission de contaminants dans l'atmosphère, Loi sur la qualité de l'environnement, Q-2, a.2.2, 109.1 et 124.1 | J125: 1 | K125: 1878 | L125: 0.037 | M125: 0.034 | N125: 1889.32 | P125: 2 | W125: 0 | X125: 0 | Z125: 119 | AA125: HFC-365mfc | AB125: kg | AD125: 0
A126: 58 | B126: Gaz d'enfouissement (portion méthane) | C126: m³ | D126: 38.32 | E126: 11.317 | F126: 10.64 | G126: =36361.42*0+D126/1.055056*1000 -> 36320.34698 | H126: Règlement sur la déclaration obligatoire de certaines émission de contaminants dans l'atmosphère, Loi sur la qualité de l'environnement, Q-2, a.2.2, 109.1 et 124.1 | J126: 1 | K126: 1878 | L126: 0.037 | M126: 0.034 | N126: 1889.32 | P126: 2 | W126: 0 | X126: 0 | Z126: 81 | AA126: HFC-365mfc | AB126: kg | AC126: C4H5F5 | AD126: 890 | AE126: Règlement sur la déclaration obligatoire de certaines émission de contaminants dans l'atmosphère, Loi sur la qualité de l'environnement, Q-2, a.2.2, 109.1 et 124.1
A127: 61 | B127: Biocharbon | C127: kg | D127: 27.6 | E127: 35.966 | F127: 7.67 | G127: =16166.25*0+D127/1.055056*1000 -> 26159.74887 | H127: Règlement sur la déclaration obligatoire de certaines émission de contaminants dans l'atmosphère, Loi sur la qualité de l'environnement, Q-2, a.2.2, 109.1 et 124.1 | J127: 1 | K127: 3190 | L127: 0.576 | M127: 0.077 | N127: 3225.966 | P127: 1 | W127: 0 | X127: 0 | Z127: 6 | AA127: HFC-41 | AB127: kg | AC127: CH3F | AD127: 150 | AE127: Règlement sur la déclaration obligatoire de certaines émission de contaminants dans l'atmosphère, Loi sur la qualité de l'environnement, Q-2, a.2.2, 109.1 et 124.1
A131: Calcul d'équivalence des taux intérêts
A134: Taux d'actualisation annuel | B134: =TA_annuel -> 0.06
A135: Taux d'actualisation mensuel équivalent | B135: =((1+TA_annuel)^(1/12))-1 -> 0.004867550565
K146: 16325.52
A147: Organismes offrant des aides financières
A148: Énergir
A149: Gazifère
A150: Hydro-Québec
A151: Ministère
A152: MELCCFP (TEQ)
A154: Nombre d'années de suivi post-implantation
A155: 36
A156: 48
A157: 60
A158: 72
A159: 84
A161: Nombre d'année de calcul de la VAN après la Date de commencement
A162: 15
A163: 16
A164: 17
A165: 18
A166: 19
A167: 20
A168: 21
A169: 22
A170: 23
A171: 24
A172: 25
A174: Provision pour maintenance des équipements
A175: 0.0025
A176: 0.005
A177: 0.0075
A178: 0.01
A179: 0.0125
A180: 0.015
A181: 0.0175
A182: 0.02
A183: 0.0225
A184: 0.025
A185: 0.0275
A186: 0.03
A187: 0.0325
A188: 0.035
A189: 0.0375
A190: 0.04
A191: 0.0425
A192: 0.045
A193: 0.0475
A194: 0.05
A196: Type de mesure
A197: 1 | B197: Chauffage centralisé (bâtiment - ventilation)
A198: 2 | B198: Refroidissement centralisé
A199: 3 | B199: Conversion: combustible vers électricité ou biomasse
A200: 4 | B200: Aérothermie
A201: 5 | B201: Géothermie
A202: 6 | B202: Récupération de chaleur
A203: 7 | B203: Recommissioning (RCx)
A204: 8 | B204: Système de contrôles
A205: 9 | B205: Chauffage eau chaude domestique
A206: 10 | B206: Stockage thermique
A207: 11 | B207: Systèmes de distribution en CVCA
A208: 12 | B208: Humidification
A209: 13 | B209: Éclairage
A210: 14 | B210: Force motrice électrique
A211: 15 | B211: Isolation - enveloppe du bâtiment
A212: 16 | B212: Murs et panneaux solaires
A213: 17 | B213: Autres

Sheet Valeur du contrat
A1: VALEUR DU CONTRAT
A2: 1 | B2: 2 | C2: 3 | D2: 4 | E2: 5 | F2: 6 | G2: 7 | H2: 8 | I2: 9 | J2: 10 | K2: 11 | L2: 12 | M2: 13 | N2: 14 | O2: 15 | P2: 16 | Q2: 17 | R2: 18
A3: Nom immeuble | B3: Numéro immeuble | C3: Numéro de la mesure | D3: Nom de la mesure | E3: Matériaux, équipements et main-d'œuvre | I3: Services professionnels | K3: Coût total, avant taxes | N3: Crédits de taxes | O3: Coût total, taxes et crédits inclus | P3: Prorata des frais généraux p/r coût de la mesure | Q3: Coût total, y compris les frais généraux | R3: Coût total, y compris frais généraux, taxes et crédits
E4: Description | F4: Matériaux et équipements | G4: Main-d'œuvre d'installation | H4: Sous-total | I4: Description | J4: Coût | L4: TPS | M4: TVQ
B6: =IFERROR(IF(A6="Choisir…"," ",VLOOKUP(A6,Table_immeubles,2,FALSE)),"") ->  | C6: =IF(B6="","",IF(A6="Choisir…","",LEFT(B6,6)&"-"&COUNTIFS($B$1:B6,B6))) ->  | H6: =SUM(F6:G6) -> 0 | K6: =SUM(H6,J6) -> 0 | L6: =K6*TPS -> 0 | M6: =K6*TVQ -> 0 | N6: =-K6*Credit_taxes_net -> 0 | O6: =SUM(K6:N6) -> 0 | P6: =IFERROR(K6/Cout_mesures*Cout_Frais_gen,"") ->  | Q6: =SUM(K6,P6) -> 0 | R6: =Q6*(1+Taxes_nettes) -> 0
C7: =IF(B7="","",IF(A7="Choisir…","",LEFT(B7,6)&"-"&COUNTIFS($B$1:B7,B7))) ->  | H7: 0 | K7: =SUM(H7,J7) -> 0 | L7: 0 | M7: 0 | N7: 0 | O7: =SUM(K7:N7) -> 0 | Q7: =SUM(K7,P7) -> 0 | R7: 0
C8: =IF(B8="","",IF(A8="Choisir…","",LEFT(B8,6)&"-"&COUNTIFS($B$1:B8,B8))) ->  | H8: 0 | K8: 0 | L8: 0 | M8: 0 | N8: 0 | O8: 0 | Q8: 0 | R8: 0
C9: =IF(B9="","",IF(A9="Choisir…","",LEFT(B9,6)&"-"&COUNTIFS($B$1:B9,B9))) ->  | H9: 0 | K9: 0 | L9: 0 | M9: 0 | N9: 0 | O9: 0 | Q9: 0 | R9: 0
C10: =IF(B10="","",IF(A10="Choisir…","",LEFT(B10,6)&"-"&COUNTIFS($B$1:B10,B10))) ->  | H10: 0 | K10: 0 | L10: 0 | M10: 0 | N10: 0 | O10: 0 | Q10: 0 | R10: 0
B11: =IFERROR(IF(A11="Choisir…"," ",VLOOKUP(A11,Table_immeubles,2,FALSE)),"") ->  | C11: =IF(B11="","",IF(A11="Choisir…","",LEFT(B11,6)&"-"&COUNTIFS($B$1:B11,B11))) ->  | H11: 0 | K11: 0 | L11: =K11*TPS -> 0 | M11: =K11*TVQ -> 0 | N11: =-K11*Credit_taxes_net -> 0 | O11: 0 | P11: =IFERROR(K11/Cout_mesures*Cout_Frais_gen,"") ->  | Q11: 0 | R11: =Q11*(1+Taxes_nettes) -> 0
C12: =IF(B12="","",IF(A12="Choisir…","",LEFT(B12,6)&"-"&COUNTIFS($B$1:B12,B12))) ->  | H12: 0 | K12: =SUM(H12,J12) -> 0 | L12: 0 | M12: 0 | N12: 0 | O12: =SUM(K12:N12) -> 0 | Q12: =SUM(K12,P12) -> 0 | R12: 0
C13: =IF(B13="","",IF(A13="Choisir…","",LEFT(B13,6)&"-"&COUNTIFS($B$1:B13,B13))) ->  | H13: 0 | K13: 0 | L13: 0 | M13: 0 | N13: 0 | O13: 0 | Q13: 0 | R13: 0
C14: =IF(B14="","",IF(A14="Choisir…","",LEFT(B14,6)&"-"&COUNTIFS($B$1:B14,B14))) ->  | H14: 0 | K14: 0 | L14: 0 | M14: 0 | N14: 0 | O14: 0 | Q14: 0 | R14: 0
C15: =IF(B15="","",IF(A15="Choisir…","",LEFT(B15,6)&"-"&COUNTIFS($B$1:B15,B15))) ->  | H15: 0 | K15: 0 | L15: 0 | M15: 0 | N15: 0 | O15: 0 | Q15: 0 | R15: 0
C16: =IF(B16="","",IF(A16="Choisir…","",LEFT(B16,6)&"-"&COUNTIFS($B$1:B16,B16))) ->  | H16: 0 | K16: 0 | L16: 0 | M16: 0 | N16: 0 | O16: 0 | Q16: 0 | R16: 0
C17: =IF(B17="","",IF(A17="Choisir…","",LEFT(B17,6)&"-"&COUNTIFS($B$1:B17,B17))) ->  | H17: 0 | K17: 0 | L17: 0 | M17: 0 | N17: 0 | O17: 0 | Q17: 0 | R17: 0
C18: =IF(B18="","",IF(A18="Choisir…","",LEFT(B18,6)&"-"&COUNTIFS($B$1:B18,B18))) ->  | H18: 0 | K18: 0 | L18: 0 | M18: 0 | N18: 0 | O18: 0 | Q18: 0 | R18: 0
C19: =IF(B19="","",IF(A19="Choisir…","",LEFT(B19,6)&"-"&COUNTIFS($B$1:B19,B19))) ->  | H19: 0 | K19: 0 | L19: 0 | M19: 0 | N19: 0 | O19: 0 | Q19: 0 | R19: 0
C20: =IF(B20="","",IF(A20="Choisir…","",LEFT(B20,6)&"-"&COUNTIFS($B$1:B20,B20))) ->  | H20: 0 | K20: 0 | L20: 0 | M20: 0 | N20: 0 | O20: 0 | Q20: 0 | R20: 0
B21: =IFERROR(IF(A21="Choisir…"," ",VLOOKUP(A21,Table_immeubles,2,FALSE)),"") ->  | C21: =IF(B21="","",IF(A21="Choisir…","",LEFT(B21,6)&"-"&COUNTIFS($B$1:B21,B21))) ->  | H21: 0 | K21: 0 | L21: 0 | M21: 0 | N21: 0 | O21: 0 | Q21: 0 | R21: 0
C22: =IF(B22="","",IF(A22="Choisir…","",LEFT(B22,6)&"-"&COUNTIFS($B$1:B22,B22))) ->  | H22: 0 | K22: 0 | L22: 0 | M22: 0 | N22: 0 | O22: 0 | Q22: 0 | R22: 0
C23: =IF(B23="","",IF(A23="Choisir…","",LEFT(B23,6)&"-"&COUNTIFS($B$1:B23,B23))) ->  | H23: 0 | K23: 0 | L23: 0 | M23: 0 | N23: 0 | O23: 0 | Q23: 0 | R23: 0
C24: =IF(B24="","",IF(A24="Choisir…","",LEFT(B24,6)&"-"&COUNTIFS($B$1:B24,B24))) ->  | H24: 0 | K24: 0 | L24: 0 | M24: 0 | N24: 0 | O24: 0 | Q24: 0 | R24: 0
C25: =IF(B25="","",IF(A25="Choisir…","",LEFT(B25,6)&"-"&COUNTIFS($B$1:B25,B25))) ->  | H25: 0 | K25: 0 | L25: 0 | M25: 0 | N25: 0 | O25: 0 | Q25: 0 | R25: 0
C26: =IF(B26="","",IF(A26="Choisir…","",LEFT(B26,6)&"-"&COUNTIFS($B$1:B26,B26))) ->  | H26: 0 | K26: 0 | L26: 0 | M26: 0 | N26: 0 | O26: 0 | Q26: 0 | R26: 0
C27: =IF(B27="","",IF(A27="Choisir…","",LEFT(B27,6)&"-"&COUNTIFS($B$1:B27,B27))) ->  | H27: 0 | K27: 0 | L27: 0 | M27: 0 | N27: 0 | O27: 0 | Q27: 0 | R27: 0
C28: =IF(B28="","",IF(A28="Choisir…","",LEFT(B28,6)&"-"&COUNTIFS($B$1:B28,B28))) ->  | H28: 0 | K28: 0 | L28: 0 | M28: 0 | N28: 0 | O28: 0 | Q28: 0 | R28: 0
C29: =IF(B29="","",IF(A29="Choisir…","",LEFT(B29,6)&"-"&COUNTIFS($B$1:B29,B29))) ->  | H29: 0 | K29: 0 | L29: 0 | M29: 0 | N29: 0 | O29: 0 | Q29: 0 | R29: 0
C30: =IF(B30="","",IF(A30="Choisir…","",LEFT(B30,6)&"-"&COUNTIFS($B$1:B30,B30))) ->  | H30: 0 | K30: 0 | L30: 0 | M30: 0 | N30: 0 | O30: 0 | Q30: 0 | R30: 0
C31: =IF(B31="","",IF(A31="Choisir…","",LEFT(B31,6)&"-"&COUNTIFS($B$1:B31,B31))) ->  | H31: 0 | K31: 0 | L31: 0 | M31: 0 | N31: 0 | O31: 0 | Q31: 0 | R31: 0
C32: =IF(B32="","",IF(A32="Choisir…","",LEFT(B32,6)&"-"&COUNTIFS($B$1:B32,B32))) ->  | H32: 0 | K32: 0 | L32: 0 | M32: 0 | N32: 0 | O32: 0 | Q32: 0 | R32: 0
C33: =IF(B33="","",IF(A33="Choisir…","",LEFT(B33,6)&"-"&COUNTIFS($B$1:B33,B33))) ->  | H33: 0 | K33: 0 | L33: 0 | M33: 0 | N33: 0 | O33: 0 | Q33: 0 | R33: 0
C34: =IF(B34="","",IF(A34="Choisir…","",LEFT(B34,6)&"-"&COUNTIFS($B$1:B34,B34))) ->  | H34: 0 | K34: 0 | L34: 0 | M34: 0 | N34: 0 | O34: 0 | Q34: 0 | R34: 0
C35: =IF(B35="","",IF(A35="Choisir…","",LEFT(B35,6)&"-"&COUNTIFS($B$1:B35,B35))) ->  | H35: 0 | K35: 0 | L35: 0 | M35: 0 | N35: 0 | O35: 0 | Q35: 0 | R35: 0
C36: =IF(B36="","",IF(A36="Choisir…","",LEFT(B36,6)&"-"&COUNTIFS($B$1:B36,B36))) ->  | H36: 0 | K36: 0 | L36: 0 | M36: 0 | N36: 0 | O36: 0 | Q36: 0 | R36: 0
C37: =IF(B37="","",IF(A37="Choisir…","",LEFT(B37,6)&"-"&COUNTIFS($B$1:B37,B37))) ->  | H37: 0 | K37: 0 | L37: 0 | M37: 0 | N37: 0 | O37: 0 | Q37: 0 | R37: 0
C38: =IF(B38="","",IF(A38="Choisir…","",LEFT(B38,6)&"-"&COUNTIFS($B$1:B38,B38))) ->  | H38: 0 | K38: 0 | L38: 0 | M38: 0 | N38: 0 | O38: 0 | Q38: 0 | R38: 0
C39: =IF(B39="","",IF(A39="Choisir…","",LEFT(B39,6)&"-"&COUNTIFS($B$1:B39,B39))) ->  | H39: 0 | K39: 0 | L39: 0 | M39: 0 | N39: 0 | O39: 0 | Q39: 0 | R39: 0
C40: =IF(B40="","",IF(A40="Choisir…","",LEFT(B40,6)&"-"&COUNTIFS($B$1:B40,B40))) ->  | H40: 0 | K40: 0 | L40: 0 | M40: 0 | N40: 0 | O40: 0 | Q40: 0 | R40: 0
C41: =IF(B41="","",IF(A41="Choisir…","",LEFT(B41,6)&"-"&COUNTIFS($B$1:B41,B41))) ->  | H41: 0 | K41: 0 | L41: 0 | M41: 0 | N41: 0 | O41: 0 | Q41: 0 | R41: 0
C42: =IF(B42="","",IF(A42="Choisir…","",LEFT(B42,6)&"-"&COUNTIFS($B$1:B42,B42))) ->  | H42: 0 | K42: 0 | L42: 0 | M42: 0 | N42: 0 | O42: 0 | Q42: 0 | R42: 0
C43: =IF(B43="","",IF(A43="Choisir…","",LEFT(B43,6)&"-"&COUNTIFS($B$1:B43,B43))) ->  | H43: 0 | K43: 0 | L43: 0 | M43: 0 | N43: 0 | O43: 0 | Q43: 0 | R43: 0
C44: =IF(B44="","",IF(A44="Choisir…","",LEFT(B44,6)&"-"&COUNTIFS($B$1:B44,B44))) ->  | H44: 0 | K44: 0 | L44: 0 | M44: 0 | N44: 0 | O44: 0 | Q44: 0 | R44: 0
C45: =IF(B45="","",IF(A45="Choisir…","",LEFT(B45,6)&"-"&COUNTIFS($B$1:B45,B45))) ->  | H45: 0 | K45: 0 | L45: 0 | M45: 0 | N45: 0 | O45: 0 | Q45: 0 | R45: 0
C46: =IF(B46="","",IF(A46="Choisir…","",LEFT(B46,6)&"-"&COUNTIFS($B$1:B46,B46))) ->  | H46: 0 | K46: 0 | L46: 0 | M46: 0 | N46: 0 | O46: 0 | Q46: 0 | R46: 0
C47: =IF(B47="","",IF(A47="Choisir…","",LEFT(B47,6)&"-"&COUNTIFS($B$1:B47,B47))) ->  | H47: 0 | K47: 0 | L47: 0 | M47: 0 | N47: 0 | O47: 0 | Q47: 0 | R47: 0
C48: =IF(B48="","",IF(A48="Choisir…","",LEFT(B48,6)&"-"&COUNTIFS($B$1:B48,B48))) ->  | H48: 0 | K48: 0 | L48: 0 | M48: 0 | N48: 0 | O48: 0 | Q48: 0 | R48: 0
C49: =IF(B49="","",IF(A49="Choisir…","",LEFT(B49,6)&"-"&COUNTIFS($B$1:B49,B49))) ->  | H49: 0 | K49: 0 | L49: 0 | M49: 0 | N49: 0 | O49: 0 | Q49: 0 | R49: 0
C50: =IF(B50="","",IF(A50="Choisir…","",LEFT(B50,6)&"-"&COUNTIFS($B$1:B50,B50))) ->  | H50: 0 | K50: 0 | L50: 0 | M50: 0 | N50: 0 | O50: 0 | Q50: 0 | R50: 0
C51: =IF(B51="","",IF(A51="Choisir…","",LEFT(B51,6)&"-"&COUNTIFS($B$1:B51,B51))) ->  | H51: 0 | K51: 0 | L51: 0 | M51: 0 | N51: 0 | O51: 0 | Q51: 0 | R51: 0
C52: =IF(B52="","",IF(A52="Choisir…","",LEFT(B52,6)&"-"&COUNTIFS($B$1:B52,B52))) ->  | H52: 0 | K52: 0 | L52: 0 | M52: 0 | N52: 0 | O52: 0 | Q52: 0 | R52: 0
C53: =IF(B53="","",IF(A53="Choisir…","",LEFT(B53,6)&"-"&COUNTIFS($B$1:B53,B53))) ->  | H53: 0 | K53: 0 | L53: 0 | M53: 0 | N53: 0 | O53: 0 | Q53: 0 | R53: 0
C54: =IF(B54="","",IF(A54="Choisir…","",LEFT(B54,6)&"-"&COUNTIFS($B$1:B54,B54))) ->  | H54: 0 | K54: 0 | L54: 0 | M54: 0 | N54: 0 | O54: 0 | Q54: 0 | R54: 0
C55: =IF(B55="","",IF(A55="Choisir…","",LEFT(B55,6)&"-"&COUNTIFS($B$1:B55,B55))) ->  | H55: 0 | K55: 0 | L55: 0 | M55: 0 | N55: 0 | O55: 0 | Q55: 0 | R55: 0
C56: =IF(B56="","",IF(A56="Choisir…","",LEFT(B56,6)&"-"&COUNTIFS($B$1:B56,B56))) ->  | H56: 0 | K56: 0 | L56: 0 | M56: 0 | N56: 0 | O56: 0 | Q56: 0 | R56: 0
C57: =IF(B57="","",IF(A57="Choisir…","",LEFT(B57,6)&"-"&COUNTIFS($B$1:B57,B57))) ->  | H57: 0 | K57: 0 | L57: 0 | M57: 0 | N57: 0 | O57: 0 | Q57: 0 | R57: 0
C58: =IF(B58="","",IF(A58="Choisir…","",LEFT(B58,6)&"-"&COUNTIFS($B$1:B58,B58))) ->  | H58: 0 | K58: 0 | L58: 0 | M58: 0 | N58: 0 | O58: 0 | Q58: 0 | R58: 0
C59: =IF(B59="","",IF(A59="Choisir…","",LEFT(B59,6)&"-"&COUNTIFS($B$1:B59,B59))) ->  | H59: 0 | K59: 0 | L59: 0 | M59: 0 | N59: 0 | O59: 0 | Q59: 0 | R59: 0
C60: =IF(B60="","",IF(A60="Choisir…","",LEFT(B60,6)&"-"&COUNTIFS($B$1:B60,B60))) ->  | H60: 0 | K60: 0 | L60: 0 | M60: 0 | N60: 0 | O60: 0 | Q60: 0 | R60: 0
C61: =IF(B61="","",IF(A61="Choisir…","",LEFT(B61,6)&"-"&COUNTIFS($B$1:B61,B61))) ->  | H61: 0 | K61: 0 | L61: 0 | M61: 0 | N61: 0 | O61: 0 | Q61: 0 | R61: 0
C62: =IF(B62="","",IF(A62="Choisir…","",LEFT(B62,6)&"-"&COUNTIFS($B$1:B62,B62))) ->  | H62: 0 | K62: 0 | L62: 0 | M62: 0 | N62: 0 | O62: 0 | Q62: 0 | R62: 0
C63: =IF(B63="","",IF(A63="Choisir…","",LEFT(B63,6)&"-"&COUNTIFS($B$1:B63,B63))) ->  | H63: 0 | K63: 0 | L63: 0 | M63: 0 | N63: 0 | O63: 0 | Q63: 0 | R63: 0
C64: =IF(B64="","",IF(A64="Choisir…","",LEFT(B64,6)&"-"&COUNTIFS($B$1:B64,B64))) ->  | H64: 0 | K64: 0 | L64: 0 | M64: 0 | N64: 0 | O64: 0 | Q64: 0 | R64: 0
C65: =IF(B65="","",IF(A65="Choisir…","",LEFT(B65,6)&"-"&COUNTIFS($B$1:B65,B65))) ->  | H65: 0 | K65: 0 | L65: 0 | M65: 0 | N65: 0 | O65: 0 | Q65: 0 | R65: 0
C66: =IF(B66="","",IF(A66="Choisir…","",LEFT(B66,6)&"-"&COUNTIFS($B$1:B66,B66))) ->  | H66: 0 | K66: 0 | L66: 0 | M66: 0 | N66: 0 | O66: 0 | Q66: 0 | R66: 0
C67: =IF(B67="","",IF(A67="Choisir…","",LEFT(B67,6)&"-"&COUNTIFS($B$1:B67,B67))) ->  | H67: 0 | K67: 0 | L67: 0 | M67: 0 | N67: 0 | O67: 0 | Q67: 0 | R67: 0
C68: =IF(B68="","",IF(A68="Choisir…","",LEFT(B68,6)&"-"&COUNTIFS($B$1:B68,B68))) ->  | H68: 0 | K68: 0 | L68: 0 | M68: 0 | N68: 0 | O68: 0 | Q68: 0 | R68: 0
C69: =IF(B69="","",IF(A69="Choisir…","",LEFT(B69,6)&"-"&COUNTIFS($B$1:B69,B69))) ->  | H69: 0 | K69: 0 | L69: 0 | M69: 0 | N69: 0 | O69: 0 | Q69: 0 | R69: 0
C70: =IF(B70="","",IF(A70="Choisir…","",LEFT(B70,6)&"-"&COUNTIFS($B$1:B70,B70))) ->  | H70: =SUM(F70:G70) -> 0 | K70: 0 | L70: 0 | M70: 0 | N70: 0 | O70: 0 | Q70: 0 | R70: 0
C71: =IF(B71="","",IF(A71="Choisir…","",LEFT(B71,6)&"-"&COUNTIFS($B$1:B71,B71))) ->  | H71: 0 | K71: 0 | L71: 0 | M71: 0 | N71: 0 | O71: 0 | Q71: 0 | R71: 0
C72: =IF(B72="","",IF(A72="Choisir…","",LEFT(B72,6)&"-"&COUNTIFS($B$1:B72,B72))) ->  | H72: 0 | K72: 0 | L72: 0 | M72: 0 | N72: 0 | O72: 0 | Q72: 0 | R72: 0
C73: =IF(B73="","",IF(A73="Choisir…","",LEFT(B73,6)&"-"&COUNTIFS($B$1:B73,B73))) ->  | H73: 0 | K73: 0 | L73: 0 | M73: 0 | N73: 0 | O73: 0 | Q73: 0 | R73: 0
C74: =IF(B74="","",IF(A74="Choisir…","",LEFT(B74,6)&"-"&COUNTIFS($B$1:B74,B74))) ->  | H74: 0 | K74: 0 | L74: 0 | M74: 0 | N74: 0 | O74: 0 | Q74: 0 | R74: 0
C75: =IF(B75="","",IF(A75="Choisir…","",LEFT(B75,6)&"-"&COUNTIFS($B$1:B75,B75))) ->  | H75: 0 | K75: 0 | L75: =K75*TPS -> 0 | M75: =K75*TVQ -> 0 | N75: =-K75*Credit_taxes_net -> 0 | O75: 0 | P75: =IFERROR(K75/Cout_mesures*Cout_Frais_gen,"") ->  | Q75: 0 | R75: =Q75*(1+Taxes_nettes) -> 0
C76: =IF(B76="","",IF(A76="Choisir…","",LEFT(B76,6)&"-"&COUNTIFS($B$1:B76,B76))) ->  | H76: 0 | K76: =SUM(H76,J76) -> 0 | L76: 0 | M76: 0 | N76: 0 | O76: =SUM(K76:N76) -> 0 | Q76: =SUM(K76,P76) -> 0 | R76: 0
C77: =IF(B77="","",IF(A77="Choisir…","",LEFT(B77,6)&"-"&COUNTIFS($B$1:B77,B77))) ->  | H77: 0 | K77: 0 | L77: 0 | M77: 0 | N77: 0 | O77: =SUM(K77:N77) -> 0 | Q77: 0 | R77: 0
C78: =IF(B78="","",IF(A78="Choisir…","",LEFT(B78,6)&"-"&COUNTIFS($B$1:B78,B78))) ->  | H78: 0 | K78: 0 | L78: 0 | M78: 0 | N78: 0 | O78: 0 | Q78: 0 | R78: 0
C79: =IF(B79="","",IF(A79="Choisir…","",LEFT(B79,6)&"-"&COUNTIFS($B$1:B79,B79))) ->  | H79: 0 | K79: 0 | L79: 0 | M79: 0 | N79: 0 | O79: 0 | Q79: 0 | R79: 0
C80: =IF(B80="","",IF(A80="Choisir…","",LEFT(B80,6)&"-"&COUNTIFS($B$1:B80,B80))) ->  | H80: 0 | K80: 0 | L80: 0 | M80: 0 | N80: 0 | O80: 0 | Q80: 0 | R80: 0
C81: =IF(B81="","",IF(A81="Choisir…","",LEFT(B81,6)&"-"&COUNTIFS($B$1:B81,B81))) ->  | H81: 0 | K81: 0 | L81: 0 | M81: 0 | N81: 0 | O81: 0 | Q81: 0 | R81: 0
C82: =IF(B82="","",IF(A82="Choisir…","",LEFT(B82,6)&"-"&COUNTIFS($B$1:B82,B82))) ->  | H82: 0 | K82: 0 | L82: 0 | M82: 0 | N82: 0 | O82: 0 | Q82: 0 | R82: 0
C83: =IF(B83="","",IF(A83="Choisir…","",LEFT(B83,6)&"-"&COUNTIFS($B$1:B83,B83))) ->  | H83: 0 | K83: 0 | L83: 0 | M83: 0 | N83: 0 | O83: 0 | Q83: 0 | R83: 0
C84: =IF(B84="","",IF(A84="Choisir…","",LEFT(B84,6)&"-"&COUNTIFS($B$1:B84,B84))) ->  | H84: 0 | K84: 0 | L84: 0 | M84: 0 | N84: 0 | O84: 0 | Q84: 0 | R84: 0
B85: =IFERROR(IF(A85="Choisir…"," ",VLOOKUP(A85,Table_immeubles,2,FALSE)),"") ->  | C85: =IF(B85="","",IF(A85="Choisir…","",LEFT(B85,6)&"-"&COUNTIFS($B$1:B85,B85))) ->  | H85: 0 | K85: 0 | L85: 0 | M85: 0 | N85: 0 | O85: 0 | Q85: 0 | R85: 0
C86: =IF(B86="","",IF(A86="Choisir…","",LEFT(B86,6)&"-"&COUNTIFS($B$1:B86,B86))) ->  | H86: 0 | K86: 0 | L86: 0 | M86: 0 | N86: 0 | O86: 0 | Q86: 0 | R86: 0
C87: =IF(B87="","",IF(A87="Choisir…","",LEFT(B87,6)&"-"&COUNTIFS($B$1:B87,B87))) ->  | H87: 0 | K87: 0 | L87: 0 | M87: 0 | N87: 0 | O87: 0 | Q87: 0 | R87: 0
C88: =IF(B88="","",IF(A88="Choisir…","",LEFT(B88,6)&"-"&COUNTIFS($B$1:B88,B88))) ->  | H88: 0 | K88: 0 | L88: 0 | M88: 0 | N88: 0 | O88: 0 | Q88: 0 | R88: 0
C89: =IF(B89="","",IF(A89="Choisir…","",LEFT(B89,6)&"-"&COUNTIFS($B$1:B89,B89))) ->  | H89: 0 | K89: 0 | L89: 0 | M89: 0 | N89: 0 | O89: 0 | Q89: 0 | R89: 0
C90: =IF(B90="","",IF(A90="Choisir…","",LEFT(B90,6)&"-"&COUNTIFS($B$1:B90,B90))) ->  | H90: 0 | K90: 0 | L90: 0 | M90: 0 | N90: 0 | O90: 0 | Q90: 0 | R90: 0
C91: =IF(B91="","",IF(A91="Choisir…","",LEFT(B91,6)&"-"&COUNTIFS($B$1:B91,B91))) ->  | H91: 0 | K91: 0 | L91: 0 | M91: 0 | N91: 0 | O91: 0 | Q91: 0 | R91: 0
C92: =IF(B92="","",IF(A92="Choisir…","",LEFT(B92,6)&"-"&COUNTIFS($B$1:B92,B92))) ->  | H92: 0 | K92: 0 | L92: 0 | M92: 0 | N92: 0 | O92: 0 | Q92: 0 | R92: 0
C93: =IF(B93="","",IF(A93="Choisir…","",LEFT(B93,6)&"-"&COUNTIFS($B$1:B93,B93))) ->  | H93: 0 | K93: 0 | L93: 0 | M93: 0 | N93: 0 | O93: 0 | Q93: 0 | R93: 0
C94: =IF(B94="","",IF(A94="Choisir…","",LEFT(B94,6)&"-"&COUNTIFS($B$1:B94,B94))) ->  | H94: 0 | K94: 0 | L94: 0 | M94: 0 | N94: 0 | O94: 0 | Q94: 0 | R94: 0
C95: =IF(B95="","",IF(A95="Choisir…","",LEFT(B95,6)&"-"&COUNTIFS($B$1:B95,B95))) ->  | H95: 0 | K95: 0 | L95: 0 | M95: 0 | N95: 0 | O95: 0 | Q95: 0 | R95: 0
C96: =IF(B96="","",IF(A96="Choisir…","",LEFT(B96,6)&"-"&COUNTIFS($B$1:B96,B96))) ->  | H96: 0 | K96: 0 | L96: 0 | M96: 0 | N96: 0 | O96: 0 | Q96: 0 | R96: 0
C97: =IF(B97="","",IF(A97="Choisir…","",LEFT(B97,6)&"-"&COUNTIFS($B$1:B97,B97))) ->  | H97: 0 | K97: 0 | L97: 0 | M97: 0 | N97: 0 | O97: 0 | Q97: 0 | R97: 0
C98: =IF(B98="","",IF(A98="Choisir…","",LEFT(B98,6)&"-"&COUNTIFS($B$1:B98,B98))) ->  | H98: 0 | K98: 0 | L98: 0 | M98: 0 | N98: 0 | O98: 0 | Q98: 0 | R98: 0
C99: =IF(B99="","",IF(A99="Choisir…","",LEFT(B99,6)&"-"&COUNTIFS($B$1:B99,B99))) ->  | H99: 0 | K99: 0 | L99: 0 | M99: 0 | N99: 0 | O99: 0 | Q99: 0 | R99: 0
C100: =IF(B100="","",IF(A100="Choisir…","",LEFT(B100,6)&"-"&COUNTIFS($B$1:B100,B100))) ->  | H100: 0 | K100: 0 | L100: 0 | M100: 0 | N100: 0 | O100: 0 | Q100: 0 | R100: 0
C101: =IF(B101="","",IF(A101="Choisir…","",LEFT(B101,6)&"-"&COUNTIFS($B$1:B101,B101))) ->  | H101: 0 | K101: 0 | L101: 0 | M101: 0 | N101: 0 | O101: 0 | Q101: 0 | R101: 0
C102: =IF(B102="","",IF(A102="Choisir…","",LEFT(B102,6)&"-"&COUNTIFS($B$1:B102,B102))) ->  | H102: 0 | K102: 0 | L102: 0 | M102: 0 | N102: 0 | O102: 0 | Q102: 0 | R102: 0
C103: =IF(B103="","",IF(A103="Choisir…","",LEFT(B103,6)&"-"&COUNTIFS($B$1:B103,B103))) ->  | H103: 0 | K103: 0 | L103: 0 | M103: 0 | N103: 0 | O103: 0 | Q103: 0 | R103: 0
C104: =IF(B104="","",IF(A104="Choisir…","",LEFT(B104,6)&"-"&COUNTIFS($B$1:B104,B104))) ->  | H104: 0 | K104: 0 | L104: 0 | M104: 0 | N104: 0 | O104: 0 | Q104: 0 | R104: 0
C105: =IF(B105="","",IF(A105="Choisir…","",LEFT(B105,6)&"-"&COUNTIFS($B$1:B105,B105))) ->  | H105: 0 | K105: 0 | L105: 0 | M105: 0 | N105: 0 | O105: 0 | Q105: 0 | R105: 0
C106: =IF(B106="","",IF(A106="Choisir…","",LEFT(B106,6)&"-"&COUNTIFS($B$1:B106,B106))) ->  | H106: 0 | K106: 0 | L106: 0 | M106: 0 | N106: 0 | O106: 0 | Q106: 0 | R106: 0
C107: =IF(B107="","",IF(A107="Choisir…","",LEFT(B107,6)&"-"&COUNTIFS($B$1:B107,B107))) ->  | H107: 0 | K107: 0 | L107: 0 | M107: 0 | N107: 0 | O107: 0 | Q107: 0 | R107: 0
C108: =IF(B108="","",IF(A108="Choisir…","",LEFT(B108,6)&"-"&COUNTIFS($B$1:B108,B108))) ->  | H108: 0 | K108: 0 | L108: 0 | M108: 0 | N108: 0 | O108: 0 | Q108: 0 | R108: 0
C109: =IF(B109="","",IF(A109="Choisir…","",LEFT(B109,6)&"-"&COUNTIFS($B$1:B109,B109))) ->  | H109: 0 | K109: 0 | L109: 0 | M109: 0 | N109: 0 | O109: 0 | Q109: 0 | R109: 0
C110: =IF(B110="","",IF(A110="Choisir…","",LEFT(B110,6)&"-"&COUNTIFS($B$1:B110,B110))) ->  | H110: 0 | K110: 0 | L110: 0 | M110: 0 | N110: 0 | O110: 0 | Q110: 0 | R110: 0
C111: =IF(B111="","",IF(A111="Choisir…","",LEFT(B111,6)&"-"&COUNTIFS($B$1:B111,B111))) ->  | H111: 0 | K111: 0 | L111: 0 | M111: 0 | N111: 0 | O111: 0 | Q111: 0 | R111: 0
C112: =IF(B112="","",IF(A112="Choisir…","",LEFT(B112,6)&"-"&COUNTIFS($B$1:B112,B112))) ->  | H112: 0 | K112: 0 | L112: 0 | M112: 0 | N112: 0 | O112: 0 | Q112: 0 | R112: 0
C113: =IF(B113="","",IF(A113="Choisir…","",LEFT(B113,6)&"-"&COUNTIFS($B$1:B113,B113))) ->  | H113: 0 | K113: 0 | L113: 0 | M113: 0 | N113: 0 | O113: 0 | Q113: 0 | R113: 0
C114: =IF(B114="","",IF(A114="Choisir…","",LEFT(B114,6)&"-"&COUNTIFS($B$1:B114,B114))) ->  | H114: 0 | K114: 0 | L114: 0 | M114: 0 | N114: 0 | O114: 0 | Q114: 0 | R114: 0
C115: =IF(B115="","",IF(A115="Choisir…","",LEFT(B115,6)&"-"&COUNTIFS($B$1:B115,B115))) ->  | H115: 0 | K115: 0 | L115: 0 | M115: 0 | N115: 0 | O115: 0 | Q115: 0 | R115: 0
C116: =IF(B116="","",IF(A116="Choisir…","",LEFT(B116,6)&"-"&COUNTIFS($B$1:B116,B116))) ->  | H116: 0 | K116: 0 | L116: 0 | M116: 0 | N116: 0 | O116: 0 | Q116: 0 | R116: 0
C117: =IF(B117="","",IF(A117="Choisir…","",LEFT(B117,6)&"-"&COUNTIFS($B$1:B117,B117))) ->  | H117: 0 | K117: 0 | L117: 0 | M117: 0 | N117: 0 | O117: 0 | Q117: 0 | R117: 0
C118: =IF(B118="","",IF(A118="Choisir…","",LEFT(B118,6)&"-"&COUNTIFS($B$1:B118,B118))) ->  | H118: 0 | K118: 0 | L118: 0 | M118: 0 | N118: 0 | O118: 0 | Q118: 0 | R118: 0
C119: =IF(B119="","",IF(A119="Choisir…","",LEFT(B119,6)&"-"&COUNTIFS($B$1:B119,B119))) ->  | H119: 0 | K119: 0 | L119: 0 | M119: 0 | N119: 0 | O119: 0 | Q119: 0 | R119: 0
C120: =IF(B120="","",IF(A120="Choisir…","",LEFT(B120,6)&"-"&COUNTIFS($B$1:B120,B120))) ->  | H120: 0 | K120: 0 | L120: 0 | M120: 0 | N120: 0 | O120: 0 | Q120: 0 | R120: 0
C121: =IF(B121="","",IF(A121="Choisir…","",LEFT(B121,6)&"-"&COUNTIFS($B$1:B121,B121))) ->  | H121: 0 | K121: 0 | L121: 0 | M121: 0 | N121: 0 | O121: 0 | Q121: 0 | R121: 0
C122: =IF(B122="","",IF(A122="Choisir…","",LEFT(B122,6)&"-"&COUNTIFS($B$1:B122,B122))) ->  | H122: 0 | K122: 0 | L122: 0 | M122: 0 | N122: 0 | O122: 0 | Q122: 0 | R122: 0
C123: =IF(B123="","",IF(A123="Choisir…","",LEFT(B123,6)&"-"&COUNTIFS($B$1:B123,B123))) ->  | H123: 0 | K123: 0 | L123: 0 | M123: 0 | N123: 0 | O123: 0 | Q123: 0 | R123: 0
C124: =IF(B124="","",IF(A124="Choisir…","",LEFT(B124,6)&"-"&COUNTIFS($B$1:B124,B124))) ->  | H124: 0 | K124: 0 | L124: 0 | M124: 0 | N124: 0 | O124: 0 | Q124: 0 | R124: 0
C125: =IF(B125="","",IF(A125="Choisir…","",LEFT(B125,6)&"-"&COUNTIFS($B$1:B125,B125))) ->  | H125: 0 | K125: 0 | L125: 0 | M125: 0 | N125: 0 | O125: 0 | Q125: 0 | R125: 0
C126: =IF(B126="","",IF(A126="Choisir…","",LEFT(B126,6)&"-"&COUNTIFS($B$1:B126,B126))) ->  | H126: 0 | K126: 0 | L126: 0 | M126: 0 | N126: 0 | O126: 0 | Q126: 0 | R126: 0
C127: =IF(B127="","",IF(A127="Choisir…","",LEFT(B127,6)&"-"&COUNTIFS($B$1:B127,B127))) ->  | H127: 0 | K127: 0 | L127: 0 | M127: 0 | N127: 0 | O127: 0 | Q127: 0 | R127: 0
C128: =IF(B128="","",IF(A128="Choisir…","",LEFT(B128,6)&"-"&COUNTIFS($B$1:B128,B128))) ->  | H128: 0 | K128: 0 | L128: 0 | M128: 0 | N128: 0 | O128: 0 | Q128: 0 | R128: 0
C129: =IF(B129="","",IF(A129="Choisir…","",LEFT(B129,6)&"-"&COUNTIFS($B$1:B129,B129))) ->  | H129: 0 | K129: 0 | L129: 0 | M129: 0 | N129: 0 | O129: 0 | Q129: 0 | R129: 0
C130: =IF(B130="","",IF(A130="Choisir…","",LEFT(B130,6)&"-"&COUNTIFS($B$1:B130,B130))) ->  | H130: 0 | K130: 0 | L130: 0 | M130: 0 | N130: 0 | O130: 0 | Q130: 0 | R130: 0
C131: =IF(B131="","",IF(A131="Choisir…","",LEFT(B131,6)&"-"&COUNTIFS($B$1:B131,B131))) ->  | H131: 0 | K131: 0 | L131: 0 | M131: 0 | N131: 0 | O131: 0 | Q131: 0 | R131: 0
C132: =IF(B132="","",IF(A132="Choisir…","",LEFT(B132,6)&"-"&COUNTIFS($B$1:B132,B132))) ->  | H132: 0 | K132: 0 | L132: 0 | M132: 0 | N132: 0 | O132: 0 | Q132: 0 | R132: 0
C133: =IF(B133="","",IF(A133="Choisir…","",LEFT(B133,6)&"-"&COUNTIFS($B$1:B133,B133))) ->  | H133: 0 | K133: 0 | L133: 0 | M133: 0 | N133: 0 | O133: 0 | Q133: 0 | R133: 0
C134: =IF(B134="","",IF(A134="Choisir…","",LEFT(B134,6)&"-"&COUNTIFS($B$1:B134,B134))) ->  | H134: =SUM(F134:G134) -> 0 | K134: 0 | L134: 0 | M134: 0 | N134: 0 | O134: 0 | Q134: 0 | R134: 0
C135: =IF(B135="","",IF(A135="Choisir…","",LEFT(B135,6)&"-"&COUNTIFS($B$1:B135,B135))) ->  | H135: 0 | K135: 0 | L135: 0 | M135: 0 | N135: 0 | O135: 0 | Q135: 0 | R135: 0
C136: =IF(B136="","",IF(A136="Choisir…","",LEFT(B136,6)&"-"&COUNTIFS($B$1:B136,B136))) ->  | H136: 0 | K136: 0 | L136: 0 | M136: 0 | N136: 0 | O136: 0 | Q136: 0 | R136: 0
C137: =IF(B137="","",IF(A137="Choisir…","",LEFT(B137,6)&"-"&COUNTIFS($B$1:B137,B137))) ->  | H137: 0 | K137: 0 | L137: 0 | M137: 0 | N137: 0 | O137: 0 | Q137: 0 | R137: 0
C138: =IF(B138="","",IF(A138="Choisir…","",LEFT(B138,6)&"-"&COUNTIFS($B$1:B138,B138))) ->  | H138: 0 | K138: 0 | L138: 0 | M138: 0 | N138: 0 | O138: 0 | Q138: 0 | R138: 0
C139: =IF(B139="","",IF(A139="Choisir…","",LEFT(B139,6)&"-"&COUNTIFS($B$1:B139,B139))) ->  | H139: 0 | K139: 0 | L139: =K139*TPS -> 0 | M139: =K139*TVQ -> 0 | N139: =-K139*Credit_taxes_net -> 0 | O139: 0 | P139: =IFERROR(K139/Cout_mesures*Cout_Frais_gen,"") ->  | Q139: 0 | R139: =Q139*(1+Taxes_nettes) -> 0
C140: =IF(B140="","",IF(A140="Choisir…","",LEFT(B140,6)&"-"&COUNTIFS($B$1:B140,B140))) ->  | H140: 0 | K140: =SUM(H140,J140) -> 0 | L140: 0 | M140: 0 | N140: 0 | O140: 0 | Q140: =SUM(K140,P140) -> 0 | R140: 0
C141: =IF(B141="","",IF(A141="Choisir…","",LEFT(B141,6)&"-"&COUNTIFS($B$1:B141,B141))) ->  | H141: 0 | K141: 0 | L141: 0 | M141: 0 | N141: 0 | O141: =SUM(K141:N141) -> 0 | Q141: 0 | R141: 0
C142: =IF(B142="","",IF(A142="Choisir…","",LEFT(B142,6)&"-"&COUNTIFS($B$1:B142,B142))) ->  | H142: 0 | K142: 0 | L142: 0 | M142: 0 | N142: 0 | O142: =SUM(K142:N142) -> 0 | Q142: 0 | R142: 0
C143: =IF(B143="","",IF(A143="Choisir…","",LEFT(B143,6)&"-"&COUNTIFS($B$1:B143,B143))) ->  | H143: 0 | K143: 0 | L143: 0 | M143: 0 | N143: 0 | O143: 0 | Q143: 0 | R143: 0
C144: =IF(B144="","",IF(A144="Choisir…","",LEFT(B144,6)&"-"&COUNTIFS($B$1:B144,B144))) ->  | H144: 0 | K144: 0 | L144: 0 | M144: 0 | N144: 0 | O144: 0 | Q144: 0 | R144: 0
C145: =IF(B145="","",IF(A145="Choisir…","",LEFT(B145,6)&"-"&COUNTIFS($B$1:B145,B145))) ->  | H145: 0 | K145: 0 | L145: 0 | M145: 0 | N145: 0 | O145: 0 | Q145: 0 | R145: 0
C146: =IF(B146="","",IF(A146="Choisir…","",LEFT(B146,6)&"-"&COUNTIFS($B$1:B146,B146))) ->  | H146: 0 | K146: 0 | L146: 0 | M146: 0 | N146: 0 | O146: 0 | Q146: 0 | R146: 0
C147: =IF(B147="","",IF(A147="Choisir…","",LEFT(B147,6)&"-"&COUNTIFS($B$1:B147,B147))) ->  | H147: 0 | K147: 0 | L147: 0 | M147: 0 | N147: 0 | O147: 0 | Q147: 0 | R147: 0
C148: =IF(B148="","",IF(A148="Choisir…","",LEFT(B148,6)&"-"&COUNTIFS($B$1:B148,B148))) ->  | H148: 0 | K148: 0 | L148: 0 | M148: 0 | N148: 0 | O148: 0 | Q148: 0 | R148: 0
B149: =IFERROR(IF(A149="Choisir…"," ",VLOOKUP(A149,Table_immeubles,2,FALSE)),"") ->  | C149: =IF(B149="","",IF(A149="Choisir…","",LEFT(B149,6)&"-"&COUNTIFS($B$1:B149,B149))) ->  | H149: 0 | K149: 0 | L149: 0 | M149: 0 | N149: 0 | O149: 0 | Q149: 0 | R149: 0
C150: =IF(B150="","",IF(A150="Choisir…","",LEFT(B150,6)&"-"&COUNTIFS($B$1:B150,B150))) ->  | H150: 0 | K150: 0 | L150: 0 | M150: 0 | N150: 0 | O150: 0 | Q150: 0 | R150: 0
C151: =IF(B151="","",IF(A151="Choisir…","",LEFT(B151,6)&"-"&COUNTIFS($B$1:B151,B151))) ->  | H151: 0 | K151: 0 | L151: 0 | M151: 0 | N151: 0 | O151: 0 | Q151: 0 | R151: 0
C152: =IF(B152="","",IF(A152="Choisir…","",LEFT(B152,6)&"-"&COUNTIFS($B$1:B152,B152))) ->  | H152: 0 | K152: 0 | L152: 0 | M152: 0 | N152: 0 | O152: 0 | Q152: 0 | R152: 0
C153: =IF(B153="","",IF(A153="Choisir…","",LEFT(B153,6)&"-"&COUNTIFS($B$1:B153,B153))) ->  | H153: 0 | K153: 0 | L153: 0 | M153: 0 | N153: 0 | O153: 0 | Q153: 0 | R153: 0
C154: =IF(B154="","",IF(A154="Choisir…","",LEFT(B154,6)&"-"&COUNTIFS($B$1:B154,B154))) ->  | H154: 0 | K154: 0 | L154: 0 | M154: 0 | N154: 0 | O154: 0 | Q154: 0 | R154: 0
C155: =IF(B155="","",IF(A155="Choisir…","",LEFT(B155,6)&"-"&COUNTIFS($B$1:B155,B155))) ->  | H155: 0 | K155: 0 | L155: 0 | M155: 0 | N155: 0 | O155: 0 | Q155: 0 | R155: 0
C156: =IF(B156="","",IF(A156="Choisir…","",LEFT(B156,6)&"-"&COUNTIFS($B$1:B156,B156))) ->  | H156: 0 | K156: 0 | L156: 0 | M156: 0 | N156: 0 | O156: 0 | Q156: 0 | R156: 0
C157: =IF(B157="","",IF(A157="Choisir…","",LEFT(B157,6)&"-"&COUNTIFS($B$1:B157,B157))) ->  | H157: 0 | K157: 0 | L157: 0 | M157: 0 | N157: 0 | O157: 0 | Q157: 0 | R157: 0
C158: =IF(B158="","",IF(A158="Choisir…","",LEFT(B158,6)&"-"&COUNTIFS($B$1:B158,B158))) ->  | H158: 0 | K158: 0 | L158: 0 | M158: 0 | N158: 0 | O158: 0 | Q158: 0 | R158: 0
C159: =IF(B159="","",IF(A159="Choisir…","",LEFT(B159,6)&"-"&COUNTIFS($B$1:B159,B159))) ->  | H159: 0 | K159: 0 | L159: 0 | M159: 0 | N159: 0 | O159: 0 | Q159: 0 | R159: 0
C160: =IF(B160="","",IF(A160="Choisir…","",LEFT(B160,6)&"-"&COUNTIFS($B$1:B160,B160))) ->  | H160: 0 | K160: 0 | L160: 0 | M160: 0 | N160: 0 | O160: 0 | Q160: 0 | R160: 0
C161: =IF(B161="","",IF(A161="Choisir…","",LEFT(B161,6)&"-"&COUNTIFS($B$1:B161,B161))) ->  | H161: 0 | K161: 0 | L161: 0 | M161: 0 | N161: 0 | O161: 0 | Q161: 0 | R161: 0
C162: =IF(B162="","",IF(A162="Choisir…","",LEFT(B162,6)&"-"&COUNTIFS($B$1:B162,B162))) ->  | H162: 0 | K162: 0 | L162: 0 | M162: 0 | N162: 0 | O162: 0 | Q162: 0 | R162: 0
C163: =IF(B163="","",IF(A163="Choisir…","",LEFT(B163,6)&"-"&COUNTIFS($B$1:B163,B163))) ->  | H163: 0 | K163: 0 | L163: 0 | M163: 0 | N163: 0 | O163: 0 | Q163: 0 | R163: 0
C164: =IF(B164="","",IF(A164="Choisir…","",LEFT(B164,6)&"-"&COUNTIFS($B$1:B164,B164))) ->  | H164: 0 | K164: 0 | L164: 0 | M164: 0 | N164: 0 | O164: 0 | Q164: 0 | R164: 0
C165: =IF(B165="","",IF(A165="Choisir…","",LEFT(B165,6)&"-"&COUNTIFS($B$1:B165,B165))) ->  | H165: 0 | K165: 0 | L165: 0 | M165: 0 | N165: 0 | O165: 0 | Q165: 0 | R165: 0
C166: =IF(B166="","",IF(A166="Choisir…","",LEFT(B166,6)&"-"&COUNTIFS($B$1:B166,B166))) ->  | H166: 0 | K166: 0 | L166: 0 | M166: 0 | N166: 0 | O166: 0 | Q166: 0 | R166: 0
C167: =IF(B167="","",IF(A167="Choisir…","",LEFT(B167,6)&"-"&COUNTIFS($B$1:B167,B167))) ->  | H167: 0 | K167: 0 | L167: 0 | M167: 0 | N167: 0 | O167: 0 | P167: =IFERROR(K167/Cout_mesures*Cout_Frais_gen,"") ->  | Q167: =SUM(K167,P167) -> 0 | R167: 0
C168: =IF(B168="","",IF(A168="Choisir…","",LEFT(B168,6)&"-"&COUNTIFS($B$1:B168,B168))) ->  | H168: 0 | K168: 0 | L168: 0 | M168: 0 | N168: 0 | O168: 0 | Q168: 0 | R168: 0
C169: =IF(B169="","",IF(A169="Choisir…","",LEFT(B169,6)&"-"&COUNTIFS($B$1:B169,B169))) ->  | H169: 0 | K169: 0 | L169: 0 | M169: 0 | N169: 0 | O169: 0 | Q169: 0 | R169: =Q169*(1+Taxes_nettes) -> 0
C170: =IF(B170="","",IF(A170="Choisir…","",LEFT(B170,6)&"-"&COUNTIFS($B$1:B170,B170))) ->  | H170: 0 | K170: 0 | L170: 0 | M170: 0 | N170: 0 | O170: 0 | Q170: 0 | R170: 0
C171: =IF(B171="","",IF(A171="Choisir…","",LEFT(B171,6)&"-"&COUNTIFS($B$1:B171,B171))) ->  | H171: 0 | K171: 0 | L171: 0 | M171: 0 | N171: 0 | O171: 0 | Q171: 0 | R171: 0
C172: =IF(B172="","",IF(A172="Choisir…","",LEFT(B172,6)&"-"&COUNTIFS($B$1:B172,B172))) ->  | H172: 0 | K172: 0 | L172: 0 | M172: 0 | N172: 0 | O172: 0 | Q172: 0 | R172: 0
C173: =IF(B173="","",IF(A173="Choisir…","",LEFT(B173,6)&"-"&COUNTIFS($B$1:B173,B173))) ->  | H173: 0 | K173: 0 | L173: 0 | M173: 0 | N173: 0 | O173: 0 | Q173: 0 | R173: 0
C174: =IF(B174="","",IF(A174="Choisir…","",LEFT(B174,6)&"-"&COUNTIFS($B$1:B174,B174))) ->  | H174: 0 | K174: 0 | L174: 0 | M174: 0 | N174: 0 | O174: 0 | Q174: 0 | R174: 0
C175: =IF(B175="","",IF(A175="Choisir…","",LEFT(B175,6)&"-"&COUNTIFS($B$1:B175,B175))) ->  | H175: 0 | K175: 0 | L175: 0 | M175: 0 | N175: 0 | O175: 0 | Q175: 0 | R175: 0
C176: =IF(B176="","",IF(A176="Choisir…","",LEFT(B176,6)&"-"&COUNTIFS($B$1:B176,B176))) ->  | H176: 0 | K176: 0 | L176: 0 | M176: 0 | N176: 0 | O176: 0 | Q176: 0 | R176: 0
C177: =IF(B177="","",IF(A177="Choisir…","",LEFT(B177,6)&"-"&COUNTIFS($B$1:B177,B177))) ->  | H177: 0 | K177: 0 | L177: 0 | M177: 0 | N177: 0 | O177: 0 | Q177: 0 | R177: 0
C178: =IF(B178="","",IF(A178="Choisir…","",LEFT(B178,6)&"-"&COUNTIFS($B$1:B178,B178))) ->  | H178: 0 | K178: 0 | L178: 0 | M178: 0 | N178: 0 | O178: 0 | Q178: 0 | R178: 0
C179: =IF(B179="","",IF(A179="Choisir…","",LEFT(B179,6)&"-"&COUNTIFS($B$1:B179,B179))) ->  | H179: 0 | K179: 0 | L179: 0 | M179: 0 | N179: 0 | O179: 0 | Q179: 0 | R179: 0
C180: =IF(B180="","",IF(A180="Choisir…","",LEFT(B180,6)&"-"&COUNTIFS($B$1:B180,B180))) ->  | H180: 0 | K180: 0 | L180: 0 | M180: 0 | N180: 0 | O180: 0 | Q180: 0 | R180: 0
C181: =IF(B181="","",IF(A181="Choisir…","",LEFT(B181,6)&"-"&COUNTIFS($B$1:B181,B181))) ->  | H181: 0 | K181: 0 | L181: 0 | M181: 0 | N181: 0 | O181: 0 | Q181: 0 | R181: 0
C182: =IF(B182="","",IF(A182="Choisir…","",LEFT(B182,6)&"-"&COUNTIFS($B$1:B182,B182))) ->  | H182: 0 | K182: 0 | L182: 0 | M182: 0 | N182: 0 | O182: 0 | Q182: 0 | R182: 0
C183: =IF(B183="","",IF(A183="Choisir…","",LEFT(B183,6)&"-"&COUNTIFS($B$1:B183,B183))) ->  | H183: 0 | K183: 0 | L183: 0 | M183: 0 | N183: 0 | O183: 0 | Q183: 0 | R183: 0
C184: =IF(B184="","",IF(A184="Choisir…","",LEFT(B184,6)&"-"&COUNTIFS($B$1:B184,B184))) ->  | H184: 0 | K184: 0 | L184: 0 | M184: 0 | N184: 0 | O184: 0 | Q184: 0 | R184: 0
C185: =IF(B185="","",IF(A185="Choisir…","",LEFT(B185,6)&"-"&COUNTIFS($B$1:B185,B185))) ->  | H185: 0 | K185: 0 | L185: 0 | M185: 0 | N185: 0 | O185: 0 | Q185: 0 | R185: 0
C186: =IF(B186="","",IF(A186="Choisir…","",LEFT(B186,6)&"-"&COUNTIFS($B$1:B186,B186))) ->  | H186: 0 | K186: 0 | L186: 0 | M186: 0 | N186: 0 | O186: 0 | Q186: 0 | R186: 0
C187: =IF(B187="","",IF(A187="Choisir…","",LEFT(B187,6)&"-"&COUNTIFS($B$1:B187,B187))) ->  | H187: 0 | K187: 0 | L187: 0 | M187: 0 | N187: 0 | O187: 0 | Q187: 0 | R187: 0
C188: =IF(B188="","",IF(A188="Choisir…","",LEFT(B188,6)&"-"&COUNTIFS($B$1:B188,B188))) ->  | H188: 0 | K188: 0 | L188: 0 | M188: 0 | N188: 0 | O188: 0 | Q188: 0 | R188: 0
C189: =IF(B189="","",IF(A189="Choisir…","",LEFT(B189,6)&"-"&COUNTIFS($B$1:B189,B189))) ->  | H189: 0 | K189: 0 | L189: 0 | M189: 0 | N189: 0 | O189: 0 | Q189: 0 | R189: 0
C190: =IF(B190="","",IF(A190="Choisir…","",LEFT(B190,6)&"-"&COUNTIFS($B$1:B190,B190))) ->  | H190: 0 | K190: 0 | L190: 0 | M190: 0 | N190: 0 | O190: 0 | Q190: 0 | R190: 0
C191: =IF(B191="","",IF(A191="Choisir…","",LEFT(B191,6)&"-"&COUNTIFS($B$1:B191,B191))) ->  | H191: 0 | K191: 0 | L191: 0 | M191: 0 | N191: 0 | O191: 0 | Q191: 0 | R191: 0
C192: =IF(B192="","",IF(A192="Choisir…","",LEFT(B192,6)&"-"&COUNTIFS($B$1:B192,B192))) ->  | H192: 0 | K192: 0 | L192: 0 | M192: 0 | N192: 0 | O192: 0 | Q192: 0 | R192: 0
C193: =IF(B193="","",IF(A193="Choisir…","",LEFT(B193,6)&"-"&COUNTIFS($B$1:B193,B193))) ->  | H193: 0 | K193: 0 | L193: 0 | M193: 0 | N193: 0 | O193: 0 | Q193: 0 | R193: 0
C194: =IF(B194="","",IF(A194="Choisir…","",LEFT(B194,6)&"-"&COUNTIFS($B$1:B194,B194))) ->  | H194: 0 | K194: 0 | L194: 0 | M194: 0 | N194: 0 | O194: 0 | Q194: 0 | R194: 0
C195: =IF(B195="","",IF(A195="Choisir…","",LEFT(B195,6)&"-"&COUNTIFS($B$1:B195,B195))) ->  | H195: 0 | K195: 0 | L195: 0 | M195: 0 | N195: 0 | O195: 0 | Q195: 0 | R195: 0
C196: =IF(B196="","",IF(A196="Choisir…","",LEFT(B196,6)&"-"&COUNTIFS($B$1:B196,B196))) ->  | H196: 0 | K196: 0 | L196: 0 | M196: 0 | N196: 0 | O196: 0 | Q196: 0 | R196: 0
C197: =IF(B197="","",IF(A197="Choisir…","",LEFT(B197,6)&"-"&COUNTIFS($B$1:B197,B197))) ->  | H197: 0 | K197: 0 | L197: 0 | M197: 0 | N197: 0 | O197: 0 | Q197: 0 | R197: 0
C198: =IF(B198="","",IF(A198="Choisir…","",LEFT(B198,6)&"-"&COUNTIFS($B$1:B198,B198))) ->  | H198: =SUM(F198:G198) -> 0 | K198: 0 | L198: 0 | M198: 0 | N198: 0 | O198: 0 | Q198: 0 | R198: 0
C199: =IF(B199="","",IF(A199="Choisir…","",LEFT(B199,6)&"-"&COUNTIFS($B$1:B199,B199))) ->  | H199: 0 | K199: 0 | L199: 0 | M199: 0 | N199: 0 | O199: 0 | Q199: 0 | R199: 0
C200: =IF(B200="","",IF(A200="Choisir…","",LEFT(B200,6)&"-"&COUNTIFS($B$1:B200,B200))) ->  | H200: 0 | K200: 0 | L200: 0 | M200: 0 | N200: 0 | O200: 0 | Q200: 0 | R200: 0
B201: =IFERROR(IF(A201="Choisir…"," ",VLOOKUP(A201,Table_immeubles,2,FALSE)),"") ->  | C201: =IF(B201="","",IF(A201="Choisir…","",LEFT(B201,6)&"-"&COUNTIFS($B$1:B201,B201))) ->  | H201: =SUM(F201:G201) -> 0 | K201: =SUM(H201,J201) -> 0 | L201: =K201*TPS -> 0 | M201: =K201*TVQ -> 0 | N201: =-K201*Credit_taxes_net -> 0 | O201: =SUM(K201:N201) -> 0 | P201: =IFERROR(K201/Cout_mesures*Cout_Frais_gen,"") ->  | Q201: =SUM(K201,P201) -> 0 | R201: =Q201*(1+Taxes_nettes) -> 0
... 16 more rows

Sheet Sommaire coûts et économies
A1: Tableau des économies énergétiques et réductions d'émissions de GES*** Tableau des économies énergétiques et réductions d'émissions de GES*** Tableau des économies énergétiques et réductions d'émissions de GES*** Tableau des économies énergétiques et réductions d'émissions de GES*** Tableau des économies énergétiques et réductions d'émissions de GES*** Tableau des économies énergétiques et réductions d'émissions de GES*** Tableau des économies énergétiques et réductions d'émissions de GES*** Tableau des économies énergétiques et réductions d'émissions de GES*** Tableau des économies énergétiques et réductions d'émissions de GES***
A2: Numéro de la mesure | B2: Nom immeuble | C2: Nom de la mesure | D2: Type de mesure | E2: Économies d'énergie sur une base annuelle | T2: Économies d'énergie projetées (sur une base annuelle) | AI2: Total - Économies d'énergie projetées (annuelles) | AK2: Économies de puissance électrique projetées (annuelles) | AN2: Total - Économies de coûts d'énergie projetées | AO2: Aides financières (subventions et incitatifs financiers) | AX2: Aides financières (subventions et incitatifs financier) | AZ2: Contribution financière de l'institution | BA2: Coût total (avant taxes) | BC2: PRI simple | BE2: DVU pondérée | BF2: Remarques
E3: Électricité | J3: Gaz naturel | O3: Mazout no 2 | T3: Mazout lourd | Y3: Propane | AD3: Biomasse résiduelle, taux d'humidité : | AH3: 0.35 | AK3: kW
E4: kWh | F4: GJ | G4: GES | H4: Prix unitaire | I4: $/an | J4: m3 | K4: GJ | L4: GES | M4: Prix unitaire | N4: $/an | O4: litres | P4: GJ | Q4: GES | R4: Prix unitaire | S4: $/an | T4: litres | U4: GJ | V4: GES | X4: $/an | Y4: litres | Z4: GJ | AA4: GES | AC4: $/an | AD4: kg | AE4: GJ | AF4: GES | AG4: Prix unitaire | AH4: $/an | AI4: GJ | AJ4: GES (t éq. CO2) | AK4: kW | AL4: Prix unitaire | AM4: $/an | AN4: Total - $$$ | AO4: Énergir | AR4: Transition énergétique Québec (TEQ) | AU4: Hydro-Québec | AW4: Ministère | AY4: TOTAL | BA4: Coût total, y compri les frais généraux | BB4: Coût total, avec aides financières | BC4: Sans aide | BD4: Avec aide | BE4: Années
A5: 1 | B5: 2 | C5: 3 | D5: 4 | E5: 5 | F5: 6 | G5: 7 | H5: 8 | I5: 9 | J5: 10 | K5: 11 | L5: 12 | M5: 13 | N5: 14 | O5: 15 | P5: 16 | Q5: 17 | R5: 18 | S5: 19 | T5: 20 | U5: 21 | V5: 22 | X5: 24 | Y5: 25 | Z5: 26 | AA5: 27 | AC5: 29 | AD5: 30 | AE5: 31 | AF5: 32 | AG5: 33 | AH5: 34 | AI5: 35 | AJ5: 36 | AK5: 37 | AL5: 38 | AM5: 39 | AN5: 40 | AO5: 41 | AP5: 42 | AQ5: 43 | AR5: 44 | AS5: 45 | AT5: 46 | AU5: 47 | AV5: 48 | AW5: 49 | AX5: 50 | AY5: 51 | AZ5: 52 | BA5: 53 | BB5: 54 | BC5: 55 | BD5: 53 | BE5: 57 | BF5: 58
A6: =IF('Valeur du contrat'!C6="Choisir...","",'Valeur du contrat'!C6) ->  | B6: =IFERROR(CONCATENATE('Valeur du contrat'!A6),"") ->  | C6: =IF(A6<>"",VLOOKUP(A6,MCE,MATCH($C$2,'Valeur du contrat'!$C$3:$D$3,0),FALSE),"") ->  | F6: =IF(E6<>0,E6*VLOOKUP($E$3,Energie_SEQ,3,FALSE)/1000,"") ->  | G6: =IF(ISBLANK(E6),"",E6*gCO2eq_Electricite/1000000) ->  | I6: =IF(E6*H6=0,"",E6*H6) ->  | K6: =IF(J6<>0,J6*VLOOKUP($J$3,Energie_SEQ,3,FALSE)/1000,"") ->  | L6: =IF(ISBLANK(J6),"",J6*gCO2eq_GazNaturel/1000000) ->  | N6: =IF(J6*M6=0,"",J6*M6) ->  | P6: =IF(O6<>0,O6*VLOOKUP($O$3,Energie_SEQ,3,FALSE)/1000,"") ->  | Q6: =IF(ISBLANK(O6),"",O6*gCO2eq_Mazout2/1000000) ->  | S6: =IF(O6*R6=0,"",O6*R6) ->  | U6: =IF(T6<>0,T6*VLOOKUP($T$3,Energie_SEQ,3,FALSE)/1000,"") ->  | V6: =IF(ISBLANK(T6),"",T6*gCO2eq_MazoutLourd/1000000) ->  | X6: =IF(T6*W6=0,"",T6*W6) ->  | Z6: =IF(Y6<>0,Y6*VLOOKUP($Y$3,Energie_SEQ,3,FALSE)/1000,"") ->  | AA6: =IF(ISBLANK(Y6),"",Y6*gCO2eq_Propane/1000000) ->  | AC6: =IF(Y6*AB6=0,"",Y6*AB6) ->  | AE6: =IF(ISBLANK(AD6),"",((1-(1.1676*$AH$3))*19.2)/1000*AD6) ->  | AF6: =IF(ISBLANK(AD6),"",((1-(1.1676*$AH$3))*37.346)/1000000*AD6) ->  | AH6: =IF(AD6*AG6=0,"",AD6*AG6) ->  | AI6: =IF(SUM(F6,K6,P6,Z6,AE6)=0,"",SUM(F6,K6,P6,Z6,AE6)) ->  | AJ6: =IF(SUM(G6,L6,Q6,AA6,AF6)=0,"",SUM(G6,L6,Q6,AA6,AF6)) ->  | AM6: =IF(AK6*AL6=0,"",AK6*AL6) ->  | AN6: =IF(SUM(I6,N6,S6,X6,AC6,AH6,AM6)=0,"",SUM(I6,N6,S6,X6,AC6,AH6,AM6)) ->  | AY6: =IF(SUM(AO6:AX6)=0,0,SUM(AO6:AX6)) -> 0 | BA6: =IFERROR(VLOOKUP(A6,Couts_implantation,MATCH($BA$4,'Valeur du contrat'!$C$3:$R$3,0),FALSE),0) -> 0 | BB6: =IF(OR(BA6=0,BA6=""),"",BA6-AY6) ->  | BC6: =IFERROR(BA6/AN6,"") ->  | BD6: =IFERROR(BB6/AN6,"") -> 
A7: =IF('Valeur du contrat'!C7="Choisir...","",'Valeur du contrat'!C7) ->  | B7: =IFERROR(CONCATENATE('Valeur du contrat'!A7),"") ->  | C7: =IF(A7<>"",VLOOKUP(A7,MCE,MATCH($C$2,'Valeur du contrat'!$C$3:$D$3,0),FALSE),"") ->  | K7: =IF(J7<>0,J7*VLOOKUP($J$3,Energie_SEQ,3,FALSE)/1000,"") ->  | L7: =IF(ISBLANK(J7),"",J7*gCO2eq_GazNaturel/1000000) ->  | N7: =IF(J7*M7=0,"",J7*M7) ->  | P7: =IF(O7<>0,O7*VLOOKUP($O$3,Energie_SEQ,3,FALSE)/1000,"") ->  | Q7: =IF(ISBLANK(O7),"",O7*gCO2eq_Mazout2/1000000) ->  | S7: =IF(O7*R7=0,"",O7*R7) ->  | X7: =IF(T7*W7=0,"",T7*W7) ->  | AE7: =IF(ISBLANK(AD7),"",((1-(1.1676*$AH$3))*19.2)/1000*AD7) ->  | AF7: =IF(ISBLANK(AD7),"",((1-(1.1676*$AH$3))*37.346)/1000000*AD7) ->  | AH7: =IF(AD7*AG7=0,"",AD7*AG7) ->  | AI7: =IF(SUM(F7,K7,P7,Z7,AE7)=0,"",SUM(F7,K7,P7,Z7,AE7)) ->  | AJ7: =IF(SUM(G7,L7,Q7,AA7,AF7)=0,"",SUM(G7,L7,Q7,AA7,AF7)) ->  | AM7: =IF(AK7*AL7=0,"",AK7*AL7) ->  | AN7: =IF(SUM(I7,N7,S7,X7,AC7,AH7,AM7)=0,"",SUM(I7,N7,S7,X7,AC7,AH7,AM7)) ->  | AY7: =IF(SUM(AO7:AX7)=0,0,SUM(AO7:AX7)) -> 0 | BA7: =IFERROR(VLOOKUP(A7,Couts_implantation,MATCH($BA$4,'Valeur du contrat'!$C$3:$R$3,0),FALSE),0) -> 0
A8: =IF('Valeur du contrat'!C8="Choisir...","",'Valeur du contrat'!C8) ->  | B8: =IFERROR(CONCATENATE('Valeur du contrat'!A8),"") ->  | C8: =IF(A8<>"",VLOOKUP(A8,MCE,MATCH($C$2,'Valeur du contrat'!$C$3:$D$3,0),FALSE),"") ->  | S8: =IF(O8*R8=0,"",O8*R8) ->  | AN8: =IF(SUM(I8,N8,S8,X8,AC8,AH8,AM8)=0,"",SUM(I8,N8,S8,X8,AC8,AH8,AM8)) ->  | AY8: 0 | BA8: =IFERROR(VLOOKUP(A8,Couts_implantation,MATCH($BA$4,'Valeur du contrat'!$C$3:$R$3,0),FALSE),0) -> 0
A9: =IF('Valeur du contrat'!C9="Choisir...","",'Valeur du contrat'!C9) ->  | B9: =IFERROR(CONCATENATE('Valeur du contrat'!A9),"") ->  | C9: =IF(A9<>"",VLOOKUP(A9,MCE,MATCH($C$2,'Valeur du contrat'!$C$3:$D$3,0),FALSE),"") ->  | S9: =IF(O9*R9=0,"",O9*R9) ->  | AY9: 0 | BA9: =IFERROR(VLOOKUP(A9,Couts_implantation,MATCH($BA$4,'Valeur du contrat'!$C$3:$R$3,0),FALSE),0) -> 0
A10: =IF('Valeur du contrat'!C10="Choisir...","",'Valeur du contrat'!C10) ->  | B10: =IFERROR(CONCATENATE('Valeur du contrat'!A10),"") ->  | C10: =IF(A10<>"",VLOOKUP(A10,MCE,MATCH($C$2,'Valeur du contrat'!$C$3:$D$3,0),FALSE),"") ->  | F10: =IF(E10<>0,E10*VLOOKUP($E$3,Energie_SEQ,3,FALSE)/1000,"") ->  | AY10: 0 | BA10: =IFERROR(VLOOKUP(A10,Couts_implantation,MATCH($BA$4,'Valeur du contrat'!$C$3:$R$3,0),FALSE),0) -> 0
A11: =IF('Valeur du contrat'!C11="Choisir...","",'Valeur du contrat'!C11) ->  | B11: =IFERROR(CONCATENATE('Valeur du contrat'!A11),"") ->  | C11: =IF(A11<>"",VLOOKUP(A11,MCE,MATCH($C$2,'Valeur du contrat'!$C$3:$D$3,0),FALSE),"") ->  | F11: =IF(E11<>0,E11*VLOOKUP($E$3,Energie_SEQ,3,FALSE)/1000,"") ->  | AN11: =IF(SUM(I11,N11,S11,X11,AC11,AH11,AM11)=0,"",SUM(I11,N11,S11,X11,AC11,AH11,AM11)) ->  | AY11: 0 | BA11: =IFERROR(VLOOKUP(A11,Couts_implantation,MATCH($BA$4,'Valeur du contrat'!$C$3:$R$3,0),FALSE),0) -> 0
A12: =IF('Valeur du contrat'!C12="Choisir...","",'Valeur du contrat'!C12) ->  | B12: =IFERROR(CONCATENATE('Valeur du contrat'!A12),"") ->  | C12: =IF(A12<>"",VLOOKUP(A12,MCE,MATCH($C$2,'Valeur du contrat'!$C$3:$D$3,0),FALSE),"") ->  | AY12: =IF(SUM(AO12:AX12)=0,0,SUM(AO12:AX12)) -> 0 | BA12: =IFERROR(VLOOKUP(A12,Couts_implantation,MATCH($BA$4,'Valeur du contrat'!$C$3:$R$3,0),FALSE),0) -> 0 | BB12: =IF(OR(BA12=0,BA12=""),"",BA12-AY12) -> 
A13: =IF('Valeur du contrat'!C13="Choisir...","",'Valeur du contrat'!C13) ->  | B13: =IFERROR(CONCATENATE('Valeur du contrat'!A13),"") ->  | C13: =IF(A13<>"",VLOOKUP(A13,MCE,MATCH($C$2,'Valeur du contrat'!$C$3:$D$3,0),FALSE),"") ->  | F13: =IF(E13<>0,E13*VLOOKUP($E$3,Energie_SEQ,3,FALSE)/1000,"") ->  | AY13: 0 | BA13: =IFERROR(VLOOKUP(A13,Couts_implantation,MATCH($BA$4,'Valeur du contrat'!$C$3:$R$3,0),FALSE),0) -> 0 | BB13: =IF(OR(BA13=0,BA13=""),"",BA13-AY13) -> 
A14: =IF('Valeur du contrat'!C14="Choisir...","",'Valeur du contrat'!C14) ->  | B14: =IFERROR(CONCATENATE('Valeur du contrat'!A14),"") ->  | C14: =IF(A14<>"",VLOOKUP(A14,MCE,MATCH($C$2,'Valeur du contrat'!$C$3:$D$3,0),FALSE),"") ->  | AY14: 0 | BA14: =IFERROR(VLOOKUP(A14,Couts_implantation,MATCH($BA$4,'Valeur du contrat'!$C$3:$R$3,0),FALSE),0) -> 0
A15: =IF('Valeur du contrat'!C15="Choisir...","",'Valeur du contrat'!C15) ->  | B15: =IFERROR(CONCATENATE('Valeur du contrat'!A15),"") ->  | C15: =IF(A15<>"",VLOOKUP(A15,MCE,MATCH($C$2,'Valeur du contrat'!$C$3:$D$3,0),FALSE),"") ->  | AY15: 0 | BA15: =IFERROR(VLOOKUP(A15,Couts_implantation,MATCH($BA$4,'Valeur du contrat'!$C$3:$R$3,0),FALSE),0) -> 0
A16: =IF('Valeur du contrat'!C16="Choisir...","",'Valeur du contrat'!C16) ->  | B16: =IFERROR(CONCATENATE('Valeur du contrat'!A16),"") ->  | C16: =IF(A16<>"",VLOOKUP(A16,MCE,MATCH($C$2,'Valeur du contrat'!$C$3:$D$3,0),FALSE),"") ->  | F16: =IF(E16<>0,E16*VLOOKUP($E$3,Energie_SEQ,3,FALSE)/1000,"") ->  | AY16: 0 | BA16: =IFERROR(VLOOKUP(A16,Couts_implantation,MATCH($BA$4,'Valeur du contrat'!$C$3:$R$3,0),FALSE),0) -> 0
A17: =IF('Valeur du contrat'!C17="Choisir...","",'Valeur du contrat'!C17) ->  | B17: =IFERROR(CONCATENATE('Valeur du contrat'!A17),"") ->  | C17: =IF(A17<>"",VLOOKUP(A17,MCE,MATCH($C$2,'Valeur du contrat'!$C$3:$D$3,0),FALSE),"") ->  | AY17: 0 | BA17: =IFERROR(VLOOKUP(A17,Couts_implantation,MATCH($BA$4,'Valeur du contrat'!$C$3:$R$3,0),FALSE),0) -> 0
A18: =IF('Valeur du contrat'!C18="Choisir...","",'Valeur du contrat'!C18) ->  | B18: =IFERROR(CONCATENATE('Valeur du contrat'!A18),"") ->  | C18: =IF(A18<>"",VLOOKUP(A18,MCE,MATCH($C$2,'Valeur du contrat'!$C$3:$D$3,0),FALSE),"") ->  | AY18: 0 | BA18: =IFERROR(VLOOKUP(A18,Couts_implantation,MATCH($BA$4,'Valeur du contrat'!$C$3:$R$3,0),FALSE),0) -> 0
A19: =IF('Valeur du contrat'!C19="Choisir...","",'Valeur du contrat'!C19) ->  | B19: =IFERROR(CONCATENATE('Valeur du contrat'!A19),"") ->  | C19: =IF(A19<>"",VLOOKUP(A19,MCE,MATCH($C$2,'Valeur du contrat'!$C$3:$D$3,0),FALSE),"") ->  | AY19: 0 | BA19: =IFERROR(VLOOKUP(A19,Couts_implantation,MATCH($BA$4,'Valeur du contrat'!$C$3:$R$3,0),FALSE),0) -> 0
A20: =IF('Valeur du contrat'!C20="Choisir...","",'Valeur du contrat'!C20) ->  | B20: =IFERROR(CONCATENATE('Valeur du contrat'!A20),"") ->  | C20: =IF(A20<>"",VLOOKUP(A20,MCE,MATCH($C$2,'Valeur du contrat'!$C$3:$D$3,0),FALSE),"") ->  | AY20: 0 | BA20: =IFERROR(VLOOKUP(A20,Couts_implantation,MATCH($BA$4,'Valeur du contrat'!$C$3:$R$3,0),FALSE),0) -> 0
A21: =IF('Valeur du contrat'!C21="Choisir...","",'Valeur du contrat'!C21) ->  | B21: =IFERROR(CONCATENATE('Valeur du contrat'!A21),"") ->  | C21: =IF(A21<>"",VLOOKUP(A21,MCE,MATCH($C$2,'Valeur du contrat'!$C$3:$D$3,0),FALSE),"") ->  | AY21: 0 | BA21: =IFERROR(VLOOKUP(A21,Couts_implantation,MATCH($BA$4,'Valeur du contrat'!$C$3:$R$3,0),FALSE),0) -> 0
A22: =IF('Valeur du contrat'!C22="Choisir...","",'Valeur du contrat'!C22) ->  | B22: =IFERROR(CONCATENATE('Valeur du contrat'!A22),"") ->  | C22: =IF(A22<>"",VLOOKUP(A22,MCE,MATCH($C$2,'Valeur du contrat'!$C$3:$D$3,0),FALSE),"") ->  | AC22: =IF(Y22*AB22=0,"",Y22*AB22) ->  | AY22: 0 | BA22: =IFERROR(VLOOKUP(A22,Couts_implantation,MATCH($BA$4,'Valeur du contrat'!$C$3:$R$3,0),FALSE),0) -> 0
A23: =IF('Valeur du contrat'!C23="Choisir...","",'Valeur du contrat'!C23) ->  | B23: =IFERROR(CONCATENATE('Valeur du contrat'!A23),"") ->  | C23: =IF(A23<>"",VLOOKUP(A23,MCE,MATCH($C$2,'Valeur du contrat'!$C$3:$D$3,0),FALSE),"") ->  | AY23: 0 | BA23: =IFERROR(VLOOKUP(A23,Couts_implantation,MATCH($BA$4,'Valeur du contrat'!$C$3:$R$3,0),FALSE),0) -> 0
A24: =IF('Valeur du contrat'!C24="Choisir...","",'Valeur du contrat'!C24) ->  | B24: =IFERROR(CONCATENATE('Valeur du contrat'!A24),"") ->  | C24: =IF(A24<>"",VLOOKUP(A24,MCE,MATCH($C$2,'Valeur du contrat'!$C$3:$D$3,0),FALSE),"") ->  | S24: =IF(O24*R24=0,"",O24*R24) ->  | AY24: 0 | BA24: =IFERROR(VLOOKUP(A24,Couts_implantation,MATCH($BA$4,'Valeur du contrat'!$C$3:$R$3,0),FALSE),0) -> 0
A25: =IF('Valeur du contrat'!C25="Choisir...","",'Valeur du contrat'!C25) ->  | B25: =IFERROR(CONCATENATE('Valeur du contrat'!A25),"") ->  | C25: =IF(A25<>"",VLOOKUP(A25,MCE,MATCH($C$2,'Valeur du contrat'!$C$3:$D$3,0),FALSE),"") ->  | S25: =IF(O25*R25=0,"",O25*R25) ->  | AY25: 0 | BA25: =IFERROR(VLOOKUP(A25,Couts_implantation,MATCH($BA$4,'Valeur du contrat'!$C$3:$R$3,0),FALSE),0) -> 0
A26: =IF('Valeur du contrat'!C26="Choisir...","",'Valeur du contrat'!C26) ->  | B26: =IFERROR(CONCATENATE('Valeur du contrat'!A26),"") ->  | C26: =IF(A26<>"",VLOOKUP(A26,MCE,MATCH($C$2,'Valeur du contrat'!$C$3:$D$3,0),FALSE),"") ->  | AC26: =IF(Y26*AB26=0,"",Y26*AB26) ->  | AY26: 0 | BA26: =IFERROR(VLOOKUP(A26,Couts_implantation,MATCH($BA$4,'Valeur du contrat'!$C$3:$R$3,0),FALSE),0) -> 0
A27: =IF('Valeur du contrat'!C27="Choisir...","",'Valeur du contrat'!C27) ->  | B27: =IFERROR(CONCATENATE('Valeur du contrat'!A27),"") ->  | C27: =IF(A27<>"",VLOOKUP(A27,MCE,MATCH($C$2,'Valeur du contrat'!$C$3:$D$3,0),FALSE),"") ->  | AY27: 0 | BA27: =IFERROR(VLOOKUP(A27,Couts_implantation,MATCH($BA$4,'Valeur du contrat'!$C$3:$R$3,0),FALSE),0) -> 0
A28: =IF('Valeur du contrat'!C28="Choisir...","",'Valeur du contrat'!C28) ->  | B28: =IFERROR(CONCATENATE('Valeur du contrat'!A28),"") ->  | C28: =IF(A28<>"",VLOOKUP(A28,MCE,MATCH($C$2,'Valeur du contrat'!$C$3:$D$3,0),FALSE),"") ->  | AY28: 0 | BA28: =IFERROR(VLOOKUP(A28,Couts_implantation,MATCH($BA$4,'Valeur du contrat'!$C$3:$R$3,0),FALSE),0) -> 0
A29: =IF('Valeur du contrat'!C29="Choisir...","",'Valeur du contrat'!C29) ->  | B29: =IFERROR(CONCATENATE('Valeur du contrat'!A29),"") ->  | C29: =IF(A29<>"",VLOOKUP(A29,MCE,MATCH($C$2,'Valeur du contrat'!$C$3:$D$3,0),FALSE),"") ->  | AY29: 0 | BA29: =IFERROR(VLOOKUP(A29,Couts_implantation,MATCH($BA$4,'Valeur du contrat'!$C$3:$R$3,0),FALSE),0) -> 0
A30: =IF('Valeur du contrat'!C30="Choisir...","",'Valeur du contrat'!C30) ->  | B30: =IFERROR(CONCATENATE('Valeur du contrat'!A30),"") ->  | C30: =IF(A30<>"",VLOOKUP(A30,MCE,MATCH($C$2,'Valeur du contrat'!$C$3:$D$3,0),FALSE),"") ->  | AY30: 0 | BA30: =IFERROR(VLOOKUP(A30,Couts_implantation,MATCH($BA$4,'Valeur du contrat'!$C$3:$R$3,0),FALSE),0) -> 0
A31: =IF('Valeur du contrat'!C31="Choisir...","",'Valeur du contrat'!C31) ->  | B31: =IFERROR(CONCATENATE('Valeur du contrat'!A31),"") ->  | C31: =IF(A31<>"",VLOOKUP(A31,MCE,MATCH($C$2,'Valeur du contrat'!$C$3:$D$3,0),FALSE),"") ->  | AY31: 0 | BA31: =IFERROR(VLOOKUP(A31,Couts_implantation,MATCH($BA$4,'Valeur du contrat'!$C$3:$R$3,0),FALSE),0) -> 0
A32: =IF('Valeur du contrat'!C32="Choisir...","",'Valeur du contrat'!C32) ->  | B32: =IFERROR(CONCATENATE('Valeur du contrat'!A32),"") ->  | C32: =IF(A32<>"",VLOOKUP(A32,MCE,MATCH($C$2,'Valeur du contrat'!$C$3:$D$3,0),FALSE),"") ->  | AY32: 0 | BA32: =IFERROR(VLOOKUP(A32,Couts_implantation,MATCH($BA$4,'Valeur du contrat'!$C$3:$R$3,0),FALSE),0) -> 0
A33: =IF('Valeur du contrat'!C33="Choisir...","",'Valeur du contrat'!C33) ->  | B33: =IFERROR(CONCATENATE('Valeur du contrat'!A33),"") ->  | C33: =IF(A33<>"",VLOOKUP(A33,MCE,MATCH($C$2,'Valeur du contrat'!$C$3:$D$3,0),FALSE),"") ->  | AY33: 0 | BA33: =IFERROR(VLOOKUP(A33,Couts_implantation,MATCH($BA$4,'Valeur du contrat'!$C$3:$R$3,0),FALSE),0) -> 0
A34: =IF('Valeur du contrat'!C34="Choisir...","",'Valeur du contrat'!C34) ->  | B34: =IFERROR(CONCATENATE('Valeur du contrat'!A34),"") ->  | C34: =IF(A34<>"",VLOOKUP(A34,MCE,MATCH($C$2,'Valeur du contrat'!$C$3:$D$3,0),FALSE),"") ->  | AY34: 0 | BA34: =IFERROR(VLOOKUP(A34,Couts_implantation,MATCH($BA$4,'Valeur du contrat'!$C$3:$R$3,0),FALSE),0) -> 0
A35: =IF('Valeur du contrat'!C35="Choisir...","",'Valeur du contrat'!C35) ->  | B35: =IFERROR(CONCATENATE('Valeur du contrat'!A35),"") ->  | C35: =IF(A35<>"",VLOOKUP(A35,MCE,MATCH($C$2,'Valeur du contrat'!$C$3:$D$3,0),FALSE),"") ->  | AY35: 0 | BA35: =IFERROR(VLOOKUP(A35,Couts_implantation,MATCH($BA$4,'Valeur du contrat'!$C$3:$R$3,0),FALSE),0) -> 0
A36: =IF('Valeur du contrat'!C36="Choisir...","",'Valeur du contrat'!C36) ->  | B36: =IFERROR(CONCATENATE('Valeur du contrat'!A36),"") ->  | C36: =IF(A36<>"",VLOOKUP(A36,MCE,MATCH($C$2,'Valeur du contrat'!$C$3:$D$3,0),FALSE),"") ->  | AY36: 0 | BA36: =IFERROR(VLOOKUP(A36,Couts_implantation,MATCH($BA$4,'Valeur du contrat'!$C$3:$R$3,0),FALSE),0) -> 0
A37: =IF('Valeur du contrat'!C37="Choisir...","",'Valeur du contrat'!C37) ->  | B37: =IFERROR(CONCATENATE('Valeur du contrat'!A37),"") ->  | C37: =IF(A37<>"",VLOOKUP(A37,MCE,MATCH($C$2,'Valeur du contrat'!$C$3:$D$3,0),FALSE),"") ->  | AY37: 0 | BA37: =IFERROR(VLOOKUP(A37,Couts_implantation,MATCH($BA$4,'Valeur du contrat'!$C$3:$R$3,0),FALSE),0) -> 0
A38: =IF('Valeur du contrat'!C38="Choisir...","",'Valeur du contrat'!C38) ->  | B38: =IFERROR(CONCATENATE('Valeur du contrat'!A38),"") ->  | C38: =IF(A38<>"",VLOOKUP(A38,MCE,MATCH($C$2,'Valeur du contrat'!$C$3:$D$3,0),FALSE),"") ->  | G38: =IF(ISBLANK(E38),"",E38*gCO2eq_Electricite/1000000) ->  | U38: =IF(T38<>0,T38*VLOOKUP($T$3,Energie_SEQ,3,FALSE)/1000,"") ->  | V38: =IF(ISBLANK(T38),"",T38*gCO2eq_MazoutLourd/1000000) ->  | Z38: =IF(Y38<>0,Y38*VLOOKUP($Y$3,Energie_SEQ,3,FALSE)/1000,"") ->  | AA38: =IF(ISBLANK(Y38),"",Y38*gCO2eq_Propane/1000000) ->  | AY38: 0 | BA38: =IFERROR(VLOOKUP(A38,Couts_implantation,MATCH($BA$4,'Valeur du contrat'!$C$3:$R$3,0),FALSE),0) -> 0 | BC38: =IFERROR(BA38/AN38,"") ->  | BD38: =IFERROR(BB38/AN38,"") -> 
A39: =IF('Valeur du contrat'!C39="Choisir...","",'Valeur du contrat'!C39) ->  | B39: =IFERROR(CONCATENATE('Valeur du contrat'!A39),"") ->  | C39: =IF(A39<>"",VLOOKUP(A39,MCE,MATCH($C$2,'Valeur du contrat'!$C$3:$D$3,0),FALSE),"") ->  | AY39: 0 | BA39: =IFERROR(VLOOKUP(A39,Couts_implantation,MATCH($BA$4,'Valeur du contrat'!$C$3:$R$3,0),FALSE),0) -> 0
A40: =IF('Valeur du contrat'!C40="Choisir...","",'Valeur du contrat'!C40) ->  | B40: =IFERROR(CONCATENATE('Valeur du contrat'!A40),"") ->  | C40: =IF(A40<>"",VLOOKUP(A40,MCE,MATCH($C$2,'Valeur du contrat'!$C$3:$D$3,0),FALSE),"") ->  | AY40: 0 | BA40: =IFERROR(VLOOKUP(A40,Couts_implantation,MATCH($BA$4,'Valeur du contrat'!$C$3:$R$3,0),FALSE),0) -> 0
A41: =IF('Valeur du contrat'!C41="Choisir...","",'Valeur du contrat'!C41) ->  | B41: =IFERROR(CONCATENATE('Valeur du contrat'!A41),"") ->  | C41: =IF(A41<>"",VLOOKUP(A41,MCE,MATCH($C$2,'Valeur du contrat'!$C$3:$D$3,0),FALSE),"") ->  | AY41: 0 | BA41: =IFERROR(VLOOKUP(A41,Couts_implantation,MATCH($BA$4,'Valeur du contrat'!$C$3:$R$3,0),FALSE),0) -> 0
A42: =IF('Valeur du contrat'!C42="Choisir...","",'Valeur du contrat'!C42) ->  | B42: =IFERROR(CONCATENATE('Valeur du contrat'!A42),"") ->  | C42: =IF(A42<>"",VLOOKUP(A42,MCE,MATCH($C$2,'Valeur du contrat'!$C$3:$D$3,0),FALSE),"") ->  | AY42: 0 | BA42: =IFERROR(VLOOKUP(A42,Couts_implantation,MATCH($BA$4,'Valeur du contrat'!$C$3:$R$3,0),FALSE),0) -> 0
A43: =IF('Valeur du contrat'!C43="Choisir...","",'Valeur du contrat'!C43) ->  | B43: =IFERROR(CONCATENATE('Valeur du contrat'!A43),"") ->  | C43: =IF(A43<>"",VLOOKUP(A43,MCE,MATCH($C$2,'Valeur du contrat'!$C$3:$D$3,0),FALSE),"") ->  | AY43: 0 | BA43: =IFERROR(VLOOKUP(A43,Couts_implantation,MATCH($BA$4,'Valeur du contrat'!$C$3:$R$3,0),FALSE),0) -> 0
A44: =IF('Valeur du contrat'!C44="Choisir...","",'Valeur du contrat'!C44) ->  | B44: =IFERROR(CONCATENATE('Valeur du contrat'!A44),"") ->  | C44: =IF(A44<>"",VLOOKUP(A44,MCE,MATCH($C$2,'Valeur du contrat'!$C$3:$D$3,0),FALSE),"") ->  | AY44: 0 | BA44: =IFERROR(VLOOKUP(A44,Couts_implantation,MATCH($BA$4,'Valeur du contrat'!$C$3:$R$3,0),FALSE),0) -> 0
A45: =IF('Valeur du contrat'!C45="Choisir...","",'Valeur du contrat'!C45) ->  | B45: =IFERROR(CONCATENATE('Valeur du contrat'!A45),"") ->  | C45: =IF(A45<>"",VLOOKUP(A45,MCE,MATCH($C$2,'Valeur du contrat'!$C$3:$D$3,0),FALSE),"") ->  | AY45: 0 | BA45: =IFERROR(VLOOKUP(A45,Couts_implantation,MATCH($BA$4,'Valeur du contrat'!$C$3:$R$3,0),FALSE),0) -> 0
A46: =IF('Valeur du contrat'!C46="Choisir...","",'Valeur du contrat'!C46) ->  | B46: =IFERROR(CONCATENATE('Valeur du contrat'!A46),"") ->  | C46: =IF(A46<>"",VLOOKUP(A46,MCE,MATCH($C$2,'Valeur du contrat'!$C$3:$D$3,0),FALSE),"") ->  | AY46: 0 | BA46: =IFERROR(VLOOKUP(A46,Couts_implantation,MATCH($BA$4,'Valeur du contrat'!$C$3:$R$3,0),FALSE),0) -> 0
A47: =IF('Valeur du contrat'!C47="Choisir...","",'Valeur du contrat'!C47) ->  | B47: =IFERROR(CONCATENATE('Valeur du contrat'!A47),"") ->  | C47: =IF(A47<>"",VLOOKUP(A47,MCE,MATCH($C$2,'Valeur du contrat'!$C$3:$D$3,0),FALSE),"") ->  | AY47: 0 | BA47: =IFERROR(VLOOKUP(A47,Couts_implantation,MATCH($BA$4,'Valeur du contrat'!$C$3:$R$3,0),FALSE),0) -> 0
A48: =IF('Valeur du contrat'!C48="Choisir...","",'Valeur du contrat'!C48) ->  | B48: =IFERROR(CONCATENATE('Valeur du contrat'!A48),"") ->  | C48: =IF(A48<>"",VLOOKUP(A48,MCE,MATCH($C$2,'Valeur du contrat'!$C$3:$D$3,0),FALSE),"") ->  | AY48: 0 | BA48: =IFERROR(VLOOKUP(A48,Couts_implantation,MATCH($BA$4,'Valeur du contrat'!$C$3:$R$3,0),FALSE),0) -> 0
A49: =IF('Valeur du contrat'!C49="Choisir...","",'Valeur du contrat'!C49) ->  | B49: =IFERROR(CONCATENATE('Valeur du contrat'!A49),"") ->  | C49: =IF(A49<>"",VLOOKUP(A49,MCE,MATCH($C$2,'Valeur du contrat'!$C$3:$D$3,0),FALSE),"") ->  | AY49: 0 | BA49: =IFERROR(VLOOKUP(A49,Couts_implantation,MATCH($BA$4,'Valeur du contrat'!$C$3:$R$3,0),FALSE),0) -> 0
A50: =IF('Valeur du contrat'!C50="Choisir...","",'Valeur du contrat'!C50) ->  | B50: =IFERROR(CONCATENATE('Valeur du contrat'!A50),"") ->  | C50: =IF(A50<>"",VLOOKUP(A50,MCE,MATCH($C$2,'Valeur du contrat'!$C$3:$D$3,0),FALSE),"") ->  | AY50: 0 | BA50: =IFERROR(VLOOKUP(A50,Couts_implantation,MATCH($BA$4,'Valeur du contrat'!$C$3:$R$3,0),FALSE),0) -> 0
A51: =IF('Valeur du contrat'!C51="Choisir...","",'Valeur du contrat'!C51) ->  | B51: =IFERROR(CONCATENATE('Valeur du contrat'!A51),"") ->  | C51: =IF(A51<>"",VLOOKUP(A51,MCE,MATCH($C$2,'Valeur du contrat'!$C$3:$D$3,0),FALSE),"") ->  | AY51: 0 | BA51: =IFERROR(VLOOKUP(A51,Couts_implantation,MATCH($BA$4,'Valeur du contrat'!$C$3:$R$3,0),FALSE),0) -> 0
A52: =IF('Valeur du contrat'!C52="Choisir...","",'Valeur du contrat'!C52) ->  | B52: =IFERROR(CONCATENATE('Valeur du contrat'!A52),"") ->  | C52: =IF(A52<>"",VLOOKUP(A52,MCE,MATCH($C$2,'Valeur du contrat'!$C$3:$D$3,0),FALSE),"") ->  | AY52: 0 | BA52: =IFERROR(VLOOKUP(A52,Couts_implantation,MATCH($BA$4,'Valeur du contrat'!$C$3:$R$3,0),FALSE),0) -> 0
A53: =IF('Valeur du contrat'!C53="Choisir...","",'Valeur du contrat'!C53) ->  | B53: =IFERROR(CONCATENATE('Valeur du contrat'!A53),"") ->  | C53: =IF(A53<>"",VLOOKUP(A53,MCE,MATCH($C$2,'Valeur du contrat'!$C$3:$D$3,0),FALSE),"") ->  | AY53: 0 | BA53: =IFERROR(VLOOKUP(A53,Couts_implantation,MATCH($BA$4,'Valeur du contrat'!$C$3:$R$3,0),FALSE),0) -> 0
A54: =IF('Valeur du contrat'!C54="Choisir...","",'Valeur du contrat'!C54) ->  | B54: =IFERROR(CONCATENATE('Valeur du contrat'!A54),"") ->  | C54: =IF(A54<>"",VLOOKUP(A54,MCE,MATCH($C$2,'Valeur du contrat'!$C$3:$D$3,0),FALSE),"") ->  | AY54: 0 | BA54: =IFERROR(VLOOKUP(A54,Couts_implantation,MATCH($BA$4,'Valeur du contrat'!$C$3:$R$3,0),FALSE),0) -> 0
A55: =IF('Valeur du contrat'!C55="Choisir...","",'Valeur du contrat'!C55) ->  | B55: =IFERROR(CONCATENATE('Valeur du contrat'!A55),"") ->  | C55: =IF(A55<>"",VLOOKUP(A55,MCE,MATCH($C$2,'Valeur du contrat'!$C$3:$D$3,0),FALSE),"") ->  | AY55: 0 | BA55: =IFERROR(VLOOKUP(A55,Couts_implantation,MATCH($BA$4,'Valeur du contrat'!$C$3:$R$3,0),FALSE),0) -> 0
A56: =IF('Valeur du contrat'!C56="Choisir...","",'Valeur du contrat'!C56) ->  | B56: =IFERROR(CONCATENATE('Valeur du contrat'!A56),"") ->  | C56: =IF(A56<>"",VLOOKUP(A56,MCE,MATCH($C$2,'Valeur du contrat'!$C$3:$D$3,0),FALSE),"") ->  | AY56: 0 | BA56: =IFERROR(VLOOKUP(A56,Couts_implantation,MATCH($BA$4,'Valeur du contrat'!$C$3:$R$3,0),FALSE),0) -> 0
A57: =IF('Valeur du contrat'!C57="Choisir...","",'Valeur du contrat'!C57) ->  | B57: =IFERROR(CONCATENATE('Valeur du contrat'!A57),"") ->  | C57: =IF(A57<>"",VLOOKUP(A57,MCE,MATCH($C$2,'Valeur du contrat'!$C$3:$D$3,0),FALSE),"") ->  | AY57: 0 | BA57: =IFERROR(VLOOKUP(A57,Couts_implantation,MATCH($BA$4,'Valeur du contrat'!$C$3:$R$3,0),FALSE),0) -> 0
A58: =IF('Valeur du contrat'!C58="Choisir...","",'Valeur du contrat'!C58) ->  | B58: =IFERROR(CONCATENATE('Valeur du contrat'!A58),"") ->  | C58: =IF(A58<>"",VLOOKUP(A58,MCE,MATCH($C$2,'Valeur du contrat'!$C$3:$D$3,0),FALSE),"") ->  | AC58: =IF(Y58*AB58=0,"",Y58*AB58) ->  | AY58: 0 | BA58: =IFERROR(VLOOKUP(A58,Couts_implantation,MATCH($BA$4,'Valeur du contrat'!$C$3:$R$3,0),FALSE),0) -> 0
A59: =IF('Valeur du contrat'!C59="Choisir...","",'Valeur du contrat'!C59) ->  | B59: =IFERROR(CONCATENATE('Valeur du contrat'!A59),"") ->  | C59: =IF(A59<>"",VLOOKUP(A59,MCE,MATCH($C$2,'Valeur du contrat'!$C$3:$D$3,0),FALSE),"") ->  | AY59: 0 | BA59: =IFERROR(VLOOKUP(A59,Couts_implantation,MATCH($BA$4,'Valeur du contrat'!$C$3:$R$3,0),FALSE),0) -> 0
A60: =IF('Valeur du contrat'!C60="Choisir...","",'Valeur du contrat'!C60) ->  | B60: =IFERROR(CONCATENATE('Valeur du contrat'!A60),"") ->  | C60: =IF(A60<>"",VLOOKUP(A60,MCE,MATCH($C$2,'Valeur du contrat'!$C$3:$D$3,0),FALSE),"") ->  | AY60: 0 | BA60: =IFERROR(VLOOKUP(A60,Couts_implantation,MATCH($BA$4,'Valeur du contrat'!$C$3:$R$3,0),FALSE),0) -> 0
A61: =IF('Valeur du contrat'!C61="Choisir...","",'Valeur du contrat'!C61) ->  | B61: =IFERROR(CONCATENATE('Valeur du contrat'!A61),"") ->  | C61: =IF(A61<>"",VLOOKUP(A61,MCE,MATCH($C$2,'Valeur du contrat'!$C$3:$D$3,0),FALSE),"") ->  | AY61: 0 | BA61: =IFERROR(VLOOKUP(A61,Couts_implantation,MATCH($BA$4,'Valeur du contrat'!$C$3:$R$3,0),FALSE),0) -> 0
A62: =IF('Valeur du contrat'!C62="Choisir...","",'Valeur du contrat'!C62) ->  | B62: =IFERROR(CONCATENATE('Valeur du contrat'!A62),"") ->  | C62: =IF(A62<>"",VLOOKUP(A62,MCE,MATCH($C$2,'Valeur du contrat'!$C$3:$D$3,0),FALSE),"") ->  | AY62: 0 | BA62: =IFERROR(VLOOKUP(A62,Couts_implantation,MATCH($BA$4,'Valeur du contrat'!$C$3:$R$3,0),FALSE),0) -> 0
A63: =IF('Valeur du contrat'!C63="Choisir...","",'Valeur du contrat'!C63) ->  | B63: =IFERROR(CONCATENATE('Valeur du contrat'!A63),"") ->  | C63: =IF(A63<>"",VLOOKUP(A63,MCE,MATCH($C$2,'Valeur du contrat'!$C$3:$D$3,0),FALSE),"") ->  | AY63: 0 | BA63: =IFERROR(VLOOKUP(A63,Couts_implantation,MATCH($BA$4,'Valeur du contrat'!$C$3:$R$3,0),FALSE),0) -> 0
A64: =IF('Valeur du contrat'!C64="Choisir...","",'Valeur du contrat'!C64) ->  | B64: =IFERROR(CONCATENATE('Valeur du contrat'!A64),"") ->  | C64: =IF(A64<>"",VLOOKUP(A64,MCE,MATCH($C$2,'Valeur du contrat'!$C$3:$D$3,0),FALSE),"") ->  | AY64: 0 | BA64: =IFERROR(VLOOKUP(A64,Couts_implantation,MATCH($BA$4,'Valeur du contrat'!$C$3:$R$3,0),FALSE),0) -> 0
A65: =IF('Valeur du contrat'!C65="Choisir...","",'Valeur du contrat'!C65) ->  | B65: =IFERROR(CONCATENATE('Valeur du contrat'!A65),"") ->  | C65: =IF(A65<>"",VLOOKUP(A65,MCE,MATCH($C$2,'Valeur du contrat'!$C$3:$D$3,0),FALSE),"") ->  | AY65: 0 | BA65: =IFERROR(VLOOKUP(A65,Couts_implantation,MATCH($BA$4,'Valeur du contrat'!$C$3:$R$3,0),FALSE),0) -> 0
A66: =IF('Valeur du contrat'!C66="Choisir...","",'Valeur du contrat'!C66) ->  | B66: =IFERROR(CONCATENATE('Valeur du contrat'!A66),"") ->  | C66: =IF(A66<>"",VLOOKUP(A66,MCE,MATCH($C$2,'Valeur du contrat'!$C$3:$D$3,0),FALSE),"") ->  | AY66: 0 | BA66: =IFERROR(VLOOKUP(A66,Couts_implantation,MATCH($BA$4,'Valeur du contrat'!$C$3:$R$3,0),FALSE),0) -> 0
A67: =IF('Valeur du contrat'!C67="Choisir...","",'Valeur du contrat'!C67) ->  | B67: =IFERROR(CONCATENATE('Valeur du contrat'!A67),"") ->  | C67: =IF(A67<>"",VLOOKUP(A67,MCE,MATCH($C$2,'Valeur du contrat'!$C$3:$D$3,0),FALSE),"") ->  | AY67: 0 | BA67: =IFERROR(VLOOKUP(A67,Couts_implantation,MATCH($BA$4,'Valeur du contrat'!$C$3:$R$3,0),FALSE),0) -> 0
A68: =IF('Valeur du contrat'!C68="Choisir...","",'Valeur du contrat'!C68) ->  | B68: =IFERROR(CONCATENATE('Valeur du contrat'!A68),"") ->  | C68: =IF(A68<>"",VLOOKUP(A68,MCE,MATCH($C$2,'Valeur du contrat'!$C$3:$D$3,0),FALSE),"") ->  | AY68: 0 | BA68: =IFERROR(VLOOKUP(A68,Couts_implantation,MATCH($BA$4,'Valeur du contrat'!$C$3:$R$3,0),FALSE),0) -> 0
A69: =IF('Valeur du contrat'!C69="Choisir...","",'Valeur du contrat'!C69) ->  | B69: =IFERROR(CONCATENATE('Valeur du contrat'!A69),"") ->  | C69: =IF(A69<>"",VLOOKUP(A69,MCE,MATCH($C$2,'Valeur du contrat'!$C$3:$D$3,0),FALSE),"") ->  | AY69: 0 | BA69: =IFERROR(VLOOKUP(A69,Couts_implantation,MATCH($BA$4,'Valeur du contrat'!$C$3:$R$3,0),FALSE),0) -> 0
A70: =IF('Valeur du contrat'!C70="Choisir...","",'Valeur du contrat'!C70) ->  | B70: =IFERROR(CONCATENATE('Valeur du contrat'!A70),"") ->  | C70: =IF(A70<>"",VLOOKUP(A70,MCE,MATCH($C$2,'Valeur du contrat'!$C$3:$D$3,0),FALSE),"") ->  | G70: =IF(ISBLANK(E70),"",E70*gCO2eq_Electricite/1000000) ->  | I70: =IF(E70*H70=0,"",E70*H70) ->  | U70: =IF(T70<>0,T70*VLOOKUP($T$3,Energie_SEQ,3,FALSE)/1000,"") ->  | V70: =IF(ISBLANK(T70),"",T70*gCO2eq_MazoutLourd/1000000) ->  | Z70: =IF(Y70<>0,Y70*VLOOKUP($Y$3,Energie_SEQ,3,FALSE)/1000,"") ->  | AA70: =IF(ISBLANK(Y70),"",Y70*gCO2eq_Propane/1000000) ->  | AY70: 0 | BA70: =IFERROR(VLOOKUP(A70,Couts_implantation,MATCH($BA$4,'Valeur du contrat'!$C$3:$R$3,0),FALSE),0) -> 0 | BB70: =IF(OR(BA70=0,BA70=""),"",BA70-AY70) ->  | BC70: =IFERROR(BA70/AN70,"") ->  | BD70: =IFERROR(BB70/AN70,"") -> 
A71: =IF('Valeur du contrat'!C71="Choisir...","",'Valeur du contrat'!C71) ->  | B71: =IFERROR(CONCATENATE('Valeur du contrat'!A71),"") ->  | C71: =IF(A71<>"",VLOOKUP(A71,MCE,MATCH($C$2,'Valeur du contrat'!$C$3:$D$3,0),FALSE),"") ->  | K71: =IF(J71<>0,J71*VLOOKUP($J$3,Energie_SEQ,3,FALSE)/1000,"") ->  | L71: =IF(ISBLANK(J71),"",J71*gCO2eq_GazNaturel/1000000) ->  | N71: =IF(J71*M71=0,"",J71*M71) ->  | P71: =IF(O71<>0,O71*VLOOKUP($O$3,Energie_SEQ,3,FALSE)/1000,"") ->  | Q71: =IF(ISBLANK(O71),"",O71*gCO2eq_Mazout2/1000000) ->  | X71: =IF(T71*W71=0,"",T71*W71) ->  | AE71: =IF(ISBLANK(AD71),"",((1-(1.1676*$AH$3))*19.2)/1000*AD71) ->  | AF71: =IF(ISBLANK(AD71),"",((1-(1.1676*$AH$3))*37.346)/1000000*AD71) ->  | AH71: =IF(AD71*AG71=0,"",AD71*AG71) ->  | AI71: =IF(SUM(F71,K71,P71,Z71,AE71)=0,"",SUM(F71,K71,P71,Z71,AE71)) ->  | AJ71: =IF(SUM(G71,L71,Q71,AA71,AF71)=0,"",SUM(G71,L71,Q71,AA71,AF71)) ->  | AM71: =IF(AK71*AL71=0,"",AK71*AL71) ->  | AN71: =IF(SUM(I71,N71,S71,X71,AC71,AH71,AM71)=0,"",SUM(I71,N71,S71,X71,AC71,AH71,AM71)) ->  | AY71: =IF(SUM(AO71:AX71)=0,0,SUM(AO71:AX71)) -> 0 | BA71: =IFERROR(VLOOKUP(A71,Couts_implantation,MATCH($BA$4,'Valeur du contrat'!$C$3:$R$3,0),FALSE),0) -> 0
A72: =IF('Valeur du contrat'!C72="Choisir...","",'Valeur du contrat'!C72) ->  | B72: =IFERROR(CONCATENATE('Valeur du contrat'!A72),"") ->  | C72: =IF(A72<>"",VLOOKUP(A72,MCE,MATCH($C$2,'Valeur du contrat'!$C$3:$D$3,0),FALSE),"") ->  | AY72: 0 | BA72: =IFERROR(VLOOKUP(A72,Couts_implantation,MATCH($BA$4,'Valeur du contrat'!$C$3:$R$3,0),FALSE),0) -> 0
A73: =IF('Valeur du contrat'!C73="Choisir...","",'Valeur du contrat'!C73) ->  | B73: =IFERROR(CONCATENATE('Valeur du contrat'!A73),"") ->  | C73: =IF(A73<>"",VLOOKUP(A73,MCE,MATCH($C$2,'Valeur du contrat'!$C$3:$D$3,0),FALSE),"") ->  | AY73: 0 | BA73: =IFERROR(VLOOKUP(A73,Couts_implantation,MATCH($BA$4,'Valeur du contrat'!$C$3:$R$3,0),FALSE),0) -> 0
A74: =IF('Valeur du contrat'!C74="Choisir...","",'Valeur du contrat'!C74) ->  | B74: =IFERROR(CONCATENATE('Valeur du contrat'!A74),"") ->  | C74: =IF(A74<>"",VLOOKUP(A74,MCE,MATCH($C$2,'Valeur du contrat'!$C$3:$D$3,0),FALSE),"") ->  | AY74: 0 | BA74: =IFERROR(VLOOKUP(A74,Couts_implantation,MATCH($BA$4,'Valeur du contrat'!$C$3:$R$3,0),FALSE),0) -> 0
A75: =IF('Valeur du contrat'!C75="Choisir...","",'Valeur du contrat'!C75) ->  | B75: =IFERROR(CONCATENATE('Valeur du contrat'!A75),"") ->  | C75: =IF(A75<>"",VLOOKUP(A75,MCE,MATCH($C$2,'Valeur du contrat'!$C$3:$D$3,0),FALSE),"") ->  | AY75: 0 | BA75: =IFERROR(VLOOKUP(A75,Couts_implantation,MATCH($BA$4,'Valeur du contrat'!$C$3:$R$3,0),FALSE),0) -> 0
A76: =IF('Valeur du contrat'!C76="Choisir...","",'Valeur du contrat'!C76) ->  | B76: =IFERROR(CONCATENATE('Valeur du contrat'!A76),"") ->  | C76: =IF(A76<>"",VLOOKUP(A76,MCE,MATCH($C$2,'Valeur du contrat'!$C$3:$D$3,0),FALSE),"") ->  | AY76: 0 | BA76: =IFERROR(VLOOKUP(A76,Couts_implantation,MATCH($BA$4,'Valeur du contrat'!$C$3:$R$3,0),FALSE),0) -> 0
A77: =IF('Valeur du contrat'!C77="Choisir...","",'Valeur du contrat'!C77) ->  | B77: =IFERROR(CONCATENATE('Valeur du contrat'!A77),"") ->  | C77: =IF(A77<>"",VLOOKUP(A77,MCE,MATCH($C$2,'Valeur du contrat'!$C$3:$D$3,0),FALSE),"") ->  | AY77: 0 | BA77: =IFERROR(VLOOKUP(A77,Couts_implantation,MATCH($BA$4,'Valeur du contrat'!$C$3:$R$3,0),FALSE),0) -> 0
A78: =IF('Valeur du contrat'!C78="Choisir...","",'Valeur du contrat'!C78) ->  | B78: =IFERROR(CONCATENATE('Valeur du contrat'!A78),"") ->  | C78: =IF(A78<>"",VLOOKUP(A78,MCE,MATCH($C$2,'Valeur du contrat'!$C$3:$D$3,0),FALSE),"") ->  | AY78: 0 | BA78: =IFERROR(VLOOKUP(A78,Couts_implantation,MATCH($BA$4,'Valeur du contrat'!$C$3:$R$3,0),FALSE),0) -> 0
A79: =IF('Valeur du contrat'!C79="Choisir...","",'Valeur du contrat'!C79) ->  | B79: =IFERROR(CONCATENATE('Valeur du contrat'!A79),"") ->  | C79: =IF(A79<>"",VLOOKUP(A79,MCE,MATCH($C$2,'Valeur du contrat'!$C$3:$D$3,0),FALSE),"") ->  | AY79: 0 | BA79: =IFERROR(VLOOKUP(A79,Couts_implantation,MATCH($BA$4,'Valeur du contrat'!$C$3:$R$3,0),FALSE),0) -> 0
A80: =IF('Valeur du contrat'!C80="Choisir...","",'Valeur du contrat'!C80) ->  | B80: =IFERROR(CONCATENATE('Valeur du contrat'!A80),"") ->  | C80: =IF(A80<>"",VLOOKUP(A80,MCE,MATCH($C$2,'Valeur du contrat'!$C$3:$D$3,0),FALSE),"") ->  | F80: =IF(E80<>0,E80*VLOOKUP($E$3,Energie_SEQ,3,FALSE)/1000,"") ->  | AY80: 0 | BA80: =IFERROR(VLOOKUP(A80,Couts_implantation,MATCH($BA$4,'Valeur du contrat'!$C$3:$R$3,0),FALSE),0) -> 0
A81: =IF('Valeur du contrat'!C81="Choisir...","",'Valeur du contrat'!C81) ->  | B81: =IFERROR(CONCATENATE('Valeur du contrat'!A81),"") ->  | C81: =IF(A81<>"",VLOOKUP(A81,MCE,MATCH($C$2,'Valeur du contrat'!$C$3:$D$3,0),FALSE),"") ->  | AY81: 0 | BA81: =IFERROR(VLOOKUP(A81,Couts_implantation,MATCH($BA$4,'Valeur du contrat'!$C$3:$R$3,0),FALSE),0) -> 0
A82: =IF('Valeur du contrat'!C82="Choisir...","",'Valeur du contrat'!C82) ->  | B82: =IFERROR(CONCATENATE('Valeur du contrat'!A82),"") ->  | C82: =IF(A82<>"",VLOOKUP(A82,MCE,MATCH($C$2,'Valeur du contrat'!$C$3:$D$3,0),FALSE),"") ->  | AY82: 0 | BA82: =IFERROR(VLOOKUP(A82,Couts_implantation,MATCH($BA$4,'Valeur du contrat'!$C$3:$R$3,0),FALSE),0) -> 0
A83: =IF('Valeur du contrat'!C83="Choisir...","",'Valeur du contrat'!C83) ->  | B83: =IFERROR(CONCATENATE('Valeur du contrat'!A83),"") ->  | C83: =IF(A83<>"",VLOOKUP(A83,MCE,MATCH($C$2,'Valeur du contrat'!$C$3:$D$3,0),FALSE),"") ->  | AY83: 0 | BA83: =IFERROR(VLOOKUP(A83,Couts_implantation,MATCH($BA$4,'Valeur du contrat'!$C$3:$R$3,0),FALSE),0) -> 0
A84: =IF('Valeur du contrat'!C84="Choisir...","",'Valeur du contrat'!C84) ->  | B84: =IFERROR(CONCATENATE('Valeur du contrat'!A84),"") ->  | C84: =IF(A84<>"",VLOOKUP(A84,MCE,MATCH($C$2,'Valeur du contrat'!$C$3:$D$3,0),FALSE),"") ->  | AY84: 0 | BA84: =IFERROR(VLOOKUP(A84,Couts_implantation,MATCH($BA$4,'Valeur du contrat'!$C$3:$R$3,0),FALSE),0) -> 0
A85: =IF('Valeur du contrat'!C85="Choisir...","",'Valeur du contrat'!C85) ->  | B85: =IFERROR(CONCATENATE('Valeur du contrat'!A85),"") ->  | C85: =IF(A85<>"",VLOOKUP(A85,MCE,MATCH($C$2,'Valeur du contrat'!$C$3:$D$3,0),FALSE),"") ->  | AY85: 0 | BA85: =IFERROR(VLOOKUP(A85,Couts_implantation,MATCH($BA$4,'Valeur du contrat'!$C$3:$R$3,0),FALSE),0) -> 0
A86: =IF('Valeur du contrat'!C86="Choisir...","",'Valeur du contrat'!C86) ->  | B86: =IFERROR(CONCATENATE('Valeur du contrat'!A86),"") ->  | C86: =IF(A86<>"",VLOOKUP(A86,MCE,MATCH($C$2,'Valeur du contrat'!$C$3:$D$3,0),FALSE),"") ->  | AY86: 0 | BA86: =IFERROR(VLOOKUP(A86,Couts_implantation,MATCH($BA$4,'Valeur du contrat'!$C$3:$R$3,0),FALSE),0) -> 0
A87: =IF('Valeur du contrat'!C87="Choisir...","",'Valeur du contrat'!C87) ->  | B87: =IFERROR(CONCATENATE('Valeur du contrat'!A87),"") ->  | C87: =IF(A87<>"",VLOOKUP(A87,MCE,MATCH($C$2,'Valeur du contrat'!$C$3:$D$3,0),FALSE),"") ->  | AY87: 0 | BA87: =IFERROR(VLOOKUP(A87,Couts_implantation,MATCH($BA$4,'Valeur du contrat'!$C$3:$R$3,0),FALSE),0) -> 0
A88: =IF('Valeur du contrat'!C88="Choisir...","",'Valeur du contrat'!C88) ->  | B88: =IFERROR(CONCATENATE('Valeur du contrat'!A88),"") ->  | C88: =IF(A88<>"",VLOOKUP(A88,MCE,MATCH($C$2,'Valeur du contrat'!$C$3:$D$3,0),FALSE),"") ->  | AY88: 0 | BA88: =IFERROR(VLOOKUP(A88,Couts_implantation,MATCH($BA$4,'Valeur du contrat'!$C$3:$R$3,0),FALSE),0) -> 0
A89: =IF('Valeur du contrat'!C89="Choisir...","",'Valeur du contrat'!C89) ->  | B89: =IFERROR(CONCATENATE('Valeur du contrat'!A89),"") ->  | C89: =IF(A89<>"",VLOOKUP(A89,MCE,MATCH($C$2,'Valeur du contrat'!$C$3:$D$3,0),FALSE),"") ->  | S89: =IF(O89*R89=0,"",O89*R89) ->  | AY89: 0 | BA89: =IFERROR(VLOOKUP(A89,Couts_implantation,MATCH($BA$4,'Valeur du contrat'!$C$3:$R$3,0),FALSE),0) -> 0
A90: =IF('Valeur du contrat'!C90="Choisir...","",'Valeur du contrat'!C90) ->  | B90: =IFERROR(CONCATENATE('Valeur du contrat'!A90),"") ->  | C90: =IF(A90<>"",VLOOKUP(A90,MCE,MATCH($C$2,'Valeur du contrat'!$C$3:$D$3,0),FALSE),"") ->  | AC90: =IF(Y90*AB90=0,"",Y90*AB90) ->  | AY90: 0 | BA90: =IFERROR(VLOOKUP(A90,Couts_implantation,MATCH($BA$4,'Valeur du contrat'!$C$3:$R$3,0),FALSE),0) -> 0
A91: =IF('Valeur du contrat'!C91="Choisir...","",'Valeur du contrat'!C91) ->  | B91: =IFERROR(CONCATENATE('Valeur du contrat'!A91),"") ->  | C91: =IF(A91<>"",VLOOKUP(A91,MCE,MATCH($C$2,'Valeur du contrat'!$C$3:$D$3,0),FALSE),"") ->  | AY91: 0 | BA91: =IFERROR(VLOOKUP(A91,Couts_implantation,MATCH($BA$4,'Valeur du contrat'!$C$3:$R$3,0),FALSE),0) -> 0
A92: =IF('Valeur du contrat'!C92="Choisir...","",'Valeur du contrat'!C92) ->  | B92: =IFERROR(CONCATENATE('Valeur du contrat'!A92),"") ->  | C92: =IF(A92<>"",VLOOKUP(A92,MCE,MATCH($C$2,'Valeur du contrat'!$C$3:$D$3,0),FALSE),"") ->  | AY92: 0 | BA92: =IFERROR(VLOOKUP(A92,Couts_implantation,MATCH($BA$4,'Valeur du contrat'!$C$3:$R$3,0),FALSE),0) -> 0
A93: =IF('Valeur du contrat'!C93="Choisir...","",'Valeur du contrat'!C93) ->  | B93: =IFERROR(CONCATENATE('Valeur du contrat'!A93),"") ->  | C93: =IF(A93<>"",VLOOKUP(A93,MCE,MATCH($C$2,'Valeur du contrat'!$C$3:$D$3,0),FALSE),"") ->  | AY93: 0 | BA93: =IFERROR(VLOOKUP(A93,Couts_implantation,MATCH($BA$4,'Valeur du contrat'!$C$3:$R$3,0),FALSE),0) -> 0
A94: =IF('Valeur du contrat'!C94="Choisir...","",'Valeur du contrat'!C94) ->  | B94: =IFERROR(CONCATENATE('Valeur du contrat'!A94),"") ->  | C94: =IF(A94<>"",VLOOKUP(A94,MCE,MATCH($C$2,'Valeur du contrat'!$C$3:$D$3,0),FALSE),"") ->  | AY94: 0 | BA94: =IFERROR(VLOOKUP(A94,Couts_implantation,MATCH($BA$4,'Valeur du contrat'!$C$3:$R$3,0),FALSE),0) -> 0
A95: =IF('Valeur du contrat'!C95="Choisir...","",'Valeur du contrat'!C95) ->  | B95: =IFERROR(CONCATENATE('Valeur du contrat'!A95),"") ->  | C95: =IF(A95<>"",VLOOKUP(A95,MCE,MATCH($C$2,'Valeur du contrat'!$C$3:$D$3,0),FALSE),"") ->  | AY95: 0 | BA95: =IFERROR(VLOOKUP(A95,Couts_implantation,MATCH($BA$4,'Valeur du contrat'!$C$3:$R$3,0),FALSE),0) -> 0
A96: =IF('Valeur du contrat'!C96="Choisir...","",'Valeur du contrat'!C96) ->  | B96: =IFERROR(CONCATENATE('Valeur du contrat'!A96),"") ->  | C96: =IF(A96<>"",VLOOKUP(A96,MCE,MATCH($C$2,'Valeur du contrat'!$C$3:$D$3,0),FALSE),"") ->  | AY96: 0 | BA96: =IFERROR(VLOOKUP(A96,Couts_implantation,MATCH($BA$4,'Valeur du contrat'!$C$3:$R$3,0),FALSE),0) -> 0
A97: =IF('Valeur du contrat'!C97="Choisir...","",'Valeur du contrat'!C97) ->  | B97: =IFERROR(CONCATENATE('Valeur du contrat'!A97),"") ->  | C97: =IF(A97<>"",VLOOKUP(A97,MCE,MATCH($C$2,'Valeur du contrat'!$C$3:$D$3,0),FALSE),"") ->  | AY97: 0 | BA97: =IFERROR(VLOOKUP(A97,Couts_implantation,MATCH($BA$4,'Valeur du contrat'!$C$3:$R$3,0),FALSE),0) -> 0
A98: =IF('Valeur du contrat'!C98="Choisir...","",'Valeur du contrat'!C98) ->  | B98: =IFERROR(CONCATENATE('Valeur du contrat'!A98),"") ->  | C98: =IF(A98<>"",VLOOKUP(A98,MCE,MATCH($C$2,'Valeur du contrat'!$C$3:$D$3,0),FALSE),"") ->  | AY98: 0 | BA98: =IFERROR(VLOOKUP(A98,Couts_implantation,MATCH($BA$4,'Valeur du contrat'!$C$3:$R$3,0),FALSE),0) -> 0
A99: =IF('Valeur du contrat'!C99="Choisir...","",'Valeur du contrat'!C99) ->  | B99: =IFERROR(CONCATENATE('Valeur du contrat'!A99),"") ->  | C99: =IF(A99<>"",VLOOKUP(A99,MCE,MATCH($C$2,'Valeur du contrat'!$C$3:$D$3,0),FALSE),"") ->  | AY99: 0 | BA99: =IFERROR(VLOOKUP(A99,Couts_implantation,MATCH($BA$4,'Valeur du contrat'!$C$3:$R$3,0),FALSE),0) -> 0
A100: =IF('Valeur du contrat'!C100="Choisir...","",'Valeur du contrat'!C100) ->  | B100: =IFERROR(CONCATENATE('Valeur du contrat'!A100),"") ->  | C100: =IF(A100<>"",VLOOKUP(A100,MCE,MATCH($C$2,'Valeur du contrat'!$C$3:$D$3,0),FALSE),"") ->  | AY100: 0 | BA100: =IFERROR(VLOOKUP(A100,Couts_implantation,MATCH($BA$4,'Valeur du contrat'!$C$3:$R$3,0),FALSE),0) -> 0
A101: =IF('Valeur du contrat'!C101="Choisir...","",'Valeur du contrat'!C101) ->  | B101: =IFERROR(CONCATENATE('Valeur du contrat'!A101),"") ->  | C101: =IF(A101<>"",VLOOKUP(A101,MCE,MATCH($C$2,'Valeur du contrat'!$C$3:$D$3,0),FALSE),"") ->  | AY101: 0 | BA101: =IFERROR(VLOOKUP(A101,Couts_implantation,MATCH($BA$4,'Valeur du contrat'!$C$3:$R$3,0),FALSE),0) -> 0
A102: =IF('Valeur du contrat'!C102="Choisir...","",'Valeur du contrat'!C102) ->  | B102: =IFERROR(CONCATENATE('Valeur du contrat'!A102),"") ->  | C102: =IF(A102<>"",VLOOKUP(A102,MCE,MATCH($C$2,'Valeur du contrat'!$C$3:$D$3,0),FALSE),"") ->  | G102: =IF(ISBLANK(E102),"",E102*gCO2eq_Electricite/1000000) ->  | U102: =IF(T102<>0,T102*VLOOKUP($T$3,Energie_SEQ,3,FALSE)/1000,"") ->  | V102: =IF(ISBLANK(T102),"",T102*gCO2eq_MazoutLourd/1000000) ->  | Z102: =IF(Y102<>0,Y102*VLOOKUP($Y$3,Energie_SEQ,3,FALSE)/1000,"") ->  | AA102: =IF(ISBLANK(Y102),"",Y102*gCO2eq_Propane/1000000) ->  | AY102: 0 | BA102: =IFERROR(VLOOKUP(A102,Couts_implantation,MATCH($BA$4,'Valeur du contrat'!$C$3:$R$3,0),FALSE),0) -> 0 | BC102: =IFERROR(BA102/AN102,"") ->  | BD102: =IFERROR(BB102/AN102,"") -> 
A103: =IF('Valeur du contrat'!C103="Choisir...","",'Valeur du contrat'!C103) ->  | B103: =IFERROR(CONCATENATE('Valeur du contrat'!A103),"") ->  | C103: =IF(A103<>"",VLOOKUP(A103,MCE,MATCH($C$2,'Valeur du contrat'!$C$3:$D$3,0),FALSE),"") ->  | AY103: 0 | BA103: =IFERROR(VLOOKUP(A103,Couts_implantation,MATCH($BA$4,'Valeur du contrat'!$C$3:$R$3,0),FALSE),0) -> 0
A104: =IF('Valeur du contrat'!C104="Choisir...","",'Valeur du contrat'!C104) ->  | B104: =IFERROR(CONCATENATE('Valeur du contrat'!A104),"") ->  | C104: =IF(A104<>"",VLOOKUP(A104,MCE,MATCH($C$2,'Valeur du contrat'!$C$3:$D$3,0),FALSE),"") ->  | AY104: 0 | BA104: =IFERROR(VLOOKUP(A104,Couts_implantation,MATCH($BA$4,'Valeur du contrat'!$C$3:$R$3,0),FALSE),0) -> 0
A105: =IF('Valeur du contrat'!C105="Choisir...","",'Valeur du contrat'!C105) ->  | B105: =IFERROR(CONCATENATE('Valeur du contrat'!A105),"") ->  | C105: =IF(A105<>"",VLOOKUP(A105,MCE,MATCH($C$2,'Valeur du contrat'!$C$3:$D$3,0),FALSE),"") ->  | AY105: 0 | BA105: =IFERROR(VLOOKUP(A105,Couts_implantation,MATCH($BA$4,'Valeur du contrat'!$C$3:$R$3,0),FALSE),0) -> 0
A106: =IF('Valeur du contrat'!C106="Choisir...","",'Valeur du contrat'!C106) ->  | B106: =IFERROR(CONCATENATE('Valeur du contrat'!A106),"") ->  | C106: =IF(A106<>"",VLOOKUP(A106,MCE,MATCH($C$2,'Valeur du contrat'!$C$3:$D$3,0),FALSE),"") ->  | AY106: 0 | BA106: =IFERROR(VLOOKUP(A106,Couts_implantation,MATCH($BA$4,'Valeur du contrat'!$C$3:$R$3,0),FALSE),0) -> 0
A107: =IF('Valeur du contrat'!C107="Choisir...","",'Valeur du contrat'!C107) ->  | B107: =IFERROR(CONCATENATE('Valeur du contrat'!A107),"") ->  | C107: =IF(A107<>"",VLOOKUP(A107,MCE,MATCH($C$2,'Valeur du contrat'!$C$3:$D$3,0),FALSE),"") ->  | AY107: 0 | BA107: =IFERROR(VLOOKUP(A107,Couts_implantation,MATCH($BA$4,'Valeur du contrat'!$C$3:$R$3,0),FALSE),0) -> 0
A108: =IF('Valeur du contrat'!C108="Choisir...","",'Valeur du contrat'!C108) ->  | B108: =IFERROR(CONCATENATE('Valeur du contrat'!A108),"") ->  | C108: =IF(A108<>"",VLOOKUP(A108,MCE,MATCH($C$2,'Valeur du contrat'!$C$3:$D$3,0),FALSE),"") ->  | AY108: 0 | BA108: =IFERROR(VLOOKUP(A108,Couts_implantation,MATCH($BA$4,'Valeur du contrat'!$C$3:$R$3,0),FALSE),0) -> 0
A109: =IF('Valeur du contrat'!C109="Choisir...","",'Valeur du contrat'!C109) ->  | B109: =IFERROR(CONCATENATE('Valeur du contrat'!A109),"") ->  | C109: =IF(A109<>"",VLOOKUP(A109,MCE,MATCH($C$2,'Valeur du contrat'!$C$3:$D$3,0),FALSE),"") ->  | AY109: 0 | BA109: =IFERROR(VLOOKUP(A109,Couts_implantation,MATCH($BA$4,'Valeur du contrat'!$C$3:$R$3,0),FALSE),0) -> 0
A110: =IF('Valeur du contrat'!C110="Choisir...","",'Valeur du contrat'!C110) ->  | B110: =IFERROR(CONCATENATE('Valeur du contrat'!A110),"") ->  | C110: =IF(A110<>"",VLOOKUP(A110,MCE,MATCH($C$2,'Valeur du contrat'!$C$3:$D$3,0),FALSE),"") ->  | AY110: 0 | BA110: =IFERROR(VLOOKUP(A110,Couts_implantation,MATCH($BA$4,'Valeur du contrat'!$C$3:$R$3,0),FALSE),0) -> 0
A111: =IF('Valeur du contrat'!C111="Choisir...","",'Valeur du contrat'!C111) ->  | B111: =IFERROR(CONCATENATE('Valeur du contrat'!A111),"") ->  | C111: =IF(A111<>"",VLOOKUP(A111,MCE,MATCH($C$2,'Valeur du contrat'!$C$3:$D$3,0),FALSE),"") ->  | AY111: 0 | BA111: =IFERROR(VLOOKUP(A111,Couts_implantation,MATCH($BA$4,'Valeur du contrat'!$C$3:$R$3,0),FALSE),0) -> 0
A112: =IF('Valeur du contrat'!C112="Choisir...","",'Valeur du contrat'!C112) ->  | B112: =IFERROR(CONCATENATE('Valeur du contrat'!A112),"") ->  | C112: =IF(A112<>"",VLOOKUP(A112,MCE,MATCH($C$2,'Valeur du contrat'!$C$3:$D$3,0),FALSE),"") ->  | AY112: 0 | BA112: =IFERROR(VLOOKUP(A112,Couts_implantation,MATCH($BA$4,'Valeur du contrat'!$C$3:$R$3,0),FALSE),0) -> 0
A113: =IF('Valeur du contrat'!C113="Choisir...","",'Valeur du contrat'!C113) ->  | B113: =IFERROR(CONCATENATE('Valeur du contrat'!A113),"") ->  | C113: =IF(A113<>"",VLOOKUP(A113,MCE,MATCH($C$2,'Valeur du contrat'!$C$3:$D$3,0),FALSE),"") ->  | AY113: 0 | BA113: =IFERROR(VLOOKUP(A113,Couts_implantation,MATCH($BA$4,'Valeur du contrat'!$C$3:$R$3,0),FALSE),0) -> 0
A114: =IF('Valeur du contrat'!C114="Choisir...","",'Valeur du contrat'!C114) ->  | B114: =IFERROR(CONCATENATE('Valeur du contrat'!A114),"") ->  | C114: =IF(A114<>"",VLOOKUP(A114,MCE,MATCH($C$2,'Valeur du contrat'!$C$3:$D$3,0),FALSE),"") ->  | AY114: 0 | BA114: =IFERROR(VLOOKUP(A114,Couts_implantation,MATCH($BA$4,'Valeur du contrat'!$C$3:$R$3,0),FALSE),0) -> 0
A115: =IF('Valeur du contrat'!C115="Choisir...","",'Valeur du contrat'!C115) ->  | B115: =IFERROR(CONCATENATE('Valeur du contrat'!A115),"") ->  | C115: =IF(A115<>"",VLOOKUP(A115,MCE,MATCH($C$2,'Valeur du contrat'!$C$3:$D$3,0),FALSE),"") ->  | AY115: 0 | BA115: =IFERROR(VLOOKUP(A115,Couts_implantation,MATCH($BA$4,'Valeur du contrat'!$C$3:$R$3,0),FALSE),0) -> 0
A116: =IF('Valeur du contrat'!C116="Choisir...","",'Valeur du contrat'!C116) ->  | B116: =IFERROR(CONCATENATE('Valeur du contrat'!A116),"") ->  | C116: =IF(A116<>"",VLOOKUP(A116,MCE,MATCH($C$2,'Valeur du contrat'!$C$3:$D$3,0),FALSE),"") ->  | AY116: 0 | BA116: =IFERROR(VLOOKUP(A116,Couts_implantation,MATCH($BA$4,'Valeur du contrat'!$C$3:$R$3,0),FALSE),0) -> 0
A117: =IF('Valeur du contrat'!C117="Choisir...","",'Valeur du contrat'!C117) ->  | B117: =IFERROR(CONCATENATE('Valeur du contrat'!A117),"") ->  | C117: =IF(A117<>"",VLOOKUP(A117,MCE,MATCH($C$2,'Valeur du contrat'!$C$3:$D$3,0),FALSE),"") ->  | AY117: 0 | BA117: =IFERROR(VLOOKUP(A117,Couts_implantation,MATCH($BA$4,'Valeur du contrat'!$C$3:$R$3,0),FALSE),0) -> 0
A118: =IF('Valeur du contrat'!C118="Choisir...","",'Valeur du contrat'!C118) ->  | B118: =IFERROR(CONCATENATE('Valeur du contrat'!A118),"") ->  | C118: =IF(A118<>"",VLOOKUP(A118,MCE,MATCH($C$2,'Valeur du contrat'!$C$3:$D$3,0),FALSE),"") ->  | AY118: 0 | BA118: =IFERROR(VLOOKUP(A118,Couts_implantation,MATCH($BA$4,'Valeur du contrat'!$C$3:$R$3,0),FALSE),0) -> 0
A119: =IF('Valeur du contrat'!C119="Choisir...","",'Valeur du contrat'!C119) ->  | B119: =IFERROR(CONCATENATE('Valeur du contrat'!A119),"") ->  | C119: =IF(A119<>"",VLOOKUP(A119,MCE,MATCH($C$2,'Valeur du contrat'!$C$3:$D$3,0),FALSE),"") ->  | AY119: 0 | BA119: =IFERROR(VLOOKUP(A119,Couts_implantation,MATCH($BA$4,'Valeur du contrat'!$C$3:$R$3,0),FALSE),0) -> 0
A120: =IF('Valeur du contrat'!C120="Choisir...","",'Valeur du contrat'!C120) ->  | B120: =IFERROR(CONCATENATE('Valeur du contrat'!A120),"") ->  | C120: =IF(A120<>"",VLOOKUP(A120,MCE,MATCH($C$2,'Valeur du contrat'!$C$3:$D$3,0),FALSE),"") ->  | AY120: 0 | BA120: =IFERROR(VLOOKUP(A120,Couts_implantation,MATCH($BA$4,'Valeur du contrat'!$C$3:$R$3,0),FALSE),0) -> 0
A121: =IF('Valeur du contrat'!C121="Choisir...","",'Valeur du contrat'!C121) ->  | B121: =IFERROR(CONCATENATE('Valeur du contrat'!A121),"") ->  | C121: =IF(A121<>"",VLOOKUP(A121,MCE,MATCH($C$2,'Valeur du contrat'!$C$3:$D$3,0),FALSE),"") ->  | AY121: 0 | BA121: =IFERROR(VLOOKUP(A121,Couts_implantation,MATCH($BA$4,'Valeur du contrat'!$C$3:$R$3,0),FALSE),0) -> 0
A122: =IF('Valeur du contrat'!C122="Choisir...","",'Valeur du contrat'!C122) ->  | B122: =IFERROR(CONCATENATE('Valeur du contrat'!A122),"") ->  | C122: =IF(A122<>"",VLOOKUP(A122,MCE,MATCH($C$2,'Valeur du contrat'!$C$3:$D$3,0),FALSE),"") ->  | AC122: =IF(Y122*AB122=0,"",Y122*AB122) ->  | AY122: 0 | BA122: =IFERROR(VLOOKUP(A122,Couts_implantation,MATCH($BA$4,'Valeur du contrat'!$C$3:$R$3,0),FALSE),0) -> 0
A123: =IF('Valeur du contrat'!C123="Choisir...","",'Valeur du contrat'!C123) ->  | B123: =IFERROR(CONCATENATE('Valeur du contrat'!A123),"") ->  | C123: =IF(A123<>"",VLOOKUP(A123,MCE,MATCH($C$2,'Valeur du contrat'!$C$3:$D$3,0),FALSE),"") ->  | AY123: 0 | BA123: =IFERROR(VLOOKUP(A123,Couts_implantation,MATCH($BA$4,'Valeur du contrat'!$C$3:$R$3,0),FALSE),0) -> 0
A124: =IF('Valeur du contrat'!C124="Choisir...","",'Valeur du contrat'!C124) ->  | B124: =IFERROR(CONCATENATE('Valeur du contrat'!A124),"") ->  | C124: =IF(A124<>"",VLOOKUP(A124,MCE,MATCH($C$2,'Valeur du contrat'!$C$3:$D$3,0),FALSE),"") ->  | AY124: 0 | BA124: =IFERROR(VLOOKUP(A124,Couts_implantation,MATCH($BA$4,'Valeur du contrat'!$C$3:$R$3,0),FALSE),0) -> 0
A125: =IF('Valeur du contrat'!C125="Choisir...","",'Valeur du contrat'!C125) ->  | B125: =IFERROR(CONCATENATE('Valeur du contrat'!A125),"") ->  | C125: =IF(A125<>"",VLOOKUP(A125,MCE,MATCH($C$2,'Valeur du contrat'!$C$3:$D$3,0),FALSE),"") ->  | AY125: 0 | BA125: =IFERROR(VLOOKUP(A125,Couts_implantation,MATCH($BA$4,'Valeur du contrat'!$C$3:$R$3,0),FALSE),0) -> 0
A126: =IF('Valeur du contrat'!C126="Choisir...","",'Valeur du contrat'!C126) ->  | B126: =IFERROR(CONCATENATE('Valeur du contrat'!A126),"") ->  | C126: =IF(A126<>"",VLOOKUP(A126,MCE,MATCH($C$2,'Valeur du contrat'!$C$3:$D$3,0),FALSE),"") ->  | AY126: 0 | BA126: =IFERROR(VLOOKUP(A126,Couts_implantation,MATCH($BA$4,'Valeur du contrat'!$C$3:$R$3,0),FALSE),0) -> 0
A127: =IF('Valeur du contrat'!C127="Choisir...","",'Valeur du contrat'!C127) ->  | B127: =IFERROR(CONCATENATE('Valeur du contrat'!A127),"") ->  | C127: =IF(A127<>"",VLOOKUP(A127,MCE,MATCH($C$2,'Valeur du contrat'!$C$3:$D$3,0),FALSE),"") ->  | AY127: 0 | BA127: =IFERROR(VLOOKUP(A127,Couts_implantation,MATCH($BA$4,'Valeur du contrat'!$C$3:$R$3,0),FALSE),0) -> 0
A128: =IF('Valeur du contrat'!C128="Choisir...","",'Valeur du contrat'!C128) ->  | B128: =IFERROR(CONCATENATE('Valeur du contrat'!A128),"") ->  | C128: =IF(A128<>"",VLOOKUP(A128,MCE,MATCH($C$2,'Valeur du contrat'!$C$3:$D$3,0),FALSE),"") ->  | AY128: 0 | BA128: =IFERROR(VLOOKUP(A128,Couts_implantation,MATCH($BA$4,'Valeur du contrat'!$C$3:$R$3,0),FALSE),0) -> 0
A129: =IF('Valeur du contrat'!C129="Choisir...","",'Valeur du contrat'!C129) ->  | B129: =IFERROR(CONCATENATE('Valeur du contrat'!A129),"") ->  | C129: =IF(A129<>"",VLOOKUP(A129,MCE,MATCH($C$2,'Valeur du contrat'!$C$3:$D$3,0),FALSE),"") ->  | AY129: 0 | BA129: =IFERROR(VLOOKUP(A129,Couts_implantation,MATCH($BA$4,'Valeur du contrat'!$C$3:$R$3,0),FALSE),0) -> 0
A130: =IF('Valeur du contrat'!C130="Choisir...","",'Valeur du contrat'!C130) ->  | B130: =IFERROR(CONCATENATE('Valeur du contrat'!A130),"") ->  | C130: =IF(A130<>"",VLOOKUP(A130,MCE,MATCH($C$2,'Valeur du contrat'!$C$3:$D$3,0),FALSE),"") ->  | AY130: 0 | BA130: =IFERROR(VLOOKUP(A130,Couts_implantation,MATCH($BA$4,'Valeur du contrat'!$C$3:$R$3,0),FALSE),0) -> 0
A131: =IF('Valeur du contrat'!C131="Choisir...","",'Valeur du contrat'!C131) ->  | B131: =IFERROR(CONCATENATE('Valeur du contrat'!A131),"") ->  | C131: =IF(A131<>"",VLOOKUP(A131,MCE,MATCH($C$2,'Valeur du contrat'!$C$3:$D$3,0),FALSE),"") ->  | AY131: 0 | BA131: =IFERROR(VLOOKUP(A131,Couts_implantation,MATCH($BA$4,'Valeur du contrat'!$C$3:$R$3,0),FALSE),0) -> 0
A132: =IF('Valeur du contrat'!C132="Choisir...","",'Valeur du contrat'!C132) ->  | B132: =IFERROR(CONCATENATE('Valeur du contrat'!A132),"") ->  | C132: =IF(A132<>"",VLOOKUP(A132,MCE,MATCH($C$2,'Valeur du contrat'!$C$3:$D$3,0),FALSE),"") ->  | AY132: 0 | BA132: =IFERROR(VLOOKUP(A132,Couts_implantation,MATCH($BA$4,'Valeur du contrat'!$C$3:$R$3,0),FALSE),0) -> 0
A133: =IF('Valeur du contrat'!C133="Choisir...","",'Valeur du contrat'!C133) ->  | B133: =IFERROR(CONCATENATE('Valeur du contrat'!A133),"") ->  | C133: =IF(A133<>"",VLOOKUP(A133,MCE,MATCH($C$2,'Valeur du contrat'!$C$3:$D$3,0),FALSE),"") ->  | AY133: 0 | BA133: =IFERROR(VLOOKUP(A133,Couts_implantation,MATCH($BA$4,'Valeur du contrat'!$C$3:$R$3,0),FALSE),0) -> 0
A134: =IF('Valeur du contrat'!C134="Choisir...","",'Valeur du contrat'!C134) ->  | B134: =IFERROR(CONCATENATE('Valeur du contrat'!A134),"") ->  | C134: =IF(A134<>"",VLOOKUP(A134,MCE,MATCH($C$2,'Valeur du contrat'!$C$3:$D$3,0),FALSE),"") ->  | G134: =IF(ISBLANK(E134),"",E134*gCO2eq_Electricite/1000000) ->  | I134: =IF(E134*H134=0,"",E134*H134) ->  | U134: =IF(T134<>0,T134*VLOOKUP($T$3,Energie_SEQ,3,FALSE)/1000,"") ->  | V134: =IF(ISBLANK(T134),"",T134*gCO2eq_MazoutLourd/1000000) ->  | Z134: =IF(Y134<>0,Y134*VLOOKUP($Y$3,Energie_SEQ,3,FALSE)/1000,"") ->  | AA134: =IF(ISBLANK(Y134),"",Y134*gCO2eq_Propane/1000000) ->  | AY134: 0 | BA134: =IFERROR(VLOOKUP(A134,Couts_implantation,MATCH($BA$4,'Valeur du contrat'!$C$3:$R$3,0),FALSE),0) -> 0 | BB134: =IF(OR(BA134=0,BA134=""),"",BA134-AY134) ->  | BC134: =IFERROR(BA134/AN134,"") ->  | BD134: =IFERROR(BB134/AN134,"") -> 
A135: =IF('Valeur du contrat'!C135="Choisir...","",'Valeur du contrat'!C135) ->  | B135: =IFERROR(CONCATENATE('Valeur du contrat'!A135),"") ->  | C135: =IF(A135<>"",VLOOKUP(A135,MCE,MATCH($C$2,'Valeur du contrat'!$C$3:$D$3,0),FALSE),"") ->  | K135: =IF(J135<>0,J135*VLOOKUP($J$3,Energie_SEQ,3,FALSE)/1000,"") ->  | L135: =IF(ISBLANK(J135),"",J135*gCO2eq_GazNaturel/1000000) ->  | N135: =IF(J135*M135=0,"",J135*M135) ->  | P135: =IF(O135<>0,O135*VLOOKUP($O$3,Energie_SEQ,3,FALSE)/1000,"") ->  | Q135: =IF(ISBLANK(O135),"",O135*gCO2eq_Mazout2/1000000) ->  | X135: =IF(T135*W135=0,"",T135*W135) ->  | AE135: =IF(ISBLANK(AD135),"",((1-(1.1676*$AH$3))*19.2)/1000*AD135) ->  | AF135: =IF(ISBLANK(AD135),"",((1-(1.1676*$AH$3))*37.346)/1000000*AD135) ->  | AH135: =IF(AD135*AG135=0,"",AD135*AG135) ->  | AI135: =IF(SUM(F135,K135,P135,Z135,AE135)=0,"",SUM(F135,K135,P135,Z135,AE135)) ->  | AJ135: =IF(SUM(G135,L135,Q135,AA135,AF135)=0,"",SUM(G135,L135,Q135,AA135,AF135)) ->  | AM135: =IF(AK135*AL135=0,"",AK135*AL135) ->  | AN135: =IF(SUM(I135,N135,S135,X135,AC135,AH135,AM135)=0,"",SUM(I135,N135,S135,X135,AC135,AH135,AM135)) ->  | AY135: =IF(SUM(AO135:AX135)=0,0,SUM(AO135:AX135)) -> 0 | BA135: =IFERROR(VLOOKUP(A135,Couts_implantation,MATCH($BA$4,'Valeur du contrat'!$C$3:$R$3,0),FALSE),0) -> 0
A136: =IF('Valeur du contrat'!C136="Choisir...","",'Valeur du contrat'!C136) ->  | B136: =IFERROR(CONCATENATE('Valeur du contrat'!A136),"") ->  | C136: =IF(A136<>"",VLOOKUP(A136,MCE,MATCH($C$2,'Valeur du contrat'!$C$3:$D$3,0),FALSE),"") ->  | AY136: 0 | BA136: =IFERROR(VLOOKUP(A136,Couts_implantation,MATCH($BA$4,'Valeur du contrat'!$C$3:$R$3,0),FALSE),0) -> 0
A137: =IF('Valeur du contrat'!C137="Choisir...","",'Valeur du contrat'!C137) ->  | B137: =IFERROR(CONCATENATE('Valeur du contrat'!A137),"") ->  | C137: =IF(A137<>"",VLOOKUP(A137,MCE,MATCH($C$2,'Valeur du contrat'!$C$3:$D$3,0),FALSE),"") ->  | AY137: 0 | BA137: =IFERROR(VLOOKUP(A137,Couts_implantation,MATCH($BA$4,'Valeur du contrat'!$C$3:$R$3,0),FALSE),0) -> 0
A138: =IF('Valeur du contrat'!C138="Choisir...","",'Valeur du contrat'!C138) ->  | B138: =IFERROR(CONCATENATE('Valeur du contrat'!A138),"") ->  | C138: =IF(A138<>"",VLOOKUP(A138,MCE,MATCH($C$2,'Valeur du contrat'!$C$3:$D$3,0),FALSE),"") ->  | AY138: 0 | BA138: =IFERROR(VLOOKUP(A138,Couts_implantation,MATCH($BA$4,'Valeur du contrat'!$C$3:$R$3,0),FALSE),0) -> 0
A139: =IF('Valeur du contrat'!C139="Choisir...","",'Valeur du contrat'!C139) ->  | B139: =IFERROR(CONCATENATE('Valeur du contrat'!A139),"") ->  | C139: =IF(A139<>"",VLOOKUP(A139,MCE,MATCH($C$2,'Valeur du contrat'!$C$3:$D$3,0),FALSE),"") ->  | AY139: 0 | BA139: =IFERROR(VLOOKUP(A139,Couts_implantation,MATCH($BA$4,'Valeur du contrat'!$C$3:$R$3,0),FALSE),0) -> 0
A140: =IF('Valeur du contrat'!C140="Choisir...","",'Valeur du contrat'!C140) ->  | B140: =IFERROR(CONCATENATE('Valeur du contrat'!A140),"") ->  | C140: =IF(A140<>"",VLOOKUP(A140,MCE,MATCH($C$2,'Valeur du contrat'!$C$3:$D$3,0),FALSE),"") ->  | AY140: 0 | BA140: =IFERROR(VLOOKUP(A140,Couts_implantation,MATCH($BA$4,'Valeur du contrat'!$C$3:$R$3,0),FALSE),0) -> 0
A141: =IF('Valeur du contrat'!C141="Choisir...","",'Valeur du contrat'!C141) ->  | B141: =IFERROR(CONCATENATE('Valeur du contrat'!A141),"") ->  | C141: =IF(A141<>"",VLOOKUP(A141,MCE,MATCH($C$2,'Valeur du contrat'!$C$3:$D$3,0),FALSE),"") ->  | AY141: 0 | BA141: =IFERROR(VLOOKUP(A141,Couts_implantation,MATCH($BA$4,'Valeur du contrat'!$C$3:$R$3,0),FALSE),0) -> 0
A142: =IF('Valeur du contrat'!C142="Choisir...","",'Valeur du contrat'!C142) ->  | B142: =IFERROR(CONCATENATE('Valeur du contrat'!A142),"") ->  | C142: =IF(A142<>"",VLOOKUP(A142,MCE,MATCH($C$2,'Valeur du contrat'!$C$3:$D$3,0),FALSE),"") ->  | AY142: 0 | BA142: =IFERROR(VLOOKUP(A142,Couts_implantation,MATCH($BA$4,'Valeur du contrat'!$C$3:$R$3,0),FALSE),0) -> 0
A143: =IF('Valeur du contrat'!C143="Choisir...","",'Valeur du contrat'!C143) ->  | B143: =IFERROR(CONCATENATE('Valeur du contrat'!A143),"") ->  | C143: =IF(A143<>"",VLOOKUP(A143,MCE,MATCH($C$2,'Valeur du contrat'!$C$3:$D$3,0),FALSE),"") ->  | AY143: 0 | BA143: =IFERROR(VLOOKUP(A143,Couts_implantation,MATCH($BA$4,'Valeur du contrat'!$C$3:$R$3,0),FALSE),0) -> 0
A144: =IF('Valeur du contrat'!C144="Choisir...","",'Valeur du contrat'!C144) ->  | B144: =IFERROR(CONCATENATE('Valeur du contrat'!A144),"") ->  | C144: =IF(A144<>"",VLOOKUP(A144,MCE,MATCH($C$2,'Valeur du contrat'!$C$3:$D$3,0),FALSE),"") ->  | F144: =IF(E144<>0,E144*VLOOKUP($E$3,Energie_SEQ,3,FALSE)/1000,"") ->  | AY144: 0 | BA144: =IFERROR(VLOOKUP(A144,Couts_implantation,MATCH($BA$4,'Valeur du contrat'!$C$3:$R$3,0),FALSE),0) -> 0
A145: =IF('Valeur du contrat'!C145="Choisir...","",'Valeur du contrat'!C145) ->  | B145: =IFERROR(CONCATENATE('Valeur du contrat'!A145),"") ->  | C145: =IF(A145<>"",VLOOKUP(A145,MCE,MATCH($C$2,'Valeur du contrat'!$C$3:$D$3,0),FALSE),"") ->  | AY145: 0 | BA145: =IFERROR(VLOOKUP(A145,Couts_implantation,MATCH($BA$4,'Valeur du contrat'!$C$3:$R$3,0),FALSE),0) -> 0
A146: =IF('Valeur du contrat'!C146="Choisir...","",'Valeur du contrat'!C146) ->  | B146: =IFERROR(CONCATENATE('Valeur du contrat'!A146),"") ->  | C146: =IF(A146<>"",VLOOKUP(A146,MCE,MATCH($C$2,'Valeur du contrat'!$C$3:$D$3,0),FALSE),"") ->  | AY146: 0 | BA146: =IFERROR(VLOOKUP(A146,Couts_implantation,MATCH($BA$4,'Valeur du contrat'!$C$3:$R$3,0),FALSE),0) -> 0
A147: =IF('Valeur du contrat'!C147="Choisir...","",'Valeur du contrat'!C147) ->  | B147: =IFERROR(CONCATENATE('Valeur du contrat'!A147),"") ->  | C147: =IF(A147<>"",VLOOKUP(A147,MCE,MATCH($C$2,'Valeur du contrat'!$C$3:$D$3,0),FALSE),"") ->  | AY147: 0 | BA147: =IFERROR(VLOOKUP(A147,Couts_implantation,MATCH($BA$4,'Valeur du contrat'!$C$3:$R$3,0),FALSE),0) -> 0
A148: =IF('Valeur du contrat'!C148="Choisir...","",'Valeur du contrat'!C148) ->  | B148: =IFERROR(CONCATENATE('Valeur du contrat'!A148),"") ->  | C148: =IF(A148<>"",VLOOKUP(A148,MCE,MATCH($C$2,'Valeur du contrat'!$C$3:$D$3,0),FALSE),"") ->  | AY148: 0 | BA148: =IFERROR(VLOOKUP(A148,Couts_implantation,MATCH($BA$4,'Valeur du contrat'!$C$3:$R$3,0),FALSE),0) -> 0
A149: =IF('Valeur du contrat'!C149="Choisir...","",'Valeur du contrat'!C149) ->  | B149: =IFERROR(CONCATENATE('Valeur du contrat'!A149),"") ->  | C149: =IF(A149<>"",VLOOKUP(A149,MCE,MATCH($C$2,'Valeur du contrat'!$C$3:$D$3,0),FALSE),"") ->  | AY149: 0 | BA149: =IFERROR(VLOOKUP(A149,Couts_implantation,MATCH($BA$4,'Valeur du contrat'!$C$3:$R$3,0),FALSE),0) -> 0
A150: =IF('Valeur du contrat'!C150="Choisir...","",'Valeur du contrat'!C150) ->  | B150: =IFERROR(CONCATENATE('Valeur du contrat'!A150),"") ->  | C150: =IF(A150<>"",VLOOKUP(A150,MCE,MATCH($C$2,'Valeur du contrat'!$C$3:$D$3,0),FALSE),"") ->  | AY150: 0 | BA150: =IFERROR(VLOOKUP(A150,Couts_implantation,MATCH($BA$4,'Valeur du contrat'!$C$3:$R$3,0),FALSE),0) -> 0
A151: =IF('Valeur du contrat'!C151="Choisir...","",'Valeur du contrat'!C151) ->  | B151: =IFERROR(CONCATENATE('Valeur du contrat'!A151),"") ->  | C151: =IF(A151<>"",VLOOKUP(A151,MCE,MATCH($C$2,'Valeur du contrat'!$C$3:$D$3,0),FALSE),"") ->  | AY151: 0 | BA151: =IFERROR(VLOOKUP(A151,Couts_implantation,MATCH($BA$4,'Valeur du contrat'!$C$3:$R$3,0),FALSE),0) -> 0
A152: =IF('Valeur du contrat'!C152="Choisir...","",'Valeur du contrat'!C152) ->  | B152: =IFERROR(CONCATENATE('Valeur du contrat'!A152),"") ->  | C152: =IF(A152<>"",VLOOKUP(A152,MCE,MATCH($C$2,'Valeur du contrat'!$C$3:$D$3,0),FALSE),"") ->  | AY152: 0 | BA152: =IFERROR(VLOOKUP(A152,Couts_implantation,MATCH($BA$4,'Valeur du contrat'!$C$3:$R$3,0),FALSE),0) -> 0
A153: =IF('Valeur du contrat'!C153="Choisir...","",'Valeur du contrat'!C153) ->  | B153: =IFERROR(CONCATENATE('Valeur du contrat'!A153),"") ->  | C153: =IF(A153<>"",VLOOKUP(A153,MCE,MATCH($C$2,'Valeur du contrat'!$C$3:$D$3,0),FALSE),"") ->  | S153: =IF(O153*R153=0,"",O153*R153) ->  | AY153: 0 | BA153: =IFERROR(VLOOKUP(A153,Couts_implantation,MATCH($BA$4,'Valeur du contrat'!$C$3:$R$3,0),FALSE),0) -> 0
A154: =IF('Valeur du contrat'!C154="Choisir...","",'Valeur du contrat'!C154) ->  | B154: =IFERROR(CONCATENATE('Valeur du contrat'!A154),"") ->  | C154: =IF(A154<>"",VLOOKUP(A154,MCE,MATCH($C$2,'Valeur du contrat'!$C$3:$D$3,0),FALSE),"") ->  | AC154: =IF(Y154*AB154=0,"",Y154*AB154) ->  | AY154: 0 | BA154: =IFERROR(VLOOKUP(A154,Couts_implantation,MATCH($BA$4,'Valeur du contrat'!$C$3:$R$3,0),FALSE),0) -> 0
A155: =IF('Valeur du contrat'!C155="Choisir...","",'Valeur du contrat'!C155) ->  | B155: =IFERROR(CONCATENATE('Valeur du contrat'!A155),"") ->  | C155: =IF(A155<>"",VLOOKUP(A155,MCE,MATCH($C$2,'Valeur du contrat'!$C$3:$D$3,0),FALSE),"") ->  | AY155: 0 | BA155: =IFERROR(VLOOKUP(A155,Couts_implantation,MATCH($BA$4,'Valeur du contrat'!$C$3:$R$3,0),FALSE),0) -> 0
A156: =IF('Valeur du contrat'!C156="Choisir...","",'Valeur du contrat'!C156) ->  | B156: =IFERROR(CONCATENATE('Valeur du contrat'!A156),"") ->  | C156: =IF(A156<>"",VLOOKUP(A156,MCE,MATCH($C$2,'Valeur du contrat'!$C$3:$D$3,0),FALSE),"") ->  | AY156: 0 | BA156: =IFERROR(VLOOKUP(A156,Couts_implantation,MATCH($BA$4,'Valeur du contrat'!$C$3:$R$3,0),FALSE),0) -> 0
A157: =IF('Valeur du contrat'!C157="Choisir...","",'Valeur du contrat'!C157) ->  | B157: =IFERROR(CONCATENATE('Valeur du contrat'!A157),"") ->  | C157: =IF(A157<>"",VLOOKUP(A157,MCE,MATCH($C$2,'Valeur du contrat'!$C$3:$D$3,0),FALSE),"") ->  | AY157: 0 | BA157: =IFERROR(VLOOKUP(A157,Couts_implantation,MATCH($BA$4,'Valeur du contrat'!$C$3:$R$3,0),FALSE),0) -> 0
A158: =IF('Valeur du contrat'!C158="Choisir...","",'Valeur du contrat'!C158) ->  | B158: =IFERROR(CONCATENATE('Valeur du contrat'!A158),"") ->  | C158: =IF(A158<>"",VLOOKUP(A158,MCE,MATCH($C$2,'Valeur du contrat'!$C$3:$D$3,0),FALSE),"") ->  | AY158: 0 | BA158: =IFERROR(VLOOKUP(A158,Couts_implantation,MATCH($BA$4,'Valeur du contrat'!$C$3:$R$3,0),FALSE),0) -> 0
A159: =IF('Valeur du contrat'!C159="Choisir...","",'Valeur du contrat'!C159) ->  | B159: =IFERROR(CONCATENATE('Valeur du contrat'!A159),"") ->  | C159: =IF(A159<>"",VLOOKUP(A159,MCE,MATCH($C$2,'Valeur du contrat'!$C$3:$D$3,0),FALSE),"") ->  | AY159: 0 | BA159: =IFERROR(VLOOKUP(A159,Couts_implantation,MATCH($BA$4,'Valeur du contrat'!$C$3:$R$3,0),FALSE),0) -> 0
A160: =IF('Valeur du contrat'!C160="Choisir...","",'Valeur du contrat'!C160) ->  | B160: =IFERROR(CONCATENATE('Valeur du contrat'!A160),"") ->  | C160: =IF(A160<>"",VLOOKUP(A160,MCE,MATCH($C$2,'Valeur du contrat'!$C$3:$D$3,0),FALSE),"") ->  | AY160: 0 | BA160: =IFERROR(VLOOKUP(A160,Couts_implantation,MATCH($BA$4,'Valeur du contrat'!$C$3:$R$3,0),FALSE),0) -> 0
A161: =IF('Valeur du contrat'!C161="Choisir...","",'Valeur du contrat'!C161) ->  | B161: =IFERROR(CONCATENATE('Valeur du contrat'!A161),"") ->  | C161: =IF(A161<>"",VLOOKUP(A161,MCE,MATCH($C$2,'Valeur du contrat'!$C$3:$D$3,0),FALSE),"") ->  | AY161: 0 | BA161: =IFERROR(VLOOKUP(A161,Couts_implantation,MATCH($BA$4,'Valeur du contrat'!$C$3:$R$3,0),FALSE),0) -> 0
A162: =IF('Valeur du contrat'!C162="Choisir...","",'Valeur du contrat'!C162) ->  | B162: =IFERROR(CONCATENATE('Valeur du contrat'!A162),"") ->  | C162: =IF(A162<>"",VLOOKUP(A162,MCE,MATCH($C$2,'Valeur du contrat'!$C$3:$D$3,0),FALSE),"") ->  | AY162: 0 | BA162: =IFERROR(VLOOKUP(A162,Couts_implantation,MATCH($BA$4,'Valeur du contrat'!$C$3:$R$3,0),FALSE),0) -> 0
A163: =IF('Valeur du contrat'!C163="Choisir...","",'Valeur du contrat'!C163) ->  | B163: =IFERROR(CONCATENATE('Valeur du contrat'!A163),"") ->  | C163: =IF(A163<>"",VLOOKUP(A163,MCE,MATCH($C$2,'Valeur du contrat'!$C$3:$D$3,0),FALSE),"") ->  | AY163: 0 | BA163: =IFERROR(VLOOKUP(A163,Couts_implantation,MATCH($BA$4,'Valeur du contrat'!$C$3:$R$3,0),FALSE),0) -> 0
A164: =IF('Valeur du contrat'!C164="Choisir...","",'Valeur du contrat'!C164) ->  | B164: =IFERROR(CONCATENATE('Valeur du contrat'!A164),"") ->  | C164: =IF(A164<>"",VLOOKUP(A164,MCE,MATCH($C$2,'Valeur du contrat'!$C$3:$D$3,0),FALSE),"") ->  | AY164: 0 | BA164: =IFERROR(VLOOKUP(A164,Couts_implantation,MATCH($BA$4,'Valeur du contrat'!$C$3:$R$3,0),FALSE),0) -> 0
A165: =IF('Valeur du contrat'!C165="Choisir...","",'Valeur du contrat'!C165) ->  | B165: =IFERROR(CONCATENATE('Valeur du contrat'!A165),"") ->  | C165: =IF(A165<>"",VLOOKUP(A165,MCE,MATCH($C$2,'Valeur du contrat'!$C$3:$D$3,0),FALSE),"") ->  | AY165: 0 | BA165: =IFERROR(VLOOKUP(A165,Couts_implantation,MATCH($BA$4,'Valeur du contrat'!$C$3:$R$3,0),FALSE),0) -> 0
A166: =IF('Valeur du contrat'!C166="Choisir...","",'Valeur du contrat'!C166) ->  | B166: =IFERROR(CONCATENATE('Valeur du contrat'!A166),"") ->  | C166: =IF(A166<>"",VLOOKUP(A166,MCE,MATCH($C$2,'Valeur du contrat'!$C$3:$D$3,0),FALSE),"") ->  | G166: =IF(ISBLANK(E166),"",E166*gCO2eq_Electricite/1000000) ->  | U166: =IF(T166<>0,T166*VLOOKUP($T$3,Energie_SEQ,3,FALSE)/1000,"") ->  | V166: =IF(ISBLANK(T166),"",T166*gCO2eq_MazoutLourd/1000000) ->  | Z166: =IF(Y166<>0,Y166*VLOOKUP($Y$3,Energie_SEQ,3,FALSE)/1000,"") ->  | AA166: =IF(ISBLANK(Y166),"",Y166*gCO2eq_Propane/1000000) ->  | AY166: 0 | BA166: =IFERROR(VLOOKUP(A166,Couts_implantation,MATCH($BA$4,'Valeur du contrat'!$C$3:$R$3,0),FALSE),0) -> 0 | BC166: =IFERROR(BA166/AN166,"") ->  | BD166: =IFERROR(BB166/AN166,"") -> 
A167: =IF('Valeur du contrat'!C167="Choisir...","",'Valeur du contrat'!C167) ->  | B167: =IFERROR(CONCATENATE('Valeur du contrat'!A167),"") ->  | C167: =IF(A167<>"",VLOOKUP(A167,MCE,MATCH($C$2,'Valeur du contrat'!$C$3:$D$3,0),FALSE),"") ->  | AY167: 0 | BA167: =IFERROR(VLOOKUP(A167,Couts_implantation,MATCH($BA$4,'Valeur du contrat'!$C$3:$R$3,0),FALSE),0) -> 0
A168: =IF('Valeur du contrat'!C168="Choisir...","",'Valeur du contrat'!C168) ->  | B168: =IFERROR(CONCATENATE('Valeur du contrat'!A168),"") ->  | C168: =IF(A168<>"",VLOOKUP(A168,MCE,MATCH($C$2,'Valeur du contrat'!$C$3:$D$3,0),FALSE),"") ->  | AY168: 0 | BA168: =IFERROR(VLOOKUP(A168,Couts_implantation,MATCH($BA$4,'Valeur du contrat'!$C$3:$R$3,0),FALSE),0) -> 0
A169: =IF('Valeur du contrat'!C169="Choisir...","",'Valeur du contrat'!C169) ->  | B169: =IFERROR(CONCATENATE('Valeur du contrat'!A169),"") ->  | C169: =IF(A169<>"",VLOOKUP(A169,MCE,MATCH($C$2,'Valeur du contrat'!$C$3:$D$3,0),FALSE),"") ->  | AY169: 0 | BA169: =IFERROR(VLOOKUP(A169,Couts_implantation,MATCH($BA$4,'Valeur du contrat'!$C$3:$R$3,0),FALSE),0) -> 0
A170: =IF('Valeur du contrat'!C170="Choisir...","",'Valeur du contrat'!C170) ->  | B170: =IFERROR(CONCATENATE('Valeur du contrat'!A170),"") ->  | C170: =IF(A170<>"",VLOOKUP(A170,MCE,MATCH($C$2,'Valeur du contrat'!$C$3:$D$3,0),FALSE),"") ->  | AY170: 0 | BA170: =IFERROR(VLOOKUP(A170,Couts_implantation,MATCH($BA$4,'Valeur du contrat'!$C$3:$R$3,0),FALSE),0) -> 0
A171: =IF('Valeur du contrat'!C171="Choisir...","",'Valeur du contrat'!C171) ->  | B171: =IFERROR(CONCATENATE('Valeur du contrat'!A171),"") ->  | C171: =IF(A171<>"",VLOOKUP(A171,MCE,MATCH($C$2,'Valeur du contrat'!$C$3:$D$3,0),FALSE),"") ->  | AY171: 0 | BA171: =IFERROR(VLOOKUP(A171,Couts_implantation,MATCH($BA$4,'Valeur du contrat'!$C$3:$R$3,0),FALSE),0) -> 0
A172: =IF('Valeur du contrat'!C172="Choisir...","",'Valeur du contrat'!C172) ->  | B172: =IFERROR(CONCATENATE('Valeur du contrat'!A172),"") ->  | C172: =IF(A172<>"",VLOOKUP(A172,MCE,MATCH($C$2,'Valeur du contrat'!$C$3:$D$3,0),FALSE),"") ->  | AY172: 0 | BA172: =IFERROR(VLOOKUP(A172,Couts_implantation,MATCH($BA$4,'Valeur du contrat'!$C$3:$R$3,0),FALSE),0) -> 0
A173: =IF('Valeur du contrat'!C173="Choisir...","",'Valeur du contrat'!C173) ->  | B173: =IFERROR(CONCATENATE('Valeur du contrat'!A173),"") ->  | C173: =IF(A173<>"",VLOOKUP(A173,MCE,MATCH($C$2,'Valeur du contrat'!$C$3:$D$3,0),FALSE),"") ->  | AY173: 0 | BA173: =IFERROR(VLOOKUP(A173,Couts_implantation,MATCH($BA$4,'Valeur du contrat'!$C$3:$R$3,0),FALSE),0) -> 0
A174: =IF('Valeur du contrat'!C174="Choisir...","",'Valeur du contrat'!C174) ->  | B174: =IFERROR(CONCATENATE('Valeur du contrat'!A174),"") ->  | C174: =IF(A174<>"",VLOOKUP(A174,MCE,MATCH($C$2,'Valeur du contrat'!$C$3:$D$3,0),FALSE),"") ->  | AY174: 0 | BA174: =IFERROR(VLOOKUP(A174,Couts_implantation,MATCH($BA$4,'Valeur du contrat'!$C$3:$R$3,0),FALSE),0) -> 0
A175: =IF('Valeur du contrat'!C175="Choisir...","",'Valeur du contrat'!C175) ->  | B175: =IFERROR(CONCATENATE('Valeur du contrat'!A175),"") ->  | C175: =IF(A175<>"",VLOOKUP(A175,MCE,MATCH($C$2,'Valeur du contrat'!$C$3:$D$3,0),FALSE),"") ->  | AY175: 0 | BA175: =IFERROR(VLOOKUP(A175,Couts_implantation,MATCH($BA$4,'Valeur du contrat'!$C$3:$R$3,0),FALSE),0) -> 0
A176: =IF('Valeur du contrat'!C176="Choisir...","",'Valeur du contrat'!C176) ->  | B176: =IFERROR(CONCATENATE('Valeur du contrat'!A176),"") ->  | C176: =IF(A176<>"",VLOOKUP(A176,MCE,MATCH($C$2,'Valeur du contrat'!$C$3:$D$3,0),FALSE),"") ->  | AY176: 0 | BA176: =IFERROR(VLOOKUP(A176,Couts_implantation,MATCH($BA$4,'Valeur du contrat'!$C$3:$R$3,0),FALSE),0) -> 0
A177: =IF('Valeur du contrat'!C177="Choisir...","",'Valeur du contrat'!C177) ->  | B177: =IFERROR(CONCATENATE('Valeur du contrat'!A177),"") ->  | C177: =IF(A177<>"",VLOOKUP(A177,MCE,MATCH($C$2,'Valeur du contrat'!$C$3:$D$3,0),FALSE),"") ->  | AY177: 0 | BA177: =IFERROR(VLOOKUP(A177,Couts_implantation,MATCH($BA$4,'Valeur du contrat'!$C$3:$R$3,0),FALSE),0) -> 0
A178: =IF('Valeur du contrat'!C178="Choisir...","",'Valeur du contrat'!C178) ->  | B178: =IFERROR(CONCATENATE('Valeur du contrat'!A178),"") ->  | C178: =IF(A178<>"",VLOOKUP(A178,MCE,MATCH($C$2,'Valeur du contrat'!$C$3:$D$3,0),FALSE),"") ->  | AY178: 0 | BA178: =IFERROR(VLOOKUP(A178,Couts_implantation,MATCH($BA$4,'Valeur du contrat'!$C$3:$R$3,0),FALSE),0) -> 0
A179: =IF('Valeur du contrat'!C179="Choisir...","",'Valeur du contrat'!C179) ->  | B179: =IFERROR(CONCATENATE('Valeur du contrat'!A179),"") ->  | C179: =IF(A179<>"",VLOOKUP(A179,MCE,MATCH($C$2,'Valeur du contrat'!$C$3:$D$3,0),FALSE),"") ->  | AY179: 0 | BA179: =IFERROR(VLOOKUP(A179,Couts_implantation,MATCH($BA$4,'Valeur du contrat'!$C$3:$R$3,0),FALSE),0) -> 0
A180: =IF('Valeur du contrat'!C180="Choisir...","",'Valeur du contrat'!C180) ->  | B180: =IFERROR(CONCATENATE('Valeur du contrat'!A180),"") ->  | C180: =IF(A180<>"",VLOOKUP(A180,MCE,MATCH($C$2,'Valeur du contrat'!$C$3:$D$3,0),FALSE),"") ->  | AY180: 0 | BA180: =IFERROR(VLOOKUP(A180,Couts_implantation,MATCH($BA$4,'Valeur du contrat'!$C$3:$R$3,0),FALSE),0) -> 0
A181: =IF('Valeur du contrat'!C181="Choisir...","",'Valeur du contrat'!C181) ->  | B181: =IFERROR(CONCATENATE('Valeur du contrat'!A181),"") ->  | C181: =IF(A181<>"",VLOOKUP(A181,MCE,MATCH($C$2,'Valeur du contrat'!$C$3:$D$3,0),FALSE),"") ->  | AY181: 0 | BA181: =IFERROR(VLOOKUP(A181,Couts_implantation,MATCH($BA$4,'Valeur du contrat'!$C$3:$R$3,0),FALSE),0) -> 0
A182: =IF('Valeur du contrat'!C182="Choisir...","",'Valeur du contrat'!C182) ->  | B182: =IFERROR(CONCATENATE('Valeur du contrat'!A182),"") ->  | C182: =IF(A182<>"",VLOOKUP(A182,MCE,MATCH($C$2,'Valeur du contrat'!$C$3:$D$3,0),FALSE),"") ->  | AY182: 0 | BA182: =IFERROR(VLOOKUP(A182,Couts_implantation,MATCH($BA$4,'Valeur du contrat'!$C$3:$R$3,0),FALSE),0) -> 0
A183: =IF('Valeur du contrat'!C183="Choisir...","",'Valeur du contrat'!C183) ->  | B183: =IFERROR(CONCATENATE('Valeur du contrat'!A183),"") ->  | C183: =IF(A183<>"",VLOOKUP(A183,MCE,MATCH($C$2,'Valeur du contrat'!$C$3:$D$3,0),FALSE),"") ->  | AY183: 0 | BA183: =IFERROR(VLOOKUP(A183,Couts_implantation,MATCH($BA$4,'Valeur du contrat'!$C$3:$R$3,0),FALSE),0) -> 0
A184: =IF('Valeur du contrat'!C184="Choisir...","",'Valeur du contrat'!C184) ->  | B184: =IFERROR(CONCATENATE('Valeur du contrat'!A184),"") ->  | C184: =IF(A184<>"",VLOOKUP(A184,MCE,MATCH($C$2,'Valeur du contrat'!$C$3:$D$3,0),FALSE),"") ->  | AY184: 0 | BA184: =IFERROR(VLOOKUP(A184,Couts_implantation,MATCH($BA$4,'Valeur du contrat'!$C$3:$R$3,0),FALSE),0) -> 0
A185: =IF('Valeur du contrat'!C185="Choisir...","",'Valeur du contrat'!C185) ->  | B185: =IFERROR(CONCATENATE('Valeur du contrat'!A185),"") ->  | C185: =IF(A185<>"",VLOOKUP(A185,MCE,MATCH($C$2,'Valeur du contrat'!$C$3:$D$3,0),FALSE),"") ->  | AY185: 0 | BA185: =IFERROR(VLOOKUP(A185,Couts_implantation,MATCH($BA$4,'Valeur du contrat'!$C$3:$R$3,0),FALSE),0) -> 0
A186: =IF('Valeur du contrat'!C186="Choisir...","",'Valeur du contrat'!C186) ->  | B186: =IFERROR(CONCATENATE('Valeur du contrat'!A186),"") ->  | C186: =IF(A186<>"",VLOOKUP(A186,MCE,MATCH($C$2,'Valeur du contrat'!$C$3:$D$3,0),FALSE),"") ->  | AC186: =IF(Y186*AB186=0,"",Y186*AB186) ->  | AY186: 0 | BA186: =IFERROR(VLOOKUP(A186,Couts_implantation,MATCH($BA$4,'Valeur du contrat'!$C$3:$R$3,0),FALSE),0) -> 0
A187: =IF('Valeur du contrat'!C187="Choisir...","",'Valeur du contrat'!C187) ->  | B187: =IFERROR(CONCATENATE('Valeur du contrat'!A187),"") ->  | C187: =IF(A187<>"",VLOOKUP(A187,MCE,MATCH($C$2,'Valeur du contrat'!$C$3:$D$3,0),FALSE),"") ->  | AY187: 0 | BA187: =IFERROR(VLOOKUP(A187,Couts_implantation,MATCH($BA$4,'Valeur du contrat'!$C$3:$R$3,0),FALSE),0) -> 0
A188: =IF('Valeur du contrat'!C188="Choisir...","",'Valeur du contrat'!C188) ->  | B188: =IFERROR(CONCATENATE('Valeur du contrat'!A188),"") ->  | C188: =IF(A188<>"",VLOOKUP(A188,MCE,MATCH($C$2,'Valeur du contrat'!$C$3:$D$3,0),FALSE),"") ->  | AY188: 0 | BA188: =IFERROR(VLOOKUP(A188,Couts_implantation,MATCH($BA$4,'Valeur du contrat'!$C$3:$R$3,0),FALSE),0) -> 0
A189: =IF('Valeur du contrat'!C189="Choisir...","",'Valeur du contrat'!C189) ->  | B189: =IFERROR(CONCATENATE('Valeur du contrat'!A189),"") ->  | C189: =IF(A189<>"",VLOOKUP(A189,MCE,MATCH($C$2,'Valeur du contrat'!$C$3:$D$3,0),FALSE),"") ->  | AY189: 0 | BA189: =IFERROR(VLOOKUP(A189,Couts_implantation,MATCH($BA$4,'Valeur du contrat'!$C$3:$R$3,0),FALSE),0) -> 0
A190: =IF('Valeur du contrat'!C190="Choisir...","",'Valeur du contrat'!C190) ->  | B190: =IFERROR(CONCATENATE('Valeur du contrat'!A190),"") ->  | C190: =IF(A190<>"",VLOOKUP(A190,MCE,MATCH($C$2,'Valeur du contrat'!$C$3:$D$3,0),FALSE),"") ->  | AY190: 0 | BA190: =IFERROR(VLOOKUP(A190,Couts_implantation,MATCH($BA$4,'Valeur du contrat'!$C$3:$R$3,0),FALSE),0) -> 0
A191: =IF('Valeur du contrat'!C191="Choisir...","",'Valeur du contrat'!C191) ->  | B191: =IFERROR(CONCATENATE('Valeur du contrat'!A191),"") ->  | C191: =IF(A191<>"",VLOOKUP(A191,MCE,MATCH($C$2,'Valeur du contrat'!$C$3:$D$3,0),FALSE),"") ->  | AY191: 0 | BA191: =IFERROR(VLOOKUP(A191,Couts_implantation,MATCH($BA$4,'Valeur du contrat'!$C$3:$R$3,0),FALSE),0) -> 0
A192: =IF('Valeur du contrat'!C192="Choisir...","",'Valeur du contrat'!C192) ->  | B192: =IFERROR(CONCATENATE('Valeur du contrat'!A192),"") ->  | C192: =IF(A192<>"",VLOOKUP(A192,MCE,MATCH($C$2,'Valeur du contrat'!$C$3:$D$3,0),FALSE),"") ->  | AY192: 0 | BA192: =IFERROR(VLOOKUP(A192,Couts_implantation,MATCH($BA$4,'Valeur du contrat'!$C$3:$R$3,0),FALSE),0) -> 0
A193: =IF('Valeur du contrat'!C193="Choisir...","",'Valeur du contrat'!C193) ->  | B193: =IFERROR(CONCATENATE('Valeur du contrat'!A193),"") ->  | C193: =IF(A193<>"",VLOOKUP(A193,MCE,MATCH($C$2,'Valeur du contrat'!$C$3:$D$3,0),FALSE),"") ->  | AY193: 0 | BA193: =IFERROR(VLOOKUP(A193,Couts_implantation,MATCH($BA$4,'Valeur du contrat'!$C$3:$R$3,0),FALSE),0) -> 0
A194: =IF('Valeur du contrat'!C194="Choisir...","",'Valeur du contrat'!C194) ->  | B194: =IFERROR(CONCATENATE('Valeur du contrat'!A194),"") ->  | C194: =IF(A194<>"",VLOOKUP(A194,MCE,MATCH($C$2,'Valeur du contrat'!$C$3:$D$3,0),FALSE),"") ->  | AY194: 0 | BA194: =IFERROR(VLOOKUP(A194,Couts_implantation,MATCH($BA$4,'Valeur du contrat'!$C$3:$R$3,0),FALSE),0) -> 0
A195: =IF('Valeur du contrat'!C195="Choisir...","",'Valeur du contrat'!C195) ->  | B195: =IFERROR(CONCATENATE('Valeur du contrat'!A195),"") ->  | C195: =IF(A195<>"",VLOOKUP(A195,MCE,MATCH($C$2,'Valeur du contrat'!$C$3:$D$3,0),FALSE),"") ->  | AY195: 0 | BA195: =IFERROR(VLOOKUP(A195,Couts_implantation,MATCH($BA$4,'Valeur du contrat'!$C$3:$R$3,0),FALSE),0) -> 0
A196: =IF('Valeur du contrat'!C196="Choisir...","",'Valeur du contrat'!C196) ->  | B196: =IFERROR(CONCATENATE('Valeur du contrat'!A196),"") ->  | C196: =IF(A196<>"",VLOOKUP(A196,MCE,MATCH($C$2,'Valeur du contrat'!$C$3:$D$3,0),FALSE),"") ->  | AY196: 0 | BA196: =IFERROR(VLOOKUP(A196,Couts_implantation,MATCH($BA$4,'Valeur du contrat'!$C$3:$R$3,0),FALSE),0) -> 0
A197: =IF('Valeur du contrat'!C197="Choisir...","",'Valeur du contrat'!C197) ->  | B197: =IFERROR(CONCATENATE('Valeur du contrat'!A197),"") ->  | C197: =IF(A197<>"",VLOOKUP(A197,MCE,MATCH($C$2,'Valeur du contrat'!$C$3:$D$3,0),FALSE),"") ->  | AY197: 0 | BA197: =IFERROR(VLOOKUP(A197,Couts_implantation,MATCH($BA$4,'Valeur du contrat'!$C$3:$R$3,0),FALSE),0) -> 0
A198: =IF('Valeur du contrat'!C198="Choisir...","",'Valeur du contrat'!C198) ->  | B198: =IFERROR(CONCATENATE('Valeur du contrat'!A198),"") ->  | C198: =IF(A198<>"",VLOOKUP(A198,MCE,MATCH($C$2,'Valeur du contrat'!$C$3:$D$3,0),FALSE),"") ->  | G198: =IF(ISBLANK(E198),"",E198*gCO2eq_Electricite/1000000) ->  | I198: =IF(E198*H198=0,"",E198*H198) ->  | U198: =IF(T198<>0,T198*VLOOKUP($T$3,Energie_SEQ,3,FALSE)/1000,"") ->  | V198: =IF(ISBLANK(T198),"",T198*gCO2eq_MazoutLourd/1000000) ->  | Z198: =IF(Y198<>0,Y198*VLOOKUP($Y$3,Energie_SEQ,3,FALSE)/1000,"") ->  | AA198: =IF(ISBLANK(Y198),"",Y198*gCO2eq_Propane/1000000) ->  | AY198: 0 | BA198: =IFERROR(VLOOKUP(A198,Couts_implantation,MATCH($BA$4,'Valeur du contrat'!$C$3:$R$3,0),FALSE),0) -> 0 | BB198: =IF(OR(BA198=0,BA198=""),"",BA198-AY198) ->  | BC198: =IFERROR(BA198/AN198,"") ->  | BD198: =IFERROR(BB198/AN198,"") -> 
A199: =IF('Valeur du contrat'!C199="Choisir...","",'Valeur du contrat'!C199) ->  | B199: =IFERROR(CONCATENATE('Valeur du contrat'!A199),"") ->  | C199: =IF(A199<>"",VLOOKUP(A199,MCE,MATCH($C$2,'Valeur du contrat'!$C$3:$D$3,0),FALSE),"") ->  | K199: =IF(J199<>0,J199*VLOOKUP($J$3,Energie_SEQ,3,FALSE)/1000,"") ->  | L199: =IF(ISBLANK(J199),"",J199*gCO2eq_GazNaturel/1000000) ->  | N199: =IF(J199*M199=0,"",J199*M199) ->  | P199: =IF(O199<>0,O199*VLOOKUP($O$3,Energie_SEQ,3,FALSE)/1000,"") ->  | Q199: =IF(ISBLANK(O199),"",O199*gCO2eq_Mazout2/1000000) ->  | X199: =IF(T199*W199=0,"",T199*W199) ->  | AE199: =IF(ISBLANK(AD199),"",((1-(1.1676*$AH$3))*19.2)/1000*AD199) ->  | AF199: =IF(ISBLANK(AD199),"",((1-(1.1676*$AH$3))*37.346)/1000000*AD199) ->  | AH199: =IF(AD199*AG199=0,"",AD199*AG199) ->  | AI199: =IF(SUM(F199,K199,P199,Z199,AE199)=0,"",SUM(F199,K199,P199,Z199,AE199)) ->  | AJ199: =IF(SUM(G199,L199,Q199,AA199,AF199)=0,"",SUM(G199,L199,Q199,AA199,AF199)) ->  | AM199: =IF(AK199*AL199=0,"",AK199*AL199) ->  | AN199: =IF(SUM(I199,N199,S199,X199,AC199,AH199,AM199)=0,"",SUM(I199,N199,S199,X199,AC199,AH199,AM199)) ->  | AY199: =IF(SUM(AO199:AX199)=0,0,SUM(AO199:AX199)) -> 0 | BA199: =IFERROR(VLOOKUP(A199,Couts_implantation,MATCH($BA$4,'Valeur du contrat'!$C$3:$R$3,0),FALSE),0) -> 0
A200: =IF('Valeur du contrat'!C200="Choisir...","",'Valeur du contrat'!C200) ->  | B200: =IFERROR(CONCATENATE('Valeur du contrat'!A200),"") ->  | C200: =IF(A200<>"",VLOOKUP(A200,MCE,MATCH($C$2,'Valeur du contrat'!$C$3:$D$3,0),FALSE),"") ->  | AY200: 0 | BA200: =IFERROR(VLOOKUP(A200,Couts_implantation,MATCH($BA$4,'Valeur du contrat'!$C$3:$R$3,0),FALSE),0) -> 0
... 7 more rows

Sheet Sommaire - immeubles
C1: SOMMAIRE PAR IMMEUBLE | P1: SOMMAIRE PAR IMMEUBLE
A2: Données de référence sur les immeubles (sur une base annuelle) | J2: Économies d'énergie projetées (sur une base annuelle) | T2: Ratio (projeté) post-implantation | W2: Écarts ratios | Z2: Coût total, y compris les frais généraux | AA2: Coût total, avec aides financières | AB2: PRI simple sans aides | AC2: PRI simple avec aides
A3: Nom immeuble | B3: Numéro immeuble | C3: Surface_m2 | D3: Conso_dollars | E3: Conso_GJ | F3: Émissions_GES | G3: $/m2 | H3: GJ/m2 | I3: GES/m2 | J3: Électricité (kWh) | K3: Gaz naturel (m3) | L3: Mazout no 2 (L) | M3: Mazout lourd (L) | N3: Propane (L) | O3: Biomasse (kg) | P3: Total - Économies d'énergie projetées (GJ) | Q3: GES (t éq. CO2) | R3: Économies de puissance électrique projetées (kW) | S3: Total - Économies de coûts d'énergie projetées | T3: $/m2 | U3: GJ/m2 | V3: GES/m2 | W3: $/m2 | X3: GJ/m2 | Y3: GES/m2
A4: ='Données de base'!A19 ->  | B4: =IFERROR(VLOOKUP(A4,Table_immeubles,MATCH($B$3,'Données de base'!$A$17:$I$17,0),FALSE),0) -> 0 | C4: =VLOOKUP(A4,Table_immeubles,MATCH($C$3,'Données de base'!$A$17:$I$17,0),FALSE) -> 0 | D4: =VLOOKUP(A4,Table_immeubles,MATCH($D$3,'Données de base'!$A$17:$I$17,0),FALSE) -> 0 | E4: =VLOOKUP(A4,Table_immeubles,MATCH($E$3,'Données de base'!$A$17:$I$17,0),FALSE) -> 0 | F4: =(VLOOKUP(A4,Table_immeubles,MATCH($F$3,'Données de base'!$A$17:$I$17,0),FALSE)) -> 0 | G4: =IFERROR(D4/C4,"") ->  | H4: =IFERROR(E4/C4,"") ->  | I4: =IFERROR(F4/C4,"") ->  | J4: =SUMIF(Sommaire_global,A4,Econ_kWh) -> 0 | K4: =SUMIF(Sommaire_global,A4,Econ_GN) -> 0 | L4: =SUMIF(Sommaire_global,A4,Econ_Mazout_no2) -> 0 | M4: =SUMIF(Sommaire_global,A4,Econ_Mazout_no6) -> 0 | N4: =SUMIF(Sommaire_global,A4,Econ_Propane) -> 0 | O4: =SUMIF(Sommaire_global,A4,Econ_Biomasse) -> 0 | P4: =SUMIF(Sommaire_global,A4,Econ_an_GJ) -> 0 | Q4: =SUMIF(Sommaire_global,A4,Econ_an_GES) -> 0 | R4: =SUMIF(Sommaire_global,A4,Econ_Elec_Puis) -> 0 | S4: =SUMIF(Sommaire_global,A4,Econ_an_dollars) -> 0 | T4: =IFERROR((D4-S4)/C4,"") ->  | U4: =IFERROR((E4-P4)/C4,"") ->  | V4: =IFERROR((F4-Q4)/C4,"") ->  | W4: =IFERROR((T4-G4)/G4,"") ->  | X4: =IFERROR((U4-H4)/H4,"") ->  | Y4: =IFERROR((V4-I4)/I4,"") ->  | Z4: =SUMIF(Sommaire_global,A4,Cout_incl_FG) -> 0 | AA4: =SUMIF(Sommaire_global,A4,Cout_incl_AF) -> 0 | AB4: =IFERROR(Z4/S4,"") ->  | AC4: =IFERROR(AA4/S4,"") -> 
A5: ='Données de base'!A20 ->  | B5: =IFERROR(VLOOKUP(A5,Table_immeubles,MATCH($B$3,'Données de base'!$A$17:$I$17,0),FALSE),0) -> 0 | C5: =VLOOKUP(A5,Table_immeubles,MATCH($C$3,'Données de base'!$A$17:$I$17,0),FALSE) -> 0 | D5: =VLOOKUP(A5,Table_immeubles,MATCH($D$3,'Données de base'!$A$17:$I$17,0),FALSE) -> 0 | E5: =VLOOKUP(A5,Table_immeubles,MATCH($E$3,'Données de base'!$A$17:$I$17,0),FALSE) -> 0 | F5: =(VLOOKUP(A5,Table_immeubles,MATCH($F$3,'Données de base'!$A$17:$I$17,0),FALSE)) -> 0 | G5: =IFERROR(D5/C5,"") ->  | H5: =IFERROR(E5/C5,"") ->  | I5: =IFERROR(F5/C5,"") ->  | J5: =SUMIF(Sommaire_global,A5,Econ_kWh) -> 0 | K5: 0 | L5: 0 | M5: 0 | N5: 0 | O5: 0 | P5: 0 | Q5: 0 | R5: 0 | S5: 0 | T5: =IFERROR((D5-S5)/C5,"") ->  | U5: =IFERROR((E5-P5)/C5,"") ->  | V5: =IFERROR((F5-Q5)/C5,"") ->  | Z5: 0 | AA5: 0 | AB5: =IFERROR(Z5/S5,"") ->  | AC5: =IFERROR(AA5/S5,"") -> 
A6: ='Données de base'!A21 ->  | B6: =IFERROR(VLOOKUP(A6,Table_immeubles,MATCH($B$3,'Données de base'!$A$17:$I$17,0),FALSE),0) -> 0 | C6: =VLOOKUP(A6,Table_immeubles,MATCH($C$3,'Données de base'!$A$17:$I$17,0),FALSE) -> 0 | D6: =VLOOKUP(A6,Table_immeubles,MATCH($D$3,'Données de base'!$A$17:$I$17,0),FALSE) -> 0 | E6: =VLOOKUP(A6,Table_immeubles,MATCH($E$3,'Données de base'!$A$17:$I$17,0),FALSE) -> 0 | F6: =(VLOOKUP(A6,Table_immeubles,MATCH($F$3,'Données de base'!$A$17:$I$17,0),FALSE)) -> 0 | J6: 0 | K6: 0 | L6: 0 | M6: 0 | N6: 0 | O6: 0 | P6: 0 | Q6: 0 | R6: 0 | S6: 0 | Z6: 0 | AA6: 0 | AB6: =IFERROR(Z6/S6,"") ->  | AC6: =IFERROR(AA6/S6,"") -> 
A7: ='Données de base'!A22 ->  | B7: =IFERROR(VLOOKUP(A7,Table_immeubles,MATCH($B$3,'Données de base'!$A$17:$I$17,0),FALSE),0) -> 0 | C7: =VLOOKUP(A7,Table_immeubles,MATCH($C$3,'Données de base'!$A$17:$I$17,0),FALSE) -> 0 | D7: =VLOOKUP(A7,Table_immeubles,MATCH($D$3,'Données de base'!$A$17:$I$17,0),FALSE) -> 0 | E7: =VLOOKUP(A7,Table_immeubles,MATCH($E$3,'Données de base'!$A$17:$I$17,0),FALSE) -> 0 | F7: =(VLOOKUP(A7,Table_immeubles,MATCH($F$3,'Données de base'!$A$17:$I$17,0),FALSE)) -> 0 | J7: 0 | K7: 0 | L7: 0 | M7: 0 | N7: 0 | O7: 0 | P7: 0 | Q7: 0 | R7: 0 | S7: 0 | Z7: 0 | AA7: 0 | AB7: =IFERROR(Z7/S7,"") ->  | AC7: =IFERROR(AA7/S7,"") -> 
A8: ='Données de base'!A23 ->  | B8: =IFERROR(VLOOKUP(A8,Table_immeubles,MATCH($B$3,'Données de base'!$A$17:$I$17,0),FALSE),0) -> 0 | C8: =VLOOKUP(A8,Table_immeubles,MATCH($C$3,'Données de base'!$A$17:$I$17,0),FALSE) -> 0 | D8: =VLOOKUP(A8,Table_immeubles,MATCH($D$3,'Données de base'!$A$17:$I$17,0),FALSE) -> 0 | E8: =VLOOKUP(A8,Table_immeubles,MATCH($E$3,'Données de base'!$A$17:$I$17,0),FALSE) -> 0 | F8: =(VLOOKUP(A8,Table_immeubles,MATCH($F$3,'Données de base'!$A$17:$I$17,0),FALSE)) -> 0 | J8: 0 | K8: 0 | L8: 0 | M8: 0 | N8: 0 | O8: 0 | P8: 0 | Q8: 0 | R8: 0 | S8: 0 | Z8: 0 | AA8: 0 | AB8: =IFERROR(Z8/S8,"") ->  | AC8: =IFERROR(AA8/S8,"") -> 
A9: ='Données de base'!A24 ->  | B9: =IFERROR(VLOOKUP(A9,Table_immeubles,MATCH($B$3,'Données de base'!$A$17:$I$17,0),FALSE),0) -> 0 | C9: =VLOOKUP(A9,Table_immeubles,MATCH($C$3,'Données de base'!$A$17:$I$17,0),FALSE) -> 0 | D9: =VLOOKUP(A9,Table_immeubles,MATCH($D$3,'Données de base'!$A$17:$I$17,0),FALSE) -> 0 | E9: =VLOOKUP(A9,Table_immeubles,MATCH($E$3,'Données de base'!$A$17:$I$17,0),FALSE) -> 0 | F9: =(VLOOKUP(A9,Table_immeubles,MATCH($F$3,'Données de base'!$A$17:$I$17,0),FALSE)) -> 0 | J9: 0 | K9: 0 | L9: 0 | M9: 0 | N9: 0 | O9: 0 | P9: 0 | Q9: 0 | R9: 0 | S9: 0 | Z9: 0 | AA9: 0 | AB9: =IFERROR(Z9/S9,"") ->  | AC9: =IFERROR(AA9/S9,"") -> 
A10: ='Données de base'!A25 ->  | B10: =IFERROR(VLOOKUP(A10,Table_immeubles,MATCH($B$3,'Données de base'!$A$17:$I$17,0),FALSE),0) -> 0 | C10: =VLOOKUP(A10,Table_immeubles,MATCH($C$3,'Données de base'!$A$17:$I$17,0),FALSE) -> 0 | D10: =VLOOKUP(A10,Table_immeubles,MATCH($D$3,'Données de base'!$A$17:$I$17,0),FALSE) -> 0 | E10: =VLOOKUP(A10,Table_immeubles,MATCH($E$3,'Données de base'!$A$17:$I$17,0),FALSE) -> 0 | F10: =(VLOOKUP(A10,Table_immeubles,MATCH($F$3,'Données de base'!$A$17:$I$17,0),FALSE)) -> 0 | J10: 0 | K10: 0 | L10: 0 | M10: 0 | N10: 0 | O10: 0 | P10: 0 | Q10: 0 | R10: 0 | S10: 0 | Z10: 0 | AA10: 0
A11: ='Données de base'!A26 ->  | B11: =IFERROR(VLOOKUP(A11,Table_immeubles,MATCH($B$3,'Données de base'!$A$17:$I$17,0),FALSE),0) -> 0 | C11: =VLOOKUP(A11,Table_immeubles,MATCH($C$3,'Données de base'!$A$17:$I$17,0),FALSE) -> 0 | D11: =VLOOKUP(A11,Table_immeubles,MATCH($D$3,'Données de base'!$A$17:$I$17,0),FALSE) -> 0 | E11: =VLOOKUP(A11,Table_immeubles,MATCH($E$3,'Données de base'!$A$17:$I$17,0),FALSE) -> 0 | F11: =(VLOOKUP(A11,Table_immeubles,MATCH($F$3,'Données de base'!$A$17:$I$17,0),FALSE)) -> 0 | J11: 0 | K11: 0 | L11: 0 | M11: 0 | N11: 0 | O11: 0 | P11: 0 | Q11: 0 | R11: 0 | S11: 0 | Z11: 0 | AA11: 0
A12: ='Données de base'!A27 ->  | B12: =IFERROR(VLOOKUP(A12,Table_immeubles,MATCH($B$3,'Données de base'!$A$17:$I$17,0),FALSE),0) -> 0 | C12: =VLOOKUP(A12,Table_immeubles,MATCH($C$3,'Données de base'!$A$17:$I$17,0),FALSE) -> 0 | D12: =VLOOKUP(A12,Table_immeubles,MATCH($D$3,'Données de base'!$A$17:$I$17,0),FALSE) -> 0 | E12: =VLOOKUP(A12,Table_immeubles,MATCH($E$3,'Données de base'!$A$17:$I$17,0),FALSE) -> 0 | F12: =(VLOOKUP(A12,Table_immeubles,MATCH($F$3,'Données de base'!$A$17:$I$17,0),FALSE)) -> 0 | J12: 0 | K12: 0 | L12: 0 | M12: 0 | N12: 0 | O12: 0 | P12: 0 | Q12: 0 | R12: 0 | S12: 0 | Z12: 0 | AA12: 0
A13: ='Données de base'!A28 ->  | B13: =IFERROR(VLOOKUP(A13,Table_immeubles,MATCH($B$3,'Données de base'!$A$17:$I$17,0),FALSE),0) -> 0 | C13: =VLOOKUP(A13,Table_immeubles,MATCH($C$3,'Données de base'!$A$17:$I$17,0),FALSE) -> 0 | D13: =VLOOKUP(A13,Table_immeubles,MATCH($D$3,'Données de base'!$A$17:$I$17,0),FALSE) -> 0 | E13: =VLOOKUP(A13,Table_immeubles,MATCH($E$3,'Données de base'!$A$17:$I$17,0),FALSE) -> 0 | F13: =(VLOOKUP(A13,Table_immeubles,MATCH($F$3,'Données de base'!$A$17:$I$17,0),FALSE)) -> 0 | J13: 0 | K13: 0 | L13: 0 | M13: 0 | N13: 0 | O13: 0 | P13: 0 | Q13: 0 | R13: 0 | S13: 0 | Z13: 0 | AA13: 0
A14: ='Données de base'!A29 ->  | B14: =IFERROR(VLOOKUP(A14,Table_immeubles,MATCH($B$3,'Données de base'!$A$17:$I$17,0),FALSE),0) -> 0 | C14: =VLOOKUP(A14,Table_immeubles,MATCH($C$3,'Données de base'!$A$17:$I$17,0),FALSE) -> 0 | D14: =VLOOKUP(A14,Table_immeubles,MATCH($D$3,'Données de base'!$A$17:$I$17,0),FALSE) -> 0 | E14: =VLOOKUP(A14,Table_immeubles,MATCH($E$3,'Données de base'!$A$17:$I$17,0),FALSE) -> 0 | F14: =(VLOOKUP(A14,Table_immeubles,MATCH($F$3,'Données de base'!$A$17:$I$17,0),FALSE)) -> 0 | J14: 0 | K14: 0 | L14: 0 | M14: 0 | N14: 0 | O14: 0 | P14: 0 | Q14: 0 | R14: 0 | S14: 0 | Z14: 0 | AA14: 0
A15: ='Données de base'!A30 ->  | B15: =IFERROR(VLOOKUP(A15,Table_immeubles,MATCH($B$3,'Données de base'!$A$17:$I$17,0),FALSE),0) -> 0 | C15: =VLOOKUP(A15,Table_immeubles,MATCH($C$3,'Données de base'!$A$17:$I$17,0),FALSE) -> 0 | D15: =VLOOKUP(A15,Table_immeubles,MATCH($D$3,'Données de base'!$A$17:$I$17,0),FALSE) -> 0 | E15: =VLOOKUP(A15,Table_immeubles,MATCH($E$3,'Données de base'!$A$17:$I$17,0),FALSE) -> 0 | F15: =(VLOOKUP(A15,Table_immeubles,MATCH($F$3,'Données de base'!$A$17:$I$17,0),FALSE)) -> 0 | I15: =IFERROR(F15/C15,"") ->  | J15: 0 | K15: 0 | L15: 0 | M15: 0 | N15: 0 | O15: 0 | P15: 0 | Q15: 0 | R15: 0 | S15: 0 | Z15: 0 | AA15: 0
A16: ='Données de base'!A31 ->  | B16: =IFERROR(VLOOKUP(A16,Table_immeubles,MATCH($B$3,'Données de base'!$A$17:$I$17,0),FALSE),0) -> 0 | C16: =VLOOKUP(A16,Table_immeubles,MATCH($C$3,'Données de base'!$A$17:$I$17,0),FALSE) -> 0 | D16: =VLOOKUP(A16,Table_immeubles,MATCH($D$3,'Données de base'!$A$17:$I$17,0),FALSE) -> 0 | E16: =VLOOKUP(A16,Table_immeubles,MATCH($E$3,'Données de base'!$A$17:$I$17,0),FALSE) -> 0 | F16: =(VLOOKUP(A16,Table_immeubles,MATCH($F$3,'Données de base'!$A$17:$I$17,0),FALSE)) -> 0 | J16: 0 | K16: 0 | L16: 0 | M16: 0 | N16: 0 | O16: 0 | P16: 0 | Q16: 0 | R16: 0 | S16: 0 | Z16: 0 | AA16: 0
A17: ='Données de base'!A32 ->  | B17: =IFERROR(VLOOKUP(A17,Table_immeubles,MATCH($B$3,'Données de base'!$A$17:$I$17,0),FALSE),0) -> 0 | C17: =VLOOKUP(A17,Table_immeubles,MATCH($C$3,'Données de base'!$A$17:$I$17,0),FALSE) -> 0 | D17: =VLOOKUP(A17,Table_immeubles,MATCH($D$3,'Données de base'!$A$17:$I$17,0),FALSE) -> 0 | E17: =VLOOKUP(A17,Table_immeubles,MATCH($E$3,'Données de base'!$A$17:$I$17,0),FALSE) -> 0 | F17: =(VLOOKUP(A17,Table_immeubles,MATCH($F$3,'Données de base'!$A$17:$I$17,0),FALSE)) -> 0 | J17: 0 | K17: 0 | L17: 0 | M17: 0 | N17: 0 | O17: 0 | P17: 0 | Q17: 0 | R17: 0 | S17: 0 | Z17: 0 | AA17: 0
A18: ='Données de base'!A33 ->  | B18: =IFERROR(VLOOKUP(A18,Table_immeubles,MATCH($B$3,'Données de base'!$A$17:$I$17,0),FALSE),0) -> 0 | C18: =VLOOKUP(A18,Table_immeubles,MATCH($C$3,'Données de base'!$A$17:$I$17,0),FALSE) -> 0 | D18: =VLOOKUP(A18,Table_immeubles,MATCH($D$3,'Données de base'!$A$17:$I$17,0),FALSE) -> 0 | E18: =VLOOKUP(A18,Table_immeubles,MATCH($E$3,'Données de base'!$A$17:$I$17,0),FALSE) -> 0 | F18: =(VLOOKUP(A18,Table_immeubles,MATCH($F$3,'Données de base'!$A$17:$I$17,0),FALSE)) -> 0 | J18: 0 | K18: 0 | L18: 0 | M18: 0 | N18: 0 | O18: 0 | P18: 0 | Q18: 0 | R18: 0 | S18: 0 | Z18: 0 | AA18: 0
A19: ='Données de base'!A34 ->  | B19: =IFERROR(VLOOKUP(A19,Table_immeubles,MATCH($B$3,'Données de base'!$A$17:$I$17,0),FALSE),0) -> 0 | C19: =VLOOKUP(A19,Table_immeubles,MATCH($C$3,'Données de base'!$A$17:$I$17,0),FALSE) -> 0 | D19: =VLOOKUP(A19,Table_immeubles,MATCH($D$3,'Données de base'!$A$17:$I$17,0),FALSE) -> 0 | E19: =VLOOKUP(A19,Table_immeubles,MATCH($E$3,'Données de base'!$A$17:$I$17,0),FALSE) -> 0 | F19: =(VLOOKUP(A19,Table_immeubles,MATCH($F$3,'Données de base'!$A$17:$I$17,0),FALSE)) -> 0 | J19: 0 | K19: 0 | L19: 0 | M19: 0 | N19: 0 | O19: 0 | P19: 0 | Q19: 0 | R19: 0 | S19: 0 | Z19: 0 | AA19: 0
A20: ='Données de base'!A35 ->  | B20: =IFERROR(VLOOKUP(A20,Table_immeubles,MATCH($B$3,'Données de base'!$A$17:$I$17,0),FALSE),0) -> 0 | C20: =VLOOKUP(A20,Table_immeubles,MATCH($C$3,'Données de base'!$A$17:$I$17,0),FALSE) -> 0 | D20: =VLOOKUP(A20,Table_immeubles,MATCH($D$3,'Données de base'!$A$17:$I$17,0),FALSE) -> 0 | E20: =VLOOKUP(A20,Table_immeubles,MATCH($E$3,'Données de base'!$A$17:$I$17,0),FALSE) -> 0 | F20: =(VLOOKUP(A20,Table_immeubles,MATCH($F$3,'Données de base'!$A$17:$I$17,0),FALSE)) -> 0 | J20: 0 | K20: 0 | L20: 0 | M20: 0 | N20: 0 | O20: 0 | P20: 0 | Q20: 0 | R20: 0 | S20: 0 | Z20: 0 | AA20: 0
A21: ='Données de base'!A36 ->  | B21: =IFERROR(VLOOKUP(A21,Table_immeubles,MATCH($B$3,'Données de base'!$A$17:$I$17,0),FALSE),0) -> 0 | C21: =VLOOKUP(A21,Table_immeubles,MATCH($C$3,'Données de base'!$A$17:$I$17,0),FALSE) -> 0 | D21: =VLOOKUP(A21,Table_immeubles,MATCH($D$3,'Données de base'!$A$17:$I$17,0),FALSE) -> 0 | E21: =VLOOKUP(A21,Table_immeubles,MATCH($E$3,'Données de base'!$A$17:$I$17,0),FALSE) -> 0 | F21: =(VLOOKUP(A21,Table_immeubles,MATCH($F$3,'Données de base'!$A$17:$I$17,0),FALSE)) -> 0 | J21: 0 | K21: 0 | L21: 0 | M21: 0 | N21: 0 | O21: 0 | P21: 0 | Q21: 0 | R21: 0 | S21: 0 | Z21: 0 | AA21: 0
A22: ='Données de base'!A37 ->  | B22: =IFERROR(VLOOKUP(A22,Table_immeubles,MATCH($B$3,'Données de base'!$A$17:$I$17,0),FALSE),0) -> 0 | C22: =VLOOKUP(A22,Table_immeubles,MATCH($C$3,'Données de base'!$A$17:$I$17,0),FALSE) -> 0 | D22: =VLOOKUP(A22,Table_immeubles,MATCH($D$3,'Données de base'!$A$17:$I$17,0),FALSE) -> 0 | E22: =VLOOKUP(A22,Table_immeubles,MATCH($E$3,'Données de base'!$A$17:$I$17,0),FALSE) -> 0 | F22: =(VLOOKUP(A22,Table_immeubles,MATCH($F$3,'Données de base'!$A$17:$I$17,0),FALSE)) -> 0 | J22: =SUMIF(Sommaire_global,A22,Econ_kWh) -> 0 | K22: 0 | L22: 0 | M22: 0 | N22: 0 | O22: 0 | P22: 0 | Q22: 0 | R22: 0 | S22: 0 | Z22: 0 | AA22: 0
A23: ='Données de base'!A38 ->  | B23: =IFERROR(VLOOKUP(A23,Table_immeubles,MATCH($B$3,'Données de base'!$A$17:$I$17,0),FALSE),0) -> 0 | C23: =VLOOKUP(A23,Table_immeubles,MATCH($C$3,'Données de base'!$A$17:$I$17,0),FALSE) -> 0 | D23: =VLOOKUP(A23,Table_immeubles,MATCH($D$3,'Données de base'!$A$17:$I$17,0),FALSE) -> 0 | E23: =VLOOKUP(A23,Table_immeubles,MATCH($E$3,'Données de base'!$A$17:$I$17,0),FALSE) -> 0 | F23: =(VLOOKUP(A23,Table_immeubles,MATCH($F$3,'Données de base'!$A$17:$I$17,0),FALSE)) -> 0 | J23: 0 | K23: 0 | L23: 0 | M23: 0 | N23: 0 | O23: 0 | P23: 0 | Q23: 0 | R23: 0 | S23: 0 | Z23: 0 | AA23: 0
A24: ='Données de base'!A39 ->  | B24: =IFERROR(VLOOKUP(A24,Table_immeubles,MATCH($B$3,'Données de base'!$A$17:$I$17,0),FALSE),0) -> 0 | C24: =VLOOKUP(A24,Table_immeubles,MATCH($C$3,'Données de base'!$A$17:$I$17,0),FALSE) -> 0 | D24: =VLOOKUP(A24,Table_immeubles,MATCH($D$3,'Données de base'!$A$17:$I$17,0),FALSE) -> 0 | E24: =VLOOKUP(A24,Table_immeubles,MATCH($E$3,'Données de base'!$A$17:$I$17,0),FALSE) -> 0 | F24: =(VLOOKUP(A24,Table_immeubles,MATCH($F$3,'Données de base'!$A$17:$I$17,0),FALSE)) -> 0 | J24: 0 | K24: 0 | L24: 0 | M24: 0 | N24: 0 | O24: 0 | P24: 0 | Q24: 0 | R24: 0 | S24: 0 | Z24: 0 | AA24: 0
A25: ='Données de base'!A40 ->  | B25: =IFERROR(VLOOKUP(A25,Table_immeubles,MATCH($B$3,'Données de base'!$A$17:$I$17,0),FALSE),0) -> 0 | C25: =VLOOKUP(A25,Table_immeubles,MATCH($C$3,'Données de base'!$A$17:$I$17,0),FALSE) -> 0 | D25: =VLOOKUP(A25,Table_immeubles,MATCH($D$3,'Données de base'!$A$17:$I$17,0),FALSE) -> 0 | E25: =VLOOKUP(A25,Table_immeubles,MATCH($E$3,'Données de base'!$A$17:$I$17,0),FALSE) -> 0 | F25: =(VLOOKUP(A25,Table_immeubles,MATCH($F$3,'Données de base'!$A$17:$I$17,0),FALSE)) -> 0 | J25: 0 | K25: 0 | L25: 0 | M25: 0 | N25: 0 | O25: 0 | P25: 0 | Q25: 0 | R25: 0 | S25: 0 | Z25: 0 | AA25: 0
A26: ='Données de base'!A41 ->  | B26: =IFERROR(VLOOKUP(A26,Table_immeubles,MATCH($B$3,'Données de base'!$A$17:$I$17,0),FALSE),0) -> 0 | C26: =VLOOKUP(A26,Table_immeubles,MATCH($C$3,'Données de base'!$A$17:$I$17,0),FALSE) -> 0 | D26: =VLOOKUP(A26,Table_immeubles,MATCH($D$3,'Données de base'!$A$17:$I$17,0),FALSE) -> 0 | E26: =VLOOKUP(A26,Table_immeubles,MATCH($E$3,'Données de base'!$A$17:$I$17,0),FALSE) -> 0 | F26: =(VLOOKUP(A26,Table_immeubles,MATCH($F$3,'Données de base'!$A$17:$I$17,0),FALSE)) -> 0 | J26: 0 | K26: 0 | L26: 0 | M26: 0 | N26: 0 | O26: 0 | P26: 0 | Q26: 0 | R26: 0 | S26: 0 | Z26: 0 | AA26: 0
A27: ='Données de base'!A42 ->  | B27: =IFERROR(VLOOKUP(A27,Table_immeubles,MATCH($B$3,'Données de base'!$A$17:$I$17,0),FALSE),0) -> 0 | C27: =VLOOKUP(A27,Table_immeubles,MATCH($C$3,'Données de base'!$A$17:$I$17,0),FALSE) -> 0 | D27: =VLOOKUP(A27,Table_immeubles,MATCH($D$3,'Données de base'!$A$17:$I$17,0),FALSE) -> 0 | E27: =VLOOKUP(A27,Table_immeubles,MATCH($E$3,'Données de base'!$A$17:$I$17,0),FALSE) -> 0 | F27: =(VLOOKUP(A27,Table_immeubles,MATCH($F$3,'Données de base'!$A$17:$I$17,0),FALSE)) -> 0 | J27: 0 | K27: 0 | L27: 0 | M27: 0 | N27: 0 | O27: 0 | P27: 0 | Q27: 0 | R27: 0 | S27: 0 | Z27: 0 | AA27: 0
A28: ='Données de base'!A43 ->  | B28: =IFERROR(VLOOKUP(A28,Table_immeubles,MATCH($B$3,'Données de base'!$A$17:$I$17,0),FALSE),0) -> 0 | C28: =VLOOKUP(A28,Table_immeubles,MATCH($C$3,'Données de base'!$A$17:$I$17,0),FALSE) -> 0 | D28: =VLOOKUP(A28,Table_immeubles,MATCH($D$3,'Données de base'!$A$17:$I$17,0),FALSE) -> 0 | E28: =VLOOKUP(A28,Table_immeubles,MATCH($E$3,'Données de base'!$A$17:$I$17,0),FALSE) -> 0 | F28: =(VLOOKUP(A28,Table_immeubles,MATCH($F$3,'Données de base'!$A$17:$I$17,0),FALSE)) -> 0 | J28: =SUMIF(Sommaire_global,A28,Econ_kWh) -> 0 | K28: 0 | L28: 0 | M28: 0 | N28: 0 | O28: 0 | P28: 0 | Q28: 0 | R28: 0 | S28: 0 | Z28: 0 | AA28: 0
A29: ='Données de base'!A44 ->  | B29: =IFERROR(VLOOKUP(A29,Table_immeubles,MATCH($B$3,'Données de base'!$A$17:$I$17,0),FALSE),0) -> 0 | C29: =VLOOKUP(A29,Table_immeubles,MATCH($C$3,'Données de base'!$A$17:$I$17,0),FALSE) -> 0 | D29: =VLOOKUP(A29,Table_immeubles,MATCH($D$3,'Données de base'!$A$17:$I$17,0),FALSE) -> 0 | E29: =VLOOKUP(A29,Table_immeubles,MATCH($E$3,'Données de base'!$A$17:$I$17,0),FALSE) -> 0 | F29: =(VLOOKUP(A29,Table_immeubles,MATCH($F$3,'Données de base'!$A$17:$I$17,0),FALSE)) -> 0 | J29: 0 | K29: 0 | L29: 0 | M29: 0 | N29: 0 | O29: 0 | P29: 0 | Q29: 0 | R29: 0 | S29: 0 | Z29: 0 | AA29: 0
A30: ='Données de base'!A45 ->  | B30: =IFERROR(VLOOKUP(A30,Table_immeubles,MATCH($B$3,'Données de base'!$A$17:$I$17,0),FALSE),0) -> 0 | C30: =VLOOKUP(A30,Table_immeubles,MATCH($C$3,'Données de base'!$A$17:$I$17,0),FALSE) -> 0 | D30: =VLOOKUP(A30,Table_immeubles,MATCH($D$3,'Données de base'!$A$17:$I$17,0),FALSE) -> 0 | E30: =VLOOKUP(A30,Table_immeubles,MATCH($E$3,'Données de base'!$A$17:$I$17,0),FALSE) -> 0 | F30: =(VLOOKUP(A30,Table_immeubles,MATCH($F$3,'Données de base'!$A$17:$I$17,0),FALSE)) -> 0 | J30: 0 | K30: 0 | L30: 0 | M30: 0 | N30: 0 | O30: 0 | P30: 0 | Q30: 0 | R30: 0 | S30: 0 | Z30: 0 | AA30: 0
A31: ='Données de base'!A46 ->  | B31: =IFERROR(VLOOKUP(A31,Table_immeubles,MATCH($B$3,'Données de base'!$A$17:$I$17,0),FALSE),0) -> 0 | C31: =VLOOKUP(A31,Table_immeubles,MATCH($C$3,'Données de base'!$A$17:$I$17,0),FALSE) -> 0 | D31: =VLOOKUP(A31,Table_immeubles,MATCH($D$3,'Données de base'!$A$17:$I$17,0),FALSE) -> 0 | E31: =VLOOKUP(A31,Table_immeubles,MATCH($E$3,'Données de base'!$A$17:$I$17,0),FALSE) -> 0 | F31: =(VLOOKUP(A31,Table_immeubles,MATCH($F$3,'Données de base'!$A$17:$I$17,0),FALSE)) -> 0 | J31: 0 | K31: 0 | L31: 0 | M31: 0 | N31: 0 | O31: 0 | P31: 0 | Q31: 0 | R31: 0 | S31: 0 | Z31: 0 | AA31: 0
A32: ='Données de base'!A47 ->  | B32: =IFERROR(VLOOKUP(A32,Table_immeubles,MATCH($B$3,'Données de base'!$A$17:$I$17,0),FALSE),0) -> 0 | C32: =VLOOKUP(A32,Table_immeubles,MATCH($C$3,'Données de base'!$A$17:$I$17,0),FALSE) -> 0 | D32: =VLOOKUP(A32,Table_immeubles,MATCH($D$3,'Données de base'!$A$17:$I$17,0),FALSE) -> 0 | E32: =VLOOKUP(A32,Table_immeubles,MATCH($E$3,'Données de base'!$A$17:$I$17,0),FALSE) -> 0 | F32: =(VLOOKUP(A32,Table_immeubles,MATCH($F$3,'Données de base'!$A$17:$I$17,0),FALSE)) -> 0 | J32: 0 | K32: 0 | L32: 0 | M32: 0 | N32: 0 | O32: 0 | P32: 0 | Q32: 0 | R32: 0 | S32: 0 | Z32: 0 | AA32: 0
A33: ='Données de base'!A48 ->  | B33: =IFERROR(VLOOKUP(A33,Table_immeubles,MATCH($B$3,'Données de base'!$A$17:$I$17,0),FALSE),0) -> 0 | C33: =VLOOKUP(A33,Table_immeubles,MATCH($C$3,'Données de base'!$A$17:$I$17,0),FALSE) -> 0 | D33: =VLOOKUP(A33,Table_immeubles,MATCH($D$3,'Données de base'!$A$17:$I$17,0),FALSE) -> 0 | E33: =VLOOKUP(A33,Table_immeubles,MATCH($E$3,'Données de base'!$A$17:$I$17,0),FALSE) -> 0 | F33: =(VLOOKUP(A33,Table_immeubles,MATCH($F$3,'Données de base'!$A$17:$I$17,0),FALSE)) -> 0 | J33: 0 | K33: 0 | L33: 0 | M33: 0 | N33: 0 | O33: 0 | P33: 0 | Q33: 0 | R33: 0 | S33: 0 | Z33: 0 | AA33: 0
A34: ='Données de base'!A49 ->  | B34: =IFERROR(VLOOKUP(A34,Table_immeubles,MATCH($B$3,'Données de base'!$A$17:$I$17,0),FALSE),0) -> 0 | C34: =VLOOKUP(A34,Table_immeubles,MATCH($C$3,'Données de base'!$A$17:$I$17,0),FALSE) -> 0 | D34: =VLOOKUP(A34,Table_immeubles,MATCH($D$3,'Données de base'!$A$17:$I$17,0),FALSE) -> 0 | E34: =VLOOKUP(A34,Table_immeubles,MATCH($E$3,'Données de base'!$A$17:$I$17,0),FALSE) -> 0 | F34: =(VLOOKUP(A34,Table_immeubles,MATCH($F$3,'Données de base'!$A$17:$I$17,0),FALSE)) -> 0 | J34: 0 | K34: 0 | L34: 0 | M34: 0 | N34: 0 | O34: 0 | P34: 0 | Q34: 0 | R34: 0 | S34: 0 | Z34: 0 | AA34: 0
A35: ='Données de base'!A50 ->  | B35: =IFERROR(VLOOKUP(A35,Table_immeubles,MATCH($B$3,'Données de base'!$A$17:$I$17,0),FALSE),0) -> 0 | C35: =VLOOKUP(A35,Table_immeubles,MATCH($C$3,'Données de base'!$A$17:$I$17,0),FALSE) -> 0 | D35: =VLOOKUP(A35,Table_immeubles,MATCH($D$3,'Données de base'!$A$17:$I$17,0),FALSE) -> 0 | E35: =VLOOKUP(A35,Table_immeubles,MATCH($E$3,'Données de base'!$A$17:$I$17,0),FALSE) -> 0 | F35: =(VLOOKUP(A35,Table_immeubles,MATCH($F$3,'Données de base'!$A$17:$I$17,0),FALSE)) -> 0 | J35: 0 | K35: 0 | L35: 0 | M35: 0 | N35: 0 | O35: 0 | P35: 0 | Q35: 0 | R35: 0 | S35: 0 | Z35: 0 | AA35: 0
A36: ='Données de base'!A51 ->  | B36: =IFERROR(VLOOKUP(A36,Table_immeubles,MATCH($B$3,'Données de base'!$A$17:$I$17,0),FALSE),0) -> 0 | C36: =VLOOKUP(A36,Table_immeubles,MATCH($C$3,'Données de base'!$A$17:$I$17,0),FALSE) -> 0 | D36: =VLOOKUP(A36,Table_immeubles,MATCH($D$3,'Données de base'!$A$17:$I$17,0),FALSE) -> 0 | E36: =VLOOKUP(A36,Table_immeubles,MATCH($E$3,'Données de base'!$A$17:$I$17,0),FALSE) -> 0 | F36: =(VLOOKUP(A36,Table_immeubles,MATCH($F$3,'Données de base'!$A$17:$I$17,0),FALSE)) -> 0 | J36: =SUMIF(Sommaire_global,A36,Econ_kWh) -> 0 | K36: =SUMIF(Sommaire_global,A36,Econ_GN) -> 0 | L36: =SUMIF(Sommaire_global,A36,Econ_Mazout_no2) -> 0 | M36: =SUMIF(Sommaire_global,A36,Econ_Mazout_no6) -> 0 | N36: =SUMIF(Sommaire_global,A36,Econ_Propane) -> 0 | O36: =SUMIF(Sommaire_global,A36,Econ_Biomasse) -> 0 | P36: =SUMIF(Sommaire_global,A36,Econ_an_GJ) -> 0 | Q36: =SUMIF(Sommaire_global,A36,Econ_an_GES) -> 0 | R36: =SUMIF(Sommaire_global,A36,Econ_Elec_Puis) -> 0 | S36: =SUMIF(Sommaire_global,A36,Econ_an_dollars) -> 0 | W36: =IFERROR((T36-G36)/G36,"") ->  | X36: =IFERROR((U36-H36)/H36,"") ->  | Y36: =IFERROR((V36-I36)/I36,"") ->  | Z36: =SUMIF(Sommaire_global,A36,Cout_incl_FG) -> 0 | AA36: =SUMIF(Sommaire_global,A36,Cout_incl_AF) -> 0
A37: ='Données de base'!A52 ->  | B37: =IFERROR(VLOOKUP(A37,Table_immeubles,MATCH($B$3,'Données de base'!$A$17:$I$17,0),FALSE),0) -> 0 | C37: =VLOOKUP(A37,Table_immeubles,MATCH($C$3,'Données de base'!$A$17:$I$17,0),FALSE) -> 0 | D37: =VLOOKUP(A37,Table_immeubles,MATCH($D$3,'Données de base'!$A$17:$I$17,0),FALSE) -> 0 | E37: =VLOOKUP(A37,Table_immeubles,MATCH($E$3,'Données de base'!$A$17:$I$17,0),FALSE) -> 0 | F37: =(VLOOKUP(A37,Table_immeubles,MATCH($F$3,'Données de base'!$A$17:$I$17,0),FALSE)) -> 0 | J37: 0 | K37: 0 | L37: 0 | M37: 0 | N37: 0 | O37: 0 | P37: 0 | Q37: 0 | R37: 0 | S37: 0 | Z37: 0 | AA37: 0
A38: ='Données de base'!A53 ->  | B38: =IFERROR(VLOOKUP(A38,Table_immeubles,MATCH($B$3,'Données de base'!$A$17:$I$17,0),FALSE),0) -> 0 | C38: =VLOOKUP(A38,Table_immeubles,MATCH($C$3,'Données de base'!$A$17:$I$17,0),FALSE) -> 0 | D38: =VLOOKUP(A38,Table_immeubles,MATCH($D$3,'Données de base'!$A$17:$I$17,0),FALSE) -> 0 | E38: =VLOOKUP(A38,Table_immeubles,MATCH($E$3,'Données de base'!$A$17:$I$17,0),FALSE) -> 0 | F38: =(VLOOKUP(A38,Table_immeubles,MATCH($F$3,'Données de base'!$A$17:$I$17,0),FALSE)) -> 0 | J38: 0 | K38: 0 | L38: 0 | M38: 0 | N38: 0 | O38: 0 | P38: 0 | Q38: 0 | R38: 0 | S38: 0 | Z38: 0 | AA38: 0
A39: ='Données de base'!A54 ->  | B39: =IFERROR(VLOOKUP(A39,Table_immeubles,MATCH($B$3,'Données de base'!$A$17:$I$17,0),FALSE),0) -> 0 | C39: =VLOOKUP(A39,Table_immeubles,MATCH($C$3,'Données de base'!$A$17:$I$17,0),FALSE) -> 0 | D39: =VLOOKUP(A39,Table_immeubles,MATCH($D$3,'Données de base'!$A$17:$I$17,0),FALSE) -> 0 | E39: =VLOOKUP(A39,Table_immeubles,MATCH($E$3,'Données de base'!$A$17:$I$17,0),FALSE) -> 0 | F39: =(VLOOKUP(A39,Table_immeubles,MATCH($F$3,'Données de base'!$A$17:$I$17,0),FALSE)) -> 0 | J39: 0 | K39: 0 | L39: 0 | M39: 0 | N39: 0 | O39: 0 | P39: 0 | Q39: 0 | R39: 0 | S39: 0 | Z39: 0 | AA39: 0
A40: ='Données de base'!A55 ->  | B40: =IFERROR(VLOOKUP(A40,Table_immeubles,MATCH($B$3,'Données de base'!$A$17:$I$17,0),FALSE),0) -> 0 | C40: =VLOOKUP(A40,Table_immeubles,MATCH($C$3,'Données de base'!$A$17:$I$17,0),FALSE) -> 0 | D40: =VLOOKUP(A40,Table_immeubles,MATCH($D$3,'Données de base'!$A$17:$I$17,0),FALSE) -> 0 | E40: =VLOOKUP(A40,Table_immeubles,MATCH($E$3,'Données de base'!$A$17:$I$17,0),FALSE) -> 0 | F40: =(VLOOKUP(A40,Table_immeubles,MATCH($F$3,'Données de base'!$A$17:$I$17,0),FALSE)) -> 0 | J40: 0 | K40: 0 | L40: 0 | M40: 0 | N40: 0 | O40: 0 | P40: 0 | Q40: 0 | R40: 0 | S40: 0 | Z40: 0 | AA40: 0
A41: ='Données de base'!A56 ->  | B41: =IFERROR(VLOOKUP(A41,Table_immeubles,MATCH($B$3,'Données de base'!$A$17:$I$17,0),FALSE),0) -> 0 | C41: =VLOOKUP(A41,Table_immeubles,MATCH($C$3,'Données de base'!$A$17:$I$17,0),FALSE) -> 0 | D41: =VLOOKUP(A41,Table_immeubles,MATCH($D$3,'Données de base'!$A$17:$I$17,0),FALSE) -> 0 | E41: =VLOOKUP(A41,Table_immeubles,MATCH($E$3,'Données de base'!$A$17:$I$17,0),FALSE) -> 0 | F41: =(VLOOKUP(A41,Table_immeubles,MATCH($F$3,'Données de base'!$A$17:$I$17,0),FALSE)) -> 0 | J41: 0 | K41: 0 | L41: 0 | M41: 0 | N41: 0 | O41: 0 | P41: 0 | Q41: 0 | R41: 0 | S41: 0 | Z41: 0 | AA41: 0
A42: ='Données de base'!A57 ->  | B42: =IFERROR(VLOOKUP(A42,Table_immeubles,MATCH($B$3,'Données de base'!$A$17:$I$17,0),FALSE),0) -> 0 | C42: =VLOOKUP(A42,Table_immeubles,MATCH($C$3,'Données de base'!$A$17:$I$17,0),FALSE) -> 0 | D42: =VLOOKUP(A42,Table_immeubles,MATCH($D$3,'Données de base'!$A$17:$I$17,0),FALSE) -> 0 | E42: =VLOOKUP(A42,Table_immeubles,MATCH($E$3,'Données de base'!$A$17:$I$17,0),FALSE) -> 0 | F42: =(VLOOKUP(A42,Table_immeubles,MATCH($F$3,'Données de base'!$A$17:$I$17,0),FALSE)) -> 0 | J42: 0 | K42: 0 | L42: 0 | M42: 0 | N42: 0 | O42: 0 | P42: 0 | Q42: 0 | R42: 0 | S42: 0 | Z42: 0 | AA42: 0
A43: ='Données de base'!A58 ->  | B43: =IFERROR(VLOOKUP(A43,Table_immeubles,MATCH($B$3,'Données de base'!$A$17:$I$17,0),FALSE),0) -> 0 | C43: =VLOOKUP(A43,Table_immeubles,MATCH($C$3,'Données de base'!$A$17:$I$17,0),FALSE) -> 0 | D43: =VLOOKUP(A43,Table_immeubles,MATCH($D$3,'Données de base'!$A$17:$I$17,0),FALSE) -> 0 | E43: =VLOOKUP(A43,Table_immeubles,MATCH($E$3,'Données de base'!$A$17:$I$17,0),FALSE) -> 0 | F43: =(VLOOKUP(A43,Table_immeubles,MATCH($F$3,'Données de base'!$A$17:$I$17,0),FALSE)) -> 0 | J43: 0 | K43: 0 | L43: 0 | M43: 0 | N43: 0 | O43: 0 | P43: 0 | Q43: 0 | R43: 0 | S43: 0 | Z43: 0 | AA43: 0
A44: ='Données de base'!A59 ->  | B44: =IFERROR(VLOOKUP(A44,Table_immeubles,MATCH($B$3,'Données de base'!$A$17:$I$17,0),FALSE),0) -> 0 | C44: =VLOOKUP(A44,Table_immeubles,MATCH($C$3,'Données de base'!$A$17:$I$17,0),FALSE) -> 0 | D44: =VLOOKUP(A44,Table_immeubles,MATCH($D$3,'Données de base'!$A$17:$I$17,0),FALSE) -> 0 | E44: =VLOOKUP(A44,Table_immeubles,MATCH($E$3,'Données de base'!$A$17:$I$17,0),FALSE) -> 0 | F44: =(VLOOKUP(A44,Table_immeubles,MATCH($F$3,'Données de base'!$A$17:$I$17,0),FALSE)) -> 0 | J44: 0 | K44: 0 | L44: 0 | M44: 0 | N44: 0 | O44: 0 | P44: 0 | Q44: 0 | R44: 0 | S44: 0 | Z44: 0 | AA44: 0
A45: ='Données de base'!A60 ->  | B45: =IFERROR(VLOOKUP(A45,Table_immeubles,MATCH($B$3,'Données de base'!$A$17:$I$17,0),FALSE),0) -> 0 | C45: =VLOOKUP(A45,Table_immeubles,MATCH($C$3,'Données de base'!$A$17:$I$17,0),FALSE) -> 0 | D45: =VLOOKUP(A45,Table_immeubles,MATCH($D$3,'Données de base'!$A$17:$I$17,0),FALSE) -> 0 | E45: =VLOOKUP(A45,Table_immeubles,MATCH($E$3,'Données de base'!$A$17:$I$17,0),FALSE) -> 0 | F45: =(VLOOKUP(A45,Table_immeubles,MATCH($F$3,'Données de base'!$A$17:$I$17,0),FALSE)) -> 0 | J45: 0 | K45: 0 | L45: 0 | M45: 0 | N45: 0 | O45: 0 | P45: 0 | Q45: 0 | R45: 0 | S45: 0 | Z45: 0 | AA45: 0
A46: ='Données de base'!A61 ->  | B46: =IFERROR(VLOOKUP(A46,Table_immeubles,MATCH($B$3,'Données de base'!$A$17:$I$17,0),FALSE),0) -> 0 | C46: =VLOOKUP(A46,Table_immeubles,MATCH($C$3,'Données de base'!$A$17:$I$17,0),FALSE) -> 0 | D46: =VLOOKUP(A46,Table_immeubles,MATCH($D$3,'Données de base'!$A$17:$I$17,0),FALSE) -> 0 | E46: =VLOOKUP(A46,Table_immeubles,MATCH($E$3,'Données de base'!$A$17:$I$17,0),FALSE) -> 0 | F46: =(VLOOKUP(A46,Table_immeubles,MATCH($F$3,'Données de base'!$A$17:$I$17,0),FALSE)) -> 0 | J46: 0 | K46: 0 | L46: 0 | M46: 0 | N46: 0 | O46: 0 | P46: 0 | Q46: 0 | R46: 0 | S46: 0 | Z46: 0 | AA46: 0
A47: ='Données de base'!A62 ->  | B47: =IFERROR(VLOOKUP(A47,Table_immeubles,MATCH($B$3,'Données de base'!$A$17:$I$17,0),FALSE),0) -> 0 | C47: =VLOOKUP(A47,Table_immeubles,MATCH($C$3,'Données de base'!$A$17:$I$17,0),FALSE) -> 0 | D47: =VLOOKUP(A47,Table_immeubles,MATCH($D$3,'Données de base'!$A$17:$I$17,0),FALSE) -> 0 | E47: =VLOOKUP(A47,Table_immeubles,MATCH($E$3,'Données de base'!$A$17:$I$17,0),FALSE) -> 0 | F47: =(VLOOKUP(A47,Table_immeubles,MATCH($F$3,'Données de base'!$A$17:$I$17,0),FALSE)) -> 0 | J47: 0 | K47: 0 | L47: 0 | M47: 0 | N47: 0 | O47: 0 | P47: 0 | Q47: 0 | R47: 0 | S47: 0 | Z47: 0 | AA47: 0
A48: ='Données de base'!A63 ->  | B48: =IFERROR(VLOOKUP(A48,Table_immeubles,MATCH($B$3,'Données de base'!$A$17:$I$17,0),FALSE),0) -> 0 | C48: =VLOOKUP(A48,Table_immeubles,MATCH($C$3,'Données de base'!$A$17:$I$17,0),FALSE) -> 0 | D48: =VLOOKUP(A48,Table_immeubles,MATCH($D$3,'Données de base'!$A$17:$I$17,0),FALSE) -> 0 | E48: =VLOOKUP(A48,Table_immeubles,MATCH($E$3,'Données de base'!$A$17:$I$17,0),FALSE) -> 0 | F48: =(VLOOKUP(A48,Table_immeubles,MATCH($F$3,'Données de base'!$A$17:$I$17,0),FALSE)) -> 0 | J48: 0 | K48: 0 | L48: 0 | M48: 0 | N48: 0 | O48: 0 | P48: 0 | Q48: 0 | R48: 0 | S48: 0 | Z48: 0 | AA48: 0
A49: ='Données de base'!A64 ->  | B49: =IFERROR(VLOOKUP(A49,Table_immeubles,MATCH($B$3,'Données de base'!$A$17:$I$17,0),FALSE),0) -> 0 | C49: =VLOOKUP(A49,Table_immeubles,MATCH($C$3,'Données de base'!$A$17:$I$17,0),FALSE) -> 0 | D49: =VLOOKUP(A49,Table_immeubles,MATCH($D$3,'Données de base'!$A$17:$I$17,0),FALSE) -> 0 | E49: =VLOOKUP(A49,Table_immeubles,MATCH($E$3,'Données de base'!$A$17:$I$17,0),FALSE) -> 0 | F49: =(VLOOKUP(A49,Table_immeubles,MATCH($F$3,'Données de base'!$A$17:$I$17,0),FALSE)) -> 0 | J49: 0 | K49: 0 | L49: 0 | M49: 0 | N49: 0 | O49: 0 | P49: 0 | Q49: 0 | R49: 0 | S49: 0 | Z49: 0 | AA49: 0
A50: ='Données de base'!A65 ->  | B50: =IFERROR(VLOOKUP(A50,Table_immeubles,MATCH($B$3,'Données de base'!$A$17:$I$17,0),FALSE),0) -> 0 | C50: =VLOOKUP(A50,Table_immeubles,MATCH($C$3,'Données de base'!$A$17:$I$17,0),FALSE) -> 0 | D50: =VLOOKUP(A50,Table_immeubles,MATCH($D$3,'Données de base'!$A$17:$I$17,0),FALSE) -> 0 | E50: =VLOOKUP(A50,Table_immeubles,MATCH($E$3,'Données de base'!$A$17:$I$17,0),FALSE) -> 0 | F50: =(VLOOKUP(A50,Table_immeubles,MATCH($F$3,'Données de base'!$A$17:$I$17,0),FALSE)) -> 0 | J50: 0 | K50: 0 | L50: 0 | M50: 0 | N50: 0 | O50: 0 | P50: 0 | Q50: 0 | R50: 0 | S50: 0 | Z50: 0 | AA50: 0
A51: ='Données de base'!A66 ->  | B51: =IFERROR(VLOOKUP(A51,Table_immeubles,MATCH($B$3,'Données de base'!$A$17:$I$17,0),FALSE),0) -> 0 | C51: =VLOOKUP(A51,Table_immeubles,MATCH($C$3,'Données de base'!$A$17:$I$17,0),FALSE) -> 0 | D51: =VLOOKUP(A51,Table_immeubles,MATCH($D$3,'Données de base'!$A$17:$I$17,0),FALSE) -> 0 | E51: =VLOOKUP(A51,Table_immeubles,MATCH($E$3,'Données de base'!$A$17:$I$17,0),FALSE) -> 0 | F51: =(VLOOKUP(A51,Table_immeubles,MATCH($F$3,'Données de base'!$A$17:$I$17,0),FALSE)) -> 0 | J51: 0 | K51: 0 | L51: 0 | M51: 0 | N51: 0 | O51: 0 | P51: 0 | Q51: 0 | R51: 0 | S51: 0 | Z51: 0 | AA51: 0
A52: ='Données de base'!A67 ->  | B52: =IFERROR(VLOOKUP(A52,Table_immeubles,MATCH($B$3,'Données de base'!$A$17:$I$17,0),FALSE),0) -> 0 | C52: =VLOOKUP(A52,Table_immeubles,MATCH($C$3,'Données de base'!$A$17:$I$17,0),FALSE) -> 0 | D52: =VLOOKUP(A52,Table_immeubles,MATCH($D$3,'Données de base'!$A$17:$I$17,0),FALSE) -> 0 | E52: =VLOOKUP(A52,Table_immeubles,MATCH($E$3,'Données de base'!$A$17:$I$17,0),FALSE) -> 0 | F52: =(VLOOKUP(A52,Table_immeubles,MATCH($F$3,'Données de base'!$A$17:$I$17,0),FALSE)) -> 0 | J52: 0 | K52: 0 | L52: 0 | M52: 0 | N52: 0 | O52: 0 | P52: 0 | Q52: 0 | R52: 0 | S52: 0 | Z52: 0 | AA52: 0
A53: ='Données de base'!A68 ->  | B53: =IFERROR(VLOOKUP(A53,Table_immeubles,MATCH($B$3,'Données de base'!$A$17:$I$17,0),FALSE),0) -> 0 | C53: =VLOOKUP(A53,Table_immeubles,MATCH($C$3,'Données de base'!$A$17:$I$17,0),FALSE) -> 0 | D53: =VLOOKUP(A53,Table_immeubles,MATCH($D$3,'Données de base'!$A$17:$I$17,0),FALSE) -> 0 | E53: =VLOOKUP(A53,Table_immeubles,MATCH($E$3,'Données de base'!$A$17:$I$17,0),FALSE) -> 0 | F53: =(VLOOKUP(A53,Table_immeubles,MATCH($F$3,'Données de base'!$A$17:$I$17,0),FALSE)) -> 0 | J53: 0 | K53: 0 | L53: 0 | M53: 0 | N53: 0 | O53: 0 | P53: 0 | Q53: 0 | R53: 0 | S53: 0 | Z53: 0 | AA53: 0
A54: ='Données de base'!A69 ->  | B54: =IFERROR(VLOOKUP(A54,Table_immeubles,MATCH($B$3,'Données de base'!$A$17:$I$17,0),FALSE),0) -> 0 | C54: =VLOOKUP(A54,Table_immeubles,MATCH($C$3,'Données de base'!$A$17:$I$17,0),FALSE) -> 0 | D54: =VLOOKUP(A54,Table_immeubles,MATCH($D$3,'Données de base'!$A$17:$I$17,0),FALSE) -> 0 | E54: =VLOOKUP(A54,Table_immeubles,MATCH($E$3,'Données de base'!$A$17:$I$17,0),FALSE) -> 0 | F54: =(VLOOKUP(A54,Table_immeubles,MATCH($F$3,'Données de base'!$A$17:$I$17,0),FALSE)) -> 0 | J54: 0 | K54: 0 | L54: 0 | M54: 0 | N54: 0 | O54: 0 | P54: 0 | Q54: 0 | R54: 0 | S54: 0 | Z54: 0 | AA54: 0
A55: ='Données de base'!A70 ->  | B55: =IFERROR(VLOOKUP(A55,Table_immeubles,MATCH($B$3,'Données de base'!$A$17:$I$17,0),FALSE),0) -> 0 | C55: =VLOOKUP(A55,Table_immeubles,MATCH($C$3,'Données de base'!$A$17:$I$17,0),FALSE) -> 0 | D55: =VLOOKUP(A55,Table_immeubles,MATCH($D$3,'Données de base'!$A$17:$I$17,0),FALSE) -> 0 | E55: =VLOOKUP(A55,Table_immeubles,MATCH($E$3,'Données de base'!$A$17:$I$17,0),FALSE) -> 0 | F55: =(VLOOKUP(A55,Table_immeubles,MATCH($F$3,'Données de base'!$A$17:$I$17,0),FALSE)) -> 0 | J55: 0 | K55: 0 | L55: 0 | M55: 0 | N55: 0 | O55: 0 | P55: 0 | Q55: 0 | R55: 0 | S55: 0 | Z55: 0 | AA55: 0
A56: Tous | B56: =No_gen_etablissement -> 0 | G56: =IFERROR(D56/C56,"") ->  | H56: =IFERROR(E56/C56,"") ->  | I56: =IFERROR(F56/C56,"") ->  | AA56: =-Contribution_fin -> 0
A57: TOTAL | C57: =SUM(C4:C55) -> 0 | D57: =SUM(D4:D55) -> 0 | E57: 0 | F57: 0 | J57: =SUM(J4:J55) -> 0 | K57: =SUM(K4:K55) -> 0 | L57: 0 | M57: 0 | N57: 0 | O57: 0 | P57: 0 | Q57: 0 | R57: 0 | S57: =IF(SUM(S4:S55)=Cible_econ_energie_an,SUM(S4:S55),"Erreur de saisie!") -> 0 | T57: =IFERROR((D57-S57)/C57,"") ->  | U57: =IFERROR((E57-P57)/C57,"") ->  | V57: =IFERROR((F57-Q57)/C57,"") ->  | W57: =IFERROR((T57-G57)/G57,"") ->  | X57: =IFERROR((U57-H57)/H57,"") ->  | Y57: =IFERROR((V57-I57)/I57,"") ->  | Z57: =IF(SUM(Z4:Z55)=Valeur_du_contrat,SUM(Z4:Z55),"Erreur!") -> 0 | AA57: =SUM(AA4:AA56) -> 0 | AB57: =IFERROR(IF(Z57/S57<>'Sommaire coûts et économies'!BC206,"Erreur de saisie!",Z57/S57),"") ->  | AC57: =IFERROR(IF(AA57/S57<>'Sommaire coûts et économies'!BD206,"Dépassement de la PRI max autorisée !",AA57/S57),"") -> 

Sheet VAN garantie
A1: CALCUL DE LA VAN GARANTIE à inclure au contrat
B2: Valeur nominale | C2: Valeur actuelle | D2: Commentaires/justifications
A3: Date :
A4: Valeur du contrat | B4: =-Valeur_du_contrat -> 0 | C4: =B4 -> 0
A5: Frais de gestion interne | B5: =-FGI -> 0 | C5: =-VAN_FGI -> 0
A6: Provision globale pour la maintenance des équipements (PGME), base annuelle | B6: =-PGME -> 0 | C6: =-VAN_PGME -> 0
A7: Économies de coûts d'énergie projetées (annuelles) | B7: =Cible_econ_energie_an -> 0 | C7: =VA_econ_contrat -> 0
A8: Contribution financière de l'organisme | B8: =Contribution_fin -> 0 | C8: =B8 -> 0
A9: Aides financières | B9: =Aides_finan_totales -> 0 | C9: =VA_AF_Contrat -> 0
A10: Valeur actuelle nette (VAN) garantie | C10: =SUM(C4:C9) -> 0
A15: À l'usage exclusif de l'organisme
A16: Appuyez sur le bouton pour copier les valeurs des colonnes B, C et D dans les colonnes adjacentes.

Sheet VAN_econ_proj
A1: CALCUL DE LA VAN DES FLUX D'ÉCONOMIES DE COÛTS D'ÉNERGIE PROJETÉES (CONTRACTUELLES)
F2: Valeur actuelle | AF2: =DdC -> 2022-04-01 | AG2: =EDATE(AF2,AG3-1) -> 2022-05-01 | AH2: =EDATE(AG2,AH3-1) -> 2022-07-01 | AI2: =EDATE(AH2,AI3-1) -> 2022-10-01 | AJ2: 2023-02-01 | AK2: 2023-07-01 | AL2: 2024-01-01 | AM2: 2024-08-01 | AN2: 2025-04-01 | AO2: 2026-01-01 | AP2: 2026-11-01 | AQ2: 2027-10-01 | AR2: 2 | AS2: 2 | AT2: 2 | AU2: 2 | AV2: 2 | AW2: 2 | AX2: 2 | AY2: 2 | AZ2: 2 | BA2: 2 | BB2: 2 | BC2: 2 | BD2: 3 | BE2: 3 | BF2: 3 | BG2: 3 | BH2: 3 | BI2: 3 | BJ2: 3 | BK2: 3 | BL2: 3 | BM2: 3 | BN2: 3 | BO2: 3 | BP2: 4 | BQ2: 4 | BR2: 4 | BS2: 4 | BT2: 4 | BU2: 4 | BV2: 4 | BW2: 4 | BX2: 4 | BY2: 4 | BZ2: 4 | CA2: 4 | CB2: 5 | CC2: 5 | CD2: 5 | CE2: 5 | CF2: 5 | CG2: 5 | CH2: 5 | CI2: 5 | CJ2: 5 | CK2: 5 | CL2: 5 | CM2: 5 | CN2: 6 | CO2: 6 | CP2: 6 | CQ2: 6 | CR2: 6 | CS2: 6 | CT2: 6 | CU2: 6 | CV2: 6 | CW2: 6 | CX2: 6 | CY2: 6 | CZ2: 7 | DA2: 7 | DB2: 7 | DC2: 7 | DD2: 7 | DE2: 7 | DF2: 7 | DG2: 7 | DH2: 7 | DI2: 7 | DJ2: 7 | DK2: 7 | DL2: 8 | DM2: 8 | DN2: 8 | DO2: 8 | DP2: 8 | DQ2: 8 | DR2: 8 | DS2: 8 | DT2: 8 | DU2: 8 | DV2: 8 | DW2: 8 | DX2: 9 | DY2: 9 | DZ2: 9 | EA2: 9 | EB2: 9 | EC2: 9 | ED2: 9 | EE2: 9 | EF2: 9 | EG2: 9 | EH2: 9 | EI2: 9 | EJ2: 10 | EK2: 10 | EL2: 10 | EM2: 10 | EN2: 10 | EO2: 10 | EP2: 10 | EQ2: 10 | ER2: 10 | ES2: 10 | ET2: 10 | EU2: 10 | EV2: 11 | EW2: 11 | EX2: 11 | EY2: 11 | EZ2: 11 | FA2: 11 | FB2: 11 | FC2: 11 | FD2: 11 | FE2: 11 | FF2: 11 | FG2: 11 | FH2: 12 | FI2: 12 | FJ2: 12 | FK2: 12 | FL2: 12 | FM2: 12 | FN2: 12 | FO2: 12 | FP2: 12 | FQ2: 12 | FR2: 12 | FS2: 12 | FT2: 13 | FU2: 13 | FV2: 13 | FW2: 13 | FX2: 13 | FY2: 13 | FZ2: 13 | GA2: 13 | GB2: 13 | GC2: 13 | GD2: 13 | GE2: 13 | GF2: 14 | GG2: 14 | GH2: 14 | GI2: 14 | GJ2: 14 | GK2: 14 | GL2: 14 | GM2: 14 | GN2: 14 | GO2: 14 | GP2: 14 | GQ2: 14 | GR2: 15 | GS2: 15 | GT2: 15 | GU2: 15 | GV2: 15 | GW2: 15 | GX2: 15 | GY2: 15 | GZ2: 15 | HA2: 15 | HB2: 15 | HC2: 15 | HD2: 16 | HE2: 16 | HF2: 16 | HG2: 16 | HH2: 16 | HI2: 16 | HJ2: 16 | HK2: 16 | HL2: 16 | HM2: 16 | HN2: 16 | HO2: 16 | HP2: 17 | HQ2: 17 | HR2: 17 | HS2: 17 | HT2: 17 | HU2: 17 | HV2: 17 | HW2: 17 | HX2: 17 | HY2: 17 | HZ2: 17 | IA2: 17 | IB2: 18 | IC2: 18 | ID2: 18 | IE2: 18 | IF2: 18 | IG2: 18 | IH2: 18 | II2: 18 | IJ2: 18 | IK2: 18 | IL2: 18 | IM2: 18 | IN2: 19 | IO2: 19 | IP2: 19 | IQ2: 19 | IR2: 19 | IS2: 19 | IT2: 19 | IU2: 19 | IV2: 19 | IW2: 19 | IX2: 19 | IY2: 19 | IZ2: 20 | JA2: 20 | JB2: 20 | JC2: 20 | JD2: 20 | JE2: 20 | JF2: 20 | JG2: 20 | JH2: 20 | JI2: 20 | JJ2: 20 | JK2: 20 | JL2: =IZ2+1 -> 21 | JM2: =JA2+1 -> 21 | JN2: =JB2+1 -> 21 | JO2: 21 | JP2: 21 | JQ2: 21 | JR2: 21 | JS2: 21 | JT2: 21 | JU2: 21 | JV2: 21 | JW2: 21 | JX2: =JL2+1 -> 22 | JY2: =JM2+1 -> 22 | JZ2: =JN2+1 -> 22 | KA2: =JO2+1 -> 22 | KB2: =JP2+1 -> 22 | KC2: =JQ2+1 -> 22 | KD2: =JR2+1 -> 22 | KE2: =JS2+1 -> 22 | KF2: =JT2+1 -> 22 | KG2: =JU2+1 -> 22 | KH2: =JV2+1 -> 22 | KI2: =JW2+1 -> 22 | KJ2: =JX2+1 -> 23 | KK2: =JY2+1 -> 23 | KL2: =JZ2+1 -> 23 | KM2: =KA2+1 -> 23 | KN2: =KB2+1 -> 23 | KO2: =KC2+1 -> 23 | KP2: =KD2+1 -> 23 | KQ2: =KE2+1 -> 23 | KR2: =KF2+1 -> 23 | KS2: =KG2+1 -> 23 | KT2: =KH2+1 -> 23 | KU2: =KI2+1 -> 23 | KV2: =KJ2+1 -> 24 | KW2: =KK2+1 -> 24 | KX2: =KL2+1 -> 24 | KY2: =KM2+1 -> 24 | KZ2: =KN2+1 -> 24 | LA2: =KO2+1 -> 24 | LB2: =KP2+1 -> 24 | LC2: =KQ2+1 -> 24 | LD2: =KR2+1 -> 24 | LE2: =KS2+1 -> 24 | LF2: =KT2+1 -> 24 | LG2: =KU2+1 -> 24 | LH2: =KV2+1 -> 25 | LI2: =KW2+1 -> 25 | LJ2: =KX2+1 -> 25 | LK2: =KY2+1 -> 25 | LL2: =KZ2+1 -> 25 | LM2: =LA2+1 -> 25 | LN2: =LB2+1 -> 25 | LO2: =LC2+1 -> 25 | LP2: =LD2+1 -> 25 | LQ2: =LE2+1 -> 25 | LR2: =LF2+1 -> 25 | LS2: =LG2+1 -> 25
C3: Somme | F3: =Cycle_calcul_VAN -> 20 | G3: =-EcheancierMois -> -24 | H3: =G$3+1 -> -23 | I3: =H$3+1 -> -22 | J3: -21 | K3: -20 | L3: -19 | M3: -18 | N3: -17 | O3: -16 | P3: -15 | Q3: -14 | R3: -13 | S3: -12 | T3: -11 | U3: -10 | V3: -9 | W3: -8 | X3: -7 | Y3: -6 | Z3: -5 | AA3: -4 | AB3: =AA$3+1 -> -3 | AC3: =AB$3+1 -> -2 | AD3: -1 | AE3: 0 | AF3: 1 | AG3: 2 | AH3: 3 | AI3: 4 | AJ3: 5 | AK3: 6 | AL3: 7 | AM3: 8 | AN3: 9 | AO3: 10 | AP3: 11 | AQ3: 12 | AR3: 13 | AS3: 14 | AT3: 15 | AU3: 16 | AV3: 17 | AW3: 18 | AX3: 19 | AY3: 20 | AZ3: 21 | BA3: 22 | BB3: 23 | BC3: 24 | BD3: 25 | BE3: 26 | BF3: 27 | BG3: 28 | BH3: 29 | BI3: 30 | BJ3: 31 | BK3: 32 | BL3: 33 | BM3: 34 | BN3: 35 | BO3: 36 | BP3: 37 | BQ3: 38 | BR3: 39 | BS3: 40 | BT3: 41 | BU3: 42 | BV3: 43 | BW3: 44 | BX3: 45 | BY3: 46 | BZ3: 47 | CA3: 48 | CB3: 49 | CC3: 50 | CD3: 51 | CE3: 52 | CF3: 53 | CG3: 54 | CH3: 55 | CI3: 56 | CJ3: 57 | CK3: 58 | CL3: 59 | CM3: 60 | CN3: 61 | CO3: 62 | CP3: 63 | CQ3: 64 | CR3: 65 | CS3: 66 | CT3: 67 | CU3: 68 | CV3: 69 | CW3: 70 | CX3: 71 | CY3: 72 | CZ3: 73 | DA3: 74 | DB3: 75 | DC3: 76 | DD3: 77 | DE3: 78 | DF3: 79 | DG3: 80 | DH3: 81 | DI3: 82 | DJ3: 83 | DK3: 84 | DL3: 85 | DM3: 86 | DN3: 87 | DO3: 88 | DP3: 89 | DQ3: 90 | DR3: 91 | DS3: 92 | DT3: 93 | DU3: 94 | DV3: 95 | DW3: 96 | DX3: 97 | DY3: 98 | DZ3: 99 | EA3: 100 | EB3: 101 | EC3: 102 | ED3: 103 | EE3: 104 | EF3: 105 | EG3: 106 | EH3: 107 | EI3: 108 | EJ3: 109 | EK3: 110 | EL3: 111 | EM3: 112 | EN3: 113 | EO3: 114 | EP3: 115 | EQ3: 116 | ER3: 117 | ES3: 118 | ET3: 119 | EU3: 120 | EV3: 121 | EW3: 122 | EX3: 123 | EY3: 124 | EZ3: 125 | FA3: 126 | FB3: 127 | FC3: 128 | FD3: 129 | FE3: 130 | FF3: 131 | FG3: 132 | FH3: 133 | FI3: 134 | FJ3: 135 | FK3: 136 | FL3: 137 | FM3: 138 | FN3: 139 | FO3: 140 | FP3: 141 | FQ3: 142 | FR3: 143 | FS3: 144 | FT3: 145 | FU3: 146 | FV3: 147 | FW3: 148 | FX3: 149 | FY3: 150 | FZ3: 151 | GA3: 152 | GB3: 153 | GC3: 154 | GD3: 155 | GE3: 156 | GF3: 157 | GG3: 158 | GH3: 159 | GI3: 160 | GJ3: 161 | GK3: 162 | GL3: 163 | GM3: 164 | GN3: 165 | GO3: 166 | GP3: 167 | GQ3: 168 | GR3: 169 | GS3: 170 | GT3: 171 | GU3: 172 | GV3: 173 | GW3: 174 | GX3: 175 | GY3: 176 | GZ3: 177 | HA3: 178 | HB3: 179 | HC3: 180 | HD3: 181 | HE3: 182 | HF3: 183 | HG3: 184 | HH3: 185 | HI3: 186 | HJ3: 187 | HK3: 188 | HL3: 189 | HM3: 190 | HN3: 191 | HO3: 192 | HP3: 193 | HQ3: 194 | HR3: 195 | HS3: 196 | HT3: 197 | HU3: 198 | HV3: 199 | HW3: 200 | HX3: 201 | HY3: 202 | HZ3: 203 | IA3: 204 | IB3: 205 | IC3: 206 | ID3: 207 | IE3: 208 | IF3: 209 | IG3: 210 | IH3: 211 | II3: 212 | IJ3: 213 | IK3: 214 | IL3: 215 | IM3: 216 | IN3: 217 | IO3: 218 | IP3: 219 | IQ3: 220 | IR3: 221 | IS3: 222 | IT3: 223 | IU3: 224 | IV3: 225 | IW3: 226 | IX3: 227 | IY3: 228 | IZ3: 229 | JA3: 230 | JB3: 231 | JC3: 232 | JD3: 233 | JE3: 234 | JF3: 235 | JG3: 236 | JH3: 237 | JI3: 238 | JJ3: 239 | JK3: 240 | JL3: 241 | JM3: 242 | JN3: 243 | JO3: 244 | JP3: 245 | JQ3: 246 | JR3: 247 | JS3: 248 | JT3: 249 | JU3: 250 | JV3: 251 | JW3: 252 | JX3: 253 | JY3: 254 | JZ3: 255 | KA3: 256 | KB3: 257 | KC3: 258 | KD3: 259 | KE3: 260 | KF3: 261 | KG3: 262 | KH3: 263 | KI3: 264 | KJ3: 265 | KK3: 266 | KL3: 267 | KM3: 268 | KN3: 269 | KO3: 270 | KP3: 271 | KQ3: 272 | KR3: 273 | KS3: 274 | KT3: 275 | KU3: 276 | KV3: 277 | KW3: 278 | KX3: 279 | KY3: 280 | KZ3: 281 | LA3: 282 | LB3: 283 | LC3: 284 | LD3: 285 | LE3: 286 | LF3: 287 | LG3: 288 | LH3: 289 | LI3: 290 | LJ3: 291 | LK3: 292 | LL3: 293 | LM3: 294 | LN3: 295 | LO3: 296 | LP3: 297 | LQ3: 298 | LR3: 299 | LS3: 300
C4: Annuelles | D4: Cumulées | F4: =NPV(TA_mensuel_eq,G5:INDIRECT(ADDRESS(MATCH(C6,$C$1:$C$18,0),MATCH(Cycle_calcul_VAN*12,A3:LS3),,TRUE))) -> 0
A5: Économies de coûts d'énergie projetées | C5: =IF(Cible_econ_energie_an<>SUM(AF5:AQ5),"Erreur!",SUM(AF5:AQ5)) -> 0 | D5: =SUM(G5:HC5) -> 0 | F5: , | G5: 0 | H5: 0 | I5: 0 | J5: 0 | K5: 0 | L5: 0 | M5: 0 | N5: 0 | O5: 0 | P5: 0 | Q5: 0 | R5: 0 | S5: 0 | T5: 0 | U5: 0 | V5: 0 | W5: 0 | X5: 0 | Y5: 0 | Z5: 0 | AA5: 0 | AB5: 0 | AC5: 0 | AD5: 0 | AE5: 0 | AF5: =Cible_econ_energie_an/12 -> 0 | AG5: =AF5 -> 0 | AH5: =AG5 -> 0 | AI5: 0 | AJ5: 0 | AK5: 0 | AL5: 0 | AM5: 0 | AN5: 0 | AO5: 0 | AP5: 0 | AQ5: =AP5 -> 0 | AR5: 0 | AS5: 0 | AT5: =AS5 -> 0 | AU5: 0 | AV5: 0 | AW5: 0 | AX5: 0 | AY5: 0 | AZ5: 0 | BA5: =$AO$5 -> 0 | BB5: =$AP$5 -> 0 | BC5: =$AQ$5 -> 0 | BD5: =$AF$5 -> 0 | BE5: =$AG$5 -> 0 | BF5: =$AH$5 -> 0 | BG5: =$AI$5 -> 0 | BH5: =$AJ$5 -> 0 | BI5: =$AK$5 -> 0 | BJ5: =$AL$5 -> 0 | BK5: =$AM$5 -> 0 | BL5: =$AN$5 -> 0 | BM5: =$AO$5 -> 0 | BN5: =$AP$5 -> 0 | BO5: =$AQ$5 -> 0 | BP5: =$AF$5 -> 0 | BQ5: =$AG$5 -> 0 | BR5: =$AH$5 -> 0 | BS5: =$AI$5 -> 0 | BT5: =$AJ$5 -> 0 | BU5: =$AK$5 -> 0 | BV5: =$AL$5 -> 0 | BW5: =$AM$5 -> 0 | BX5: =$AN$5 -> 0 | BY5: =$AO$5 -> 0 | BZ5: =$AP$5 -> 0 | CA5: =$AQ$5 -> 0 | CB5: =$AF$5 -> 0 | CC5: =$AG$5 -> 0 | CD5: =$AH$5 -> 0 | CE5: =$AI$5 -> 0 | CF5: =$AJ$5 -> 0 | CG5: =$AK$5 -> 0 | CH5: =$AL$5 -> 0 | CI5: =$AM$5 -> 0 | CJ5: =$AN$5 -> 0 | CK5: =$AO$5 -> 0 | CL5: =$AP$5 -> 0 | CM5: =$AQ$5 -> 0 | CN5: =$AF$5 -> 0 | CO5: =$AG$5 -> 0 | CP5: =$AH$5 -> 0 | CQ5: =$AI$5 -> 0 | CR5: =$AJ$5 -> 0 | CS5: =$AK$5 -> 0 | CT5: =$AL$5 -> 0 | CU5: =$AM$5 -> 0 | CV5: =$AN$5 -> 0 | CW5: =$AO$5 -> 0 | CX5: =$AP$5 -> 0 | CY5: =$AQ$5 -> 0 | CZ5: =$AF$5 -> 0 | DA5: =$AG$5 -> 0 | DB5: =$AH$5 -> 0 | DC5: =$AI$5 -> 0 | DD5: =$AJ$5 -> 0 | DE5: =$AK$5 -> 0 | DF5: =$AL$5 -> 0 | DG5: =$AM$5 -> 0 | DH5: =$AN$5 -> 0 | DI5: =$AO$5 -> 0 | DJ5: =$AP$5 -> 0 | DK5: =$AQ$5 -> 0 | DL5: =$AF$5 -> 0 | DM5: =$AG$5 -> 0 | DN5: =$AH$5 -> 0 | DO5: =$AI$5 -> 0 | DP5: =$AJ$5 -> 0 | DQ5: =$AK$5 -> 0 | DR5: =$AL$5 -> 0 | DS5: =$AM$5 -> 0 | DT5: =$AN$5 -> 0 | DU5: =$AO$5 -> 0 | DV5: =$AP$5 -> 0 | DW5: =$AQ$5 -> 0 | DX5: =$AF$5 -> 0 | DY5: =$AG$5 -> 0 | DZ5: =$AH$5 -> 0 | EA5: =$AI$5 -> 0 | EB5: =$AJ$5 -> 0 | EC5: =$AK$5 -> 0 | ED5: =$AL$5 -> 0 | EE5: =$AM$5 -> 0 | EF5: =$AN$5 -> 0 | EG5: =$AO$5 -> 0 | EH5: =$AP$5 -> 0 | EI5: =$AQ$5 -> 0 | EJ5: =$AF$5 -> 0 | EK5: =$AG$5 -> 0 | EL5: =$AH$5 -> 0 | EM5: =$AI$5 -> 0 | EN5: =$AJ$5 -> 0 | EO5: =$AK$5 -> 0 | EP5: =$AL$5 -> 0 | EQ5: =$AM$5 -> 0 | ER5: =$AN$5 -> 0 | ES5: =$AO$5 -> 0 | ET5: =$AP$5 -> 0 | EU5: =$AQ$5 -> 0 | EV5: =$AF$5 -> 0 | EW5: =$AG$5 -> 0 | EX5: =$AH$5 -> 0 | EY5: =$AI$5 -> 0 | EZ5: =$AJ$5 -> 0 | FA5: =$AK$5 -> 0 | FB5: =$AL$5 -> 0 | FC5: =$AM$5 -> 0 | FD5: =$AN$5 -> 0 | FE5: =$AO$5 -> 0 | FF5: =$AP$5 -> 0 | FG5: =$AQ$5 -> 0 | FH5: =$AF$5 -> 0 | FI5: =$AG$5 -> 0 | FJ5: =$AH$5 -> 0 | FK5: =$AI$5 -> 0 | FL5: =$AJ$5 -> 0 | FM5: =$AK$5 -> 0 | FN5: =$AL$5 -> 0 | FO5: =$AM$5 -> 0 | FP5: =$AN$5 -> 0 | FQ5: =$AO$5 -> 0 | FR5: =$AP$5 -> 0 | FS5: =$AQ$5 -> 0 | FT5: =$AF$5 -> 0 | FU5: =$AG$5 -> 0 | FV5: =$AH$5 -> 0 | FW5: =$AI$5 -> 0 | FX5: =$AJ$5 -> 0 | FY5: =$AK$5 -> 0 | FZ5: =$AL$5 -> 0 | GA5: =$AM$5 -> 0 | GB5: =$AN$5 -> 0 | GC5: =$AO$5 -> 0 | GD5: =$AP$5 -> 0 | GE5: =$AQ$5 -> 0 | GF5: =$AF$5 -> 0 | GG5: =$AG$5 -> 0 | GH5: =$AH$5 -> 0 | GI5: =$AI$5 -> 0 | GJ5: =$AJ$5 -> 0 | GK5: =$AK$5 -> 0 | GL5: =$AL$5 -> 0 | GM5: =$AM$5 -> 0 | GN5: =$AN$5 -> 0 | GO5: =$AO$5 -> 0 | GP5: =$AP$5 -> 0 | GQ5: =$AQ$5 -> 0 | GR5: =$AF$5 -> 0 | GS5: =$AG$5 -> 0 | GT5: =$AH$5 -> 0 | GU5: =$AI$5 -> 0 | GV5: =$AJ$5 -> 0 | GW5: =$AK$5 -> 0 | GX5: =$AL$5 -> 0 | GY5: =$AM$5 -> 0 | GZ5: =$AN$5 -> 0 | HA5: =$AO$5 -> 0 | HB5: =$AP$5 -> 0 | HC5: =$AQ$5 -> 0 | HD5: =$AF$5 -> 0 | HE5: =$AG$5 -> 0 | HF5: =$AH$5 -> 0 | HG5: =$AI$5 -> 0 | HH5: =$AJ$5 -> 0 | HI5: =$AK$5 -> 0 | HJ5: =$AL$5 -> 0 | HK5: =$AM$5 -> 0 | HL5: =$AN$5 -> 0 | HM5: =$AO$5 -> 0 | HN5: =$AP$5 -> 0 | HO5: =$AQ$5 -> 0 | HP5: =$AF$5 -> 0 | HQ5: =$AG$5 -> 0 | HR5: =$AH$5 -> 0 | HS5: =$AI$5 -> 0 | HT5: =$AJ$5 -> 0 | HU5: =$AK$5 -> 0 | HV5: =$AL$5 -> 0 | HW5: =$AM$5 -> 0 | HX5: =$AN$5 -> 0 | HY5: =$AO$5 -> 0 | HZ5: =$AP$5 -> 0 | IA5: =$AQ$5 -> 0 | IB5: =$AF$5 -> 0 | IC5: =$AG$5 -> 0 | ID5: =$AH$5 -> 0 | IE5: =$AI$5 -> 0 | IF5: =$AJ$5 -> 0 | IG5: =$AK$5 -> 0 | IH5: =$AL$5 -> 0 | II5: =$AM$5 -> 0 | IJ5: =$AN$5 -> 0 | IK5: =$AO$5 -> 0 | IL5: =$AP$5 -> 0 | IM5: =$AQ$5 -> 0 | IN5: =$AF$5 -> 0 | IO5: =$AG$5 -> 0 | IP5: =$AH$5 -> 0 | IQ5: =$AI$5 -> 0 | IR5: =$AJ$5 -> 0 | IS5: =$AK$5 -> 0 | IT5: =$AL$5 -> 0 | IU5: =$AM$5 -> 0 | IV5: =$AN$5 -> 0 | IW5: =$AO$5 -> 0 | IX5: =$AP$5 -> 0 | IY5: =$AQ$5 -> 0 | IZ5: =$AF$5 -> 0 | JA5: =$AG$5 -> 0 | JB5: =$AH$5 -> 0 | JC5: =$AI$5 -> 0 | JD5: =$AJ$5 -> 0 | JE5: =$AK$5 -> 0 | JF5: =$AL$5 -> 0 | JG5: =$AM$5 -> 0 | JH5: =$AN$5 -> 0 | JI5: =$AO$5 -> 0 | JJ5: =$AP$5 -> 0 | JK5: =$AQ$5 -> 0 | JL5: =$AF$5 -> 0 | JM5: =$AG$5 -> 0 | JN5: =$AH$5 -> 0 | JO5: =$AI$5 -> 0 | JP5: =$AJ$5 -> 0 | JQ5: =$AK$5 -> 0 | JR5: =$AL$5 -> 0 | JS5: =$AM$5 -> 0 | JT5: =$AN$5 -> 0 | JU5: =$AO$5 -> 0 | JV5: =$AP$5 -> 0 | JW5: =$AQ$5 -> 0 | JX5: =$AF$5 -> 0 | JY5: =$AG$5 -> 0 | JZ5: =$AH$5 -> 0 | KA5: =$AI$5 -> 0 | KB5: =$AJ$5 -> 0 | KC5: =$AK$5 -> 0 | KD5: =$AL$5 -> 0 | KE5: =$AM$5 -> 0 | KF5: =$AN$5 -> 0 | KG5: =$AO$5 -> 0 | KH5: =$AP$5 -> 0 | KI5: =$AQ$5 -> 0 | KJ5: =$AF$5 -> 0 | KK5: =$AG$5 -> 0 | KL5: =$AH$5 -> 0 | KM5: =$AI$5 -> 0 | KN5: =$AJ$5 -> 0 | KO5: =$AK$5 -> 0 | KP5: =$AL$5 -> 0 | KQ5: =$AM$5 -> 0 | KR5: =$AN$5 -> 0 | KS5: =$AO$5 -> 0 | KT5: =$AP$5 -> 0 | KU5: =$AQ$5 -> 0 | KV5: =$AF$5 -> 0 | KW5: =$AG$5 -> 0 | KX5: =$AH$5 -> 0 | KY5: =$AI$5 -> 0 | KZ5: =$AJ$5 -> 0 | LA5: =$AK$5 -> 0 | LB5: =$AL$5 -> 0 | LC5: =$AM$5 -> 0 | LD5: =$AN$5 -> 0 | LE5: =$AO$5 -> 0 | LF5: =$AP$5 -> 0 | LG5: =$AQ$5 -> 0 | LH5: =$AF$5 -> 0 | LI5: =$AG$5 -> 0 | LJ5: =$AH$5 -> 0 | LK5: =$AI$5 -> 0 | LL5: =$AJ$5 -> 0 | LM5: =$AK$5 -> 0 | LN5: =$AL$5 -> 0 | LO5: =$AM$5 -> 0 | LP5: =$AN$5 -> 0 | LQ5: =$AO$5 -> 0 | LR5: =$AP$5 -> 0 | LS5: =$AQ$5 -> 0
C6: 0

Sheet VAN_econ_réelles
A1: CALCUL DE LA VAN DES FLUX D'ÉCONOMIES DE COÛTS D'ÉNERGIE RÉELLES
A2: AdS | B2: 1 | F2: Valeur actuelle | AF2: Date de commencement | AG2: 1 | AH2: 1 | AI2: 1 | AJ2: 1 | AK2: 1 | AL2: 1 | AM2: 1 | AN2: 1 | AO2: 1 | AP2: 1 | AQ2: 1 | AR2: 2 | AS2: 2 | AT2: 2 | AU2: 2 | AV2: 2 | AW2: 2 | AX2: 2 | AY2: 2 | AZ2: 2 | BA2: 2 | BB2: 2 | BC2: 2 | BD2: 3 | BE2: 3 | BF2: 3 | BG2: 3 | BH2: 3 | BI2: 3 | BJ2: 3 | BK2: 3 | BL2: 3 | BM2: 3 | BN2: 3 | BO2: 3 | BP2: 4 | BQ2: 4 | BR2: 4 | BS2: 4 | BT2: 4 | BU2: 4 | BV2: 4 | BW2: 4 | BX2: 4 | BY2: 4 | BZ2: 4 | CA2: 4 | CB2: 5 | CC2: 5 | CD2: 5 | CE2: 5 | CF2: 5 | CG2: 5 | CH2: 5 | CI2: 5 | CJ2: 5 | CK2: 5 | CL2: 5 | CM2: 5 | CN2: 6 | CO2: 6 | CP2: 6 | CQ2: 6 | CR2: 6 | CS2: 6 | CT2: 6 | CU2: 6 | CV2: 6 | CW2: 6 | CX2: 6 | CY2: 6 | CZ2: 7 | DA2: 7 | DB2: 7 | DC2: 7 | DD2: 7 | DE2: 7 | DF2: 7 | DG2: 7 | DH2: 7 | DI2: 7 | DJ2: 7 | DK2: 7 | DL2: 8 | DM2: 8 | DN2: 8 | DO2: 8 | DP2: 8 | DQ2: 8 | DR2: 8 | DS2: 8 | DT2: 8 | DU2: 8 | DV2: 8 | DW2: 8 | DX2: 9 | DY2: 9 | DZ2: 9 | EA2: 9 | EB2: 9 | EC2: 9 | ED2: 9 | EE2: 9 | EF2: 9 | EG2: 9 | EH2: 9 | EI2: 9 | EJ2: 10 | EK2: 10 | EL2: 10 | EM2: 10 | EN2: 10 | EO2: 10 | EP2: 10 | EQ2: 10 | ER2: 10 | ES2: 10 | ET2: 10 | EU2: 10 | EV2: 11 | EW2: 11 | EX2: 11 | EY2: 11 | EZ2: 11 | FA2: 11 | FB2: 11 | FC2: 11 | FD2: 11 | FE2: 11 | FF2: 11 | FG2: 11 | FH2: 12 | FI2: 12 | FJ2: 12 | FK2: 12 | FL2: 12 | FM2: 12 | FN2: 12 | FO2: 12 | FP2: 12 | FQ2: 12 | FR2: 12 | FS2: 12 | FT2: 13 | FU2: 13 | FV2: 13 | FW2: 13 | FX2: 13 | FY2: 13 | FZ2: 13 | GA2: 13 | GB2: 13 | GC2: 13 | GD2: 13 | GE2: 13 | GF2: 14 | GG2: 14 | GH2: 14 | GI2: 14 | GJ2: 14 | GK2: 14 | GL2: 14 | GM2: 14 | GN2: 14 | GO2: 14 | GP2: 14 | GQ2: 14 | GR2: 15 | GS2: 15 | GT2: 15 | GU2: 15 | GV2: 15 | GW2: 15 | GX2: 15 | GY2: 15 | GZ2: 15 | HA2: 15 | HB2: 15 | HC2: 15 | HD2: 16 | HE2: 16 | HF2: 16 | HG2: 16 | HH2: 16 | HI2: 16 | HJ2: 16 | HK2: 16 | HL2: 16 | HM2: 16 | HN2: 16 | HO2: 16 | HP2: 17 | HQ2: 17 | HR2: 17 | HS2: 17 | HT2: 17 | HU2: 17 | HV2: 17 | HW2: 17 | HX2: 17 | HY2: 17 | HZ2: 17 | IA2: 17 | IB2: 18 | IC2: 18 | ID2: 18 | IE2: 18 | IF2: 18 | IG2: 18 | IH2: 18 | II2: 18 | IJ2: 18 | IK2: 18 | IL2: 18 | IM2: 18 | IN2: 19 | IO2: 19 | IP2: 19 | IQ2: 19 | IR2: 19 | IS2: 19 | IT2: 19 | IU2: 19 | IV2: 19 | IW2: 19 | IX2: 19 | IY2: 19 | IZ2: 20 | JA2: 20 | JB2: 20 | JC2: 20 | JD2: 20 | JE2: 20 | JF2: 20 | JG2: 20 | JH2: 20 | JI2: 20 | JJ2: 20 | JK2: 20 | JL2: =IZ2+1 -> 21 | JM2: =JA2+1 -> 21 | JN2: 21 | JO2: 21 | JP2: 21 | JQ2: 21 | JR2: 21 | JS2: 21 | JT2: 21 | JU2: 21 | JV2: =JJ2+1 -> 21 | JW2: =JK2+1 -> 21 | JX2: =JL2+1 -> 22 | JY2: =JM2+1 -> 22 | JZ2: =JN2+1 -> 22 | KA2: =JO2+1 -> 22 | KB2: =JP2+1 -> 22 | KC2: =JQ2+1 -> 22 | KD2: =JR2+1 -> 22 | KE2: =JS2+1 -> 22 | KF2: =JT2+1 -> 22 | KG2: =JU2+1 -> 22 | KH2: =JV2+1 -> 22 | KI2: =JW2+1 -> 22 | KJ2: =JX2+1 -> 23 | KK2: =JY2+1 -> 23 | KL2: =JZ2+1 -> 23 | KM2: =KA2+1 -> 23 | KN2: =KB2+1 -> 23 | KO2: =KC2+1 -> 23 | KP2: =KD2+1 -> 23 | KQ2: =KE2+1 -> 23 | KR2: =KF2+1 -> 23 | KS2: =KG2+1 -> 23 | KT2: =KH2+1 -> 23 | KU2: =KI2+1 -> 23 | KV2: =KJ2+1 -> 24 | KW2: =KK2+1 -> 24 | KX2: =KL2+1 -> 24 | KY2: =KM2+1 -> 24 | KZ2: =KN2+1 -> 24 | LA2: =KO2+1 -> 24 | LB2: =KP2+1 -> 24 | LC2: =KQ2+1 -> 24 | LD2: =KR2+1 -> 24 | LE2: =KS2+1 -> 24 | LF2: =KT2+1 -> 24 | LG2: =KU2+1 -> 24 | LH2: =KV2+1 -> 25 | LI2: =KW2+1 -> 25 | LJ2: =KX2+1 -> 25 | LK2: =KY2+1 -> 25 | LL2: =KZ2+1 -> 25 | LM2: =LA2+1 -> 25 | LN2: =LB2+1 -> 25 | LO2: =LC2+1 -> 25 | LP2: =LD2+1 -> 25 | LQ2: =LE2+1 -> 25 | LR2: =LF2+1 -> 25 | LS2: =LG2+1 -> 25
C3: Cible | D3: Atteint | E3: % | F3: =Cycle_calcul_VAN -> 20 | G3: =-(EcheancierMois+VariationMois) -> -24 | H3: =G$3+1 -> -23 | I3: =H$3+1 -> -22 | J3: -21 | K3: -20 | L3: -19 | M3: -18 | N3: -17 | O3: -16 | P3: -15 | Q3: -14 | R3: -13 | S3: -12 | T3: -11 | U3: -10 | V3: -9 | W3: -8 | X3: -7 | Y3: -6 | Z3: -5 | AA3: -4 | AB3: =AA$3+1 -> -3 | AC3: =AB$3+1 -> -2 | AD3: -1 | AE3: 0 | AF3: 1 | AG3: 2 | AH3: 3 | AI3: 4 | AJ3: 5 | AK3: 6 | AL3: 7 | AM3: 8 | AN3: 9 | AO3: 10 | AP3: 11 | AQ3: 12 | AR3: 13 | AS3: 14 | AT3: 15 | AU3: 16 | AV3: 17 | AW3: 18 | AX3: 19 | AY3: 20 | AZ3: 21 | BA3: 22 | BB3: 23 | BC3: 24 | BD3: 25 | BE3: 26 | BF3: 27 | BG3: 28 | BH3: 29 | BI3: 30 | BJ3: 31 | BK3: 32 | BL3: 33 | BM3: 34 | BN3: 35 | BO3: 36 | BP3: 37 | BQ3: 38 | BR3: 39 | BS3: 40 | BT3: 41 | BU3: 42 | BV3: 43 | BW3: 44 | BX3: 45 | BY3: 46 | BZ3: 47 | CA3: 48 | CB3: 49 | CC3: 50 | CD3: 51 | CE3: 52 | CF3: 53 | CG3: 54 | CH3: 55 | CI3: 56 | CJ3: 57 | CK3: 58 | CL3: 59 | CM3: 60 | CN3: 61 | CO3: 62 | CP3: 63 | CQ3: 64 | CR3: 65 | CS3: 66 | CT3: 67 | CU3: 68 | CV3: 69 | CW3: 70 | CX3: 71 | CY3: 72 | CZ3: 73 | DA3: 74 | DB3: 75 | DC3: 76 | DD3: 77 | DE3: 78 | DF3: 79 | DG3: 80 | DH3: 81 | DI3: 82 | DJ3: 83 | DK3: 84 | DL3: 85 | DM3: 86 | DN3: 87 | DO3: 88 | DP3: 89 | DQ3: 90 | DR3: 91 | DS3: 92 | DT3: 93 | DU3: 94 | DV3: 95 | DW3: 96 | DX3: 97 | DY3: 98 | DZ3: 99 | EA3: 100 | EB3: 101 | EC3: 102 | ED3: 103 | EE3: 104 | EF3: 105 | EG3: 106 | EH3: 107 | EI3: 108 | EJ3: 109 | EK3: 110 | EL3: 111 | EM3: 112 | EN3: 113 | EO3: 114 | EP3: 115 | EQ3: 116 | ER3: 117 | ES3: 118 | ET3: 119 | EU3: 120 | EV3: 121 | EW3: 122 | EX3: 123 | EY3: 124 | EZ3: 125 | FA3: 126 | FB3: 127 | FC3: 128 | FD3: 129 | FE3: 130 | FF3: 131 | FG3: 132 | FH3: 133 | FI3: 134 | FJ3: 135 | FK3: 136 | FL3: 137 | FM3: 138 | FN3: 139 | FO3: 140 | FP3: 141 | FQ3: 142 | FR3: 143 | FS3: 144 | FT3: 145 | FU3: 146 | FV3: 147 | FW3: 148 | FX3: 149 | FY3: 150 | FZ3: 151 | GA3: 152 | GB3: 153 | GC3: 154 | GD3: 155 | GE3: 156 | GF3: 157 | GG3: 158 | GH3: 159 | GI3: 160 | GJ3: 161 | GK3: 162 | GL3: 163 | GM3: 164 | GN3: 165 | GO3: 166 | GP3: 167 | GQ3: 168 | GR3: 169 | GS3: 170 | GT3: 171 | GU3: 172 | GV3: 173 | GW3: 174 | GX3: 175 | GY3: 176 | GZ3: 177 | HA3: 178 | HB3: 179 | HC3: 180 | HD3: 181 | HE3: 182 | HF3: 183 | HG3: 184 | HH3: 185 | HI3: 186 | HJ3: 187 | HK3: 188 | HL3: 189 | HM3: 190 | HN3: 191 | HO3: 192 | HP3: 193 | HQ3: 194 | HR3: 195 | HS3: 196 | HT3: 197 | HU3: 198 | HV3: 199 | HW3: 200 | HX3: 201 | HY3: 202 | HZ3: 203 | IA3: 204 | IB3: 205 | IC3: 206 | ID3: 207 | IE3: 208 | IF3: 209 | IG3: 210 | IH3: 211 | II3: 212 | IJ3: 213 | IK3: 214 | IL3: 215 | IM3: 216 | IN3: 217 | IO3: 218 | IP3: 219 | IQ3: 220 | IR3: 221 | IS3: 222 | IT3: 223 | IU3: 224 | IV3: 225 | IW3: 226 | IX3: 227 | IY3: 228 | IZ3: 229 | JA3: 230 | JB3: 231 | JC3: 232 | JD3: 233 | JE3: 234 | JF3: 235 | JG3: 236 | JH3: 237 | JI3: 238 | JJ3: 239 | JK3: 240 | JL3: 241 | JM3: 242 | JN3: 243 | JO3: 244 | JP3: 245 | JQ3: 246 | JR3: 247 | JS3: 248 | JT3: 249 | JU3: 250 | JV3: 251 | JW3: 252 | JX3: 253 | JY3: 254 | JZ3: 255 | KA3: 256 | KB3: 257 | KC3: 258 | KD3: 259 | KE3: 260 | KF3: 261 | KG3: 262 | KH3: 263 | KI3: 264 | KJ3: 265 | KK3: 266 | KL3: 267 | KM3: 268 | KN3: 269 | KO3: 270 | KP3: 271 | KQ3: 272 | KR3: 273 | KS3: 274 | KT3: 275 | KU3: 276 | KV3: 277 | KW3: 278 | KX3: 279 | KY3: 280 | KZ3: 281 | LA3: 282 | LB3: 283 | LC3: 284 | LD3: 285 | LE3: 286 | LF3: 287 | LG3: 288 | LH3: 289 | LI3: 290 | LJ3: 291 | LK3: 292 | LL3: 293 | LM3: 294 | LN3: 295 | LO3: 296 | LP3: 297 | LQ3: 298 | LR3: 299 | LS3: 300
A4: Économies de coûts d'énergie réelles | C4: =VAN_econ_proj!$C$5 -> 0 | D4: =SUM(Econ_AdS_1) -> 0 | E4: =IFERROR(D4/C4,"") ->  | F4: =NPV(TA_mensuel_eq,G4:LS4,G5:INDIRECT(ADDRESS(MATCH(C5,$C$1:$C$48,0),MATCH(Cycle_calcul_VAN*12,A3:LS3),,TRUE))) -> 0 | G4: 0 | H4: 0 | I4: 0 | J4: 0 | K4: 0 | L4: 0 | M4: 0 | N4: 0 | O4: 0 | P4: 0 | Q4: 0 | R4: 0 | S4: 0 | T4: 0 | U4: 0 | V4: 0 | W4: 0 | X4: 0 | Y4: 0 | Z4: 0 | AA4: 0 | AB4: 0 | AC4: 0 | AD4: 0 | AE4: 0
A5: Économies de coûts d'énergie projetées | C5: 1 | D5: =SUM(G5:HC5) -> 0 | E5: =SUM(G4:HC4) -> 0 | AR5: =IF(AR3>$B2*12,HLOOKUP(AR3-(AR2-$B2)*12,Table_AdS_1,2,FALSE),"") -> 0 | AS5: 0 | AT5: 0 | AU5: 0 | AV5: 0 | AW5: 0 | AX5: 0 | AY5: 0 | AZ5: 0 | BA5: 0 | BB5: 0 | BC5: 0 | BD5: 0 | BE5: 0 | BF5: 0 | BG5: 0 | BH5: 0 | BI5: 0 | BJ5: 0 | BK5: 0 | BL5: 0 | BM5: 0 | BN5: 0 | BO5: 0 | BP5: 0 | BQ5: 0 | BR5: 0 | BS5: 0 | BT5: 0 | BU5: 0 | BV5: 0 | BW5: 0 | BX5: 0 | BY5: 0 | BZ5: 0 | CA5: 0 | CB5: 0 | CC5: 0 | CD5: 0 | CE5: 0 | CF5: 0 | CG5: 0 | CH5: 0 | CI5: 0 | CJ5: 0 | CK5: 0 | CL5: 0 | CM5: 0 | CN5: 0 | CO5: 0 | CP5: 0 | CQ5: 0 | CR5: 0 | CS5: 0 | CT5: 0 | CU5: 0 | CV5: 0 | CW5: 0 | CX5: 0 | CY5: 0 | CZ5: 0 | DA5: 0 | DB5: 0 | DC5: 0 | DD5: =IF(DD3>$B2*12,HLOOKUP(DD3-(DD2-$B2)*12,Table_AdS_1,2,FALSE),"") -> 0 | DE5: 0 | DF5: 0 | DG5: 0 | DH5: 0 | DI5: 0 | DJ5: 0 | DK5: 0 | DL5: 0 | DM5: 0 | DN5: 0 | DO5: 0 | DP5: 0 | DQ5: 0 | DR5: 0 | DS5: 0 | DT5: 0 | DU5: 0 | DV5: 0 | DW5: 0 | DX5: 0 | DY5: 0 | DZ5: 0 | EA5: 0 | EB5: 0 | EC5: 0 | ED5: 0 | EE5: 0 | EF5: 0 | EG5: 0 | EH5: 0 | EI5: 0 | EJ5: 0 | EK5: 0 | EL5: 0 | EM5: 0 | EN5: 0 | EO5: 0 | EP5: 0 | EQ5: 0 | ER5: 0 | ES5: 0 | ET5: 0 | EU5: 0 | EV5: 0 | EW5: 0 | EX5: 0 | EY5: 0 | EZ5: 0 | FA5: 0 | FB5: 0 | FC5: 0 | FD5: 0 | FE5: 0 | FF5: 0 | FG5: 0 | FH5: 0 | FI5: 0 | FJ5: 0 | FK5: 0 | FL5: 0 | FM5: 0 | FN5: 0 | FO5: 0 | FP5: =IF(FP3>$B2*12,HLOOKUP(FP3-(FP2-$B2)*12,Table_AdS_1,2,FALSE),"") -> 0 | FQ5: 0 | FR5: 0 | FS5: 0 | FT5: 0 | FU5: 0 | FV5: 0 | FW5: 0 | FX5: 0 | FY5: 0 | FZ5: 0 | GA5: 0 | GB5: 0 | GC5: 0 | GD5: 0 | GE5: 0 | GF5: 0 | GG5: 0 | GH5: 0 | GI5: 0 | GJ5: 0 | GK5: 0 | GL5: 0 | GM5: 0 | GN5: 0 | GO5: 0 | GP5: 0 | GQ5: 0 | GR5: 0 | GS5: 0 | GT5: 0 | GU5: 0 | GV5: 0 | GW5: 0 | GX5: 0 | GY5: 0 | GZ5: 0 | HA5: 0 | HB5: 0 | HC5: 0 | HD5: 0 | HE5: 0 | HF5: 0 | HG5: 0 | HH5: 0 | HI5: 0 | HJ5: 0 | HK5: 0 | HL5: 0 | HM5: 0 | HN5: 0 | HO5: 0 | HP5: 0 | HQ5: 0 | HR5: 0 | HS5: 0 | HT5: 0 | HU5: 0 | HV5: 0 | HW5: 0 | HX5: 0 | HY5: 0 | HZ5: 0 | IA5: 0 | IB5: =IF(IB3>$B2*12,HLOOKUP(IB3-(IB2-$B2)*12,Table_AdS_1,2,FALSE),"") -> 0 | IC5: 0 | ID5: 0 | IE5: 0 | IF5: 0 | IG5: 0 | IH5: 0 | II5: 0 | IJ5: 0 | IK5: 0 | IL5: 0 | IM5: 0 | IN5: 0 | IO5: 0 | IP5: 0 | IQ5: 0 | IR5: 0 | IS5: 0 | IT5: 0 | IU5: 0 | IV5: 0 | IW5: 0 | IX5: 0 | IY5: 0 | IZ5: 0 | JA5: 0 | JB5: 0 | JC5: 0 | JD5: 0 | JE5: 0 | JF5: 0 | JG5: 0 | JH5: 0 | JI5: 0 | JJ5: 0 | JK5: 0 | JL5: =IF(JL3>$B2*12,HLOOKUP(JL3-(JL2-$B2)*12,Table_AdS_1,2,FALSE),"") -> 0 | JM5: 0 | JN5: 0 | JO5: 0 | JP5: 0 | JQ5: 0 | JR5: 0 | JS5: 0 | JT5: 0 | JU5: 0 | JV5: 0 | JW5: 0 | JX5: 0 | JY5: 0 | JZ5: 0 | KA5: 0 | KB5: 0 | KC5: 0 | KD5: 0 | KE5: 0 | KF5: 0 | KG5: 0 | KH5: 0 | KI5: 0 | KJ5: 0 | KK5: 0 | KL5: 0 | KM5: 0 | KN5: 0 | KO5: 0 | KP5: 0 | KQ5: 0 | KR5: 0 | KS5: 0 | KT5: 0 | KU5: 0 | KV5: 0 | KW5: 0 | KX5: 0 | KY5: 0 | KZ5: 0 | LA5: 0 | LB5: 0 | LC5: 0 | LD5: 0 | LE5: 0 | LF5: 0 | LG5: 0 | LH5: 0 | LI5: 0 | LJ5: 0 | LK5: 0 | LL5: 0 | LM5: 0 | LN5: 0 | LO5: 0 | LP5: 0 | LQ5: 0 | LR5: 0 | LS5: 0
A7: AdS | B7: =B2+1 -> 2 | F7: Valeur actuelle | AF7: Date de commencement | AG7: 1 | AH7: 1 | AI7: 1 | AJ7: 1 | AK7: 1 | AL7: 1 | AM7: 1 | AN7: 1 | AO7: 1 | AP7: 1 | AQ7: 1 | AR7: 2 | AS7: 2 | AT7: 2 | AU7: 2 | AV7: 2 | AW7: 2 | AX7: 2 | AY7: 2 | AZ7: 2 | BA7: 2 | BB7: 2 | BC7: 2 | BD7: 3 | BE7: 3 | BF7: 3 | BG7: 3 | BH7: 3 | BI7: 3 | BJ7: 3 | BK7: 3 | BL7: 3 | BM7: 3 | BN7: 3 | BO7: 3 | BP7: 4 | BQ7: 4 | BR7: 4 | BS7: 4 | BT7: 4 | BU7: 4 | BV7: 4 | BW7: 4 | BX7: 4 | BY7: 4 | BZ7: 4 | CA7: 4 | CB7: 5 | CC7: 5 | CD7: 5 | CE7: 5 | CF7: 5 | CG7: 5 | CH7: 5 | CI7: 5 | CJ7: 5 | CK7: 5 | CL7: 5 | CM7: 5 | CN7: 6 | CO7: 6 | CP7: 6 | CQ7: 6 | CR7: 6 | CS7: 6 | CT7: 6 | CU7: 6 | CV7: 6 | CW7: 6 | CX7: 6 | CY7: 6 | CZ7: 7 | DA7: 7 | DB7: 7 | DC7: 7 | DD7: 7 | DE7: 7 | DF7: 7 | DG7: 7 | DH7: 7 | DI7: 7 | DJ7: 7 | DK7: 7 | DL7: 8 | DM7: 8 | DN7: 8 | DO7: 8 | DP7: 8 | DQ7: 8 | DR7: 8 | DS7: 8 | DT7: 8 | DU7: 8 | DV7: 8 | DW7: 8 | DX7: 9 | DY7: 9 | DZ7: 9 | EA7: 9 | EB7: 9 | EC7: 9 | ED7: 9 | EE7: 9 | EF7: 9 | EG7: 9 | EH7: 9 | EI7: 9 | EJ7: 10 | EK7: 10 | EL7: 10 | EM7: 10 | EN7: 10 | EO7: 10 | EP7: 10 | EQ7: 10 | ER7: 10 | ES7: 10 | ET7: 10 | EU7: 10 | EV7: 11 | EW7: 11 | EX7: 11 | EY7: 11 | EZ7: 11 | FA7: 11 | FB7: 11 | FC7: 11 | FD7: 11 | FE7: 11 | FF7: 11 | FG7: 11 | FH7: 12 | FI7: 12 | FJ7: 12 | FK7: 12 | FL7: 12 | FM7: 12 | FN7: 12 | FO7: 12 | FP7: 12 | FQ7: 12 | FR7: 12 | FS7: 12 | FT7: 13 | FU7: 13 | FV7: 13 | FW7: 13 | FX7: 13 | FY7: 13 | FZ7: 13 | GA7: 13 | GB7: 13 | GC7: 13 | GD7: 13 | GE7: 13 | GF7: 14 | GG7: 14 | GH7: 14 | GI7: 14 | GJ7: 14 | GK7: 14 | GL7: 14 | GM7: 14 | GN7: 14 | GO7: 14 | GP7: 14 | GQ7: 14 | GR7: 15 | GS7: 15 | GT7: 15 | GU7: 15 | GV7: 15 | GW7: 15 | GX7: 15 | GY7: 15 | GZ7: 15 | HA7: 15 | HB7: 15 | HC7: 15 | HD7: 16 | HE7: 16 | HF7: 16 | HG7: 16 | HH7: 16 | HI7: 16 | HJ7: 16 | HK7: 16 | HL7: 16 | HM7: 16 | HN7: 16 | HO7: 16 | HP7: 17 | HQ7: 17 | HR7: 17 | HS7: 17 | HT7: 17 | HU7: 17 | HV7: 17 | HW7: 17 | HX7: 17 | HY7: 17 | HZ7: 17 | IA7: 17 | IB7: 18 | IC7: 18 | ID7: 18 | IE7: 18 | IF7: 18 | IG7: 18 | IH7: 18 | II7: 18 | IJ7: 18 | IK7: 18 | IL7: 18 | IM7: 18 | IN7: 19 | IO7: 19 | IP7: 19 | IQ7: 19 | IR7: 19 | IS7: 19 | IT7: 19 | IU7: 19 | IV7: 19 | IW7: 19 | IX7: 19 | IY7: 19 | IZ7: 20 | JA7: 20 | JB7: 20 | JC7: 20 | JD7: 20 | JE7: 20 | JF7: 20 | JG7: 20 | JH7: 20 | JI7: 20 | JJ7: 20 | JK7: 20 | JL7: =IZ7+1 -> 21 | JM7: =JA7+1 -> 21 | JN7: =JB7+1 -> 21 | JO7: =JC7+1 -> 21 | JP7: =JD7+1 -> 21 | JQ7: =JE7+1 -> 21 | JR7: =JF7+1 -> 21 | JS7: =JG7+1 -> 21 | JT7: =JH7+1 -> 21 | JU7: =JI7+1 -> 21 | JV7: =JJ7+1 -> 21 | JW7: =JK7+1 -> 21 | JX7: =JL7+1 -> 22 | JY7: =JM7+1 -> 22 | JZ7: =JN7+1 -> 22 | KA7: =JO7+1 -> 22 | KB7: =JP7+1 -> 22 | KC7: =JQ7+1 -> 22 | KD7: =JR7+1 -> 22 | KE7: =JS7+1 -> 22 | KF7: =JT7+1 -> 22 | KG7: =JU7+1 -> 22 | KH7: =JV7+1 -> 22 | KI7: =JW7+1 -> 22 | KJ7: =JX7+1 -> 23 | KK7: =JY7+1 -> 23 | KL7: =JZ7+1 -> 23 | KM7: =KA7+1 -> 23 | KN7: =KB7+1 -> 23 | KO7: =KC7+1 -> 23 | KP7: =KD7+1 -> 23 | KQ7: =KE7+1 -> 23 | KR7: =KF7+1 -> 23 | KS7: =KG7+1 -> 23 | KT7: =KH7+1 -> 23 | KU7: =KI7+1 -> 23 | KV7: =KJ7+1 -> 24 | KW7: =KK7+1 -> 24 | KX7: =KL7+1 -> 24 | KY7: =KM7+1 -> 24 | KZ7: =KN7+1 -> 24 | LA7: =KO7+1 -> 24 | LB7: =KP7+1 -> 24 | LC7: =KQ7+1 -> 24 | LD7: =KR7+1 -> 24 | LE7: =KS7+1 -> 24 | LF7: =KT7+1 -> 24 | LG7: =KU7+1 -> 24 | LH7: =KV7+1 -> 25 | LI7: =KW7+1 -> 25 | LJ7: =KX7+1 -> 25 | LK7: =KY7+1 -> 25 | LL7: =KZ7+1 -> 25 | LM7: =LA7+1 -> 25 | LN7: =LB7+1 -> 25 | LO7: =LC7+1 -> 25 | LP7: =LD7+1 -> 25 | LQ7: =LE7+1 -> 25 | LR7: =LF7+1 -> 25 | LS7: =LG7+1 -> 25
C8: Cible | D8: Atteint | E8: % | F8: =Cycle_calcul_VAN -> 20 | G8: =-(EcheancierMois+VariationMois) -> -24 | H8: =G$3+1 -> -23 | I8: =H$3+1 -> -22 | J8: =I$3+1 -> -21 | K8: =J$3+1 -> -20 | L8: =K$3+1 -> -19 | M8: =L$3+1 -> -18 | N8: =M$3+1 -> -17 | O8: =N$3+1 -> -16 | P8: =O$3+1 -> -15 | Q8: =P$3+1 -> -14 | R8: =Q$3+1 -> -13 | S8: =R$3+1 -> -12 | T8: =S$3+1 -> -11 | U8: =T$3+1 -> -10 | V8: =U$3+1 -> -9 | W8: =V$3+1 -> -8 | X8: =W$3+1 -> -7 | Y8: -6 | Z8: -5 | AA8: -4 | AB8: =AA$3+1 -> -3 | AC8: =AB$3+1 -> -2 | AD8: -1 | AE8: 0 | AF8: 1 | AG8: 2 | AH8: 3 | AI8: 4 | AJ8: 5 | AK8: 6 | AL8: 7 | AM8: 8 | AN8: 9 | AO8: 10 | AP8: 11 | AQ8: 12 | AR8: 13 | AS8: 14 | AT8: 15 | AU8: 16 | AV8: 17 | AW8: 18 | AX8: 19 | AY8: 20 | AZ8: 21 | BA8: 22 | BB8: 23 | BC8: 24 | BD8: 25 | BE8: 26 | BF8: 27 | BG8: 28 | BH8: 29 | BI8: 30 | BJ8: 31 | BK8: 32 | BL8: 33 | BM8: 34 | BN8: 35 | BO8: 36 | BP8: 37 | BQ8: 38 | BR8: 39 | BS8: 40 | BT8: 41 | BU8: 42 | BV8: 43 | BW8: 44 | BX8: 45 | BY8: 46 | BZ8: 47 | CA8: 48 | CB8: 49 | CC8: 50 | CD8: 51 | CE8: 52 | CF8: 53 | CG8: 54 | CH8: 55 | CI8: 56 | CJ8: 57 | CK8: 58 | CL8: 59 | CM8: 60 | CN8: 61 | CO8: 62 | CP8: 63 | CQ8: 64 | CR8: 65 | CS8: 66 | CT8: 67 | CU8: 68 | CV8: 69 | CW8: 70 | CX8: 71 | CY8: 72 | CZ8: 73 | DA8: 74 | DB8: 75 | DC8: 76 | DD8: 77 | DE8: 78 | DF8: 79 | DG8: 80 | DH8: 81 | DI8: 82 | DJ8: 83 | DK8: 84 | DL8: 85 | DM8: 86 | DN8: 87 | DO8: 88 | DP8: 89 | DQ8: 90 | DR8: 91 | DS8: 92 | DT8: 93 | DU8: 94 | DV8: 95 | DW8: 96 | DX8: 97 | DY8: 98 | DZ8: 99 | EA8: 100 | EB8: 101 | EC8: 102 | ED8: 103 | EE8: 104 | EF8: 105 | EG8: 106 | EH8: 107 | EI8: 108 | EJ8: 109 | EK8: 110 | EL8: 111 | EM8: 112 | EN8: 113 | EO8: 114 | EP8: 115 | EQ8: 116 | ER8: 117 | ES8: 118 | ET8: 119 | EU8: 120 | EV8: 121 | EW8: 122 | EX8: 123 | EY8: 124 | EZ8: 125 | FA8: 126 | FB8: 127 | FC8: 128 | FD8: 129 | FE8: 130 | FF8: 131 | FG8: 132 | FH8: 133 | FI8: 134 | FJ8: 135 | FK8: 136 | FL8: 137 | FM8: 138 | FN8: 139 | FO8: 140 | FP8: 141 | FQ8: 142 | FR8: 143 | FS8: 144 | FT8: 145 | FU8: 146 | FV8: 147 | FW8: 148 | FX8: 149 | FY8: 150 | FZ8: 151 | GA8: 152 | GB8: 153 | GC8: 154 | GD8: 155 | GE8: 156 | GF8: 157 | GG8: 158 | GH8: 159 | GI8: 160 | GJ8: 161 | GK8: 162 | GL8: 163 | GM8: 164 | GN8: 165 | GO8: 166 | GP8: 167 | GQ8: 168 | GR8: 169 | GS8: 170 | GT8: 171 | GU8: 172 | GV8: 173 | GW8: 174 | GX8: 175 | GY8: 176 | GZ8: 177 | HA8: 178 | HB8: 179 | HC8: 180 | HD8: 181 | HE8: 182 | HF8: 183 | HG8: 184 | HH8: 185 | HI8: 186 | HJ8: 187 | HK8: 188 | HL8: 189 | HM8: 190 | HN8: 191 | HO8: 192 | HP8: 193 | HQ8: 194 | HR8: 195 | HS8: 196 | HT8: 197 | HU8: 198 | HV8: 199 | HW8: 200 | HX8: 201 | HY8: 202 | HZ8: 203 | IA8: 204 | IB8: 205 | IC8: 206 | ID8: 207 | IE8: 208 | IF8: 209 | IG8: 210 | IH8: 211 | II8: 212 | IJ8: 213 | IK8: 214 | IL8: 215 | IM8: 216 | IN8: 217 | IO8: 218 | IP8: 219 | IQ8: 220 | IR8: 221 | IS8: 222 | IT8: 223 | IU8: 224 | IV8: 225 | IW8: 226 | IX8: 227 | IY8: 228 | IZ8: 229 | JA8: 230 | JB8: 231 | JC8: 232 | JD8: 233 | JE8: 234 | JF8: 235 | JG8: 236 | JH8: 237 | JI8: 238 | JJ8: 239 | JK8: 240 | JL8: 241 | JM8: 242 | JN8: 243 | JO8: 244 | JP8: 245 | JQ8: 246 | JR8: 247 | JS8: 248 | JT8: 249 | JU8: 250 | JV8: 251 | JW8: 252 | JX8: 253 | JY8: 254 | JZ8: 255 | KA8: 256 | KB8: 257 | KC8: 258 | KD8: 259 | KE8: 260 | KF8: 261 | KG8: 262 | KH8: 263 | KI8: 264 | KJ8: 265 | KK8: 266 | KL8: 267 | KM8: 268 | KN8: 269 | KO8: 270 | KP8: 271 | KQ8: 272 | KR8: 273 | KS8: 274 | KT8: 275 | KU8: 276 | KV8: 277 | KW8: 278 | KX8: 279 | KY8: 280 | KZ8: 281 | LA8: 282 | LB8: 283 | LC8: 284 | LD8: 285 | LE8: 286 | LF8: 287 | LG8: 288 | LH8: 289 | LI8: 290 | LJ8: 291 | LK8: 292 | LL8: 293 | LM8: 294 | LN8: 295 | LO8: 296 | LP8: 297 | LQ8: 298 | LR8: 299 | LS8: 300
A9: Économies de coûts d'énergie réelles | C9: =VAN_econ_proj!$C$5 -> 0 | D9: =SUM(Econ_AdS_2) -> 0 | E9: =IFERROR(D9/C9,"") ->  | F9: =NPV(TA_mensuel_eq,G9:LS9,G10:INDIRECT(ADDRESS(MATCH(C10,$C$1:$C$48,0),MATCH(Cycle_calcul_VAN*12,A8:LS8),,TRUE))) -> 0 | G9: 0 | H9: 0 | I9: 0 | J9: 0 | K9: 0 | L9: 0 | M9: 0 | N9: 0 | O9: 0 | P9: 0 | Q9: 0 | R9: 0 | S9: 0 | T9: 0 | U9: 0 | V9: 0 | W9: 0 | X9: 0 | Y9: 0 | Z9: 0 | AA9: 0 | AB9: 0 | AC9: 0 | AD9: 0 | AE9: 0 | AF9: =AF4 -> 0 | AG9: =AG4 -> 0 | AH9: 0 | AI9: 0 | AJ9: 0 | AK9: 0 | AL9: 0 | AM9: 0 | AN9: 0 | AO9: 0 | AP9: 0 | AQ9: 0
A10: Économies de coûts d'énergie projetées | C10: 2 | D10: =SUM(G10:HC10) -> 0 | E10: =SUM(G9:HC9) -> 0 | BD10: =IF(BD8>$B7*12,HLOOKUP(BD8-(BD7-$B7)*12,Table_AdS_2,2,FALSE),"") -> 0 | BE10: =IF(BE8>$B7*12,HLOOKUP(BE8-(BE2-$B7)*12,Table_AdS_2,2,FALSE),"") -> 0 | BF10: 0 | BG10: 0 | BH10: 0 | BI10: 0 | BJ10: 0 | BK10: 0 | BL10: 0 | BM10: 0 | BN10: 0 | BO10: 0 | BP10: 0 | BQ10: 0 | BR10: 0 | BS10: 0 | BT10: 0 | BU10: 0 | BV10: 0 | BW10: 0 | BX10: 0 | BY10: 0 | BZ10: 0 | CA10: 0 | CB10: =IF(CB8>$B7*12,HLOOKUP(CB8-(CB7-$B7)*12,Table_AdS_2,2,FALSE),"") -> 0 | CC10: 0 | CD10: 0 | CE10: 0 | CF10: 0 | CG10: 0 | CH10: 0 | CI10: 0 | CJ10: 0 | CK10: 0 | CL10: 0 | CM10: 0 | CN10: 0 | CO10: 0 | CP10: 0 | CQ10: 0 | CR10: 0 | CS10: 0 | CT10: 0 | CU10: 0 | CV10: 0 | CW10: 0 | CX10: 0 | CY10: 0 | CZ10: 0 | DA10: 0 | DB10: 0 | DC10: 0 | DD10: 0 | DE10: 0 | DF10: 0 | DG10: 0 | DH10: =IF(DH8>$B7*12,HLOOKUP(DH8-(DH7-$B7)*12,Table_AdS_2,2,FALSE),"") -> 0 | DI10: 0 | DJ10: 0 | DK10: 0 | DL10: 0 | DM10: 0 | DN10: 0 | DO10: 0 | DP10: 0 | DQ10: 0 | DR10: 0 | DS10: 0 | DT10: 0 | DU10: 0 | DV10: 0 | DW10: 0 | DX10: 0 | DY10: 0 | DZ10: 0 | EA10: 0 | EB10: 0 | EC10: 0 | ED10: 0 | EE10: 0 | EF10: 0 | EG10: 0 | EH10: 0 | EI10: 0 | EJ10: 0 | EK10: 0 | EL10: 0 | EM10: 0 | EN10: =IF(EN8>$B7*12,HLOOKUP(EN8-(EN7-$B7)*12,Table_AdS_2,2,FALSE),"") -> 0 | EO10: 0 | EP10: 0 | EQ10: 0 | ER10: 0 | ES10: 0 | ET10: 0 | EU10: 0 | EV10: 0 | EW10: 0 | EX10: 0 | EY10: 0 | EZ10: 0 | FA10: 0 | FB10: 0 | FC10: 0 | FD10: 0 | FE10: 0 | FF10: 0 | FG10: 0 | FH10: 0 | FI10: 0 | FJ10: 0 | FK10: 0 | FL10: 0 | FM10: 0 | FN10: 0 | FO10: 0 | FP10: 0 | FQ10: 0 | FR10: 0 | FS10: 0 | FT10: =IF(FT8>$B7*12,HLOOKUP(FT8-(FT7-$B7)*12,Table_AdS_2,2,FALSE),"") -> 0 | FU10: 0 | FV10: 0 | FW10: 0 | FX10: 0 | FY10: 0 | FZ10: 0 | GA10: 0 | GB10: 0 | GC10: 0 | GD10: 0 | GE10: 0 | GF10: 0 | GG10: 0 | GH10: 0 | GI10: 0 | GJ10: 0 | GK10: 0 | GL10: 0 | GM10: 0 | GN10: 0 | GO10: 0 | GP10: 0 | GQ10: 0 | GR10: 0 | GS10: 0 | GT10: 0 | GU10: 0 | GV10: 0 | GW10: 0 | GX10: 0 | GY10: 0 | GZ10: =IF(GZ8>$B7*12,HLOOKUP(GZ8-(GZ7-$B7)*12,Table_AdS_2,2,FALSE),"") -> 0 | HA10: 0 | HB10: 0 | HC10: 0 | HD10: 0 | HE10: 0 | HF10: 0 | HG10: 0 | HH10: 0 | HI10: 0 | HJ10: 0 | HK10: 0 | HL10: 0 | HM10: 0 | HN10: 0 | HO10: 0 | HP10: 0 | HQ10: 0 | HR10: 0 | HS10: 0 | HT10: 0 | HU10: 0 | HV10: 0 | HW10: 0 | HX10: 0 | HY10: 0 | HZ10: 0 | IA10: 0 | IB10: 0 | IC10: 0 | ID10: 0 | IE10: 0 | IF10: =IF(IF8>$B7*12,HLOOKUP(IF8-(IF7-$B7)*12,Table_AdS_2,2,FALSE),"") -> 0 | IG10: 0 | IH10: 0 | II10: 0 | IJ10: 0 | IK10: 0 | IL10: 0 | IM10: 0 | IN10: 0 | IO10: 0 | IP10: 0 | IQ10: 0 | IR10: 0 | IS10: 0 | IT10: 0 | IU10: 0 | IV10: 0 | IW10: 0 | IX10: 0 | IY10: 0 | IZ10: 0 | JA10: 0 | JB10: 0 | JC10: 0 | JD10: 0 | JE10: 0 | JF10: 0 | JG10: 0 | JH10: 0 | JI10: 0 | JJ10: 0 | JK10: 0 | JL10: =IF(JL8>$B7*12,HLOOKUP(JL8-(JL7-$B7)*12,Table_AdS_2,2,FALSE),"") -> 0 | JM10: 0 | JN10: 0 | JO10: 0 | JP10: 0 | JQ10: 0 | JR10: 0 | JS10: 0 | JT10: 0 | JU10: 0 | JV10: 0 | JW10: 0 | JX10: 0 | JY10: 0 | JZ10: 0 | KA10: 0 | KB10: 0 | KC10: 0 | KD10: 0 | KE10: 0 | KF10: 0 | KG10: 0 | KH10: 0 | KI10: 0 | KJ10: 0 | KK10: 0 | KL10: 0 | KM10: 0 | KN10: 0 | KO10: 0 | KP10: 0 | KQ10: 0 | KR10: 0 | KS10: 0 | KT10: 0 | KU10: 0 | KV10: 0 | KW10: 0 | KX10: 0 | KY10: 0 | KZ10: 0 | LA10: 0 | LB10: 0 | LC10: 0 | LD10: 0 | LE10: 0 | LF10: 0 | LG10: 0 | LH10: 0 | LI10: 0 | LJ10: 0 | LK10: 0 | LL10: 0 | LM10: 0 | LN10: 0 | LO10: 0 | LP10: 0 | LQ10: 0 | LR10: 0 | LS10: 0
A12: AdS | B12: =B7+1 -> 3 | F12: Valeur actuelle | AF12: Date de commencement | AG12: 1 | AH12: 1 | AI12: 1 | AJ12: 1 | AK12: 1 | AL12: 1 | AM12: 1 | AN12: 1 | AO12: 1 | AP12: 1 | AQ12: 1 | AR12: 2 | AS12: 2 | AT12: 2 | AU12: 2 | AV12: 2 | AW12: 2 | AX12: 2 | AY12: 2 | AZ12: 2 | BA12: 2 | BB12: 2 | BC12: 2 | BD12: 3 | BE12: 3 | BF12: 3 | BG12: 3 | BH12: 3 | BI12: 3 | BJ12: 3 | BK12: 3 | BL12: 3 | BM12: 3 | BN12: 3 | BO12: 3 | BP12: 4 | BQ12: 4 | BR12: 4 | BS12: 4 | BT12: 4 | BU12: 4 | BV12: 4 | BW12: 4 | BX12: 4 | BY12: 4 | BZ12: 4 | CA12: 4 | CB12: 5 | CC12: 5 | CD12: 5 | CE12: 5 | CF12: 5 | CG12: 5 | CH12: 5 | CI12: 5 | CJ12: 5 | CK12: 5 | CL12: 5 | CM12: 5 | CN12: 6 | CO12: 6 | CP12: 6 | CQ12: 6 | CR12: 6 | CS12: 6 | CT12: 6 | CU12: 6 | CV12: 6 | CW12: 6 | CX12: 6 | CY12: 6 | CZ12: 7 | DA12: 7 | DB12: 7 | DC12: 7 | DD12: 7 | DE12: 7 | DF12: 7 | DG12: 7 | DH12: 7 | DI12: 7 | DJ12: 7 | DK12: 7 | DL12: 8 | DM12: 8 | DN12: 8 | DO12: 8 | DP12: 8 | DQ12: 8 | DR12: 8 | DS12: 8 | DT12: 8 | DU12: 8 | DV12: 8 | DW12: 8 | DX12: 9 | DY12: 9 | DZ12: 9 | EA12: 9 | EB12: 9 | EC12: 9 | ED12: 9 | EE12: 9 | EF12: 9 | EG12: 9 | EH12: 9 | EI12: 9 | EJ12: 10 | EK12: 10 | EL12: 10 | EM12: 10 | EN12: 10 | EO12: 10 | EP12: 10 | EQ12: 10 | ER12: 10 | ES12: 10 | ET12: 10 | EU12: 10 | EV12: 11 | EW12: 11 | EX12: 11 | EY12: 11 | EZ12: 11 | FA12: 11 | FB12: 11 | FC12: 11 | FD12: 11 | FE12: 11 | FF12: 11 | FG12: 11 | FH12: 12 | FI12: 12 | FJ12: 12 | FK12: 12 | FL12: 12 | FM12: 12 | FN12: 12 | FO12: 12 | FP12: 12 | FQ12: 12 | FR12: 12 | FS12: 12 | FT12: 13 | FU12: 13 | FV12: 13 | FW12: 13 | FX12: 13 | FY12: 13 | FZ12: 13 | GA12: 13 | GB12: 13 | GC12: 13 | GD12: 13 | GE12: 13 | GF12: 14 | GG12: 14 | GH12: 14 | GI12: 14 | GJ12: 14 | GK12: 14 | GL12: 14 | GM12: 14 | GN12: 14 | GO12: 14 | GP12: 14 | GQ12: 14 | GR12: 15 | GS12: 15 | GT12: 15 | GU12: 15 | GV12: 15 | GW12: 15 | GX12: 15 | GY12: 15 | GZ12: 15 | HA12: 15 | HB12: 15 | HC12: 15 | HD12: 16 | HE12: 16 | HF12: 16 | HG12: 16 | HH12: 16 | HI12: 16 | HJ12: 16 | HK12: 16 | HL12: 16 | HM12: 16 | HN12: 16 | HO12: 16 | HP12: 17 | HQ12: 17 | HR12: 17 | HS12: 17 | HT12: 17 | HU12: 17 | HV12: 17 | HW12: 17 | HX12: 17 | HY12: 17 | HZ12: 17 | IA12: 17 | IB12: 18 | IC12: 18 | ID12: 18 | IE12: 18 | IF12: 18 | IG12: 18 | IH12: 18 | II12: 18 | IJ12: 18 | IK12: 18 | IL12: 18 | IM12: 18 | IN12: 19 | IO12: 19 | IP12: 19 | IQ12: 19 | IR12: 19 | IS12: 19 | IT12: 19 | IU12: 19 | IV12: 19 | IW12: 19 | IX12: 19 | IY12: 19 | IZ12: 20 | JA12: 20 | JB12: 20 | JC12: 20 | JD12: 20 | JE12: 20 | JF12: 20 | JG12: 20 | JH12: 20 | JI12: 20 | JJ12: 20 | JK12: 20 | JL12: =IZ12+1 -> 21 | JM12: =JA12+1 -> 21 | JN12: =JB12+1 -> 21 | JO12: =JC12+1 -> 21 | JP12: =JD12+1 -> 21 | JQ12: =JE12+1 -> 21 | JR12: =JF12+1 -> 21 | JS12: =JG12+1 -> 21 | JT12: =JH12+1 -> 21 | JU12: =JI12+1 -> 21 | JV12: =JJ12+1 -> 21 | JW12: =JK12+1 -> 21 | JX12: =JL12+1 -> 22 | JY12: =JM12+1 -> 22 | JZ12: =JN12+1 -> 22 | KA12: =JO12+1 -> 22 | KB12: =JP12+1 -> 22 | KC12: =JQ12+1 -> 22 | KD12: =JR12+1 -> 22 | KE12: =JS12+1 -> 22 | KF12: =JT12+1 -> 22 | KG12: =JU12+1 -> 22 | KH12: =JV12+1 -> 22 | KI12: =JW12+1 -> 22 | KJ12: =JX12+1 -> 23 | KK12: =JY12+1 -> 23 | KL12: =JZ12+1 -> 23 | KM12: =KA12+1 -> 23 | KN12: =KB12+1 -> 23 | KO12: =KC12+1 -> 23 | KP12: =KD12+1 -> 23 | KQ12: =KE12+1 -> 23 | KR12: =KF12+1 -> 23 | KS12: =KG12+1 -> 23 | KT12: =KH12+1 -> 23 | KU12: =KI12+1 -> 23 | KV12: =KJ12+1 -> 24 | KW12: =KK12+1 -> 24 | KX12: =KL12+1 -> 24 | KY12: =KM12+1 -> 24 | KZ12: =KN12+1 -> 24 | LA12: =KO12+1 -> 24 | LB12: =KP12+1 -> 24 | LC12: =KQ12+1 -> 24 | LD12: =KR12+1 -> 24 | LE12: =KS12+1 -> 24 | LF12: =KT12+1 -> 24 | LG12: =KU12+1 -> 24 | LH12: =KV12+1 -> 25 | LI12: =KW12+1 -> 25 | LJ12: =KX12+1 -> 25 | LK12: =KY12+1 -> 25 | LL12: =KZ12+1 -> 25 | LM12: =LA12+1 -> 25 | LN12: =LB12+1 -> 25 | LO12: =LC12+1 -> 25 | LP12: =LD12+1 -> 25 | LQ12: =LE12+1 -> 25 | LR12: =LF12+1 -> 25 | LS12: =LG12+1 -> 25
C13: Cible | D13: Atteint | E13: % | F13: =Cycle_calcul_VAN -> 20 | G13: =-(EcheancierMois+VariationMois) -> -24 | H13: =G$3+1 -> -23 | I13: =H$3+1 -> -22 | J13: =I$3+1 -> -21 | K13: =J$3+1 -> -20 | L13: =K$3+1 -> -19 | M13: =L$3+1 -> -18 | N13: =M$3+1 -> -17 | O13: =N$3+1 -> -16 | P13: =O$3+1 -> -15 | Q13: =P$3+1 -> -14 | R13: =Q$3+1 -> -13 | S13: =R$3+1 -> -12 | T13: =S$3+1 -> -11 | U13: =T$3+1 -> -10 | V13: =U$3+1 -> -9 | W13: =V$3+1 -> -8 | X13: =W$3+1 -> -7 | Y13: -6 | Z13: -5 | AA13: -4 | AB13: =AA$3+1 -> -3 | AC13: =AB$3+1 -> -2 | AD13: -1 | AE13: 0 | AF13: 1 | AG13: 2 | AH13: 3 | AI13: 4 | AJ13: 5 | AK13: 6 | AL13: 7 | AM13: 8 | AN13: 9 | AO13: 10 | AP13: 11 | AQ13: 12 | AR13: 13 | AS13: 14 | AT13: 15 | AU13: 16 | AV13: 17 | AW13: 18 | AX13: 19 | AY13: 20 | AZ13: 21 | BA13: 22 | BB13: 23 | BC13: 24 | BD13: 25 | BE13: 26 | BF13: 27 | BG13: 28 | BH13: 29 | BI13: 30 | BJ13: 31 | BK13: 32 | BL13: 33 | BM13: 34 | BN13: 35 | BO13: 36 | BP13: 37 | BQ13: 38 | BR13: 39 | BS13: 40 | BT13: 41 | BU13: 42 | BV13: 43 | BW13: 44 | BX13: 45 | BY13: 46 | BZ13: 47 | CA13: 48 | CB13: 49 | CC13: 50 | CD13: 51 | CE13: 52 | CF13: 53 | CG13: 54 | CH13: 55 | CI13: 56 | CJ13: 57 | CK13: 58 | CL13: 59 | CM13: 60 | CN13: 61 | CO13: 62 | CP13: 63 | CQ13: 64 | CR13: 65 | CS13: 66 | CT13: 67 | CU13: 68 | CV13: 69 | CW13: 70 | CX13: 71 | CY13: 72 | CZ13: 73 | DA13: 74 | DB13: 75 | DC13: 76 | DD13: 77 | DE13: 78 | DF13: 79 | DG13: 80 | DH13: 81 | DI13: 82 | DJ13: 83 | DK13: 84 | DL13: 85 | DM13: 86 | DN13: 87 | DO13: 88 | DP13: 89 | DQ13: 90 | DR13: 91 | DS13: 92 | DT13: 93 | DU13: 94 | DV13: 95 | DW13: 96 | DX13: 97 | DY13: 98 | DZ13: 99 | EA13: 100 | EB13: 101 | EC13: 102 | ED13: 103 | EE13: 104 | EF13: 105 | EG13: 106 | EH13: 107 | EI13: 108 | EJ13: 109 | EK13: 110 | EL13: 111 | EM13: 112 | EN13: 113 | EO13: 114 | EP13: 115 | EQ13: 116 | ER13: 117 | ES13: 118 | ET13: 119 | EU13: 120 | EV13: 121 | EW13: 122 | EX13: 123 | EY13: 124 | EZ13: 125 | FA13: 126 | FB13: 127 | FC13: 128 | FD13: 129 | FE13: 130 | FF13: 131 | FG13: 132 | FH13: 133 | FI13: 134 | FJ13: 135 | FK13: 136 | FL13: 137 | FM13: 138 | FN13: 139 | FO13: 140 | FP13: 141 | FQ13: 142 | FR13: 143 | FS13: 144 | FT13: 145 | FU13: 146 | FV13: 147 | FW13: 148 | FX13: 149 | FY13: 150 | FZ13: 151 | GA13: 152 | GB13: 153 | GC13: 154 | GD13: 155 | GE13: 156 | GF13: 157 | GG13: 158 | GH13: 159 | GI13: 160 | GJ13: 161 | GK13: 162 | GL13: 163 | GM13: 164 | GN13: 165 | GO13: 166 | GP13: 167 | GQ13: 168 | GR13: 169 | GS13: 170 | GT13: 171 | GU13: 172 | GV13: 173 | GW13: 174 | GX13: 175 | GY13: 176 | GZ13: 177 | HA13: 178 | HB13: 179 | HC13: 180 | HD13: 181 | HE13: 182 | HF13: 183 | HG13: 184 | HH13: 185 | HI13: 186 | HJ13: 187 | HK13: 188 | HL13: 189 | HM13: 190 | HN13: 191 | HO13: 192 | HP13: 193 | HQ13: 194 | HR13: 195 | HS13: 196 | HT13: 197 | HU13: 198 | HV13: 199 | HW13: 200 | HX13: 201 | HY13: 202 | HZ13: 203 | IA13: 204 | IB13: 205 | IC13: 206 | ID13: 207 | IE13: 208 | IF13: 209 | IG13: 210 | IH13: 211 | II13: 212 | IJ13: 213 | IK13: 214 | IL13: 215 | IM13: 216 | IN13: 217 | IO13: 218 | IP13: 219 | IQ13: 220 | IR13: 221 | IS13: 222 | IT13: 223 | IU13: 224 | IV13: 225 | IW13: 226 | IX13: 227 | IY13: 228 | IZ13: 229 | JA13: 230 | JB13: 231 | JC13: 232 | JD13: 233 | JE13: 234 | JF13: 235 | JG13: 236 | JH13: 237 | JI13: 238 | JJ13: 239 | JK13: 240 | JL13: 241 | JM13: 242 | JN13: 243 | JO13: 244 | JP13: 245 | JQ13: 246 | JR13: 247 | JS13: 248 | JT13: 249 | JU13: 250 | JV13: 251 | JW13: 252 | JX13: 253 | JY13: 254 | JZ13: 255 | KA13: 256 | KB13: 257 | KC13: 258 | KD13: 259 | KE13: 260 | KF13: 261 | KG13: 262 | KH13: 263 | KI13: 264 | KJ13: 265 | KK13: 266 | KL13: 267 | KM13: 268 | KN13: 269 | KO13: 270 | KP13: 271 | KQ13: 272 | KR13: 273 | KS13: 274 | KT13: 275 | KU13: 276 | KV13: 277 | KW13: 278 | KX13: 279 | KY13: 280 | KZ13: 281 | LA13: 282 | LB13: 283 | LC13: 284 | LD13: 285 | LE13: 286 | LF13: 287 | LG13: 288 | LH13: 289 | LI13: 290 | LJ13: 291 | LK13: 292 | LL13: 293 | LM13: 294 | LN13: 295 | LO13: 296 | LP13: 297 | LQ13: 298 | LR13: 299 | LS13: 300
A14: Économies de coûts d'énergie réelles | C14: =VAN_econ_proj!$C$5 -> 0 | D14: =SUM(Econ_AdS_3) -> 0 | E14: =IFERROR(D14/C14,"") ->  | F14: =NPV(TA_mensuel_eq,G14:LS14,G15:INDIRECT(ADDRESS(MATCH(C15,$C$1:$C$48,0),MATCH(Cycle_calcul_VAN*12,A13:LS13),,TRUE))) -> 0 | G14: 0 | H14: 0 | I14: 0 | J14: 0 | K14: 0 | L14: 0 | M14: 0 | N14: 0 | O14: 0 | P14: 0 | Q14: 0 | R14: 0 | S14: 0 | T14: 0 | U14: 0 | V14: 0 | W14: 0 | X14: 0 | Y14: 0 | Z14: 0 | AA14: 0 | AB14: 0 | AC14: 0 | AD14: 0 | AE14: 0 | AF14: =AF9 -> 0 | AG14: =AG9 -> 0 | AH14: 0 | AI14: 0 | AJ14: 0 | AK14: 0 | AL14: 0 | AM14: 0 | AN14: 0 | AO14: 0 | AP14: 0 | AQ14: 0 | AR14: 0 | AS14: 0 | AT14: 0 | AU14: 0 | AV14: 0 | AW14: 0 | AX14: 0 | AY14: 0 | AZ14: 0 | BA14: 0 | BB14: 0 | BC14: 0
A15: Économies de coûts d'énergie projetées | C15: 3 | D15: =SUM(G15:HC15) -> 0 | E15: =SUM(G14:HC14) -> 0 | BP15: =IF(BP13>$B12*12,HLOOKUP(BP13-(BP12-$B12)*12,Table_AdS_3,2,FALSE),"") -> 0 | BQ15: =IF(BQ13>$B12*12,HLOOKUP(BQ13-(BQ12-$B12)*12,Table_AdS_3,2,FALSE),"") -> 0 | BR15: 0 | BS15: 0 | BT15: 0 | BU15: 0 | BV15: 0 | BW15: 0 | BX15: 0 | BY15: 0 | BZ15: 0 | CA15: 0 | CB15: =IF(CB13>$B12*12,HLOOKUP(CB13-(CB12-$B12)*12,Table_AdS_3,2,FALSE),"") -> 0 | CC15: 0 | CD15: 0 | CE15: 0 | CF15: 0 | CG15: 0 | CH15: 0 | CI15: 0 | CJ15: 0 | CK15: 0 | CL15: 0 | CM15: 0 | CN15: 0 | CO15: 0 | CP15: 0 | CQ15: 0 | CR15: 0 | CS15: 0 | CT15: 0 | CU15: 0 | CV15: 0 | CW15: 0 | CX15: 0 | CY15: 0 | CZ15: 0 | DA15: 0 | DB15: 0 | DC15: 0 | DD15: 0 | DE15: 0 | DF15: 0 | DG15: 0 | DH15: 0 | DI15: 0 | DJ15: 0 | DK15: 0 | DL15: 0 | DM15: 0 | DN15: 0 | DO15: 0 | DP15: 0 | DQ15: 0 | DR15: 0 | DS15: 0 | DT15: 0 | DU15: 0 | DV15: 0 | DW15: 0 | DX15: 0 | DY15: 0 | DZ15: 0 | EA15: 0 | EB15: =IF(EB13>$B12*12,HLOOKUP(EB13-(EB12-$B12)*12,Table_AdS_3,2,FALSE),"") -> 0 | EC15: 0 | ED15: 0 | EE15: 0 | EF15: 0 | EG15: 0 | EH15: 0 | EI15: 0 | EJ15: 0 | EK15: 0 | EL15: 0 | EM15: 0 | EN15: 0 | EO15: 0 | EP15: 0 | EQ15: 0 | ER15: 0 | ES15: 0 | ET15: 0 | EU15: 0 | EV15: 0 | EW15: 0 | EX15: 0 | EY15: 0 | EZ15: 0 | FA15: 0 | FB15: 0 | FC15: 0 | FD15: 0 | FE15: 0 | FF15: 0 | FG15: 0 | FH15: 0 | FI15: 0 | FJ15: 0 | FK15: 0 | FL15: 0 | FM15: 0 | FN15: 0 | FO15: 0 | FP15: 0 | FQ15: 0 | FR15: 0 | FS15: 0 | FT15: 0 | FU15: 0 | FV15: 0 | FW15: 0 | FX15: 0 | FY15: 0 | FZ15: 0 | GA15: 0 | GB15: 0 | GC15: 0 | GD15: 0 | GE15: 0 | GF15: 0 | GG15: 0 | GH15: 0 | GI15: 0 | GJ15: 0 | GK15: 0 | GL15: 0 | GM15: 0 | GN15: =IF(GN13>$B12*12,HLOOKUP(GN13-(GN12-$B12)*12,Table_AdS_3,2,FALSE),"") -> 0 | GO15: 0 | GP15: 0 | GQ15: 0 | GR15: 0 | GS15: 0 | GT15: 0 | GU15: 0 | GV15: 0 | GW15: 0 | GX15: 0 | GY15: 0 | GZ15: 0 | HA15: 0 | HB15: 0 | HC15: 0 | HD15: 0 | HE15: 0 | HF15: 0 | HG15: 0 | HH15: 0 | HI15: 0 | HJ15: 0 | HK15: 0 | HL15: 0 | HM15: 0 | HN15: 0 | HO15: 0 | HP15: 0 | HQ15: 0 | HR15: 0 | HS15: 0 | HT15: 0 | HU15: 0 | HV15: 0 | HW15: 0 | HX15: 0 | HY15: 0 | HZ15: 0 | IA15: 0 | IB15: 0 | IC15: 0 | ID15: 0 | IE15: 0 | IF15: 0 | IG15: 0 | IH15: 0 | II15: 0 | IJ15: 0 | IK15: 0 | IL15: 0 | IM15: 0 | IN15: 0 | IO15: 0 | IP15: 0 | IQ15: 0 | IR15: 0 | IS15: 0 | IT15: 0 | IU15: 0 | IV15: 0 | IW15: 0 | IX15: 0 | IY15: 0 | IZ15: =IF(IZ13>$B12*12,HLOOKUP(IZ13-(IZ12-$B12)*12,Table_AdS_3,2,FALSE),"") -> 0 | JA15: 0 | JB15: 0 | JC15: 0 | JD15: 0 | JE15: 0 | JF15: 0 | JG15: 0 | JH15: 0 | JI15: 0 | JJ15: 0 | JK15: 0 | JL15: =IF(JL13>$B12*12,HLOOKUP(JL13-(JL12-$B12)*12,Table_AdS_3,2,FALSE),"") -> 0 | JM15: 0 | JN15: 0 | JO15: 0 | JP15: 0 | JQ15: 0 | JR15: 0 | JS15: 0 | JT15: 0 | JU15: 0 | JV15: 0 | JW15: 0 | JX15: 0 | JY15: 0 | JZ15: 0 | KA15: 0 | KB15: 0 | KC15: 0 | KD15: 0 | KE15: 0 | KF15: 0 | KG15: 0 | KH15: 0 | KI15: 0 | KJ15: 0 | KK15: 0 | KL15: 0 | KM15: 0 | KN15: 0 | KO15: 0 | KP15: 0 | KQ15: 0 | KR15: 0 | KS15: 0 | KT15: 0 | KU15: 0 | KV15: 0 | KW15: 0 | KX15: 0 | KY15: 0 | KZ15: 0 | LA15: 0 | LB15: 0 | LC15: 0 | LD15: 0 | LE15: 0 | LF15: 0 | LG15: 0 | LH15: 0 | LI15: 0 | LJ15: 0 | LK15: 0 | LL15: 0 | LM15: 0 | LN15: 0 | LO15: 0 | LP15: 0 | LQ15: 0 | LR15: 0 | LS15: 0
A17: AdS | B17: =B12+1 -> 4 | F17: Valeur actuelle | AF17: Date de commencement | AG17: 1 | AH17: 1 | AI17: 1 | AJ17: 1 | AK17: 1 | AL17: 1 | AM17: 1 | AN17: 1 | AO17: 1 | AP17: 1 | AQ17: 1 | AR17: 2 | AS17: 2 | AT17: 2 | AU17: 2 | AV17: 2 | AW17: 2 | AX17: 2 | AY17: 2 | AZ17: 2 | BA17: 2 | BB17: 2 | BC17: 2 | BD17: 3 | BE17: 3 | BF17: 3 | BG17: 3 | BH17: 3 | BI17: 3 | BJ17: 3 | BK17: 3 | BL17: 3 | BM17: 3 | BN17: 3 | BO17: 3 | BP17: 4 | BQ17: 4 | BR17: 4 | BS17: 4 | BT17: 4 | BU17: 4 | BV17: 4 | BW17: 4 | BX17: 4 | BY17: 4 | BZ17: 4 | CA17: 4 | CB17: 5 | CC17: 5 | CD17: 5 | CE17: 5 | CF17: 5 | CG17: 5 | CH17: 5 | CI17: 5 | CJ17: 5 | CK17: 5 | CL17: 5 | CM17: 5 | CN17: 6 | CO17: 6 | CP17: 6 | CQ17: 6 | CR17: 6 | CS17: 6 | CT17: 6 | CU17: 6 | CV17: 6 | CW17: 6 | CX17: 6 | CY17: 6 | CZ17: 7 | DA17: 7 | DB17: 7 | DC17: 7 | DD17: 7 | DE17: 7 | DF17: 7 | DG17: 7 | DH17: 7 | DI17: 7 | DJ17: 7 | DK17: 7 | DL17: 8 | DM17: 8 | DN17: 8 | DO17: 8 | DP17: 8 | DQ17: 8 | DR17: 8 | DS17: 8 | DT17: 8 | DU17: 8 | DV17: 8 | DW17: 8 | DX17: 9 | DY17: 9 | DZ17: 9 | EA17: 9 | EB17: 9 | EC17: 9 | ED17: 9 | EE17: 9 | EF17: 9 | EG17: 9 | EH17: 9 | EI17: 9 | EJ17: 10 | EK17: 10 | EL17: 10 | EM17: 10 | EN17: 10 | EO17: 10 | EP17: 10 | EQ17: 10 | ER17: 10 | ES17: 10 | ET17: 10 | EU17: 10 | EV17: 11 | EW17: 11 | EX17: 11 | EY17: 11 | EZ17: 11 | FA17: 11 | FB17: 11 | FC17: 11 | FD17: 11 | FE17: 11 | FF17: 11 | FG17: 11 | FH17: 12 | FI17: 12 | FJ17: 12 | FK17: 12 | FL17: 12 | FM17: 12 | FN17: 12 | FO17: 12 | FP17: 12 | FQ17: 12 | FR17: 12 | FS17: 12 | FT17: 13 | FU17: 13 | FV17: 13 | FW17: 13 | FX17: 13 | FY17: 13 | FZ17: 13 | GA17: 13 | GB17: 13 | GC17: 13 | GD17: 13 | GE17: 13 | GF17: 14 | GG17: 14 | GH17: 14 | GI17: 14 | GJ17: 14 | GK17: 14 | GL17: 14 | GM17: 14 | GN17: 14 | GO17: 14 | GP17: 14 | GQ17: 14 | GR17: 15 | GS17: 15 | GT17: 15 | GU17: 15 | GV17: 15 | GW17: 15 | GX17: 15 | GY17: 15 | GZ17: 15 | HA17: 15 | HB17: 15 | HC17: 15 | HD17: 16 | HE17: 16 | HF17: 16 | HG17: 16 | HH17: 16 | HI17: 16 | HJ17: 16 | HK17: 16 | HL17: 16 | HM17: 16 | HN17: 16 | HO17: 16 | HP17: 17 | HQ17: 17 | HR17: 17 | HS17: 17 | HT17: 17 | HU17: 17 | HV17: 17 | HW17: 17 | HX17: 17 | HY17: 17 | HZ17: 17 | IA17: 17 | IB17: 18 | IC17: 18 | ID17: 18 | IE17: 18 | IF17: 18 | IG17: 18 | IH17: 18 | II17: 18 | IJ17: 18 | IK17: 18 | IL17: 18 | IM17: 18 | IN17: 19 | IO17: 19 | IP17: 19 | IQ17: 19 | IR17: 19 | IS17: 19 | IT17: 19 | IU17: 19 | IV17: 19 | IW17: 19 | IX17: 19 | IY17: 19 | IZ17: 20 | JA17: 20 | JB17: 20 | JC17: 20 | JD17: 20 | JE17: 20 | JF17: 20 | JG17: 20 | JH17: 20 | JI17: 20 | JJ17: 20 | JK17: 20 | JL17: =IZ17+1 -> 21 | JM17: =JA17+1 -> 21 | JN17: =JB17+1 -> 21 | JO17: =JC17+1 -> 21 | JP17: =JD17+1 -> 21 | JQ17: =JE17+1 -> 21 | JR17: =JF17+1 -> 21 | JS17: =JG17+1 -> 21 | JT17: =JH17+1 -> 21 | JU17: =JI17+1 -> 21 | JV17: =JJ17+1 -> 21 | JW17: =JK17+1 -> 21 | JX17: =JL17+1 -> 22 | JY17: =JM17+1 -> 22 | JZ17: =JN17+1 -> 22 | KA17: =JO17+1 -> 22 | KB17: =JP17+1 -> 22 | KC17: =JQ17+1 -> 22 | KD17: =JR17+1 -> 22 | KE17: =JS17+1 -> 22 | KF17: =JT17+1 -> 22 | KG17: =JU17+1 -> 22 | KH17: =JV17+1 -> 22 | KI17: =JW17+1 -> 22 | KJ17: =JX17+1 -> 23 | KK17: =JY17+1 -> 23 | KL17: =JZ17+1 -> 23 | KM17: =KA17+1 -> 23 | KN17: =KB17+1 -> 23 | KO17: =KC17+1 -> 23 | KP17: =KD17+1 -> 23 | KQ17: =KE17+1 -> 23 | KR17: =KF17+1 -> 23 | KS17: =KG17+1 -> 23 | KT17: =KH17+1 -> 23 | KU17: =KI17+1 -> 23 | KV17: =KJ17+1 -> 24 | KW17: =KK17+1 -> 24 | KX17: =KL17+1 -> 24 | KY17: =KM17+1 -> 24 | KZ17: =KN17+1 -> 24 | LA17: =KO17+1 -> 24 | LB17: =KP17+1 -> 24 | LC17: =KQ17+1 -> 24 | LD17: =KR17+1 -> 24 | LE17: =KS17+1 -> 24 | LF17: =KT17+1 -> 24 | LG17: =KU17+1 -> 24 | LH17: =KV17+1 -> 25 | LI17: =KW17+1 -> 25 | LJ17: =KX17+1 -> 25 | LK17: =KY17+1 -> 25 | LL17: =KZ17+1 -> 25 | LM17: =LA17+1 -> 25 | LN17: =LB17+1 -> 25 | LO17: =LC17+1 -> 25 | LP17: =LD17+1 -> 25 | LQ17: =LE17+1 -> 25 | LR17: =LF17+1 -> 25 | LS17: =LG17+1 -> 25
A18: Échéancier ---> | C18: Cible | D18: Atteint | E18: % | F18: =Cycle_calcul_VAN -> 20 | G18: =-(EcheancierMois+VariationMois) -> -24 | H18: =G$3+1 -> -23 | I18: =H$3+1 -> -22 | J18: =I$3+1 -> -21 | K18: =J$3+1 -> -20 | L18: =K$3+1 -> -19 | M18: =L$3+1 -> -18 | N18: =M$3+1 -> -17 | O18: =N$3+1 -> -16 | P18: =O$3+1 -> -15 | Q18: =P$3+1 -> -14 | R18: =Q$3+1 -> -13 | S18: =R$3+1 -> -12 | T18: =S$3+1 -> -11 | U18: =T$3+1 -> -10 | V18: =U$3+1 -> -9 | W18: =V$3+1 -> -8 | X18: =W$3+1 -> -7 | Y18: -6 | Z18: -5 | AA18: -4 | AB18: =AA$3+1 -> -3 | AC18: =AB$3+1 -> -2 | AD18: -1 | AE18: 0 | AF18: 1 | AG18: 2 | AH18: 3 | AI18: 4 | AJ18: 5 | AK18: 6 | AL18: 7 | AM18: 8 | AN18: 9 | AO18: 10 | AP18: 11 | AQ18: 12 | AR18: 13 | AS18: 14 | AT18: 15 | AU18: 16 | AV18: 17 | AW18: 18 | AX18: 19 | AY18: 20 | AZ18: 21 | BA18: 22 | BB18: 23 | BC18: 24 | BD18: 25 | BE18: 26 | BF18: 27 | BG18: 28 | BH18: 29 | BI18: 30 | BJ18: 31 | BK18: 32 | BL18: 33 | BM18: 34 | BN18: 35 | BO18: 36 | BP18: 37 | BQ18: 38 | BR18: 39 | BS18: 40 | BT18: 41 | BU18: 42 | BV18: 43 | BW18: 44 | BX18: 45 | BY18: 46 | BZ18: 47 | CA18: 48 | CB18: 49 | CC18: 50 | CD18: 51 | CE18: 52 | CF18: 53 | CG18: 54 | CH18: 55 | CI18: 56 | CJ18: 57 | CK18: 58 | CL18: 59 | CM18: 60 | CN18: 61 | CO18: 62 | CP18: 63 | CQ18: 64 | CR18: 65 | CS18: 66 | CT18: 67 | CU18: 68 | CV18: 69 | CW18: 70 | CX18: 71 | CY18: 72 | CZ18: 73 | DA18: 74 | DB18: 75 | DC18: 76 | DD18: 77 | DE18: 78 | DF18: 79 | DG18: 80 | DH18: 81 | DI18: 82 | DJ18: 83 | DK18: 84 | DL18: 85 | DM18: 86 | DN18: 87 | DO18: 88 | DP18: 89 | DQ18: 90 | DR18: 91 | DS18: 92 | DT18: 93 | DU18: 94 | DV18: 95 | DW18: 96 | DX18: 97 | DY18: 98 | DZ18: 99 | EA18: 100 | EB18: 101 | EC18: 102 | ED18: 103 | EE18: 104 | EF18: 105 | EG18: 106 | EH18: 107 | EI18: 108 | EJ18: 109 | EK18: 110 | EL18: 111 | EM18: 112 | EN18: 113 | EO18: 114 | EP18: 115 | EQ18: 116 | ER18: 117 | ES18: 118 | ET18: 119 | EU18: 120 | EV18: 121 | EW18: 122 | EX18: 123 | EY18: 124 | EZ18: 125 | FA18: 126 | FB18: 127 | FC18: 128 | FD18: 129 | FE18: 130 | FF18: 131 | FG18: 132 | FH18: 133 | FI18: 134 | FJ18: 135 | FK18: 136 | FL18: 137 | FM18: 138 | FN18: 139 | FO18: 140 | FP18: 141 | FQ18: 142 | FR18: 143 | FS18: 144 | FT18: 145 | FU18: 146 | FV18: 147 | FW18: 148 | FX18: 149 | FY18: 150 | FZ18: 151 | GA18: 152 | GB18: 153 | GC18: 154 | GD18: 155 | GE18: 156 | GF18: 157 | GG18: 158 | GH18: 159 | GI18: 160 | GJ18: 161 | GK18: 162 | GL18: 163 | GM18: 164 | GN18: 165 | GO18: 166 | GP18: 167 | GQ18: 168 | GR18: 169 | GS18: 170 | GT18: 171 | GU18: 172 | GV18: 173 | GW18: 174 | GX18: 175 | GY18: 176 | GZ18: 177 | HA18: 178 | HB18: 179 | HC18: 180 | HD18: 181 | HE18: 182 | HF18: 183 | HG18: 184 | HH18: 185 | HI18: 186 | HJ18: 187 | HK18: 188 | HL18: 189 | HM18: 190 | HN18: 191 | HO18: 192 | HP18: 193 | HQ18: 194 | HR18: 195 | HS18: 196 | HT18: 197 | HU18: 198 | HV18: 199 | HW18: 200 | HX18: 201 | HY18: 202 | HZ18: 203 | IA18: 204 | IB18: 205 | IC18: 206 | ID18: 207 | IE18: 208 | IF18: 209 | IG18: 210 | IH18: 211 | II18: 212 | IJ18: 213 | IK18: 214 | IL18: 215 | IM18: 216 | IN18: 217 | IO18: 218 | IP18: 219 | IQ18: 220 | IR18: 221 | IS18: 222 | IT18: 223 | IU18: 224 | IV18: 225 | IW18: 226 | IX18: 227 | IY18: 228 | IZ18: 229 | JA18: 230 | JB18: 231 | JC18: 232 | JD18: 233 | JE18: 234 | JF18: 235 | JG18: 236 | JH18: 237 | JI18: 238 | JJ18: 239 | JK18: 240 | JL18: 241 | JM18: 242 | JN18: 243 | JO18: 244 | JP18: 245 | JQ18: 246 | JR18: 247 | JS18: 248 | JT18: 249 | JU18: 250 | JV18: 251 | JW18: 252 | JX18: 253 | JY18: 254 | JZ18: 255 | KA18: 256 | KB18: 257 | KC18: 258 | KD18: 259 | KE18: 260 | KF18: 261 | KG18: 262 | KH18: 263 | KI18: 264 | KJ18: 265 | KK18: 266 | KL18: 267 | KM18: 268 | KN18: 269 | KO18: 270 | KP18: 271 | KQ18: 272 | KR18: 273 | KS18: 274 | KT18: 275 | KU18: 276 | KV18: 277 | KW18: 278 | KX18: 279 | KY18: 280 | KZ18: 281 | LA18: 282 | LB18: 283 | LC18: 284 | LD18: 285 | LE18: 286 | LF18: 287 | LG18: 288 | LH18: 289 | LI18: 290 | LJ18: 291 | LK18: 292 | LL18: 293 | LM18: 294 | LN18: 295 | LO18: 296 | LP18: 297 | LQ18: 298 | LR18: 299 | LS18: 300
A19: Économies de coûts d'énergie réelles | C19: =VAN_econ_proj!$C$5 -> 0 | D19: =SUM(Econ_AdS_4) -> 0 | E19: =IFERROR(D19/C19,"") ->  | F19: =NPV(TA_mensuel_eq,G19:LS19,G20:INDIRECT(ADDRESS(MATCH(C20,$C$1:$C$48,0),MATCH(Cycle_calcul_VAN*12,A18:LS18),,TRUE))) -> 0 | G19: 0 | H19: 0 | I19: 0 | J19: 0 | K19: 0 | L19: 0 | M19: 0 | N19: 0 | O19: 0 | P19: 0 | Q19: 0 | R19: 0 | S19: 0 | T19: 0 | U19: 0 | V19: 0 | W19: 0 | X19: 0 | Y19: 0 | Z19: 0 | AA19: 0 | AB19: 0 | AC19: 0 | AD19: 0 | AE19: 0 | AF19: =AF14 -> 0 | AG19: =AG14 -> 0 | AH19: 0 | AI19: 0 | AJ19: 0 | AK19: 0 | AL19: 0 | AM19: 0 | AN19: 0 | AO19: 0 | AP19: 0 | AQ19: 0 | AR19: 0 | AS19: 0 | AT19: 0 | AU19: 0 | AV19: 0 | AW19: 0 | AX19: 0 | AY19: 0 | AZ19: 0 | BA19: 0 | BB19: 0 | BC19: 0 | BD19: =BD14 -> 0 | BE19: 0 | BF19: 0 | BG19: 0 | BH19: 0 | BI19: 0 | BJ19: 0 | BK19: 0 | BL19: 0 | BM19: 0 | BN19: 0 | BO19: 0
A20: Économies de coûts d'énergie projetées | C20: 4 | D20: =SUM(G20:HC20) -> 0 | E20: =SUM(G19:HC19) -> 0 | AR20: =IF($B17=1,HLOOKUP(AR18-(ROUNDUP(AR18/12,0)-1)*12,$AF$3:$DK$5,2,#REF!),"") ->  | AS20: =IF($B17=1,HLOOKUP(AS18-(ROUNDUP(AS18/12,0)-1)*12,$AF$3:$DK$5,2,AG20),"") ->  | CB20: =IF(CB18>$B17*12,HLOOKUP(CB18-(CB17-$B17)*12,Table_AdS_4,2,FALSE),"") -> 0 | CC20: 0 | CD20: 0 | CE20: 0 | CF20: 0 | CG20: 0 | CH20: 0 | CI20: 0 | CJ20: 0 | CK20: 0 | CL20: 0 | CM20: 0 | CN20: 0 | CO20: 0 | CP20: 0 | CQ20: 0 | CR20: 0 | CS20: 0 | CT20: 0 | CU20: 0 | CV20: 0 | CW20: 0 | CX20: 0 | CY20: 0 | CZ20: 0 | DA20: 0 | DB20: 0 | DC20: 0 | DD20: 0 | DE20: 0 | DF20: 0 | DG20: 0 | DH20: =IF(DH18>$B17*12,HLOOKUP(DH18-(DH17-$B17)*12,Table_AdS_4,2,FALSE),"") -> 0 | DI20: 0 | DJ20: 0 | DK20: 0 | DL20: 0 | DM20: 0 | DN20: 0 | DO20: 0 | DP20: 0 | DQ20: 0 | DR20: 0 | DS20: 0 | DT20: 0 | DU20: 0 | DV20: 0 | DW20: 0 | DX20: 0 | DY20: 0 | DZ20: 0 | EA20: 0 | EB20: 0 | EC20: 0 | ED20: 0 | EE20: 0 | EF20: 0 | EG20: 0 | EH20: 0 | EI20: 0 | EJ20: 0 | EK20: 0 | EL20: 0 | EM20: 0 | EN20: =IF(EN18>$B17*12,HLOOKUP(EN18-(EN17-$B17)*12,Table_AdS_4,2,FALSE),"") -> 0 | EO20: 0 | EP20: 0 | EQ20: 0 | ER20: 0 | ES20: 0 | ET20: 0 | EU20: 0 | EV20: 0 | EW20: 0 | EX20: 0 | EY20: 0 | EZ20: 0 | FA20: 0 | FB20: 0 | FC20: 0 | FD20: 0 | FE20: 0 | FF20: 0 | FG20: 0 | FH20: 0 | FI20: 0 | FJ20: 0 | FK20: 0 | FL20: 0 | FM20: 0 | FN20: 0 | FO20: 0 | FP20: 0 | FQ20: 0 | FR20: 0 | FS20: 0 | FT20: =IF(FT18>$B17*12,HLOOKUP(FT18-(FT17-$B17)*12,Table_AdS_4,2,FALSE),"") -> 0 | FU20: 0 | FV20: 0 | FW20: 0 | FX20: 0 | FY20: 0 | FZ20: 0 | GA20: 0 | GB20: 0 | GC20: 0 | GD20: 0 | GE20: 0 | GF20: 0 | GG20: 0 | GH20: 0 | GI20: 0 | GJ20: 0 | GK20: 0 | GL20: 0 | GM20: 0 | GN20: 0 | GO20: 0 | GP20: 0 | GQ20: 0 | GR20: 0 | GS20: 0 | GT20: 0 | GU20: 0 | GV20: 0 | GW20: 0 | GX20: 0 | GY20: 0 | GZ20: =IF(GZ18>$B17*12,HLOOKUP(GZ18-(GZ17-$B17)*12,Table_AdS_4,2,FALSE),"") -> 0 | HA20: 0 | HB20: 0 | HC20: 0 | HD20: 0 | HE20: 0 | HF20: 0 | HG20: 0 | HH20: 0 | HI20: 0 | HJ20: 0 | HK20: 0 | HL20: 0 | HM20: 0 | HN20: 0 | HO20: 0 | HP20: 0 | HQ20: 0 | HR20: 0 | HS20: 0 | HT20: 0 | HU20: 0 | HV20: 0 | HW20: 0 | HX20: 0 | HY20: 0 | HZ20: 0 | IA20: 0 | IB20: 0 | IC20: 0 | ID20: 0 | IE20: 0 | IF20: =IF(IF18>$B17*12,HLOOKUP(IF18-(IF17-$B17)*12,Table_AdS_4,2,FALSE),"") -> 0 | IG20: 0 | IH20: 0 | II20: 0 | IJ20: 0 | IK20: 0 | IL20: 0 | IM20: 0 | IN20: 0 | IO20: 0 | IP20: 0 | IQ20: 0 | IR20: 0 | IS20: 0 | IT20: 0 | IU20: 0 | IV20: 0 | IW20: 0 | IX20: 0 | IY20: 0 | IZ20: 0 | JA20: 0 | JB20: 0 | JC20: 0 | JD20: 0 | JE20: 0 | JF20: 0 | JG20: 0 | JH20: 0 | JI20: 0 | JJ20: 0 | JK20: 0 | JL20: =IF(JL18>$B17*12,HLOOKUP(JL18-(JL17-$B17)*12,Table_AdS_4,2,FALSE),"") -> 0 | JM20: 0 | JN20: 0 | JO20: 0 | JP20: 0 | JQ20: 0 | JR20: 0 | JS20: 0 | JT20: 0 | JU20: 0 | JV20: 0 | JW20: 0 | JX20: 0 | JY20: 0 | JZ20: 0 | KA20: 0 | KB20: 0 | KC20: 0 | KD20: 0 | KE20: 0 | KF20: 0 | KG20: 0 | KH20: 0 | KI20: 0 | KJ20: 0 | KK20: 0 | KL20: 0 | KM20: 0 | KN20: 0 | KO20: 0 | KP20: 0 | KQ20: 0 | KR20: 0 | KS20: 0 | KT20: 0 | KU20: 0 | KV20: 0 | KW20: 0 | KX20: 0 | KY20: 0 | KZ20: 0 | LA20: 0 | LB20: 0 | LC20: 0 | LD20: 0 | LE20: 0 | LF20: 0 | LG20: 0 | LH20: 0 | LI20: 0 | LJ20: 0 | LK20: 0 | LL20: 0 | LM20: 0 | LN20: 0 | LO20: 0 | LP20: 0 | LQ20: 0 | LR20: 0 | LS20: 0
A22: AdS | B22: =B17+1 -> 5 | F22: Valeur actuelle | AF22: Date de commencement | AG22: 1 | AH22: 1 | AI22: 1 | AJ22: 1 | AK22: 1 | AL22: 1 | AM22: 1 | AN22: 1 | AO22: 1 | AP22: 1 | AQ22: 1 | AR22: 2 | AS22: 2 | AT22: 2 | AU22: 2 | AV22: 2 | AW22: 2 | AX22: 2 | AY22: 2 | AZ22: 2 | BA22: 2 | BB22: 2 | BC22: 2 | BD22: 3 | BE22: 3 | BF22: 3 | BG22: 3 | BH22: 3 | BI22: 3 | BJ22: 3 | BK22: 3 | BL22: 3 | BM22: 3 | BN22: 3 | BO22: 3 | BP22: 4 | BQ22: 4 | BR22: 4 | BS22: 4 | BT22: 4 | BU22: 4 | BV22: 4 | BW22: 4 | BX22: 4 | BY22: 4 | BZ22: 4 | CA22: 4 | CB22: 5 | CC22: 5 | CD22: 5 | CE22: 5 | CF22: 5 | CG22: 5 | CH22: 5 | CI22: 5 | CJ22: 5 | CK22: 5 | CL22: 5 | CM22: 5 | CN22: 6 | CO22: 6 | CP22: 6 | CQ22: 6 | CR22: 6 | CS22: 6 | CT22: 6 | CU22: 6 | CV22: 6 | CW22: 6 | CX22: 6 | CY22: 6 | CZ22: 7 | DA22: 7 | DB22: 7 | DC22: 7 | DD22: 7 | DE22: 7 | DF22: 7 | DG22: 7 | DH22: 7 | DI22: 7 | DJ22: 7 | DK22: 7 | DL22: 8 | DM22: 8 | DN22: 8 | DO22: 8 | DP22: 8 | DQ22: 8 | DR22: 8 | DS22: 8 | DT22: 8 | DU22: 8 | DV22: 8 | DW22: 8 | DX22: 9 | DY22: 9 | DZ22: 9 | EA22: 9 | EB22: 9 | EC22: 9 | ED22: 9 | EE22: 9 | EF22: 9 | EG22: 9 | EH22: 9 | EI22: 9 | EJ22: 10 | EK22: 10 | EL22: 10 | EM22: 10 | EN22: 10 | EO22: 10 | EP22: 10 | EQ22: 10 | ER22: 10 | ES22: 10 | ET22: 10 | EU22: 10 | EV22: 11 | EW22: 11 | EX22: 11 | EY22: 11 | EZ22: 11 | FA22: 11 | FB22: 11 | FC22: 11 | FD22: 11 | FE22: 11 | FF22: 11 | FG22: 11 | FH22: 12 | FI22: 12 | FJ22: 12 | FK22: 12 | FL22: 12 | FM22: 12 | FN22: 12 | FO22: 12 | FP22: 12 | FQ22: 12 | FR22: 12 | FS22: 12 | FT22: 13 | FU22: 13 | FV22: 13 | FW22: 13 | FX22: 13 | FY22: 13 | FZ22: 13 | GA22: 13 | GB22: 13 | GC22: 13 | GD22: 13 | GE22: 13 | GF22: 14 | GG22: 14 | GH22: 14 | GI22: 14 | GJ22: 14 | GK22: 14 | GL22: 14 | GM22: 14 | GN22: 14 | GO22: 14 | GP22: 14 | GQ22: 14 | GR22: 15 | GS22: 15 | GT22: 15 | GU22: 15 | GV22: 15 | GW22: 15 | GX22: 15 | GY22: 15 | GZ22: 15 | HA22: 15 | HB22: 15 | HC22: 15 | HD22: 16 | HE22: 16 | HF22: 16 | HG22: 16 | HH22: 16 | HI22: 16 | HJ22: 16 | HK22: 16 | HL22: 16 | HM22: 16 | HN22: 16 | HO22: 16 | HP22: 17 | HQ22: 17 | HR22: 17 | HS22: 17 | HT22: 17 | HU22: 17 | HV22: 17 | HW22: 17 | HX22: 17 | HY22: 17 | HZ22: 17 | IA22: 17 | IB22: 18 | IC22: 18 | ID22: 18 | IE22: 18 | IF22: 18 | IG22: 18 | IH22: 18 | II22: 18 | IJ22: 18 | IK22: 18 | IL22: 18 | IM22: 18 | IN22: 19 | IO22: 19 | IP22: 19 | IQ22: 19 | IR22: 19 | IS22: 19 | IT22: 19 | IU22: 19 | IV22: 19 | IW22: 19 | IX22: 19 | IY22: 19 | IZ22: 20 | JA22: 20 | JB22: 20 | JC22: 20 | JD22: 20 | JE22: 20 | JF22: 20 | JG22: 20 | JH22: 20 | JI22: 20 | JJ22: 20 | JK22: 20 | JL22: =IZ22+1 -> 21 | JM22: =JA22+1 -> 21 | JN22: =JB22+1 -> 21 | JO22: =JC22+1 -> 21 | JP22: =JD22+1 -> 21 | JQ22: =JE22+1 -> 21 | JR22: =JF22+1 -> 21 | JS22: =JG22+1 -> 21 | JT22: =JH22+1 -> 21 | JU22: =JI22+1 -> 21 | JV22: =JJ22+1 -> 21 | JW22: =JK22+1 -> 21 | JX22: =JL22+1 -> 22 | JY22: =JM22+1 -> 22 | JZ22: =JN22+1 -> 22 | KA22: =JO22+1 -> 22 | KB22: =JP22+1 -> 22 | KC22: =JQ22+1 -> 22 | KD22: =JR22+1 -> 22 | KE22: =JS22+1 -> 22 | KF22: =JT22+1 -> 22 | KG22: =JU22+1 -> 22 | KH22: =JV22+1 -> 22 | KI22: =JW22+1 -> 22 | KJ22: =JX22+1 -> 23 | KK22: =JY22+1 -> 23 | KL22: =JZ22+1 -> 23 | KM22: =KA22+1 -> 23 | KN22: =KB22+1 -> 23 | KO22: =KC22+1 -> 23 | KP22: =KD22+1 -> 23 | KQ22: =KE22+1 -> 23 | KR22: =KF22+1 -> 23 | KS22: =KG22+1 -> 23 | KT22: =KH22+1 -> 23 | KU22: =KI22+1 -> 23 | KV22: =KJ22+1 -> 24 | KW22: =KK22+1 -> 24 | KX22: =KL22+1 -> 24 | KY22: =KM22+1 -> 24 | KZ22: =KN22+1 -> 24 | LA22: =KO22+1 -> 24 | LB22: =KP22+1 -> 24 | LC22: =KQ22+1 -> 24 | LD22: =KR22+1 -> 24 | LE22: =KS22+1 -> 24 | LF22: =KT22+1 -> 24 | LG22: =KU22+1 -> 24 | LH22: =KV22+1 -> 25 | LI22: =KW22+1 -> 25 | LJ22: =KX22+1 -> 25 | LK22: =KY22+1 -> 25 | LL22: =KZ22+1 -> 25 | LM22: =LA22+1 -> 25 | LN22: =LB22+1 -> 25 | LO22: =LC22+1 -> 25 | LP22: =LD22+1 -> 25 | LQ22: =LE22+1 -> 25 | LR22: =LF22+1 -> 25 | LS22: =LG22+1 -> 25
C23: Cible | D23: Atteint | E23: % | F23: =Cycle_calcul_VAN -> 20 | G23: =-(EcheancierMois+VariationMois) -> -24 | H23: =G$3+1 -> -23 | I23: =H$3+1 -> -22 | J23: =I$3+1 -> -21 | K23: =J$3+1 -> -20 | L23: =K$3+1 -> -19 | M23: =L$3+1 -> -18 | N23: =M$3+1 -> -17 | O23: =N$3+1 -> -16 | P23: =O$3+1 -> -15 | Q23: =P$3+1 -> -14 | R23: =Q$3+1 -> -13 | S23: =R$3+1 -> -12 | T23: =S$3+1 -> -11 | U23: =T$3+1 -> -10 | V23: =U$3+1 -> -9 | W23: =V$3+1 -> -8 | X23: =W$3+1 -> -7 | Y23: -6 | Z23: -5 | AA23: -4 | AB23: =AA$3+1 -> -3 | AC23: =AB$3+1 -> -2 | AD23: -1 | AE23: 0 | AF23: 1 | AG23: 2 | AH23: 3 | AI23: 4 | AJ23: 5 | AK23: 6 | AL23: 7 | AM23: 8 | AN23: 9 | AO23: 10 | AP23: 11 | AQ23: 12 | AR23: 13 | AS23: 14 | AT23: 15 | AU23: 16 | AV23: 17 | AW23: 18 | AX23: 19 | AY23: 20 | AZ23: 21 | BA23: 22 | BB23: 23 | BC23: 24 | BD23: 25 | BE23: 26 | BF23: 27 | BG23: 28 | BH23: 29 | BI23: 30 | BJ23: 31 | BK23: 32 | BL23: 33 | BM23: 34 | BN23: 35 | BO23: 36 | BP23: 37 | BQ23: 38 | BR23: 39 | BS23: 40 | BT23: 41 | BU23: 42 | BV23: 43 | BW23: 44 | BX23: 45 | BY23: 46 | BZ23: 47 | CA23: 48 | CB23: 49 | CC23: 50 | CD23: 51 | CE23: 52 | CF23: 53 | CG23: 54 | CH23: 55 | CI23: 56 | CJ23: 57 | CK23: 58 | CL23: 59 | CM23: 60 | CN23: 61 | CO23: 62 | CP23: 63 | CQ23: 64 | CR23: 65 | CS23: 66 | CT23: 67 | CU23: 68 | CV23: 69 | CW23: 70 | CX23: 71 | CY23: 72 | CZ23: 73 | DA23: 74 | DB23: 75 | DC23: 76 | DD23: 77 | DE23: 78 | DF23: 79 | DG23: 80 | DH23: 81 | DI23: 82 | DJ23: 83 | DK23: 84 | DL23: 85 | DM23: 86 | DN23: 87 | DO23: 88 | DP23: 89 | DQ23: 90 | DR23: 91 | DS23: 92 | DT23: 93 | DU23: 94 | DV23: 95 | DW23: 96 | DX23: 97 | DY23: 98 | DZ23: 99 | EA23: 100 | EB23: 101 | EC23: 102 | ED23: 103 | EE23: 104 | EF23: 105 | EG23: 106 | EH23: 107 | EI23: 108 | EJ23: 109 | EK23: 110 | EL23: 111 | EM23: 112 | EN23: 113 | EO23: 114 | EP23: 115 | EQ23: 116 | ER23: 117 | ES23: 118 | ET23: 119 | EU23: 120 | EV23: 121 | EW23: 122 | EX23: 123 | EY23: 124 | EZ23: 125 | FA23: 126 | FB23: 127 | FC23: 128 | FD23: 129 | FE23: 130 | FF23: 131 | FG23: 132 | FH23: 133 | FI23: 134 | FJ23: 135 | FK23: 136 | FL23: 137 | FM23: 138 | FN23: 139 | FO23: 140 | FP23: 141 | FQ23: 142 | FR23: 143 | FS23: 144 | FT23: 145 | FU23: 146 | FV23: 147 | FW23: 148 | FX23: 149 | FY23: 150 | FZ23: 151 | GA23: 152 | GB23: 153 | GC23: 154 | GD23: 155 | GE23: 156 | GF23: 157 | GG23: 158 | GH23: 159 | GI23: 160 | GJ23: 161 | GK23: 162 | GL23: 163 | GM23: 164 | GN23: 165 | GO23: 166 | GP23: 167 | GQ23: 168 | GR23: 169 | GS23: 170 | GT23: 171 | GU23: 172 | GV23: 173 | GW23: 174 | GX23: 175 | GY23: 176 | GZ23: 177 | HA23: 178 | HB23: 179 | HC23: 180 | HD23: 181 | HE23: 182 | HF23: 183 | HG23: 184 | HH23: 185 | HI23: 186 | HJ23: 187 | HK23: 188 | HL23: 189 | HM23: 190 | HN23: 191 | HO23: 192 | HP23: 193 | HQ23: 194 | HR23: 195 | HS23: 196 | HT23: 197 | HU23: 198 | HV23: 199 | HW23: 200 | HX23: 201 | HY23: 202 | HZ23: 203 | IA23: 204 | IB23: 205 | IC23: 206 | ID23: 207 | IE23: 208 | IF23: 209 | IG23: 210 | IH23: 211 | II23: 212 | IJ23: 213 | IK23: 214 | IL23: 215 | IM23: 216 | IN23: 217 | IO23: 218 | IP23: 219 | IQ23: 220 | IR23: 221 | IS23: 222 | IT23: 223 | IU23: 224 | IV23: 225 | IW23: 226 | IX23: 227 | IY23: 228 | IZ23: 229 | JA23: 230 | JB23: 231 | JC23: 232 | JD23: 233 | JE23: 234 | JF23: 235 | JG23: 236 | JH23: 237 | JI23: 238 | JJ23: 239 | JK23: 240 | JL23: 241 | JM23: 242 | JN23: 243 | JO23: 244 | JP23: 245 | JQ23: 246 | JR23: 247 | JS23: 248 | JT23: 249 | JU23: 250 | JV23: 251 | JW23: 252 | JX23: 253 | JY23: 254 | JZ23: 255 | KA23: 256 | KB23: 257 | KC23: 258 | KD23: 259 | KE23: 260 | KF23: 261 | KG23: 262 | KH23: 263 | KI23: 264 | KJ23: 265 | KK23: 266 | KL23: 267 | KM23: 268 | KN23: 269 | KO23: 270 | KP23: 271 | KQ23: 272 | KR23: 273 | KS23: 274 | KT23: 275 | KU23: 276 | KV23: 277 | KW23: 278 | KX23: 279 | KY23: 280 | KZ23: 281 | LA23: 282 | LB23: 283 | LC23: 284 | LD23: 285 | LE23: 286 | LF23: 287 | LG23: 288 | LH23: 289 | LI23: 290 | LJ23: 291 | LK23: 292 | LL23: 293 | LM23: 294 | LN23: 295 | LO23: 296 | LP23: 297 | LQ23: 298 | LR23: 299 | LS23: 300
A24: Économies de coûts d'énergie réelles | C24: =VAN_econ_proj!$C$5 -> 0 | D24: =SUM(Econ_AdS_5) -> 0 | E24: =IFERROR(D24/C24,"") ->  | F24: =NPV(TA_mensuel_eq,G24:LS24,G25:INDIRECT(ADDRESS(MATCH(C25,$C$1:$C$48,0),MATCH(Cycle_calcul_VAN*12,A23:JK23),,TRUE))) -> 0 | G24: 0 | H24: 0 | I24: 0 | J24: 0 | K24: 0 | L24: 0 | M24: 0 | N24: 0 | O24: 0 | P24: 0 | Q24: 0 | R24: 0 | S24: 0 | T24: 0 | U24: 0 | V24: 0 | W24: 0 | X24: 0 | Y24: 0 | Z24: 0 | AA24: 0 | AB24: 0 | AC24: 0 | AD24: 0 | AE24: 0 | AF24: =AF19 -> 0 | AG24: =AG19 -> 0 | AH24: 0 | AI24: 0 | AJ24: 0 | AK24: 0 | AL24: 0 | AM24: 0 | AN24: 0 | AO24: 0 | AP24: 0 | AQ24: 0 | AR24: 0 | AS24: 0 | AT24: 0 | AU24: 0 | AV24: 0 | AW24: 0 | AX24: 0 | AY24: 0 | AZ24: 0 | BA24: 0 | BB24: 0 | BC24: 0 | BD24: =BD19 -> 0 | BE24: 0 | BF24: 0 | BG24: 0 | BH24: 0 | BI24: 0 | BJ24: 0 | BK24: 0 | BL24: 0 | BM24: 0 | BN24: 0 | BO24: 0 | BP24: =BP19 -> 0 | BQ24: =BQ19 -> 0 | BR24: 0 | BS24: 0 | BT24: 0 | BU24: 0 | BV24: 0 | BW24: 0 | BX24: 0 | BY24: 0 | BZ24: 0 | CA24: =CA19 -> 0
A25: Économies de coûts d'énergie projetées | C25: 5 | AR25: =IF($B22=1,HLOOKUP(AR23-(ROUNDUP(AR23/12,0)-1)*12,$AF$3:$DK$5,2,#REF!),"") ->  | AS25: =IF($B22=1,HLOOKUP(AS23-(ROUNDUP(AS23/12,0)-1)*12,$AF$3:$DK$5,2,AG25),"") ->  | CN25: =IF(CN23>$B22*12,HLOOKUP(CN23-(CN22-$B22)*12,Table_AdS_5,2,FALSE),"") -> 0 | CO25: 0 | CP25: 0 | CQ25: 0 | CR25: 0 | CS25: 0 | CT25: 0 | CU25: 0 | CV25: 0 | CW25: 0 | CX25: 0 | CY25: 0 | CZ25: 0 | DA25: 0 | DB25: 0 | DC25: 0 | DD25: 0 | DE25: 0 | DF25: 0 | DG25: 0 | DH25: 0 | DI25: 0 | DJ25: 0 | DK25: 0 | DL25: 0 | DM25: 0 | DN25: 0 | DO25: 0 | DP25: 0 | DQ25: 0 | DR25: 0 | DS25: 0 | DT25: =IF(DT23>$B22*12,HLOOKUP(DT23-(DT22-$B22)*12,Table_AdS_5,2,FALSE),"") -> 0 | DU25: 0 | DV25: 0 | DW25: 0 | DX25: 0 | DY25: 0 | DZ25: 0 | EA25: 0 | EB25: 0 | EC25: 0 | ED25: 0 | EE25: 0 | EF25: 0 | EG25: 0 | EH25: 0 | EI25: 0 | EJ25: 0 | EK25: 0 | EL25: 0 | EM25: 0 | EN25: 0 | EO25: 0 | EP25: 0 | EQ25: 0 | ER25: 0 | ES25: 0 | ET25: 0 | EU25: 0 | EV25: 0 | EW25: 0 | EX25: 0 | EY25: 0 | EZ25: =IF(EZ23>$B22*12,HLOOKUP(EZ23-(EZ22-$B22)*12,Table_AdS_5,2,FALSE),"") -> 0 | FA25: 0 | FB25: 0 | FC25: 0 | FD25: 0 | FE25: 0 | FF25: 0 | FG25: 0 | FH25: 0 | FI25: 0 | FJ25: 0 | FK25: 0 | FL25: 0 | FM25: 0 | FN25: 0 | FO25: 0 | FP25: 0 | FQ25: 0 | FR25: 0 | FS25: 0 | FT25: 0 | FU25: 0 | FV25: 0 | FW25: 0 | FX25: 0 | FY25: 0 | FZ25: 0 | GA25: 0 | GB25: 0 | GC25: 0 | GD25: 0 | GE25: 0 | GF25: =IF(GF23>$B22*12,HLOOKUP(GF23-(GF22-$B22)*12,Table_AdS_5,2,FALSE),"") -> 0 | GG25: 0 | GH25: 0 | GI25: 0 | GJ25: 0 | GK25: 0 | GL25: 0 | GM25: 0 | GN25: 0 | GO25: 0 | GP25: 0 | GQ25: 0 | GR25: 0 | GS25: 0 | GT25: 0 | GU25: 0 | GV25: 0 | GW25: 0 | GX25: 0 | GY25: 0 | GZ25: 0 | HA25: 0 | HB25: 0 | HC25: 0 | HD25: 0 | HE25: 0 | HF25: 0 | HG25: 0 | HH25: 0 | HI25: 0 | HJ25: 0 | HK25: 0 | HL25: =IF(HL23>$B22*12,HLOOKUP(HL23-(HL22-$B22)*12,Table_AdS_5,2,FALSE),"") -> 0 | HM25: 0 | HN25: 0 | HO25: 0 | HP25: 0 | HQ25: 0 | HR25: 0 | HS25: 0 | HT25: 0 | HU25: 0 | HV25: 0 | HW25: 0 | HX25: 0 | HY25: 0 | HZ25: 0 | IA25: 0 | IB25: 0 | IC25: 0 | ID25: 0 | IE25: 0 | IF25: 0 | IG25: 0 | IH25: 0 | II25: 0 | IJ25: 0 | IK25: 0 | IL25: 0 | IM25: 0 | IN25: 0 | IO25: 0 | IP25: 0 | IQ25: 0 | IR25: =IF(IR23>$B22*12,HLOOKUP(IR23-(IR22-$B22)*12,Table_AdS_5,2,FALSE),"") -> 0 | IS25: 0 | IT25: 0 | IU25: 0 | IV25: 0 | IW25: 0 | IX25: 0 | IY25: 0 | IZ25: 0 | JA25: 0 | JB25: 0 | JC25: 0 | JD25: 0 | JE25: 0 | JF25: 0 | JG25: 0 | JH25: 0 | JI25: 0 | JJ25: 0 | JK25: 0 | JL25: =IF(JL23>$B22*12,HLOOKUP(JL23-(JL22-$B22)*12,Table_AdS_5,2,FALSE),"") -> 0 | JM25: 0 | JN25: 0 | JO25: 0 | JP25: 0 | JQ25: 0 | JR25: 0 | JS25: 0 | JT25: 0 | JU25: 0 | JV25: 0 | JW25: 0 | JX25: 0 | JY25: 0 | JZ25: 0 | KA25: 0 | KB25: 0 | KC25: 0 | KD25: 0 | KE25: 0 | KF25: 0 | KG25: 0 | KH25: 0 | KI25: 0 | KJ25: 0 | KK25: 0 | KL25: 0 | KM25: 0 | KN25: 0 | KO25: 0 | KP25: 0 | KQ25: 0 | KR25: 0 | KS25: 0 | KT25: 0 | KU25: 0 | KV25: 0 | KW25: 0 | KX25: 0 | KY25: 0 | KZ25: 0 | LA25: 0 | LB25: 0 | LC25: 0 | LD25: 0 | LE25: 0 | LF25: 0 | LG25: 0 | LH25: 0 | LI25: 0 | LJ25: 0 | LK25: 0 | LL25: 0 | LM25: 0 | LN25: 0 | LO25: 0 | LP25: 0 | LQ25: 0 | LR25: 0 | LS25: 0
A27: AdS | B27: =B22+1 -> 6 | F27: Valeur actuelle | AF27: Date de commencement | AG27: 1 | AH27: 1 | AI27: 1 | AJ27: 1 | AK27: 1 | AL27: 1 | AM27: 1 | AN27: 1 | AO27: 1 | AP27: 1 | AQ27: 1 | AR27: 2 | AS27: 2 | AT27: 2 | AU27: 2 | AV27: 2 | AW27: 2 | AX27: 2 | AY27: 2 | AZ27: 2 | BA27: 2 | BB27: 2 | BC27: 2 | BD27: 3 | BE27: 3 | BF27: 3 | BG27: 3 | BH27: 3 | BI27: 3 | BJ27: 3 | BK27: 3 | BL27: 3 | BM27: 3 | BN27: 3 | BO27: 3 | BP27: 4 | BQ27: 4 | BR27: 4 | BS27: 4 | BT27: 4 | BU27: 4 | BV27: 4 | BW27: 4 | BX27: 4 | BY27: 4 | BZ27: 4 | CA27: 4 | CB27: 5 | CC27: 5 | CD27: 5 | CE27: 5 | CF27: 5 | CG27: 5 | CH27: 5 | CI27: 5 | CJ27: 5 | CK27: 5 | CL27: 5 | CM27: 5 | CN27: 6 | CO27: 6 | CP27: 6 | CQ27: 6 | CR27: 6 | CS27: 6 | CT27: 6 | CU27: 6 | CV27: 6 | CW27: 6 | CX27: 6 | CY27: 6 | CZ27: 7 | DA27: 7 | DB27: 7 | DC27: 7 | DD27: 7 | DE27: 7 | DF27: 7 | DG27: 7 | DH27: 7 | DI27: 7 | DJ27: 7 | DK27: 7 | DL27: 8 | DM27: 8 | DN27: 8 | DO27: 8 | DP27: 8 | DQ27: 8 | DR27: 8 | DS27: 8 | DT27: 8 | DU27: 8 | DV27: 8 | DW27: 8 | DX27: 9 | DY27: 9 | DZ27: 9 | EA27: 9 | EB27: 9 | EC27: 9 | ED27: 9 | EE27: 9 | EF27: 9 | EG27: 9 | EH27: 9 | EI27: 9 | EJ27: 10 | EK27: 10 | EL27: 10 | EM27: 10 | EN27: 10 | EO27: 10 | EP27: 10 | EQ27: 10 | ER27: 10 | ES27: 10 | ET27: 10 | EU27: 10 | EV27: 11 | EW27: 11 | EX27: 11 | EY27: 11 | EZ27: 11 | FA27: 11 | FB27: 11 | FC27: 11 | FD27: 11 | FE27: 11 | FF27: 11 | FG27: 11 | FH27: 12 | FI27: 12 | FJ27: 12 | FK27: 12 | FL27: 12 | FM27: 12 | FN27: 12 | FO27: 12 | FP27: 12 | FQ27: 12 | FR27: 12 | FS27: 12 | FT27: 13 | FU27: 13 | FV27: 13 | FW27: 13 | FX27: 13 | FY27: 13 | FZ27: 13 | GA27: 13 | GB27: 13 | GC27: 13 | GD27: 13 | GE27: 13 | GF27: 14 | GG27: 14 | GH27: 14 | GI27: 14 | GJ27: 14 | GK27: 14 | GL27: 14 | GM27: 14 | GN27: 14 | GO27: 14 | GP27: 14 | GQ27: 14 | GR27: 15 | GS27: 15 | GT27: 15 | GU27: 15 | GV27: 15 | GW27: 15 | GX27: 15 | GY27: 15 | GZ27: 15 | HA27: 15 | HB27: 15 | HC27: 15 | HD27: 16 | HE27: 16 | HF27: 16 | HG27: 16 | HH27: 16 | HI27: 16 | HJ27: 16 | HK27: 16 | HL27: 16 | HM27: 16 | HN27: 16 | HO27: 16 | HP27: 17 | HQ27: 17 | HR27: 17 | HS27: 17 | HT27: 17 | HU27: 17 | HV27: 17 | HW27: 17 | HX27: 17 | HY27: 17 | HZ27: 17 | IA27: 17 | IB27: 18 | IC27: 18 | ID27: 18 | IE27: 18 | IF27: 18 | IG27: 18 | IH27: 18 | II27: 18 | IJ27: 18 | IK27: 18 | IL27: 18 | IM27: 18 | IN27: 19 | IO27: 19 | IP27: 19 | IQ27: 19 | IR27: 19 | IS27: 19 | IT27: 19 | IU27: 19 | IV27: 19 | IW27: 19 | IX27: 19 | IY27: 19 | IZ27: 20 | JA27: 20 | JB27: 20 | JC27: 20 | JD27: 20 | JE27: 20 | JF27: 20 | JG27: 20 | JH27: 20 | JI27: 20 | JJ27: 20 | JK27: 20 | JL27: =IZ27+1 -> 21 | JM27: =JA27+1 -> 21 | JN27: =JB27+1 -> 21 | JO27: =JC27+1 -> 21 | JP27: =JD27+1 -> 21 | JQ27: =JE27+1 -> 21 | JR27: =JF27+1 -> 21 | JS27: =JG27+1 -> 21 | JT27: =JH27+1 -> 21 | JU27: =JI27+1 -> 21 | JV27: =JJ27+1 -> 21 | JW27: =JK27+1 -> 21 | JX27: =JL27+1 -> 22 | JY27: =JM27+1 -> 22 | JZ27: =JN27+1 -> 22 | KA27: =JO27+1 -> 22 | KB27: =JP27+1 -> 22 | KC27: =JQ27+1 -> 22 | KD27: =JR27+1 -> 22 | KE27: =JS27+1 -> 22 | KF27: =JT27+1 -> 22 | KG27: =JU27+1 -> 22 | KH27: =JV27+1 -> 22 | KI27: =JW27+1 -> 22 | KJ27: =JX27+1 -> 23 | KK27: =JY27+1 -> 23 | KL27: =JZ27+1 -> 23 | KM27: =KA27+1 -> 23 | KN27: =KB27+1 -> 23 | KO27: =KC27+1 -> 23 | KP27: =KD27+1 -> 23 | KQ27: =KE27+1 -> 23 | KR27: =KF27+1 -> 23 | KS27: =KG27+1 -> 23 | KT27: =KH27+1 -> 23 | KU27: =KI27+1 -> 23 | KV27: =KJ27+1 -> 24 | KW27: =KK27+1 -> 24 | KX27: =KL27+1 -> 24 | KY27: =KM27+1 -> 24 | KZ27: =KN27+1 -> 24 | LA27: =KO27+1 -> 24 | LB27: =KP27+1 -> 24 | LC27: =KQ27+1 -> 24 | LD27: =KR27+1 -> 24 | LE27: =KS27+1 -> 24 | LF27: =KT27+1 -> 24 | LG27: =KU27+1 -> 24 | LH27: =KV27+1 -> 25 | LI27: =KW27+1 -> 25 | LJ27: =KX27+1 -> 25 | LK27: =KY27+1 -> 25 | LL27: =KZ27+1 -> 25 | LM27: =LA27+1 -> 25 | LN27: =LB27+1 -> 25 | LO27: =LC27+1 -> 25 | LP27: =LD27+1 -> 25 | LQ27: =LE27+1 -> 25 | LR27: =LF27+1 -> 25 | LS27: =LG27+1 -> 25
C28: Cible | D28: Atteint | E28: % | F28: =Cycle_calcul_VAN -> 20 | G28: =-(EcheancierMois+VariationMois) -> -24 | H28: =G$3+1 -> -23 | I28: =H$3+1 -> -22 | J28: =I$3+1 -> -21 | K28: =J$3+1 -> -20 | L28: =K$3+1 -> -19 | M28: =L$3+1 -> -18 | N28: =M$3+1 -> -17 | O28: =N$3+1 -> -16 | P28: =O$3+1 -> -15 | Q28: =P$3+1 -> -14 | R28: =Q$3+1 -> -13 | S28: =R$3+1 -> -12 | T28: =S$3+1 -> -11 | U28: =T$3+1 -> -10 | V28: =U$3+1 -> -9 | W28: =V$3+1 -> -8 | X28: =W$3+1 -> -7 | Y28: -6 | Z28: -5 | AA28: -4 | AB28: =AA$3+1 -> -3 | AC28: =AB$3+1 -> -2 | AD28: -1 | AE28: 0 | AF28: 1 | AG28: 2 | AH28: 3 | AI28: 4 | AJ28: 5 | AK28: 6 | AL28: 7 | AM28: 8 | AN28: 9 | AO28: 10 | AP28: 11 | AQ28: 12 | AR28: 13 | AS28: 14 | AT28: 15 | AU28: 16 | AV28: 17 | AW28: 18 | AX28: 19 | AY28: 20 | AZ28: 21 | BA28: 22 | BB28: 23 | BC28: 24 | BD28: 25 | BE28: 26 | BF28: 27 | BG28: 28 | BH28: 29 | BI28: 30 | BJ28: 31 | BK28: 32 | BL28: 33 | BM28: 34 | BN28: 35 | BO28: 36 | BP28: 37 | BQ28: 38 | BR28: 39 | BS28: 40 | BT28: 41 | BU28: 42 | BV28: 43 | BW28: 44 | BX28: 45 | BY28: 46 | BZ28: 47 | CA28: 48 | CB28: 49 | CC28: 50 | CD28: 51 | CE28: 52 | CF28: 53 | CG28: 54 | CH28: 55 | CI28: 56 | CJ28: 57 | CK28: 58 | CL28: 59 | CM28: 60 | CN28: 61 | CO28: 62 | CP28: 63 | CQ28: 64 | CR28: 65 | CS28: 66 | CT28: 67 | CU28: 68 | CV28: 69 | CW28: 70 | CX28: 71 | CY28: 72 | CZ28: 73 | DA28: 74 | DB28: 75 | DC28: 76 | DD28: 77 | DE28: 78 | DF28: 79 | DG28: 80 | DH28: 81 | DI28: 82 | DJ28: 83 | DK28: 84 | DL28: 85 | DM28: 86 | DN28: 87 | DO28: 88 | DP28: 89 | DQ28: 90 | DR28: 91 | DS28: 92 | DT28: 93 | DU28: 94 | DV28: 95 | DW28: 96 | DX28: 97 | DY28: 98 | DZ28: 99 | EA28: 100 | EB28: 101 | EC28: 102 | ED28: 103 | EE28: 104 | EF28: 105 | EG28: 106 | EH28: 107 | EI28: 108 | EJ28: 109 | EK28: 110 | EL28: 111 | EM28: 112 | EN28: 113 | EO28: 114 | EP28: 115 | EQ28: 116 | ER28: 117 | ES28: 118 | ET28: 119 | EU28: 120 | EV28: 121 | EW28: 122 | EX28: 123 | EY28: 124 | EZ28: 125 | FA28: 126 | FB28: 127 | FC28: 128 | FD28: 129 | FE28: 130 | FF28: 131 | FG28: 132 | FH28: 133 | FI28: 134 | FJ28: 135 | FK28: 136 | FL28: 137 | FM28: 138 | FN28: 139 | FO28: 140 | FP28: 141 | FQ28: 142 | FR28: 143 | FS28: 144 | FT28: 145 | FU28: 146 | FV28: 147 | FW28: 148 | FX28: 149 | FY28: 150 | FZ28: 151 | GA28: 152 | GB28: 153 | GC28: 154 | GD28: 155 | GE28: 156 | GF28: 157 | GG28: 158 | GH28: 159 | GI28: 160 | GJ28: 161 | GK28: 162 | GL28: 163 | GM28: 164 | GN28: 165 | GO28: 166 | GP28: 167 | GQ28: 168 | GR28: 169 | GS28: 170 | GT28: 171 | GU28: 172 | GV28: 173 | GW28: 174 | GX28: 175 | GY28: 176 | GZ28: 177 | HA28: 178 | HB28: 179 | HC28: 180 | HD28: 181 | HE28: 182 | HF28: 183 | HG28: 184 | HH28: 185 | HI28: 186 | HJ28: 187 | HK28: 188 | HL28: 189 | HM28: 190 | HN28: 191 | HO28: 192 | HP28: 193 | HQ28: 194 | HR28: 195 | HS28: 196 | HT28: 197 | HU28: 198 | HV28: 199 | HW28: 200 | HX28: 201 | HY28: 202 | HZ28: 203 | IA28: 204 | IB28: 205 | IC28: 206 | ID28: 207 | IE28: 208 | IF28: 209 | IG28: 210 | IH28: 211 | II28: 212 | IJ28: 213 | IK28: 214 | IL28: 215 | IM28: 216 | IN28: 217 | IO28: 218 | IP28: 219 | IQ28: 220 | IR28: 221 | IS28: 222 | IT28: 223 | IU28: 224 | IV28: 225 | IW28: 226 | IX28: 227 | IY28: 228 | IZ28: 229 | JA28: 230 | JB28: 231 | JC28: 232 | JD28: 233 | JE28: 234 | JF28: 235 | JG28: 236 | JH28: 237 | JI28: 238 | JJ28: 239 | JK28: 240 | JL28: 241 | JM28: 242 | JN28: 243 | JO28: 244 | JP28: 245 | JQ28: 246 | JR28: 247 | JS28: 248 | JT28: 249 | JU28: 250 | JV28: 251 | JW28: 252 | JX28: 253 | JY28: 254 | JZ28: 255 | KA28: 256 | KB28: 257 | KC28: 258 | KD28: 259 | KE28: 260 | KF28: 261 | KG28: 262 | KH28: 263 | KI28: 264 | KJ28: 265 | KK28: 266 | KL28: 267 | KM28: 268 | KN28: 269 | KO28: 270 | KP28: 271 | KQ28: 272 | KR28: 273 | KS28: 274 | KT28: 275 | KU28: 276 | KV28: 277 | KW28: 278 | KX28: 279 | KY28: 280 | KZ28: 281 | LA28: 282 | LB28: 283 | LC28: 284 | LD28: 285 | LE28: 286 | LF28: 287 | LG28: 288 | LH28: 289 | LI28: 290 | LJ28: 291 | LK28: 292 | LL28: 293 | LM28: 294 | LN28: 295 | LO28: 296 | LP28: 297 | LQ28: 298 | LR28: 299 | LS28: 300
A29: Économies de coûts d'énergie réelles | C29: =VAN_econ_proj!$C$5 -> 0 | D29: =SUM(Econ_AdS_6) -> 0 | E29: =IFERROR(D29/C29,"") ->  | F29: =NPV(TA_mensuel_eq,G29:LS29,G30:INDIRECT(ADDRESS(MATCH(C30,$C$1:$C$48,0),MATCH(Cycle_calcul_VAN*12,A28:LS28),,TRUE))) -> 0 | G29: 0 | H29: 0 | I29: 0 | J29: 0 | K29: 0 | L29: 0 | M29: 0 | N29: 0 | O29: 0 | P29: 0 | Q29: 0 | R29: 0 | S29: 0 | T29: 0 | U29: 0 | V29: 0 | W29: 0 | X29: 0 | Y29: 0 | Z29: 0 | AA29: 0 | AB29: 0 | AC29: 0 | AD29: 0 | AE29: 0 | AF29: =AF24 -> 0 | AG29: =AG24 -> 0 | AH29: =AH24 -> 0 | AI29: 0 | AJ29: 0 | AK29: 0 | AL29: 0 | AM29: 0 | AN29: 0 | AO29: 0 | AP29: 0 | AQ29: 0 | AR29: 0 | AS29: 0 | AT29: 0 | AU29: 0 | AV29: 0 | AW29: 0 | AX29: 0 | AY29: 0 | AZ29: 0 | BA29: 0 | BB29: 0 | BC29: 0 | BD29: =BD24 -> 0 | BE29: 0 | BF29: 0 | BG29: 0 | BH29: 0 | BI29: 0 | BJ29: 0 | BK29: 0 | BL29: 0 | BM29: 0 | BN29: 0 | BO29: 0 | BP29: =BP24 -> 0 | BQ29: =BQ24 -> 0 | BR29: 0 | BS29: 0 | BT29: 0 | BU29: 0 | BV29: 0 | BW29: 0 | BX29: 0 | BY29: 0 | BZ29: 0 | CA29: 0 | CB29: =CB24 -> 0 | CC29: =CC24 -> 0 | CD29: 0 | CE29: 0 | CF29: 0 | CG29: 0 | CH29: 0 | CI29: 0 | CJ29: 0 | CK29: 0 | CL29: 0 | CM29: 0
A30: Économies de coûts d'énergie projetées | C30: 6 | AR30: =IF($B27=1,HLOOKUP(AR28-(ROUNDUP(AR28/12,0)-1)*12,$AF$3:$DK$5,2,#REF!),"") ->  | AS30: =IF($B27=1,HLOOKUP(AS28-(ROUNDUP(AS28/12,0)-1)*12,$AF$3:$DK$5,2,AG30),"") ->  | BY30: =IF($B27=1,HLOOKUP(BY28-(ROUNDUP(BY28/12,0)-1)*12,$AF$3:$DK$5,2,BM30),"") ->  | CZ30: =IF(CZ28>$B27*12,HLOOKUP(CZ28-(CZ27-$B27)*12,Table_AdS_6,2,FALSE),"") -> 0 | DA30: 0 | DB30: 0 | DC30: 0 | DD30: 0 | DE30: 0 | DF30: 0 | DG30: 0 | DH30: 0 | DI30: 0 | DJ30: 0 | DK30: 0 | DL30: 0 | DM30: 0 | DN30: 0 | DO30: 0 | DP30: 0 | DQ30: 0 | DR30: 0 | DS30: 0 | DT30: 0 | DU30: 0 | DV30: 0 | DW30: 0 | DX30: 0 | DY30: 0 | DZ30: 0 | EA30: 0 | EB30: 0 | EC30: 0 | ED30: 0 | EE30: 0 | EF30: =IF(EF28>$B27*12,HLOOKUP(EF28-(EF27-$B27)*12,Table_AdS_6,2,FALSE),"") -> 0 | EG30: 0 | EH30: 0 | EI30: 0 | EJ30: 0 | EK30: 0 | EL30: 0 | EM30: 0 | EN30: 0 | EO30: 0 | EP30: 0 | EQ30: 0 | ER30: 0 | ES30: 0 | ET30: 0 | EU30: 0 | EV30: 0 | EW30: 0 | EX30: 0 | EY30: 0 | EZ30: 0 | FA30: 0 | FB30: 0 | FC30: 0 | FD30: 0 | FE30: 0 | FF30: 0 | FG30: 0 | FH30: 0 | FI30: 0 | FJ30: 0 | FK30: 0 | FL30: =IF(FL28>$B27*12,HLOOKUP(FL28-(FL27-$B27)*12,Table_AdS_6,2,FALSE),"") -> 0 | FM30: 0 | FN30: 0 | FO30: 0 | FP30: 0 | FQ30: 0 | FR30: 0 | FS30: 0 | FT30: 0 | FU30: 0 | FV30: 0 | FW30: 0 | FX30: 0 | FY30: 0 | FZ30: 0 | GA30: 0 | GB30: 0 | GC30: 0 | GD30: 0 | GE30: 0 | GF30: 0 | GG30: 0 | GH30: 0 | GI30: 0 | GJ30: 0 | GK30: 0 | GL30: 0 | GM30: 0 | GN30: 0 | GO30: 0 | GP30: 0 | GQ30: 0 | GR30: =IF(GR28>$B27*12,HLOOKUP(GR28-(GR27-$B27)*12,Table_AdS_6,2,FALSE),"") -> 0 | GS30: 0 | GT30: 0 | GU30: 0 | GV30: 0 | GW30: 0 | GX30: 0 | GY30: 0 | GZ30: 0 | HA30: 0 | HB30: 0 | HC30: 0 | HD30: 0 | HE30: 0 | HF30: 0 | HG30: 0 | HH30: 0 | HI30: 0 | HJ30: 0 | HK30: 0 | HL30: 0 | HM30: 0 | HN30: 0 | HO30: 0 | HP30: 0 | HQ30: 0 | HR30: 0 | HS30: 0 | HT30: 0 | HU30: 0 | HV30: 0 | HW30: 0 | HX30: =IF(HX28>$B27*12,HLOOKUP(HX28-(HX27-$B27)*12,Table_AdS_6,2,FALSE),"") -> 0 | HY30: 0 | HZ30: 0 | IA30: 0 | IB30: 0 | IC30: 0 | ID30: 0 | IE30: 0 | IF30: 0 | IG30: 0 | IH30: 0 | II30: 0 | IJ30: 0 | IK30: 0 | IL30: 0 | IM30: 0 | IN30: 0 | IO30: 0 | IP30: 0 | IQ30: 0 | IR30: 0 | IS30: 0 | IT30: 0 | IU30: 0 | IV30: 0 | IW30: 0 | IX30: 0 | IY30: 0 | IZ30: 0 | JA30: 0 | JB30: 0 | JC30: 0 | JD30: =IF(JD28>$B27*12,HLOOKUP(JD28-(JD27-$B27)*12,Table_AdS_6,2,FALSE),"") -> 0 | JE30: 0 | JF30: 0 | JG30: 0 | JH30: 0 | JI30: 0 | JJ30: 0 | JK30: 0 | JL30: =IF(JL28>$B27*12,HLOOKUP(JL28-(JL27-$B27)*12,Table_AdS_6,2,FALSE),"") -> 0 | JM30: 0 | JN30: 0 | JO30: 0 | JP30: 0 | JQ30: 0 | JR30: 0 | JS30: 0 | JT30: 0 | JU30: 0 | JV30: 0 | JW30: 0 | JX30: 0 | JY30: 0 | JZ30: 0 | KA30: 0 | KB30: 0 | KC30: 0 | KD30: 0 | KE30: 0 | KF30: 0 | KG30: 0 | KH30: 0 | KI30: 0 | KJ30: 0 | KK30: 0 | KL30: 0 | KM30: 0 | KN30: 0 | KO30: 0 | KP30: 0 | KQ30: 0 | KR30: 0 | KS30: 0 | KT30: 0 | KU30: 0 | KV30: 0 | KW30: 0 | KX30: 0 | KY30: 0 | KZ30: 0 | LA30: 0 | LB30: 0 | LC30: 0 | LD30: 0 | LE30: 0 | LF30: 0 | LG30: 0 | LH30: 0 | LI30: 0 | LJ30: 0 | LK30: 0 | LL30: 0 | LM30: 0 | LN30: 0 | LO30: 0 | LP30: 0 | LQ30: 0 | LR30: 0 | LS30: 0
A32: AdS | B32: =B27+1 -> 7 | F32: Valeur actuelle | AF32: Date de commencement | AG32: 1 | AH32: 1 | AI32: 1 | AJ32: 1 | AK32: 1 | AL32: 1 | AM32: 1 | AN32: 1 | AO32: 1 | AP32: 1 | AQ32: 1 | AR32: 2 | AS32: 2 | AT32: 2 | AU32: 2 | AV32: 2 | AW32: 2 | AX32: 2 | AY32: 2 | AZ32: 2 | BA32: 2 | BB32: 2 | BC32: 2 | BD32: 3 | BE32: 3 | BF32: 3 | BG32: 3 | BH32: 3 | BI32: 3 | BJ32: 3 | BK32: 3 | BL32: 3 | BM32: 3 | BN32: 3 | BO32: 3 | BP32: 4 | BQ32: 4 | BR32: 4 | BS32: 4 | BT32: 4 | BU32: 4 | BV32: 4 | BW32: 4 | BX32: 4 | BY32: 4 | BZ32: 4 | CA32: 4 | CB32: 5 | CC32: 5 | CD32: 5 | CE32: 5 | CF32: 5 | CG32: 5 | CH32: 5 | CI32: 5 | CJ32: 5 | CK32: 5 | CL32: 5 | CM32: 5 | CN32: 6 | CO32: 6 | CP32: 6 | CQ32: 6 | CR32: 6 | CS32: 6 | CT32: 6 | CU32: 6 | CV32: 6 | CW32: 6 | CX32: 6 | CY32: 6 | CZ32: 7 | DA32: 7 | DB32: 7 | DC32: 7 | DD32: 7 | DE32: 7 | DF32: 7 | DG32: 7 | DH32: 7 | DI32: 7 | DJ32: 7 | DK32: 7 | DL32: 8 | DM32: 8 | DN32: 8 | DO32: 8 | DP32: 8 | DQ32: 8 | DR32: 8 | DS32: 8 | DT32: 8 | DU32: 8 | DV32: 8 | DW32: 8 | DX32: 9 | DY32: 9 | DZ32: 9 | EA32: 9 | EB32: 9 | EC32: 9 | ED32: 9 | EE32: 9 | EF32: 9 | EG32: 9 | EH32: 9 | EI32: 9 | EJ32: 10 | EK32: 10 | EL32: 10 | EM32: 10 | EN32: 10 | EO32: 10 | EP32: 10 | EQ32: 10 | ER32: 10 | ES32: 10 | ET32: 10 | EU32: 10 | EV32: 11 | EW32: 11 | EX32: 11 | EY32: 11 | EZ32: 11 | FA32: 11 | FB32: 11 | FC32: 11 | FD32: 11 | FE32: 11 | FF32: 11 | FG32: 11 | FH32: 12 | FI32: 12 | FJ32: 12 | FK32: 12 | FL32: 12 | FM32: 12 | FN32: 12 | FO32: 12 | FP32: 12 | FQ32: 12 | FR32: 12 | FS32: 12 | FT32: 13 | FU32: 13 | FV32: 13 | FW32: 13 | FX32: 13 | FY32: 13 | FZ32: 13 | GA32: 13 | GB32: 13 | GC32: 13 | GD32: 13 | GE32: 13 | GF32: 14 | GG32: 14 | GH32: 14 | GI32: 14 | GJ32: 14 | GK32: 14 | GL32: 14 | GM32: 14 | GN32: 14 | GO32: 14 | GP32: 14 | GQ32: 14 | GR32: 15 | GS32: 15 | GT32: 15 | GU32: 15 | GV32: 15 | GW32: 15 | GX32: 15 | GY32: 15 | GZ32: 15 | HA32: 15 | HB32: 15 | HC32: 15 | HD32: 16 | HE32: 16 | HF32: 16 | HG32: 16 | HH32: 16 | HI32: 16 | HJ32: 16 | HK32: 16 | HL32: 16 | HM32: 16 | HN32: 16 | HO32: 16 | HP32: 17 | HQ32: 17 | HR32: 17 | HS32: 17 | HT32: 17 | HU32: 17 | HV32: 17 | HW32: 17 | HX32: 17 | HY32: 17 | HZ32: 17 | IA32: 17 | IB32: 18 | IC32: 18 | ID32: 18 | IE32: 18 | IF32: 18 | IG32: 18 | IH32: 18 | II32: 18 | IJ32: 18 | IK32: 18 | IL32: 18 | IM32: 18 | IN32: 19 | IO32: 19 | IP32: 19 | IQ32: 19 | IR32: 19 | IS32: 19 | IT32: 19 | IU32: 19 | IV32: 19 | IW32: 19 | IX32: 19 | IY32: 19 | IZ32: 20 | JA32: 20 | JB32: 20 | JC32: 20 | JD32: 20 | JE32: 20 | JF32: 20 | JG32: 20 | JH32: 20 | JI32: 20 | JJ32: 20 | JK32: 20 | JL32: =IZ32+1 -> 21 | JM32: =JA32+1 -> 21 | JN32: =JB32+1 -> 21 | JO32: =JC32+1 -> 21 | JP32: =JD32+1 -> 21 | JQ32: =JE32+1 -> 21 | JR32: =JF32+1 -> 21 | JS32: =JG32+1 -> 21 | JT32: =JH32+1 -> 21 | JU32: =JI32+1 -> 21 | JV32: =JJ32+1 -> 21 | JW32: =JK32+1 -> 21 | JX32: =JL32+1 -> 22 | JY32: =JM32+1 -> 22 | JZ32: =JN32+1 -> 22 | KA32: =JO32+1 -> 22 | KB32: =JP32+1 -> 22 | KC32: =JQ32+1 -> 22 | KD32: =JR32+1 -> 22 | KE32: =JS32+1 -> 22 | KF32: =JT32+1 -> 22 | KG32: =JU32+1 -> 22 | KH32: =JV32+1 -> 22 | KI32: =JW32+1 -> 22 | KJ32: =JX32+1 -> 23 | KK32: =JY32+1 -> 23 | KL32: =JZ32+1 -> 23 | KM32: =KA32+1 -> 23 | KN32: =KB32+1 -> 23 | KO32: =KC32+1 -> 23 | KP32: =KD32+1 -> 23 | KQ32: =KE32+1 -> 23 | KR32: =KF32+1 -> 23 | KS32: =KG32+1 -> 23 | KT32: =KH32+1 -> 23 | KU32: =KI32+1 -> 23 | KV32: =KJ32+1 -> 24 | KW32: =KK32+1 -> 24 | KX32: =KL32+1 -> 24 | KY32: =KM32+1 -> 24 | KZ32: =KN32+1 -> 24 | LA32: =KO32+1 -> 24 | LB32: =KP32+1 -> 24 | LC32: =KQ32+1 -> 24 | LD32: =KR32+1 -> 24 | LE32: =KS32+1 -> 24 | LF32: =KT32+1 -> 24 | LG32: =KU32+1 -> 24 | LH32: =KV32+1 -> 25 | LI32: =KW32+1 -> 25 | LJ32: =KX32+1 -> 25 | LK32: =KY32+1 -> 25 | LL32: =KZ32+1 -> 25 | LM32: =LA32+1 -> 25 | LN32: =LB32+1 -> 25 | LO32: =LC32+1 -> 25 | LP32: =LD32+1 -> 25 | LQ32: =LE32+1 -> 25 | LR32: =LF32+1 -> 25 | LS32: =LG32+1 -> 25
C33: Cible | D33: Atteint | E33: % | F33: =Cycle_calcul_VAN -> 20 | G33: =-(EcheancierMois+VariationMois) -> -24 | H33: =G$3+1 -> -23 | I33: =H$3+1 -> -22 | J33: =I$3+1 -> -21 | K33: =J$3+1 -> -20 | L33: =K$3+1 -> -19 | M33: =L$3+1 -> -18 | N33: =M$3+1 -> -17 | O33: =N$3+1 -> -16 | P33: =O$3+1 -> -15 | Q33: =P$3+1 -> -14 | R33: =Q$3+1 -> -13 | S33: =R$3+1 -> -12 | T33: =S$3+1 -> -11 | U33: =T$3+1 -> -10 | V33: =U$3+1 -> -9 | W33: =V$3+1 -> -8 | X33: =W$3+1 -> -7 | Y33: -6 | Z33: -5 | AA33: -4 | AB33: =AA$3+1 -> -3 | AC33: =AB$3+1 -> -2 | AD33: -1 | AE33: 0 | AF33: 1 | AG33: 2 | AH33: 3 | AI33: 4 | AJ33: 5 | AK33: 6 | AL33: 7 | AM33: 8 | AN33: 9 | AO33: 10 | AP33: 11 | AQ33: 12 | AR33: 13 | AS33: 14 | AT33: 15 | AU33: 16 | AV33: 17 | AW33: 18 | AX33: 19 | AY33: 20 | AZ33: 21 | BA33: 22 | BB33: 23 | BC33: 24 | BD33: 25 | BE33: 26 | BF33: 27 | BG33: 28 | BH33: 29 | BI33: 30 | BJ33: 31 | BK33: 32 | BL33: 33 | BM33: 34 | BN33: 35 | BO33: 36 | BP33: 37 | BQ33: 38 | BR33: 39 | BS33: 40 | BT33: 41 | BU33: 42 | BV33: 43 | BW33: 44 | BX33: 45 | BY33: 46 | BZ33: 47 | CA33: 48 | CB33: 49 | CC33: 50 | CD33: 51 | CE33: 52 | CF33: 53 | CG33: 54 | CH33: 55 | CI33: 56 | CJ33: 57 | CK33: 58 | CL33: 59 | CM33: 60 | CN33: 61 | CO33: 62 | CP33: 63 | CQ33: 64 | CR33: 65 | CS33: 66 | CT33: 67 | CU33: 68 | CV33: 69 | CW33: 70 | CX33: 71 | CY33: 72 | CZ33: 73 | DA33: 74 | DB33: 75 | DC33: 76 | DD33: 77 | DE33: 78 | DF33: 79 | DG33: 80 | DH33: 81 | DI33: 82 | DJ33: 83 | DK33: 84 | DL33: 85 | DM33: 86 | DN33: 87 | DO33: 88 | DP33: 89 | DQ33: 90 | DR33: 91 | DS33: 92 | DT33: 93 | DU33: 94 | DV33: 95 | DW33: 96 | DX33: 97 | DY33: 98 | DZ33: 99 | EA33: 100 | EB33: 101 | EC33: 102 | ED33: 103 | EE33: 104 | EF33: 105 | EG33: 106 | EH33: 107 | EI33: 108 | EJ33: 109 | EK33: 110 | EL33: 111 | EM33: 112 | EN33: 113 | EO33: 114 | EP33: 115 | EQ33: 116 | ER33: 117 | ES33: 118 | ET33: 119 | EU33: 120 | EV33: 121 | EW33: 122 | EX33: 123 | EY33: 124 | EZ33: 125 | FA33: 126 | FB33: 127 | FC33: 128 | FD33: 129 | FE33: 130 | FF33: 131 | FG33: 132 | FH33: 133 | FI33: 134 | FJ33: 135 | FK33: 136 | FL33: 137 | FM33: 138 | FN33: 139 | FO33: 140 | FP33: 141 | FQ33: 142 | FR33: 143 | FS33: 144 | FT33: 145 | FU33: 146 | FV33: 147 | FW33: 148 | FX33: 149 | FY33: 150 | FZ33: 151 | GA33: 152 | GB33: 153 | GC33: 154 | GD33: 155 | GE33: 156 | GF33: 157 | GG33: 158 | GH33: 159 | GI33: 160 | GJ33: 161 | GK33: 162 | GL33: 163 | GM33: 164 | GN33: 165 | GO33: 166 | GP33: 167 | GQ33: 168 | GR33: 169 | GS33: 170 | GT33: 171 | GU33: 172 | GV33: 173 | GW33: 174 | GX33: 175 | GY33: 176 | GZ33: 177 | HA33: 178 | HB33: 179 | HC33: 180 | HD33: 181 | HE33: 182 | HF33: 183 | HG33: 184 | HH33: 185 | HI33: 186 | HJ33: 187 | HK33: 188 | HL33: 189 | HM33: 190 | HN33: 191 | HO33: 192 | HP33: 193 | HQ33: 194 | HR33: 195 | HS33: 196 | HT33: 197 | HU33: 198 | HV33: 199 | HW33: 200 | HX33: 201 | HY33: 202 | HZ33: 203 | IA33: 204 | IB33: 205 | IC33: 206 | ID33: 207 | IE33: 208 | IF33: 209 | IG33: 210 | IH33: 211 | II33: 212 | IJ33: 213 | IK33: 214 | IL33: 215 | IM33: 216 | IN33: 217 | IO33: 218 | IP33: 219 | IQ33: 220 | IR33: 221 | IS33: 222 | IT33: 223 | IU33: 224 | IV33: 225 | IW33: 226 | IX33: 227 | IY33: 228 | IZ33: 229 | JA33: 230 | JB33: 231 | JC33: 232 | JD33: 233 | JE33: 234 | JF33: 235 | JG33: 236 | JH33: 237 | JI33: 238 | JJ33: 239 | JK33: 240 | JL33: 241 | JM33: 242 | JN33: 243 | JO33: 244 | JP33: 245 | JQ33: 246 | JR33: 247 | JS33: 248 | JT33: 249 | JU33: 250 | JV33: 251 | JW33: 252 | JX33: 253 | JY33: 254 | JZ33: 255 | KA33: 256 | KB33: 257 | KC33: 258 | KD33: 259 | KE33: 260 | KF33: 261 | KG33: 262 | KH33: 263 | KI33: 264 | KJ33: 265 | KK33: 266 | KL33: 267 | KM33: 268 | KN33: 269 | KO33: 270 | KP33: 271 | KQ33: 272 | KR33: 273 | KS33: 274 | KT33: 275 | KU33: 276 | KV33: 277 | KW33: 278 | KX33: 279 | KY33: 280 | KZ33: 281 | LA33: 282 | LB33: 283 | LC33: 284 | LD33: 285 | LE33: 286 | LF33: 287 | LG33: 288 | LH33: 289 | LI33: 290 | LJ33: 291 | LK33: 292 | LL33: 293 | LM33: 294 | LN33: 295 | LO33: 296 | LP33: 297 | LQ33: 298 | LR33: 299 | LS33: 300
A34: Économies de coûts d'énergie réelles | C34: =VAN_econ_proj!$C$5 -> 0 | D34: =SUM(Econ_AdS_7) -> 0 | E34: =IFERROR(D34/C34,"") ->  | F34: =NPV(TA_mensuel_eq,G34:LS34,G35:INDIRECT(ADDRESS(MATCH(C35,$C$1:$C$48,0),MATCH(Cycle_calcul_VAN*12,A33:LS33),,TRUE))) -> 0 | G34: 0 | H34: 0 | I34: 0 | J34: 0 | K34: 0 | L34: 0 | M34: 0 | N34: 0 | O34: 0 | P34: 0 | Q34: 0 | R34: 0 | S34: 0 | T34: 0 | U34: 0 | V34: 0 | W34: 0 | X34: 0 | Y34: 0 | Z34: 0 | AA34: 0 | AB34: 0 | AC34: 0 | AD34: 0 | AE34: 0 | AF34: =AF29 -> 0 | AG34: =AG29 -> 0 | AH34: 0 | AI34: 0 | AJ34: 0 | AK34: 0 | AL34: 0 | AM34: 0 | AN34: 0 | AO34: 0 | AP34: 0 | AQ34: 0 | AR34: 0 | AS34: 0 | AT34: 0 | AU34: 0 | AV34: 0 | AW34: 0 | AX34: 0 | AY34: 0 | AZ34: 0 | BA34: 0 | BB34: 0 | BC34: 0 | BD34: 0 | BE34: 0 | BF34: 0 | BG34: 0 | BH34: 0 | BI34: 0 | BJ34: 0 | BK34: 0 | BL34: 0 | BM34: 0 | BN34: 0 | BO34: 0 | BP34: =BP29 -> 0 | BQ34: =BQ29 -> 0 | BR34: 0 | BS34: 0 | BT34: 0 | BU34: 0 | BV34: 0 | BW34: 0 | BX34: 0 | BY34: 0 | BZ34: 0 | CA34: 0 | CB34: =CB29 -> 0 | CC34: =CC29 -> 0 | CD34: 0 | CE34: 0 | CF34: 0 | CG34: 0 | CH34: 0 | CI34: 0 | CJ34: 0 | CK34: 0 | CL34: =CL29 -> 0 | CM34: 0 | CN34: =CN29 -> 0 | CO34: =CO29 -> 0 | CP34: 0 | CQ34: 0 | CR34: 0 | CS34: 0 | CT34: 0 | CU34: 0 | CV34: 0 | CW34: 0 | CX34: 0 | CY34: 0
A35: Économies de coûts d'énergie projetées | C35: 7 | AR35: =IF($B32=1,HLOOKUP(AR33-(ROUNDUP(AR33/12,0)-1)*12,$AF$3:$DK$5,2,#REF!),"") ->  | AS35: =IF($B32=1,HLOOKUP(AS33-(ROUNDUP(AS33/12,0)-1)*12,$AF$3:$DK$5,2,AG35),"") ->  | BY35: =IF($B32=1,HLOOKUP(BY33-(ROUNDUP(BY33/12,0)-1)*12,$AF$3:$DK$5,2,BM35),"") ->  | DE35: =IF($B32=1,HLOOKUP(DE33-(ROUNDUP(DE33/12,0)-1)*12,$AF$3:$DK$5,2,CS35),"") ->  | DL35: =IF(DL33>$B32*12,HLOOKUP(DL33-(DL32-$B32)*12,Table_AdS_7,2,FALSE),"") -> 0 | DM35: 0 | DN35: 0 | DO35: 0 | DP35: 0 | DQ35: 0 | DR35: 0 | DS35: 0 | DT35: 0 | DU35: 0 | DV35: 0 | DW35: 0 | DX35: 0 | DY35: 0 | DZ35: 0 | EA35: 0 | EB35: 0 | EC35: 0 | ED35: 0 | EE35: 0 | EF35: 0 | EG35: 0 | EH35: 0 | EI35: 0 | EJ35: 0 | EK35: 0 | EL35: 0 | EM35: 0 | EN35: 0 | EO35: 0 | EP35: 0 | EQ35: 0 | ER35: =IF(ER33>$B32*12,HLOOKUP(ER33-(ER32-$B32)*12,Table_AdS_7,2,FALSE),"") -> 0 | ES35: 0 | ET35: 0 | EU35: 0 | EV35: 0 | EW35: 0 | EX35: 0 | EY35: 0 | EZ35: 0 | FA35: 0 | FB35: 0 | FC35: 0 | FD35: 0 | FE35: 0 | FF35: 0 | FG35: 0 | FH35: 0 | FI35: 0 | FJ35: 0 | FK35: 0 | FL35: 0 | FM35: 0 | FN35: 0 | FO35: 0 | FP35: 0 | FQ35: 0 | FR35: 0 | FS35: 0 | FT35: 0 | FU35: 0 | FV35: 0 | FW35: 0 | FX35: =IF(FX33>$B32*12,HLOOKUP(FX33-(FX32-$B32)*12,Table_AdS_7,2,FALSE),"") -> 0 | FY35: 0 | FZ35: 0 | GA35: 0 | GB35: 0 | GC35: 0 | GD35: 0 | GE35: 0 | GF35: 0 | GG35: 0 | GH35: 0 | GI35: 0 | GJ35: 0 | GK35: 0 | GL35: 0 | GM35: 0 | GN35: 0 | GO35: 0 | GP35: 0 | GQ35: 0 | GR35: 0 | GS35: 0 | GT35: 0 | GU35: 0 | GV35: 0 | GW35: 0 | GX35: 0 | GY35: 0 | GZ35: 0 | HA35: 0 | HB35: 0 | HC35: 0 | HD35: =IF(HD33>$B32*12,HLOOKUP(HD33-(HD32-$B32)*12,Table_AdS_7,2,FALSE),"") -> 0 | HE35: 0 | HF35: 0 | HG35: 0 | HH35: 0 | HI35: 0 | HJ35: 0 | HK35: 0 | HL35: 0 | HM35: 0 | HN35: 0 | HO35: 0 | HP35: 0 | HQ35: 0 | HR35: 0 | HS35: 0 | HT35: 0 | HU35: 0 | HV35: 0 | HW35: 0 | HX35: 0 | HY35: 0 | HZ35: 0 | IA35: 0 | IB35: 0 | IC35: 0 | ID35: 0 | IE35: 0 | IF35: 0 | IG35: 0 | IH35: 0 | II35: 0 | IJ35: =IF(IJ33>$B32*12,HLOOKUP(IJ33-(IJ32-$B32)*12,Table_AdS_7,2,FALSE),"") -> 0 | IK35: 0 | IL35: 0 | IM35: 0 | IN35: 0 | IO35: 0 | IP35: 0 | IQ35: 0 | IR35: 0 | IS35: 0 | IT35: 0 | IU35: 0 | IV35: 0 | IW35: 0 | IX35: 0 | IY35: 0 | IZ35: 0 | JA35: 0 | JB35: 0 | JC35: 0 | JD35: 0 | JE35: 0 | JF35: 0 | JG35: 0 | JH35: 0 | JI35: 0 | JJ35: 0 | JK35: 0 | JL35: =IF(JL33>$B32*12,HLOOKUP(JL33-(JL32-$B32)*12,Table_AdS_7,2,FALSE),"") -> 0 | JM35: 0 | JN35: 0 | JO35: 0 | JP35: 0 | JQ35: 0 | JR35: 0 | JS35: 0 | JT35: 0 | JU35: 0 | JV35: 0 | JW35: 0 | JX35: 0 | JY35: 0 | JZ35: 0 | KA35: 0 | KB35: 0 | KC35: 0 | KD35: 0 | KE35: 0 | KF35: 0 | KG35: 0 | KH35: 0 | KI35: 0 | KJ35: 0 | KK35: 0 | KL35: 0 | KM35: 0 | KN35: 0 | KO35: 0 | KP35: 0 | KQ35: 0 | KR35: 0 | KS35: 0 | KT35: 0 | KU35: 0 | KV35: 0 | KW35: 0 | KX35: 0 | KY35: 0 | KZ35: 0 | LA35: 0 | LB35: 0 | LC35: 0 | LD35: 0 | LE35: 0 | LF35: 0 | LG35: 0 | LH35: 0 | LI35: 0 | LJ35: 0 | LK35: 0 | LL35: 0 | LM35: 0 | LN35: 0 | LO35: 0 | LP35: 0 | LQ35: 0 | LR35: 0 | LS35: 0
A38: AdS : Année de suivi pour la conciliation

Sheet Conciliation AdS
A1: =Identifications!A4 -> Titre du projet | B1: =Titre_projet -> 0
A2: =Identifications!A5 -> No d'appel d'offres de l'organisme | B2: =No_AppelOffre -> 
A3: =Identifications!A6 -> Nom de l'organisme | B3: =Institution -> 0
A4: Entreprise de services écoénergétiques | B4: =ESE_adjudicataire -> 0
A5: Responsable du rapport de conciliation | D5: AdS : Année de suivi pour la conciliation
A6: Date du rapport de conciliation | B6: =TODAY() -> 2025-11-20 | D6: PdP : Provision de performance
A8: Conciliation de la VAN | C8: AdS | D8: 1 | E8: =D8+1 -> 2 | F8: 3 | G8: 4 | H8: 5 | I8: 6 | J8: 7
A9: Date de commencement | B9: =DdC -> 2022-04-01 | C9: Date de conciliation | D9: =EDATE(DdC,D8*12) -> 2023-04-01 | E9: 2024-04-01 | F9: 2025-04-01 | G9: 2026-04-01 | H9: 2027-04-01 | I9: 2028-04-01 | J9: 2029-04-01
A10: Économies de coûts d'énergie projetées | D10: =Cible_econ_energie_an -> 0 | E10: 0 | F10: 0 | G10: 0 | H10: 0 | I10: 0 | J10: 0
A11: Économies de coûts d'énergie réelles | D11: =IF(D8=1,SUM(Econ_AdS_1),IF(D8=2,SUM(Econ_AdS_2),IF(D8=3,SUM(Econ_AdS_3),IF(D8=4,SUM(Econ_AdS_4),IF(D8=5,SUM(Econ_AdS_5),IF(D8=6,SUM(Econ_AdS_6),IF(D8=7,SUM(Econ_AdS_7),"Erreur!"))))))) -> 0 | E11: =IF(E8=1,SUM(Econ_AdS_1),IF(E8=2,SUM(Econ_AdS_2),IF(E8=3,SUM(Econ_AdS_3),IF(E8=4,SUM(Econ_AdS_4),IF(E8=5,SUM(Econ_AdS_5),IF(E8=6,SUM(Econ_AdS_6),IF(E8=7,SUM(Econ_AdS_7),"Erreur!"))))))) -> 0 | F11: 0 | G11: =IF(G8=1,SUM(Econ_AdS_1),IF(G8=2,SUM(Econ_AdS_2),IF(G8=3,SUM(Econ_AdS_3),IF(G8=4,SUM(Econ_AdS_4),IF(G8=5,SUM(Econ_AdS_5),IF(G8=6,SUM(Econ_AdS_6),IF(G8=7,SUM(Econ_AdS_7),"Erreur!"))))))) -> 0 | H11: =IF(H8=1,SUM(Econ_AdS_1),IF(H8=2,SUM(Econ_AdS_2),IF(H8=3,SUM(Econ_AdS_3),IF(H8=4,SUM(Econ_AdS_4),IF(H8=5,SUM(Econ_AdS_5),IF(H8=6,SUM(Econ_AdS_6),IF(H8=7,SUM(Econ_AdS_7),"Erreur!"))))))) -> 0 | I11: 0 | J11: =IF(J8=1,SUM(Econ_AdS_1),IF(J8=2,SUM(Econ_AdS_2),IF(J8=3,SUM(Econ_AdS_3),IF(J8=4,SUM(Econ_AdS_4),IF(J8=5,SUM(Econ_AdS_5),IF(J8=6,SUM(Econ_AdS_6),IF(J8=7,SUM(Econ_AdS_7),"Erreur!"))))))) -> 0
A12: Pourcentage d'atteinte des économies de coûts d'énergie projetées | D12: =IFERROR(D11/D10,"") ->  | E12: =IFERROR(E11/E10,"") -> 
C14: Valeur du contrat | D14: =-Valeur_du_contrat -> 0 | E14: 0 | F14: 0 | G14: 0 | H14: 0 | I14: 0 | J14: 0
C15: Contribution financière de l'organisme | D15: =Contribution_fin -> 0 | E15: 0 | F15: 0 | G15: 0 | H15: 0 | I15: 0 | J15: 0
C16: Sous-total | D16: =SUM(D14:D15) -> 0 | E16: 0 | F16: 0 | G16: 0 | H16: 0 | I16: 0 | J16: 0
C17: Valeur actuelle du flux des économies de coûts d'énergie réelles | D17: =IF(D8=1,VAN_AdS_1,IF(D8=2,VAN_AdS_2,IF(D8=3,VAN_AdS_3,IF(D8=4,VAN_AdS_4,IF(D8=5,VAN_AdS_5,IF(D8=6,VAN_AdS_6,IF(D8=7,"VAN_AdS_7","Erreur!"))))))) -> 0 | E17: =IF(E8=1,VAN_AdS_1,IF(E8=2,VAN_AdS_2,IF(E8=3,VAN_AdS_3,IF(E8=4,VAN_AdS_4,IF(E8=5,VAN_AdS_5,IF(E8=6,VAN_AdS_6,IF(E8=7,VAN_AdS_7,"Erreur!"))))))) -> 0 | F17: 0 | G17: 0 | H17: 0 | I17: =IF(I8=1,VAN_AdS_1,IF(I8=2,VAN_AdS_2,IF(I8=3,VAN_AdS_3,IF(I8=4,VAN_AdS_4,IF(I8=5,VAN_AdS_5,IF(I8=6,VAN_AdS_6,IF(I8=7,VAN_AdS_7,"Erreur!"))))))) -> 0 | J17: 0
C18: Valeur actuelle de la provision globale pour la maintenance des équipements (PGME) | D18: =-VAN_PGME -> 0 | E18: 0 | F18: 0 | G18: 0 | H18: 0 | I18: 0 | J18: 0
C19: Valeur actuelle du flux des frais de gestion interne | D19: =-VAN_FGI -> 0 | E19: 0 | F19: 0 | G19: 0 | H19: 0 | I19: 0 | J19: 0
C20: Valeur actuelle du flux des aides financières | D20: =VLOOKUP(CONCATENATE($C$8,"-",D8),Table_VAN_AF,11,FALSE) -> 0 | E20: 0 | F20: 0 | G20: 0 | H20: 0 | I20: 0 | J20: 0
A21: VAN réelle | C21: B | D21: =SUM(D16:D20) -> 0 | E21: 0 | F21: 0 | G21: 0 | H21: 0 | I21: 0 | J21: 0
A22: VAN garantie | C22: A | D22: =VAN_Garantie -> 0 | E22: 0 | F22: 0 | G22: 0 | H22: 0 | I22: 0 | J22: 0
A24: Solde de la PdP avant conciliation | C24: C | D24: =C36 -> 0 | E24: 0 | F24: 0 | G24: 0 | H24: 0 | I24: 0 | J24: 0
A25: Écart VAN réelle p/r VAN garantie | C25: D = B -A | D25: =D21-D22 -> 0 | E25: 0 | F25: =F21-F22 -> 0 | G25: 0 | H25: 0 | I25: 0 | J25: 0
A26: Valeur de conciliation | C26: VC = Somme(C;D) | D26: =SUM(D24:D25) -> 0 | E26: 0 | F26: =SUM(F24:F25) -> 0 | G26: 0 | H26: 0 | I26: 0 | J26: 0
A27: Paiement de conciliation | B27: Organisme ---> ESE | C27: Si VC >= 0
C28: Max. p/r PdP selon contrat | D28: =VLOOKUP(Nbr_AdS/12,PC_Lib_PdP,D8+1,FALSE) -> 0.5 | E28: 0.75 | F28: 0.8 | G28: 0.8 | H28: 0.8 | I28: 0.9 | J28: 1
D29: =IFERROR(IF(D26>=0,MIN(D26,D28*D24),0),"s.o.") -> 0 | E29: =IFERROR(IF(E26>=0,MIN(E26,E28*E24),0),"s.o.") -> 0 | F29: =IFERROR(IF(F26>=0,MIN(F26,F28*F24),0),"s.o.") -> 0 | G29: =IFERROR(IF(G26>=0,MIN(G26,G28*G24),0),"s.o.") -> 0 | H29: =IFERROR(IF(H26>=0,MIN(H26,H28*H24),0),"n/a") -> 0 | I29: 0 | J29: 0
C30: Paiement de l'organisme en faveur de l'ESE | D30: =IF(D37<C37,C37-D37,0) -> 0 | E30: =IF(E37<D37,D37-E37,0) -> 0 | F30: =IF(F37<E37,E37-F37,0) -> 0 | G30: 0 | H30: 0 | I30: 0 | J30: 0
B31: ESE ---> Organisme | C31: Si VC< 0
B32: Différence économies des 12 derniers mois | D32: =D11-D10 -> 0 | E32: =E11-E10 -> 0 | F32: =F11-F10 -> 0 | G32: =G11-G10 -> 0 | H32: =H11-H10 -> 0 | I32: =I11-I10 -> 0 | J32: =J11-J10 -> 0
C33: Paiement de l'ESE en faveur de l'organisme | D33: =ABS(IF(INDIRECT(CONCATENATE("VC_",D8))<0,IF(Nbr_AdS/12=D8,INDIRECT(CONCATENATE("VC_",D8)),MAX(INDIRECT(CONCATENATE("VC_",D8)),D32)),0)) -> 0 | E33: 0 | F33: 0 | G33: =ABS(IF(INDIRECT(CONCATENATE("VC_",G8))<0,IF(Nbr_AdS/12=G8,INDIRECT(CONCATENATE("VC_",G8)),MAX(INDIRECT(CONCATENATE("VC_",G8)),G32)),0)) -> 0 | H33: =ABS(IF(INDIRECT(CONCATENATE("VC_",H8))<0,IF(Nbr_AdS/12=H8,INDIRECT(CONCATENATE("VC_",H8)),MAX(INDIRECT(CONCATENATE("VC_",H8)),H32)),0)) -> 0 | I33: 0 | J33: 0
A35: Provision de performance | B35: Solde de la PdP | C35: Contrat | D35: après | E35: après | F35: après | G35: après | H35: après | I35: après | J35: après
B36: Solde total | C36: =Valeur_du_contrat*Pourcentage_PdP -> 0 | D36: =MAX(0,SUM(D24,-D29,D33)) -> 0 | E36: 0 | F36: =MAX(0,SUM(F24,-F29,F33)) -> 0 | G36: =MAX(0,SUM(G24,-G29,G33)) -> 0 | H36: 0 | I36: 0 | J36: 0
B37: Solde de la 1re tranche | C37: =MIN(Paramètres!B7,Paramètres!C7*Valeur_du_contrat) -> 0 | D37: =IF(D33>0,SUM(C37,D33),IF(D36>C37,C37,MAX(D36,SUM(C37,D38)))) -> 0 | E37: 0 | F37: =IF(F33>0,SUM(E37,F33),IF(F36>E37,E37,MAX(F36,SUM(E37,F38)))) -> 0 | G37: 0 | H37: 0 | I37: 0 | J37: 0
B38: Solde de la 2e tranche | D38: =IF(D29>0,SUM(-D29,C39),C39) -> 0 | E38: =IF(E29>0,SUM(-E29,D38),D38) -> 0 | F38: =IF(F29>0,SUM(-F29,E38),E38) -> 0 | G38: =IF(G29>0,SUM(-G29,F38),F38) -> 0 | H38: 0 | I38: 0 | J38: 0
C39: =C36-C37 -> 0 | D39: =MAX(0,D38) -> 0 | E39: =MAX(0,E38) -> 0 | F39: =MAX(0,F38) -> 0 | G39: 0 | H39: 0 | I39: 0 | J39: 0
A41: Intérêt dû sur le paiement de conciliation | C41: Taux applicable selon contrat | D41: 0.018 | E41: 0.018 | F41: 0.018 | G41: 0.018 | H41: 0.018 | I41: 0.018 | J41: 0.018
C42: Montant d'intérêt à ajouter au paiement de conciliation de l'organisme | D42: =IF(D30<>0,D30*D41,IF(D33<>0,D33*D41,0)) -> 0 | E42: =IF(E30<>0,E30*E41,IF(E33<>0,E33*E41,0)) -> 0 | F42: =IF(F30<>0,F30*F41,IF(F33<>0,F33*F41,0)) -> 0 | G42: 0 | H42: 0 | I42: 0 | J42: 0

Sheet Aides_fin
A1: CALCUL DE LA VAN DES AIDES FINANCIÈRES
A2: Date de début de cycle de calcul | B2: =Date_signature_contrat -> 2020-04-01
A3: Date de commencement (DdC) | B3: =DdC -> 2022-04-01
A4: Aides financières (valeur nominale totale) | B4: =Aides_finan_totales -> 0 | E4: AdS : Année de suivi pour la conciliation
D6: DdC | E6: AdS-1 | F6: AdS-2 | G6: AdS-3 | H6: AdS-4 | I6: AdS-5 | J6: AdS-6 | K6: AdS-7
C7: Nbre de mois après DdC ---> | D7: 0 | E7: 12 | F7: 24 | G7: 36 | H7: 48 | I7: 60 | J7: 72 | K7: 84
B8: Date de saisie dans calcul de la VAN ---> | C8: =B2 -> 2020-04-01 | D8: =DdC -> 2022-04-01 | E8: =EDATE(DdC,E7) -> 2023-04-01 | F8: 2024-04-01 | G8: 2025-04-01 | H8: 2026-04-01 | I8: 2027-04-01 | J8: 2028-04-01 | K8: 2029-04-01
B9: Pourcentages indiqués au moment de l'appel d'offres public ---> | C9: 0 | D9: 0.3 | E9: 0.3 | F9: 0.4 | G9: 0 | H9: 0 | I9: 0 | J9: 0 | K9: 0 | L9: VAN | M9: Valeur nominale
B10: Répartition nominale (contractuelle) de la valeur des aides financières ---> | C10: 0 | D10: =$B$4*D9 -> 0 | E10: =$B$4*E9 -> 0 | F10: =$B$4*F9 -> 0 | G10: 0 | H10: 0 | I10: 0 | J10: 0 | K10: 0 | L10: =IFERROR(XNPV(TA_annuel,C10:K10,$C$8:$K$8),0) -> 0 | M10: =SUM(C10:K10) -> 0
A11: Répartition selon les encaissements réels (après 12 mois) | B11: AdS-1 | C11: 0 | D11: =D10 -> 0 | E11: =E10 -> 0 | F11: =F10 -> 0 | G11: 0 | H11: 0 | I11: 0 | J11: 0 | K11: 0 | L11: =IFERROR(XNPV(TA_annuel,C11:K11,$C$8:$K$8),0) -> 0 | M11: =SUM(C11:K11) -> 0
A12: Répartition selon les encaissements réels (après 24 mois) | B12: AdS-2 | C12: 0 | D12: =D10 -> 0 | E12: =E10 -> 0 | F12: =F10 -> 0 | G12: 0 | H12: 0 | I12: 0 | J12: 0 | K12: 0 | L12: 0 | M12: =SUM(C12:K12) -> 0
A13: Répartition selon les encaissements réels (après 36 mois) | B13: AdS-3 | C13: 0 | D13: 0 | E13: 0 | F13: 0 | G13: 0 | H13: 0 | I13: 0 | J13: 0 | K13: 0 | L13: 0 | M13: =SUM(C13:K13) -> 0
A14: Répartition selon les encaissements réels (après 48 mois) | B14: AdS-4 | C14: 0 | D14: 0 | E14: 0 | F14: 0 | G14: 0 | H14: 0 | I14: 0 | J14: 0 | K14: 0 | L14: 0 | M14: 0
A15: Répartition selon les encaissements réels (après 48 mois) | B15: AdS-5 | C15: 0 | D15: 0 | E15: 0 | F15: 0 | G15: 0 | H15: 0 | I15: 0 | J15: 0 | K15: 0 | L15: 0 | M15: =SUM(C15:K15) -> 0
A16: Répartition selon les encaissements réels (après 48 mois) | B16: AdS-6 | C16: 0 | D16: 0 | E16: 0 | F16: 0 | G16: 0 | H16: 0 | I16: 0 | J16: 0 | K16: 0 | L16: 0 | M16: 0
A17: Répartition selon les encaissements réels (après 48 mois) | B17: AdS-7 | C17: 0 | D17: 0 | E17: 0 | F17: 0 | G17: 0 | H17: 0 | I17: 0 | J17: 0 | K17: 0 | L17: =IFERROR(XNPV(TA_annuel,C17:K17,$C$8:$K$8),0) -> 0 | M17: 0

Sheet Frais gestion interne
A1: CALCUL DE LA VAN DES FRAIS DE GESTION INTERNE
A2: Date de début du cycle de calcul | B2: =Date_signature_contrat -> 2020-04-01
A3: Date de commencement (DdC) | B3: =DdC -> 2022-04-01 | D3: AdS : Année de suivi pour la conciliation
B5: Date de début du cycle de calcul | C5: Phases approvisionnement et implantation | D5: AdS-1 | E5: AdS-2 | F5: AdS-3 | G5: AdS-4 | H5: AdS-5 | I5: AdS-6 | J5: AdS-7
A6: Nbre de mois après DdC | C6: 0 | D6: 12 | E6: 24 | F6: 36 | G6: 48 | H6: 60 | I6: 72 | J6: 84
A7: Date de saisie dans calcul de la VAN | B7: =B2 -> 2020-04-01 | C7: =EDATE($B$3,C6) -> 2022-04-01 | D7: =EDATE($B$3,D6) -> 2023-04-01 | E7: =EDATE($B$3,E6) -> 2024-04-01 | F7: 2025-04-01 | G7: 2026-04-01 | H7: 2027-04-01 | I7: 2028-04-01 | J7: 2029-04-01
A8: Frais de gestion interne | B8: 0 | C8: =ROUNDUP(MAX(25000,HLOOKUP(C6,TP_FSP,2,FALSE)*Cible_econ_energie_an),-2)*0+HLOOKUP(C6,TP_FSP,2,FALSE) -> 0 | D8: =ROUNDUP(IF(Nbr_AdS>=D6,HLOOKUP(D6,TP_FSP,2,FALSE),0)*Cible_econ_energie_an,-2)*0+HLOOKUP(D6,TP_FSP,2,FALSE) -> 0 | E8: 0 | F8: 0 | G8: 0 | H8: 0 | I8: 0 | J8: 0
A10: Valeur en dollars courants : | B10: =SUM(B8:K8) -> 0
A11: VAN : | B11: =IFERROR(XNPV(TA_annuel,C8:J8,C7:J7),0) -> 0

Sheet PGME
A1: CALCUL DE LA VAN DE LA PROVISION GLOBALE POUR LA MAINTENANCE DES ÉQUIPEMENTS *** CALCUL DE LA VAN DE LA PROVISION GLOBALE POUR LA MAINTENANCE DES ÉQUIPEMENTS *** CALCUL DE LA VAN DE LA PROVISION GLOBALE POUR LA MAINTENANCE DES ÉQUIPEMENTS *** CALCUL DE LA VAN DE LA PROVISION GLOBALE POUR LA MAINTENANCE DES ÉQUIPEMENTS
A2: Date de début du cycle de calcul | C2: =Date_signature_contrat -> 2020-04-01 | E2: Valeur en dollars courants | F2: =SUM(C9:AF9) -> 0
A3: Date de commencement (DdC) | C3: =DdC -> 2022-04-01 | E3: VAN | F3: =IFERROR(XNPV(TA_annuel,B9:AF9,B8:AF8),0) -> 0
A4: Provision globale pour la maintenance des équipements | B4: =Pourcentage_PGME -> 0.01 | C4: =Pourcentage_PGME*Valeur_du_contrat -> 0
B6: Date de début du cycle de calcul | C6: AdS-1 | D6: AdS-2 | E6: AdS-3 | F6: AdS-4 | G6: AdS-5 | H6: AdS-6 | I6: AdS-7 | J6: AdS-8 | K6: AdS-9 | L6: AdS-10 | M6: AdS-11 | N6: AdS-12 | O6: AdS-13 | P6: AdS-14 | Q6: AdS-15 | R6: AdS-16 | S6: AdS-17 | T6: AdS-18 | U6: AdS-19 | V6: AdS-20 | W6: AdS-21 | X6: AdS-22 | Y6: AdS-23 | Z6: AdS-24 | AA6: AdS-25 | AB6: AdS-26 | AC6: AdS-27 | AD6: AdS-28 | AE6: AdS-29 | AF6: AdS-30
A7: Nbre de mois après DdC | C7: 12 | D7: =C7+12 -> 24 | E7: =D7+12 -> 36 | F7: 48 | G7: 60 | H7: 72 | I7: 84 | J7: 96 | K7: 108 | L7: 120 | M7: 132 | N7: 144 | O7: 156 | P7: 168 | Q7: 180 | R7: 192 | S7: 204 | T7: 216 | U7: 228 | V7: 240 | W7: 252 | X7: 264 | Y7: 276 | Z7: 288 | AA7: 300 | AB7: 312 | AC7: 324 | AD7: 336 | AE7: 348 | AF7: 360
A8: Date de saisie dans calcul de la VAN | B8: =C2 -> 2020-04-01 | C8: =EDATE($C$3,C7) -> 2023-04-01 | D8: 2024-04-01 | E8: =EDATE($C$3,E7) -> 2025-04-01 | F8: 2026-04-01 | G8: 2027-04-01 | H8: 2028-04-01 | I8: 2029-04-01 | J8: 2030-04-01 | K8: 2031-04-01 | L8: 2032-04-01 | M8: 2033-04-01 | N8: 2034-04-01 | O8: 2035-04-01 | P8: 2036-04-01 | Q8: 2037-04-01 | R8: 2038-04-01 | S8: 2039-04-01 | T8: 2040-04-01 | U8: 2041-04-01 | V8: 2042-04-01 | W8: 2043-04-01 | X8: 2044-04-01 | Y8: 2045-04-01 | Z8: 2046-04-01 | AA8: 2047-04-01 | AB8: 2048-04-01 | AC8: 2049-04-01 | AD8: 2050-04-01 | AE8: 2051-04-01 | AF8: 2052-04-01
A9: Provision annuelle | B9: 0 | C9: =IF(C7/12<=Cycle_calcul_VAN,PGME,0) -> 0 | D9: 0 | E9: 0 | F9: 0 | G9: 0 | H9: 0 | I9: 0 | J9: 0 | K9: 0 | L9: 0 | M9: 0 | N9: 0 | O9: 0 | P9: 0 | Q9: 0 | R9: 0 | S9: 0 | T9: 0 | U9: 0 | V9: 0 | W9: 0 | X9: 0 | Y9: 0 | Z9: 0 | AA9: 0 | AB9: 0 | AC9: 0 | AD9: 0 | AE9: 0 | AF9: 0
A15: Date de début du cycle de calcul | C15: =Date_signature_contrat -> 2020-04-01
A16: Date de commencement | C16: =DdC -> 2022-04-01
A17: Provision globale pour la maintenance des équipements | B17: =Pourcentage_PGME -> 0.01 | C17: =Pourcentage_PGME*Valeur_du_contrat -> 0 | E17: AdS : Année de suivi pour la conciliation
B19: Date de début du cycle de calcul | C19: =C6 -> AdS-1 | D19: AdS-2 | E19: AdS-3 | F19: AdS-4 | G19: AdS-5
A20: Nbre de mois après DdC | C20: =C7 -> 12 | D20: 24 | E20: 36 | F20: 48 | G20: 60
A21: Date de saisie dans calcul de la VAN | B21: =$B$8 -> 2020-04-01 | C21: =C8 -> 2023-04-01 | D21: 2024-04-01 | E21: 2025-04-01 | F21: 2026-04-01 | G21: 2027-04-01
A22: Provision annuelle | B22: =$B$9 -> 0 | C22: =C9 -> 0 | D22: 0 | E22: 0 | F22: 0 | G22: 0
B23: Date de début du cycle de calcul | C23: =H6 -> AdS-6 | D23: AdS-7 | E23: AdS-8 | F23: AdS-9 | G23: AdS-10
A24: Nbre d'années après DdC | C24: 72 | D24: 84 | E24: 96 | F24: 108 | G24: 120
A25: Date de saisie dans calcul de la VAN | B25: =$B$8 -> 2020-04-01 | C25: 2028-04-01 | D25: 2029-04-01 | E25: 2030-04-01 | F25: 2031-04-01 | G25: 2032-04-01
A26: Provision annuelle | B26: =$B$9 -> 0 | C26: 0 | D26: 0 | E26: 0 | F26: 0 | G26: 0
B27: Date de début du cycle de calcul | C27: =M6 -> AdS-11 | D27: AdS-12 | E27: AdS-13 | F27: AdS-14 | G27: AdS-15
A28: Nbre d'années après DdC | C28: 132 | D28: 144 | E28: 156 | F28: 168 | G28: 180
